Workbook

Sheet Form
L7: =ListAVS!$B$222&": "&$Q$7 -> Verze: 4.0.1 | Q7: 4.0.1
L9: =" "&ListAVS!$B$163 -> Základní údaje
L10: =ListAVS!$B$397 -> Údaje pro objednávku, zadání slevy od prodejce
L15: =" "&ListAVS!$B$154 -> Nápověda
Q16: 1
Q18: ceny
L19: =ListAVS!$B$409 -> Přejít k plánování výklopů | Q19: =ListAVS!$B$43 -> Základní ceny
Q20: =ListAVS!$B$44 -> Nákupní ceny
Q21: =ListAVS!$B$45 -> Se slevou
B23: =ListAVS!$B$42&" " -> Cenová hladina | G23: =IF($Q$16=1,0,IF($Q$16=2,Form!$E$70,IF($Q$16=3,$E$86,0))) -> 0
D24: =IF(Q16=2,ListAVS!$B$48&" ["&ListAVS!$B$163&"] ",IF(Q16=3,IF(G23=0,ListAVS!$B$46&" ",ListAVS!$B$47&" ")," ")) -> 
G25: =IF($Q$16=3,ListAVS!$B$49&" "," ") -> 
B27: =" "&ListAVS!$B$396 -> Před prvním použitím doporučujeme zadat identifikační údaje pro objednávky a poté sešit uložit
B30: =ListAVS!$B$225&":" -> Prodejce:
B31: =IF(Price!$A$3<>0," "&Price!$A$3," ") -> 
B32: =IF(Price!$A$4<>0," "&Price!$A$4," ") -> 
B33: =IF(Price!$A$5<>0," "&Price!$A$5," ") -> 
B34: =IF(Price!$A$6<>0," "&Price!$A$6," ") -> 
B35: =IF(Price!$A$7<>0," "&Price!$A$7," ") -> 
B36: =IF(Price!$A$8<>0," "&Price!$A$8," ") -> 
C51: =ListAVS!$B$254 -> Formulář pro identifikační údaje
C52: =ListAVS!$B$255 -> Odběratel
C54: =ListAVS!$B$256 -> Adresa
C58: =ListAVS!$B$257 -> Dodací adresa
C62: =ListAVS!$B$258 -> IČO, DIČ
C65: =ListAVS!$B$259 -> Telefon, fax, e-mail
D70: =ListAVS!$B$226&" [%]: " -> Sleva od prodejce [%]:
C73: =ListAVS!$B$277 -> Vyplňte identifikační údaje a výši slevy od prodejce.
C74: =ListAVS!$B$279 -> Identifikační údaje se budou zobrazovat v objednávkách
C75: =ListAVS!$B$278 -> Po vyplnění se vraťte na úvod a subor uložte nebo zavřete s potvrzením změn.
C77: =ListAVS!$B$168 -> Zpět na úvod
D86: =ListAVS!$B$46&" [%] " -> Zadejte výši slevy [%]
C89: =ListAVS!$B$168 -> Zpět na úvod
C109: =" "&ListAVS!B153 -> Úvod plánování
C111: =ListAVS!$B$396&":" -> Před prvním použitím doporučujeme zadat identifikační údaje pro objednávky a poté sešit uložit:
C112: ="1. "&ListAVS!$B$276&" ' "&ListAVS!$B$163&" ' " -> 1. Přejděte na ' Základní údaje '
C113: ="2. "&ListAVS!$B$277 -> 2. Vyplňte identifikační údaje a výši slevy od prodejce.
C114: ="3. "&ListAVS!$B$278 -> 3. Po vyplnění se vraťte na úvod a subor uložte nebo zavřete s potvrzením změn.
C115: =" "&ListAVS!$B$279 -> Identifikační údaje se budou zobrazovat v objednávkách
C123: =ListAVS!$B$290&":" -> Legenda:
C125: =" "&ListAVS!B291 -> Změna zobrazovaných hodnot
C126: =" "&ListAVS!B292 -> Výpočet hmotnosti
C128: =" "&ListAVS!B294 -> Upozornění
C129: =" "&ListAVS!B295 -> Informace a vysvětlivky
C130: =" "&ListAVS!B296 -> Tip
C131: =" "&ListAVS!B297 -> Nápověda
H139: =ListAVS!$B$167 -> Zpět
E296: Pro překlady/Translating:
B297: =ListAVS!B227 -> Ceník | E297: List AVENTPLAN | H297: =ListAVS!$B$168 -> Zpět na úvod
B300: =ListAVS!B101 -> Hmotnosti materiálů
B301: =ListAVS!B398 -> Hmotnosti materiálů, skla a alurámečků

Sheet MenuAVS
B3: AVENTPLAN – přehled výklopů
K6: =" "&ListAVS!$B$168 -> Zpět na úvod
K8: =ListAVS!$B$152&":" -> Jdi na:
K9: =" "&ListAVS!$B$159 -> Doplňky
K10: =" "&ListAVS!$B$156 -> Přehled korpusů
K11: =" "&ListAVS!$B$157 -> Objednávka
B15: AVENTOS HF top | D15: AVENTOS HS top | F15: AVENTOS HL top
K16: =" "&ListAVS!$B$402 -> Tabulka hmotností
K17: =ListAVS!$B$398 -> Hmotnosti materiálů, skla a alurámečků
K23: =" "&ListAVS!$B$154 -> Nápověda
B26: AVENTOS HK top | D26: AVENTOS HK-S | F26: AVENTOS HK-XS | H26: AVENTOS HKi
B28: =ListAVS!$B$144&" * " -> Barva krytek * | P28: =U28 -> 1 | R28: 1 | U28: 1 | W28: 3
B30: =ListAVS!$B$241&" [kg/m3]" -> Objemová hmotnost materiálu čel [kg/m3] | I30: =ListAVS!$B$198&" " -> Změnit | P30: kryt. | R30: ceny | U30: kryt. | W30: ceny
B31: =MenuAVS!H74 -> MDF | C31: =Q74 -> 760 | E31: =MenuAVS!H76 -> Kompakt | F31: =Q76 -> 1350 | H31: =MenuAVS!H79 -> Keramika | I31: =Q79 -> 2400 | P31: =ListAVS!$B$145 -> Světle šedá (HGR) | R31: =ListAVS!$B$43 -> Základní ceny | U31: =ListAVS!$B$145 -> Světle šedá (HGR) | W31: =ListAVS!$B$43 -> Základní ceny
B32: =MenuAVS!H75 -> Dřevotříska | C32: =Q75 -> 680 | E32: =MenuAVS!H77 -> Kompozit | F32: =Q77 -> 1700 | H32: =MenuAVS!H80 -> Beton | I32: =Q80 -> 2300 | P32: =ListAVS!$B$146 -> Tmavě šedá (TGR) | R32: =ListAVS!$B$44 -> Nákupní ceny | U32: =ListAVS!$B$146 -> Tmavě šedá (TGR) | W32: =ListAVS!$B$44 -> Nákupní ceny
B33: =MenuAVS!H81 -> Sklo | C33: =Q81 -> 2500 | E33: =MenuAVS!H78 -> Kámen | F33: =Q78 -> 2600 | P33: =ListAVS!$B$147 -> Hedvábně bílá (SW) | R33: =ListAVS!$B$45 -> Se slevou | U33: =ListAVS!$B$147 -> Hedvábně bílá (SW) | W33: =ListAVS!$B$45 -> Se slevou
H35: =ListAVS!$B$19&" / "&ListAVS!$B$21 -> Široké alurámečky / Úzké alurámečky | I35: =ListAVS!$B$49&" " -> Nastavit
C39: =ListAVS!$B$12&" "&ListAVS!$B$13&" "&ListAVS!$B$237 -> Tato aplikace slouží k snadnějšímu objednávání kování AVENTOS. Výsledky nemusí být přesné, zvláště při použití výpočtu hmotnosti. Firma Blum ani prodejci neručí za jejich správnost.
C42: ="* "&ListAVS!B416 -> * Výběr barvy ovlivní i barvu pístů, popř. adaptérů TIP-ON
K70: =ListAVS!$B$402 -> Tabulka hmotností
K71: =ListAVS!$B$407&" " -> Můžete nastavit hodnoty pro všechny výklopy nebo můžete měnit nastavení až při plánování jednotlivých výklopů.
K72: =ListAVS!$B$241&" [kg/m3]" -> Objemová hmotnost materiálu čel [kg/m3]
I73: =ListAVS!$B$399 -> Přednastavená | K73: =ListAVS!$B$401 -> Vlastní
H74: =Param!G11&" " -> MDF | I74: =Param!H11 -> 760 | N74: =IF(K74>0, 1, 0) -> 0 | Q74: =IF($K74>0, $K74, I74) -> 760
H75: =Param!G12&" " -> Dřevotříska | I75: =Param!H12 -> 680 | N75: =IF(K75>0, 1, 0) -> 0 | Q75: =IF($K75>0, $K75, I75) -> 680
H76: =Param!G13&" " -> Kompakt | I76: =Param!H13 -> 1350 | N76: 0 | Q76: 1350
H77: =Param!G14&" " -> Kompozit | I77: =Param!H14 -> 1700 | N77: 0 | Q77: 1700
H78: =Param!G15&" " -> Kámen | I78: =Param!H15 -> 2600 | N78: 0 | Q78: 2600
H79: =Param!G16&" " -> Keramika | I79: =Param!H16 -> 2400 | N79: 0 | Q79: 2400
H80: =Param!G17&" " -> Beton | I80: =Param!H17 -> 2300 | N80: 0 | Q80: 2300
H81: =Param!G18&" " -> Sklo | I81: =Param!H18 -> 2500 | N81: 0 | Q81: 2500
E82: =ListAVS!$B$105 -> Pro přesné hodnoty se obraťte na dodavatele materiálu | N82: 0
K84: =ListAVS!$D$246&" [kg/bm]" -> [kg/bm]
I85: =ListAVS!$B$399 -> Přednastavená | K85: =ListAVS!$B$401 -> Vlastní
G86: =ListAVS!$D$19&" "&ListAVS!$D$422&" " ->  | I86: =Param!H24 -> 0.62 | N86: 0 | Q86: =IF($K86>0, $K86, I86) -> 0.62
G87: =ListAVS!$D$19&" "&ListAVS!$D$423&" " ->  | I87: =Param!H25 -> 0.63 | N87: 0 | Q87: =IF($K87>0, $K87, I87) -> 0.63
H88: =ListAVS!$B$405&" [kg/set] * " -> Hmotnost spojovacího materiálu [kg/set] * | I88: =Param!H26 -> 0.61 | N88: 0 | Q88: =IF($K88>0, $K88, I88) -> 0.61
G91: =ListAVS!$D$21&" "&ListAVS!$D$422&" " ->  | I91: =Param!H29 -> 0.31 | N91: 0 | Q91: =IF($K91>0, $K91, I91) -> 0.31
G92: =ListAVS!$D$21&" "&ListAVS!$D$423&" " ->  | I92: =Param!H30 -> 0.32 | N92: 0 | Q92: =IF($K92>0, $K92, I92) -> 0.32
H93: =ListAVS!$B$405&" [kg/set] * " -> Hmotnost spojovacího materiálu [kg/set] * | I93: =Param!H31 -> 0.46 | N93: 0 | Q93: =IF($K93>0, $K93, I93) -> 0.46
E95: =ListAVS!$B$105 -> Pro přesné hodnoty se obraťte na dodavatele materiálu | N95: =SUM(N74:N94) -> 0
K98: =ListAVS!$B$408&" " -> Chcete-li změny zachovat i pro příští použití, vraťte se na úvod a soubor uložte.
L100: =ListAVS!$B$167 -> Zpět
C120: =" "&ListAVS!$B$153 -> Úvod plánování
C122: =ListAVS!$B$281 -> Na úvodní obrazovce vyberte, jaké ceny se budou zobrazovat:
C123: =" - "&ListAVS!$B$282 -> - Základní (ceníkové) ceny bez slevy
C124: =" - "&ListAVS!$B$44&" ("&ListAVS!$B$48&")" -> - Nákupní ceny (Ceny se slevou od prodejce)
C125: =" - "&ListAVS!$B$47 -> - Ceny s volitelnou slevou
C126: =" "&ListAVS!$B$283 -> Zadáte-li slevu s mínusovým znamínkem, zobrazí se ceny o tuto hodnotu vyšší.
C128: =ListAVS!$B$285 -> Proveďte volbu barvy krytek
C129: =ListAVS!$B$286 -> Volba ovlivní barvu krytek u všech vybraných zdvihačů.
C131: =ListAVS!$B$288 -> Kliknutím na obrázek nebo popis přejděte na požadovaný typ zdvihače.
C134: =ListAVS!$B$290&":" -> Legenda:
C136: =" "&ListAVS!B291 -> Změna zobrazovaných hodnot
C137: =" "&ListAVS!B292 -> Výpočet hmotnosti
C139: =" "&ListAVS!B294 -> Upozornění
C140: =" "&ListAVS!B295 -> Informace a vysvětlivky
C141: =" "&ListAVS!B296 -> Tip
C142: =" "&ListAVS!B297 -> Nápověda
G150: =ListAVS!$B$167 -> Zpět
B330: =ListAVS!$D$152& " List" -> List | E330: =ListAVS!$D$168 -> 0

Sheet HF
B3: AVENTOS HF top | U3: =ListAVS!$B$152 -> Jdi na
U5: =" "&ListAVS!$B$153 -> Úvod plánování
E6: =" "&ListAVS!$B$74&" (KB)" -> Šířka korpusu (KB) | U6: =" "&ListAVS!$B$154 -> Nápověda
E7: =" "&ListAVS!$B$170&" 1800 mm" -> do 1800 mm
E8: =" "&ListAVS!$B$75&" (KH)" -> Výška korpusu (KH) | U8: =" "&ListAVS!$B$159 -> Doplňky
E9: 480 - 1200 mm
U10: =" "&ListAVS!$B$156 -> Přehled korpusů
U11: =" "&ListAVS!$B$157 -> Objednávka
B12: =ListAVS!$B$16 -> Dřevěná čela
B21: =ListAVS!$B$19 -> Široké alurámečky | E21: =ListAVS!$B$17 -> Dřevěné čelo | H21: =ListAVS!$B$20 -> Široký alurámeček
E22: =ListAVS!$B$20 -> Široký alurámeček | H22: =ListAVS!$B$17 -> Dřevěné čelo
B30: =ListAVS!$B$21 -> Úzké alurámečky | E30: =ListAVS!$B$17 -> Dřevěné čelo | H30: =ListAVS!$B$22 -> Úzký alurámeček
E31: =ListAVS!$B$22 -> Úzký alurámeček | H31: =ListAVS!$B$17 -> Dřevěné čelo
L33: 1 | N33: 1 | P33: 1 | R33: 1
B34: =ListAVS!$B$132&" " -> Horní závěsy | L34: záv. | N34: střed. | P34: podl. | R34: mont.
B35: =ListAVS!$B$135&" " -> Středové závěsy | L35: EXPANDO | N35: EXPANDO | P35: EXPANDO | R35: =ListAVS!$B$349 -> vruty
B36: =ListAVS!$B$138&" " -> Montážní podložky | L36: =ListAVS!$B$134 -> na vruty | N36: =ListAVS!$B$137 -> na vruty | P36: =ListAVS!$B$140 -> na vruty | R36: =ListAVS!$B$350 -> předmont. eurošrouby
B37: =ListAVS!$B$346&"** " -> Provedení zdvihače**
B39: =" ** "&ListAVS!$B$348&":" -> ** Zvolte, jaký způsob montáže chcete:
B40: =" "&ListAVS!$B$349&" = "&ListAVS!$B$351 -> vruty = zdvihače s integrovanou šablonou (bez nutnosti rozměřování)
B41: =" "&ListAVS!$B$350&" = "&ListAVS!$B$352 -> předmont. eurošrouby = zdvihače s předmotovanými šrouby (nutné předvrtání)
C70: AVENTOS HF
C73: =ListAVS!$B$301 -> Vyberte požadovanou montážní techniku pro závěsy a podložky
C75: =ListAVS!$B$288 -> Kliknutím na obrázek nebo popis přejděte na požadovaný typ zdvihače.
H85: =ListAVS!$B$167 -> Zpět | J85: =ListAVS!$B$167 -> Zpět

Sheet HS
B3: AVENTOS HS top | U3: =ListAVS!$B$152 -> Jdi na
U5: =" "&ListAVS!$B$153 -> Úvod plánování
U6: =" "&ListAVS!$B$154 -> Nápověda
B7: =ListAVS!$B$74&" (KB) " -> Šířka korpusu (KB) | D7: =" "&ListAVS!$B$170&" 1800 mm" -> do 1800 mm
B8: =ListAVS!$B$75&" (KH) " -> Výška korpusu (KH) | D8: 350 - 800 mm | U8: =" "&ListAVS!$B$159 -> Doplňky
U10: =" "&ListAVS!$B$156 -> Přehled korpusů
U11: =" "&ListAVS!$B$157 -> Objednávka
B23: =ListAVS!$B$17 -> Dřevěné čelo | E23: =ListAVS!$B$20 -> Široký alurámeček | H23: =ListAVS!$B$22 -> Úzký alurámeček | K23: =ListAVS!$B$23 -> Tenké materiály
B26: =ListAVS!$B$141&" " -> Čelní kování | N26: 2 | P26: 1
B27: =ListAVS!$B$346&"** " -> Provedení zdvihače** | N27: čelní kování | P27: mont.
N28: EXPANDO | P28: =ListAVS!$B$349 -> vruty
B29: =" ** "&ListAVS!$B$348&":" -> ** Zvolte, jaký způsob montáže chcete: | N29: =ListAVS!$B$143 -> na vruty | P29: =ListAVS!$B$350 -> předmont. eurošrouby
B30: =" "&ListAVS!$B$349&" = "&ListAVS!$B$351 -> vruty = zdvihače s integrovanou šablonou (bez nutnosti rozměřování)
B31: =" "&ListAVS!$B$350&" = "&ListAVS!$B$352 -> předmont. eurošrouby = zdvihače s předmotovanými šrouby (nutné předvrtání)
C70: AVENTOS HS
C73: =ListAVS!$B$331 -> Vyberte požadovanou montážní techniku pro čelní kování
C75: =ListAVS!$B$288 -> Kliknutím na obrázek nebo popis přejděte na požadovaný typ zdvihače.
H85: =ListAVS!$B$167 -> Zpět

Sheet HL
B3: AVENTOS HL top | U3: =ListAVS!$B$152 -> Jdi na
U5: =" "&ListAVS!$B$153 -> Úvod plánování
U6: =" "&ListAVS!$B$154 -> Nápověda
B7: =ListAVS!$B$74&" (KB) " -> Šířka korpusu (KB) | D7: =" "&ListAVS!$B$170&" 1800 mm" -> do 1800 mm
B8: =ListAVS!$B$75&" (KH) " -> Výška korpusu (KH) | D8: 300 - 580 mm | U8: =" "&ListAVS!$B$159 -> Doplňky
U10: =" "&ListAVS!$B$156 -> Přehled korpusů
U11: =" "&ListAVS!$B$157 -> Objednávka
U13: =" "&ListAVS!$B$388 -> Odstup čela
B23: =ListAVS!$B$17 -> Dřevěné čelo | E23: =ListAVS!$B$20 -> Široký alurámeček | H23: =ListAVS!$B$22 -> Úzký alurámeček | K23: =ListAVS!$B$23 -> Tenké materiály
B26: =ListAVS!$B$141&" " -> Čelní kování | N26: 2 | P26: 1
B27: =ListAVS!$B$346&"** " -> Provedení zdvihače** | N27: čelní kování | P27: mont.
N28: EXPANDO | P28: =ListAVS!$B$349 -> vruty
B29: =" ** "&ListAVS!$B$348&":" -> ** Zvolte, jaký způsob montáže chcete: | N29: =ListAVS!$B$143 -> na vruty | P29: =ListAVS!$B$350 -> předmont. eurošrouby
B30: =" "&ListAVS!$B$349&" = "&ListAVS!$B$351 -> vruty = zdvihače s integrovanou šablonou (bez nutnosti rozměřování)
B31: =" "&ListAVS!$B$350&" = "&ListAVS!$B$352 -> předmont. eurošrouby = zdvihače s předmotovanými šrouby (nutné předvrtání)
C58: AVENTOS HL
C61: =ListAVS!$B$331 -> Vyberte požadovanou montážní techniku pro čelní kování
C63: =ListAVS!$B$288 -> Kliknutím na obrázek nebo popis přejděte na požadovaný typ zdvihače.
H73: =ListAVS!$B$167 -> Zpět
H134: =ListAVS!$B$167 -> Zpět

Sheet HK
B3: AVENTOS HK top | U3: =ListAVS!$B$152 -> Jdi na
U5: =" "&ListAVS!$B$153 -> Úvod plánování
U6: =" "&ListAVS!$B$154 -> Nápověda
B7: =ListAVS!$B$74&" (KB) " -> Šířka korpusu (KB) | D7: =" "&ListAVS!$B$170&" 1800 mm" -> do 1800 mm
B8: =ListAVS!$B$75&" (KH) " -> Výška korpusu (KH) | D8: =" "&ListAVS!$B$170&" 600 mm " -> do 600 mm | U8: =" "&ListAVS!$B$159 -> Doplňky
U10: =" "&ListAVS!$B$156 -> Přehled korpusů
U11: =" "&ListAVS!$B$157 -> Objednávka
B23: =ListAVS!$B$17 -> Dřevěné čelo | E23: =ListAVS!$B$20 -> Široký alurámeček | H23: =ListAVS!$B$22 -> Úzký alurámeček | K23: =ListAVS!$B$23 -> Tenké materiály
B26: =ListAVS!$B$141&" " -> Čelní kování | N26: 2 | P26: 1
B27: =ListAVS!B346&"** " -> Provedení zdvihače** | N27: čelní kování | P27: provedení
N28: EXPANDO | P28: =ListAVS!$B349 -> vruty
B29: =" ** "&ListAVS!B348&":" -> ** Zvolte, jaký způsob montáže chcete: | N29: =ListAVS!$B$143 -> na vruty | P29: =ListAVS!$B350 -> předmont. eurošrouby
B30: =" "&ListAVS!$B349&" = "&ListAVS!$B351 -> vruty = zdvihače s integrovanou šablonou (bez nutnosti rozměřování)
B31: =" "&ListAVS!$B350&" = "&ListAVS!$B352 -> předmont. eurošrouby = zdvihače s předmotovanými šrouby (nutné předvrtání)
C70: AVENTOS HK
C73: =ListAVS!$B$331 -> Vyberte požadovanou montážní techniku pro čelní kování
C75: =ListAVS!$B$288 -> Kliknutím na obrázek nebo popis přejděte na požadovaný typ zdvihače.
H85: =ListAVS!$B$167 -> Zpět

Sheet HKS
B3: AVENTOS HK-S | U3: =ListAVS!$B$152 -> Jdi na
U5: =" "&ListAVS!$B$153 -> Úvod plánování
U6: =" "&ListAVS!$B$154 -> Nápověda
B7: =ListAVS!$B$74&" (KB) " -> Šířka korpusu (KB) | D7: =" "&ListAVS!$B$170&" 1800 mm *" -> do 1800 mm *
B8: =ListAVS!$B$75&" (KH) " -> Výška korpusu (KH) | D8: 190 - 600 mm | U8: =" "&ListAVS!$B$159 -> Doplňky
B10: ="* "&ListAVS!$B$232 -> * Vše záleží na hodnotě faktoru výkonnosti | U10: =" "&ListAVS!$B$156 -> Přehled korpusů
U11: =" "&ListAVS!$B$157 -> Objednávka
B23: =ListAVS!$B$17 -> Dřevěné čelo | E23: =ListAVS!$B$20 -> Široký alurámeček | H23: =ListAVS!$B$22 -> Úzký alurámeček | K23: =ListAVS!$B$23 -> Tenké materiály
B26: =ListAVS!$B$141&" " -> Čelní kování | N26: 1 | Q26: 2
N27: čelní kování | Q27: kryt.
N28: EXPANDO | Q28: =IF(MenuAVS!$P$28=3,ListAVS!$B145," ") -> 
N29: =ListAVS!$B$143 -> na vruty | Q29: =IF(MenuAVS!$P$28=3,ListAVS!$B147," ") -> 
C70: AVENTOS HK-S
C73: =ListAVS!$B$331 -> Vyberte požadovanou montážní techniku pro čelní kování
C75: =ListAVS!$B$288 -> Kliknutím na obrázek nebo popis přejděte na požadovaný typ zdvihače.
M85: =ListAVS!$B$167 -> Zpět

Sheet HKXS
B3: AVENTOS HK-XS | U3: =ListAVS!$B$152 -> Jdi na
U5: =" "&ListAVS!$B$153 -> Úvod plánování
U6: =" "&ListAVS!$B$154 -> Nápověda
B7: =ListAVS!$B$74&" (KB) " -> Šířka korpusu (KB) | D7: =" "&ListAVS!$B$170&" 1800 mm *" -> do 1800 mm *
B8: =ListAVS!$B$75&" (KH) " -> Výška korpusu (KH) | D8: 240 - 600 mm | U8: =" "&ListAVS!$B$159 -> Doplňky
B10: ="* "&ListAVS!$B$232 -> * Vše záleží na hodnotě faktoru výkonnosti | U10: =" "&ListAVS!$B$156 -> Přehled korpusů
U11: =" "&ListAVS!$B$157 -> Objednávka
B23: =ListAVS!$B$17 -> Dřevěné čelo | E23: =ListAVS!$B$20 -> Široký alurámeček | H23: =ListAVS!$B$22 -> Úzký alurámeček | K23: =ListAVS!$B$23 -> Tenké materiály
B26: =ListAVS!$B$141&" " -> Čelní kování | N26: 1 | O26: 1 | P26: 1 | Q26: 1
B27: =ListAVS!$B$150&" " -> Boční čep | N27: čelní kování | O27: boční čep | P27: Závěsy | Q27: Podložky
B28: =ListAVS!$B$132&" " -> Horní závěsy | N28: EXPANDO | O28: EXPANDO | P28: EXPANDO | Q28: EXPANDO
B29: =ListAVS!$B$138&" " -> Montážní podložky | N29: =ListAVS!$B$143 -> na vruty | O29: =ListAVS!$B$143 -> na vruty | P29: =ListAVS!$B$143 -> na vruty | Q29: =ListAVS!$B$143 -> na vruty
C70: AVENTOS HK-S
C73: =ListAVS!$B$331 -> Vyberte požadovanou montážní techniku pro čelní kování
C75: =ListAVS!$B$288 -> Kliknutím na obrázek nebo popis přejděte na požadovaný typ zdvihače.
M85: =ListAVS!$B$167 -> Zpět

Sheet HKi
B3: AVENTOS HKi | U3: =ListAVS!$B$152 -> Jdi na
U5: =" "&ListAVS!$B$153 -> Úvod plánování
U6: =" "&ListAVS!$B$154 -> Nápověda
B7: =ListAVS!$B$74&" (KB) " -> Šířka korpusu (KB) | D7: =" "&ListAVS!$B$170&" 1800 mm *" -> do 1800 mm *
B8: =ListAVS!$B$75&" (KH) " -> Výška korpusu (KH) | D8: 170 - 600 mm | U8: Doplňky
B10: ="* "&ListAVS!$B$232 -> * Vše záleží na hodnotě faktoru výkonnosti | U10: =" "&ListAVS!$B$156 -> Přehled korpusů
U11: =" "&ListAVS!$B$157 -> Objednávka
B23: =ListAVS!$B$17 -> Dřevěné čelo | E23: =ListAVS!$B$20 -> Široký alurámeček | H23: =ListAVS!$B$22 -> Úzký alurámeček
B26: =ListAVS!$B$428&" " -> provedení zdvihače | N26: 1 | Q26: 2
N27: =ListAVS!B428 -> provedení zdvihače | Q27: kryt.
N28: =ListAVS!B429 -> plně integrovaný | Q28: =IF(MenuAVS!$P$28=3,ListAVS!$B145," ") -> 
N29: =ListAVS!B430 -> částečně integrovaný (s krytkou) | Q29: =IF(MenuAVS!$P$28=3,ListAVS!$B147," ") -> 
C70: AVENTOS HK-S
C73: =ListAVS!$B$331 -> Vyberte požadovanou montážní techniku pro čelní kování
C75: =ListAVS!$B$288 -> Kliknutím na obrázek nebo popis přejděte na požadovaný typ zdvihače.
M85: =ListAVS!$B$167 -> Zpět

Sheet HFw
B2: AVENTOS HF top | S2: 3 | AL2: =ListAVS!$B$152 -> Jdi na
B4: =ListAVS!$B$16 -> Dřevěná čela | F4: =ListAVS!$B$179&" " -> Provedení čel | K4: =IF($Z$78=3,IF($T$71=0,$Y$74," "),IF($T$71>0,$Y$75," ")) ->  | S4: =" "&ListAVS!$B$41&" A " -> Cena za korpus A | X4: výpočet | AL4: =" "&ListAVS!$B$153 -> Úvod plánování
E5: =IF($Z$78<>3,$Y$73," ")&" " -> Změnit hodnoty můžete v Úvodu plánování | S5: =" "&ListAVS!$B$41&" B " -> Cena za korpus B | AL5: =" "&ListAVS!$B$154 -> Nápověda
S6: =" "&ListAVS!$B$61 -> Cena celkem bez DPH
B7: =ListAVS!$B$51&": " -> Cena kování: | G7: =IF(S2=1,$AF$47,IF($S$2=2,$AH$47,IF($S$2=3,$AD$47,0))) -> 0 | Y7: =$B$2 -> AVENTOS HF top | AL7: =" "&ListAVS!$B$159 -> Doplňky
H8: =IF(AND(OR($S$9=2, $S$20=2), $AD$47>0), $N$35, " ") ->  | Y8: =ListAVS!B52 -> Název | Z8: =ListAVS!$B$53 -> Číslo artiklu | AA8: =ListAVS!B54 -> Barva | AB8: =ListAVS!B56 -> Ks | AC8: =ListAVS!B58 -> Jednotková cena | AD8: =ListAVS!B59 -> Celkem | AE8: A | AF8: Cena | AG8: B | AH8: Cena | AN8: =" "&ListAVS!$B$86&" LF " -> Ukazatel výkonnosti LF | AP8: Zdvihací mechanizmus vruty | AQ8: Zdvihací mechanizmus šrouby
B9: ="▼ "&ListAVS!$B$317 -> ▼ Způsob otvírání | D9: =IF($M$17>0, ListAVS!$B$37&": ", " ") ->  | E9: =IF(SUM($AE$9:$AE$10)>0,25,IF(SUM($AE$11:$AE$12)>0,28," ")) ->  | F9: =ListAVS!$B$64&" A" -> Korpus A | N9: zdvih A | P9: teleskop | S9: 1 | T9: FALSE | V9: - SRVDRV | Y9: =CenAVS!A11 -> Sada zdvihačů HF top, na vruty | Z9: =CenAVS!B11 -> 22F2500 | AA9: =CenAVS!C11 -> ZN | AB9: =SUM(AE9,AG9) -> 0 | AC9: =CenAVS!F11 -> 1651.93 | AD9: =AB9*AC9 -> 0 | AE9: =IF($Y$48=1,ROUNDUP($M$17*$O$11,0),0) -> 0 | AF9: =$AC9*AE9 -> 0 | AG9: =IF($Y$48=1,ROUNDUP($M$28*$O$22,0),0) -> 0 | AH9: =$AC9*AG9 -> 0 | AL9: =" "&ListAVS!$B$156 -> Přehled korpusů | AN9: 2700 - 13500 | AP9: 22F2500 | AQ9: 22F2510
B10: =ListAVS!$B$74&" KB [mm] " -> Šířka korpusu KB [mm] | I10: =IF(H10=0," ",IF($H10<220," min. 220mm"," "))&IF(H17>0,IF(H10=0,"● "&ListAVS!$B$128," ")," ") ->  | P10: F32 | Q10: =IF(AND($P$16>$AB$56,$P$16<=$AC$56),SUM($O11:$O12),0) -> 0 | T10: Závěs A → | V10: =IF(OR($H10>=1200,$T17>=12),3,2)+IF(OR($H10>=1800, $T17>=20),1,0)+IF(OR($H10>=2400, $T17>=26),1,0)+IF(OR($H10>=2800, $T17>=30),1,0) -> 2 | Y10: =CenAVS!A12 -> Sada zdvihačů HF top, předmont. eurošrouby | Z10: =CenAVS!B12 -> 22F2510 | AA10: =CenAVS!C12 -> ZN | AB10: 0 | AC10: =CenAVS!F12 -> 1651.93 | AD10: =AB10*AC10 -> 0 | AE10: =IF($Y$48=2,ROUNDUP($M$17*$O$11,0),0) -> 0 | AF10: 0 | AG10: =IF($Y$48=2,ROUNDUP($M$28*$O$22,0),0) -> 0 | AH10: 0 | AL10: =" "&ListAVS!$B$157 -> Objednávka | AN10: 10000 - 19300 | AP10: 22F2800 | AQ10: 22F2810
B11: =ListAVS!$B$75&" [mm]" -> Výška korpusu [mm] | E11: TKH * | G11: KH | I11: =IF(H11=0," ",IF($H11<480," min. 480mm",IF($H11>1200," max. 1 200mm"," ")))&IF(H17>0,IF(H11=0,"● "&ListAVS!$B$128," ")," ") ->  | N11: F25 | O11: =IF($H16<$AB$50,0,IF($H16<=$AC$50,1,0)) -> 0 | P11: F35 | Q11: =IF(AND($P$16>$AB$57,$P$16<=$AC$57),SUM($O11:$O12),0) -> 0 | Y11: =CenAVS!A13 -> Sada zdvihačů HF top, na vruty | Z11: =CenAVS!B13 -> 22F2800 | AA11: =CenAVS!C13 -> ZN | AB11: 0 | AC11: =CenAVS!F13 -> 1805.55 | AD11: 0 | AE11: =IF($Y$48=1,ROUNDUP($M$17*$O$12,0),0) -> 0 | AF11: 0 | AG11: =IF($Y$48=1,ROUNDUP($M$28*$O$23,0),0) -> 0 | AH11: 0
B12: =ListAVS!$B$77&" [kg] ** " -> Hmotnost čela včetně úchytky [kg] ** | I12: =IF($T14="ne", " ", IF(AND($H12=0,$H15=0, $H17>0),$N$37," "))&IF(AND($H17>0, $H12>0, $M17>0),$N$41," ") ->  | N12: F28 | O12: =IF($H16<$AB$51,0,IF($H16<=$AC$51,1,IF(AND($H16>$AB$52, $H16<=$AC$52),1.5, IF($H16>$AC$52, 2, 0)))) -> 0 | P12: F39 | Q12: =IF(AND($P$16>$AB$58,$P$16<=$AC$58),SUM($O11:$O12),0) -> 0 | Y12: =CenAVS!A14 -> Sada zdvihačů HF top, předmont. eurošrouby | Z12: =CenAVS!B14 -> 22F2810 | AA12: =CenAVS!C14 -> ZN | AB12: 0 | AC12: =CenAVS!F14 -> 1805.55 | AD12: =AB12*AC12 -> 0 | AE12: =IF($Y$48=2,ROUNDUP($M$17*$O$12,0),0) -> 0 | AF12: =$AC12*AE12 -> 0 | AG12: =IF($Y$48=2,ROUNDUP($M$28*$O$23,0),0) -> 0 | AH12: =$AC12*AG12 -> 0 | AN12: =ListAVS!$B$86&" LF = "&ListAVS!$B$319&" [kg]" -> Ukazatel výkonnosti LF = výška korpusu KH [mm] x hmotnost obou čel včetně úchytky [kg]
B13: =ListAVS!$B$292 -> Výpočet hmotnosti | D13: =ListAVS!$B$80&" TS [mm] " -> Síla čela TS [mm] | I13: =IF(OR(H17=0, $T14="ne")," ",IF(AND(H12=0, H13=0)," ● "&ListAVS!$B$128," ")) ->  | Y13: =CenAVS!A15 -> Sada teleskopů HF top (480–610 mm) | Z13: =CenAVS!B15 -> 22F3200 | AA13: =CenAVS!C15 -> NI | AB13: 0 | AC13: =CenAVS!F15 -> 785.14 | AD13: 0 | AE13: =ROUNDUP($M$17*Q10,0) -> 0 | AF13: 0 | AG13: =ROUNDUP($M$28*Q21,0) -> 0 | AH13: 0
D14: =ListAVS!$B$83&" [kg] " -> Hmotnost úchytky [kg] | I14: =IF(OR(H17=0, $T14="ne"), " ", IF(AND(H12=0, S9=1, H14=0), " ● "&ListAVS!$B$129," ")) ->  | S14: limit v/š | T14: =IF(AND(220<=H10, H10<=3000, 480<=P16, P16<=1200),"ano","ne") -> ne | Y14: =CenAVS!A16 -> Sada teleskopů HF top (600–910 mm) | Z14: =CenAVS!B16 -> 22F3500 | AA14: =CenAVS!C16 -> NI | AB14: 0 | AC14: =CenAVS!F16 -> 964.4 | AD14: 0 | AE14: =ROUNDUP($M$17*Q11,0) -> 0 | AF14: 0 | AG14: =ROUNDUP($M$28*Q22,0) -> 0 | AH14: 0 | AN14: V případě využití třetího zdvihače můžete zvýšit ukazatel výkonnosti a tudíž hmotnost čílka o 50%.
D15: =ListAVS!$B$79&" [kg] " -> Vypočtená hmotnost čela [kg] | H15: =$T$81 -> 0 | I15: =IF($M17>0,IF($H15>0,IF($H12=0,$N$41," ")," ")," ")&IF(AND(H17>0, H12=0, Z78=3, $J$4=0), $N$39, " ") ->  | S15: limit LF | T15: =IF(AND(H16>=$AB$50, H16<=$AC$53), "ano", "ne") -> ne | Y15: =CenAVS!A17 -> Sada teleskopů HF top (840–1200 mm) | Z15: =CenAVS!B17 -> 22F3900 | AA15: =CenAVS!C17 -> NI | AB15: 0 | AC15: =CenAVS!F17 -> 1143.64 | AD15: 0 | AE15: =ROUNDUP($M$17*Q12,0) -> 0 | AF15: 0 | AG15: =ROUNDUP($M$28*Q23,0) -> 0 | AH15: 0
B16: =ListAVS!$B$86&" LF " -> Ukazatel výkonnosti LF | H16: =IF(H12>0, H11*H12, H11*H15) -> 0 | I16: =IF(OR($T14="ne", $H17=0), " ", IF(AND(H16>0, H16<$AB$50), $T$44, IF($H16>$AC$53,$N$44,IF(AND($H16>$AC$51, $H$16<=$AC$52),$N$45, IF($H$16>$AC$52, $Q$45, " "))))&IF(OR(H16>$AC$53, $M17=0)," ",IF(AND($S9=2,$H16>$AC$51),$U$45," "))) ->  | O16: výška korpusu | P16: =IF(F11>0,IF(F11>=H11,F11,0),H11) -> 0 | Y16: =CenAVS!A47 -> Sada krytek HF, HS, HL top, světle šedá | Z16: =CenAVS!B47 -> 22.8000 | AA16: =CenAVS!C47 -> HGR | AB16: =SUM(AE16,AG16) -> 0 | AC16: =CenAVS!F47 -> 252.85 | AD16: 0 | AE16: =IF(AND($S$9=1, $T$48=1), SUM($AE$9:$AE$12), 0) -> 0 | AF16: 0 | AG16: =IF(AND($S$20=1, $T$48=1), SUM($AG$9:$AG$12), 0) -> 0 | AH16: 0
B17: =ListAVS!$B$71&" " -> Počet skříněk | M17: =IF($H10*$P16=0,0,IF(SUM($H12,$H15)=0,0,IF($P16>$AC$59,0,IF(P16<$AB$56,0,IF(OR(T14="ne", T15="ne"),0,$H17))))) -> 0 | N17: ← Hlavní údaj | S17: hmot = | T17: =IF(H12>0,H12,H15) -> 0 | U17: =IF(SUM(H12,H15)=0,0,IF(H12>0,1,2)) -> 0 | V17: zadaná / vypočtená | Y17: =CenAVS!A48 -> Sada krytek HF, HS, HL top, tmavě šedá | Z17: =CenAVS!B48 -> 22.8000 | AA17: =CenAVS!C48 -> TGR | AB17: 0 | AC17: =CenAVS!F48 -> 275.94 | AD17: 0 | AE17: =IF(AND($S$9=1, $T$48=2), SUM($AE$9:$AE$12), 0) -> 0 | AF17: 0 | AG17: =IF(AND($S$20=1, $T$48=2), SUM($AG$9:$AG$12), 0) -> 0 | AH17: 0 | AN17: vruty = zdvihače s integrovanou šablonou (bez nutnosti rozměřování)
B18: =IF(H17>0,IF(U17=0," ",IF(U17=1,$N$53,$N$54))," ")&IF(H17>0,IF(U17=0," ",IF(U17=1,$N$55,$N$56))," ") ->  | Y18: =CenAVS!A49 -> Sada krytek HF, HS, HL top, hedvábně bílá | Z18: =CenAVS!B49 -> 22.8000 | AA18: =CenAVS!C49 -> SW | AB18: 0 | AC18: =CenAVS!F49 -> 275.94 | AD18: 0 | AE18: =IF(AND($S$9=1, $T$48=3), SUM($AE$9:$AE$12), 0) -> 0 | AF18: 0 | AG18: =IF(AND($S$20=1, $T$48=3), SUM($AG$9:$AG$12), 0) -> 0 | AH18: 0 | AN18: šrouby = zdvihače s přednotovanými šrouby (nutné předvrtání)
B19: =IF(F11=0," ",IF(F11>1200,"TKH = max. 1200!",IF(F11<480,"TKH = min. 480!",IF(F11<H11,$N$59,IF(H17>0,IF(F11=0," ",IF(AND(F11>0,M17=1), $N$58," "))," "))))) ->  | Y19: =CenAVS!A50 -> Sada krytek pro SERVO-DRIVE, světle šedá | Z19: =CenAVS!B50 -> 23.8000 | AA19: =CenAVS!C50 -> HGR | AB19: 0 | AC19: =CenAVS!F50 -> 2606.76 | AD19: 0 | AE19: =IF(AND($S$9=2, $T$48=1), $AE$45, 0) -> 0 | AF19: =$AC19*AE19 -> 0 | AG19: =IF(AND($S$20=2, $T$48=1), $AG$45, 0) -> 0 | AH19: =$AC19*AG19 -> 0 | AL19: =" "&ListAVS!$B$194 -> Výpočet asymetrických čel
B20: ="▼ "&ListAVS!$B$317 -> ▼ Způsob otvírání | D20: =IF($M$28>0, ListAVS!$B$37&": ", " ") ->  | E20: =IF(SUM($AG$9:$AG$10)>0,25,IF(SUM($AG$11:$AG$12)>0,28," ")) ->  | F20: =ListAVS!$B$64&" B" -> Korpus B | N20: zdvih B | P20: teleskop | S20: 1 | T20: FALSE | V20: - SRVDRV | Y20: =CenAVS!A51 -> Sada krytek pro SERVO-DRIVE, tmavě šedá | Z20: =CenAVS!B51 -> 23.8000 | AA20: =CenAVS!C51 -> TGR | AB20: 0 | AC20: =CenAVS!F51 -> 2709.29 | AD20: 0 | AE20: =IF(AND($S$9=2, $T$48=2), $AE$45, 0) -> 0 | AF20: 0 | AG20: =IF(AND($S$20=2, $T$48=2), $AG$45, 0) -> 0 | AH20: 0
B21: =ListAVS!$B$74&" KB [mm] " -> Šířka korpusu KB [mm] | I21: =IF(H21=0," ",IF($H21<220," min. 220mm"," "))&IF(H28>0,IF(H21=0,"● "&ListAVS!$B$128," ")," ") ->  | P21: F32 | Q21: =IF(AND($P$27>$AB$56,$P$27<=$AC$56),SUM($O22:$O23),0) -> 0 | T21: Závěs A → | V21: =IF(OR($H21>=1200,$T28>=12),3,2)+IF(OR($H21>=1800, $T28>=20),1,0)+IF(OR($H21>=2400, $T28>=26),1,0)+IF(OR($H21>=2800, $T28>=30),1,0) -> 2 | Y21: =CenAVS!A52 -> Sada krytek pro SERVO-DRIVE,hedvábně bílá | Z21: =CenAVS!B52 -> 23.8000 | AA21: =CenAVS!C52 -> SW | AB21: 0 | AC21: =CenAVS!F52 -> 2709.29 | AD21: 0 | AE21: =IF(AND($S$9=2, $T$48=3), $AE$45, 0) -> 0 | AF21: 0 | AG21: =IF(AND($S$20=2, $T$48=3), $AG$45, 0) -> 0 | AH21: 0
B22: =ListAVS!$B$75&" [mm]" -> Výška korpusu [mm] | E22: TKH * | G22: KH | I22: =IF(H22=0," ",IF($H22<480," min. 480mm",IF($H22>1200," max. 1 200mm"," ")))&IF(H28>0,IF(H22=0,"● "&ListAVS!$B$128," ")," ") ->  | N22: F25 | O22: =IF($H27<$AB$50,0,IF($H27<=$AC$50,1,0)) -> 0 | P22: F35 | Q22: =IF(AND($P$27>$AB$57,$P$27<=$AC$57),SUM($O22:$O23),0) -> 0 | Y22: =CenAVS!A18 -> Závěs CLIP top 120° | Z22: =CenAVS!B18 -> 70T5550.TL | AA22: =CenAVS!C18 -> NI | AB22: 0 | AC22: =CenAVS!F18 -> 56.56 | AD22: 0 | AE22: =IF($N$48=2, $V$10*$M$17, 0) -> 0 | AF22: 0 | AG22: =IF($N$48=2, $V$21*$M$28, 0) -> 0 | AH22: 0
B23: =ListAVS!$B$77&" [kg] ** " -> Hmotnost čela včetně úchytky [kg] ** | I23: =IF($T25="ne", " ", IF(AND($H23=0,$H26=0, $H28>0),$N$37," "))&IF(AND($H28>0, $H23>0, $M28>0),$N$41," ") ->  | N23: F28 | O23: =IF($H27<$AB$51,0,IF($H27<=$AC$51,1,IF(AND($H27>$AB$52, $H27<=$AC$52),1.5, IF($H27>$AC$52, 2, 0)))) -> 0 | P23: F39 | Q23: =IF(AND($P$27>$AB$58,$P$27<=$AC$58),SUM($O22:$O23),0) -> 0 | Y23: =CenAVS!A19 -> Závěs CLIP top 120° EXPANDO | Z23: =CenAVS!B19 -> 70T558E | AA23: =CenAVS!C19 -> NI | AB23: 0 | AC23: =CenAVS!F19 -> 53.42 | AD23: 0 | AE23: =IF($N$48=1, $V$10*$M$17, 0) -> 0 | AF23: 0 | AG23: =IF($N$48=1, $V$21*$M$28, 0) -> 0 | AH23: 0
B24: =ListAVS!$B$292 -> Výpočet hmotnosti | D24: =ListAVS!$B$80&" TS [mm] " -> Síla čela TS [mm] | I24: =IF(OR(H28=0, $T25="ne")," ",IF(AND(H23=0, H24=0)," ● "&ListAVS!$B$128," ")) ->  | Y24: =CenAVS!A20 -> Středový závěs CLIP top | Z24: =CenAVS!B20 -> 78Z5500T | AA24: =CenAVS!C20 -> NI | AB24: 0 | AC24: =CenAVS!F20 -> 92.71 | AD24: 0 | AE24: =IF($P$48=2, $V$10*$M$17, 0) -> 0 | AF24: 0 | AG24: =IF($P$48=2, $V$21*$M$28, 0) -> 0 | AH24: 0
D25: =ListAVS!$B$83&" [kg] " -> Hmotnost úchytky [kg] | I25: =IF(OR(H28=0, $T25="ne"), " ", IF(AND(H23=0, S20=1, H25=0), " ● "&ListAVS!$B$129," ")) ->  | S25: limit v/š | T25: =IF(AND(220<=H21, H21<=3000, 480<=P27, P27<=1200),"ano","ne") -> ne | Y25: =CenAVS!A21 -> Středový závěs CLIP top EXPANDO | Z25: =CenAVS!B21 -> 78Z553ET | AA25: =CenAVS!C21 -> NI | AB25: 0 | AC25: =CenAVS!F21 -> 95.69 | AD25: 0 | AE25: =IF($P$48=1, $V$10*$M$17, 0) -> 0 | AF25: 0 | AG25: =IF($P$48=1, $V$21*$M$28, 0) -> 0 | AH25: 0
D26: =ListAVS!$B$79&" [kg] " -> Vypočtená hmotnost čela [kg] | H26: =$T$90 -> 0 | I26: =IF($M28>0,IF($H26>0,IF($H23=0,$N$41," ")," ")," ")&IF(AND(H28>0, H23=0, Z87=3, $J$4=0), $N$39, " ") ->  | S26: limit LF | T26: =IF(AND(H27>=$AB$50, H27<=$AC$53), "ano", "ne") -> ne | Y26: =CenAVS!A22 -> Závěs CLIP top pro alurámečky | Z26: =CenAVS!B22 -> 72T550A.TL | AA26: =CenAVS!C22 -> NI | AC26: =CenAVS!F22 -> 77.18 | AD26: 0 | AF26: 0 | AH26: 0
B27: =ListAVS!$B$86&" LF " -> Ukazatel výkonnosti LF | H27: =IF(H23>0, H22*H23, H22*H26) -> 0 | I27: =IF(OR($T25="ne", $H28=0), " ", IF(AND(H27>0, H27<$AB$50), $T$44, IF($H27>$AC$53,$N$44,IF(AND($H27>$AC$51, $H$16<=$AC$52),$N$45, IF($H$16>$AC$52, $Q$45, " "))))&IF(OR(H27>$AC$53, $M28=0)," ",IF(AND($S20=2,$H27>$AC$51),$U$45," "))) ->  | O27: výška korpusu | P27: =IF(F22>0,IF(F22>=H22,F22,0),H22) -> 0 | Y27: =CenAVS!A23 -> Střed. závěs CLIP top pro alurámečky | Z27: =CenAVS!B23 -> 78Z550AT | AA27: =CenAVS!C23 -> NI | AC27: =CenAVS!F23 -> 101.63 | AD27: 0 | AF27: =$AC27*AE27 -> 0 | AH27: 0
B28: =ListAVS!$B$71&" " -> Počet skříněk | M28: =IF($H21*$P27=0,0,IF(SUM($H23,$H26)=0,0,IF($P27>$AC$59,0,IF(P27<$AB$56,0,IF(OR(T25="ne", T26="ne"),0,$H28))))) -> 0 | N28: ← Hlavní údaj | S28: hmot = | T28: =IF(H23>0,H23,H26) -> 0 | U28: =IF(SUM(H23,H26)=0,0,IF(H23>0,1,2)) -> 0 | V28: zadaná / vypočtená | Y28: =CenAVS!A24 -> Adaptér CLIP k teleskopům P | Z28: =CenAVS!B24 -> 175H5B00 R | AA28: =CenAVS!C24 -> NI | AC28: =CenAVS!F24 -> 90.34 | AD28: 0 | AF28: 0 | AH28: =$AC28*AG28 -> 0
B29: =IF(H28>0,IF(U28=0," ",IF(U28=1,$N$53,$N$54))," ")&IF(H28>0,IF(U28=0," ",IF(U28=1,$N$55,$N$56))," ") ->  | Y29: =CenAVS!A25 -> Adaptér CLIP k teleskopům L | Z29: =CenAVS!B25 -> 175H5B00 L | AA29: =CenAVS!C25 -> NI | AC29: =CenAVS!F25 -> 90.34 | AD29: 0 | AF29: 0 | AH29: 0
B30: =IF(F22=0," ",IF(F22>1200,"TKH = max. 1200!",IF(F22<480,"TKH = min. 480!",IF(F22<H22,$N$59,IF(H28>0,IF(F22=0," ",IF(AND(F22>0,M28=1), $N$58," "))," "))))) ->  | Y30: =CenAVS!A26 -> Adaptér CLIP ke středovým závěsům | Z30: =CenAVS!B26 -> 175H5A00 | AA30: =CenAVS!C26 -> NI | AC30: =CenAVS!F26 -> 90.34 | AD30: 0 | AF30: 0 | AH30: 0
B31: =IF(OR(AND($S$9=2, $M$17>0), AND($S$20=2, $M$28>0)), ListAVS!$B$175, " ") ->  | S31: =IF($T$31=FALSE,2,1) -> 1 | T31: TRUE | V31: - Zdroj
Y33: =CenAVS!A27 -> 0 | Z33: =CenAVS!B27 -> 0 | AA33: =CenAVS!C27 -> 0 | AC33: =CenAVS!F27 -> 0 | AD33: 0 | AF33: 0 | AH33: 0
AD34: 0 | AF34: 0 | AH34: 0
C35: =IF(OR(AND($H16>$AB$52, $H$16<$AC$53, $M17=1), AND($H27>$AB$52, $H$27<$AC$53, $M$28=1)), $S$46," ") ->  | N35: =ListAVS!B176 -> Cena bez napájecího zdroje! | AD35: 0 | AF35: 0 | AH35: 0
Y36: =CenAVS!A162 -> CLIP top montážní podložka, excentr, 0 mm | Z36: =CenAVS!B162 -> 173H7100 | AA36: =CenAVS!C162 -> NI | AC36: =CenAVS!F162 -> 17.84 | AD36: 0 | AF36: 0 | AH36: 0
C37: ="* "&ListAVS!$B$183 -> * Pouze pro asymetrická čela: zadejte teoretickou výšku TKH. | N37: =" "&ListAVS!$B$115 -> Zadejte hmotnost nebo vyplňte všechny buňky | Y37: =CenAVS!A163 -> CLIP top mont. podložka, excentr, EXPANDO, 0 mm | Z37: =CenAVS!B163 -> 174H7100E | AA37: =CenAVS!C163 -> NI | AC37: =CenAVS!F163 -> 19.39 | AD37: 0 | AF37: 0 | AH37: 0
C38: =" ( "&ListAVS!$B$184&")" -> ( TKH = dvojnásobná výška horního čela včetně mezer) | AF38: 0 | AH38: 0
C39: =" "&ListAVS!$B$327&" '"&ListAVS!$B$194&"' " -> Pro výpočet TKH použijte 'Výpočet asymetrických čel' | N39: =" "&ListAVS!$B$117 -> Vyplňte nahoře objemovou hmotnost
C41: ="** "&ListAVS!$B$186 -> ** Pokud znáte hmotnost a nechcete využít výpočtu hmotnosti | N41: ="◄ "&ListAVS!$B$111 -> ◄ hodnota bude použita pro výpočet LF
N42: =" * "&ListAVS!$B$127 -> * Doplňte hodnoty | Y42: =CenAVS!A166 -> CLIP top přímá mont. podložka, ocel, 0 mm | Z42: =CenAVS!B166 -> 175H3100 | AA42: =CenAVS!C166 -> NI | AB42: =SUM(AE42,AG42) -> 0 | AC42: =CenAVS!F166 -> 16.98 | AD42: 0 | AE42: =IF($R$48=2,SUM($V$10*2, $Q$10*2, $Q$11*2, $Q$12*2)*$M$17,0) -> 0 | AF42: =$AC42*AE42 -> 0 | AG42: =IF($R$48=2,SUM($V$21*2, $Q$21*2, $Q$22*2, $Q$23*2)*$M$28,0) -> 0 | AH42: =$AC42*AG42 -> 0
Y43: =CenAVS!A167 -> CLIP top přímá mont. podložka, ocel, EXP, 0 mm | Z43: =CenAVS!B167 -> 177H3100E | AA43: =CenAVS!C167 -> NI | AB43: =SUM(AE43,AG43) -> 0 | AC43: =CenAVS!F167 -> 17.07 | AD43: 0 | AE43: =IF($R$48=1,SUM($V$10*2, $Q$10*2, $Q$11*2, $Q$12*2)*$M$17,0) -> 0 | AF43: =$AC43*AE45 -> 0 | AG43: =IF($R$48=1,SUM($V$21*2, $Q$21*2, $Q$22*2, $Q$23*2)*$M$28,0) -> 0 | AH43: =$AC43*AG43 -> 0
N44: =" max. "&$AC$53&"! "&ListAVS!$B$121 -> max. 38600! Upravte hmotnost nebo výšku | T44: =" min. "&$AB$50&"! "&ListAVS!$B$121 -> min. 2700! Upravte hmotnost nebo výšku | Y44: =CenAVS!A169 -> 0 | Z44: =CenAVS!B169 -> 0 | AA44: =CenAVS!C169 -> 0 | AC44: =CenAVS!F169 -> 0 | AD44: 0 | AF44: =$AC44*AE44 -> 0 | AH44: =$AC44*AG44 -> 0
N45: =" "&ListAVS!$B$119&"!" -> Přídavný třetí zdvihač! | Q45: =" "&ListAVS!$B$120&"!" -> Dva páry zdvihačů! | U45: =" "&ListAVS!$B$125&"!" -> Druhá pohonná jednotka! | Y45: =CenAVS!A171 -> SERVO-DRIVE jednotka (sada) | Z45: =CenAVS!B171 -> 23.A000 | AA45: =CenAVS!C171 -> R7037 | AB45: =SUM(AE45,AG45) -> 0 | AC45: =CenAVS!F171 -> 8297.32 | AD45: 0 | AE45: =IF($S$9=1, 0, $M$17)+IF(AND($S$9=2, $H$16>$AB$52), $M$17, 0) -> 0 | AF45: =$AC45*AE45 -> 0 | AG45: =IF($S$20=1, 0, $M$28)+IF(AND($S$20=2, $H$27>$AB$52), $M$28, 0) -> 0 | AH45: =$AC45*AG45 -> 0
N46: =" "&ListAVS!$B$234&"!" -> Nutná mezistěna! | S46: =" "&ListAVS!$B$235&"!" -> Pro třetí přídavný zdvihač je nutná mezistěna, pro dva páry zdvihačů je nutná dvojitá mezistěna!
AC47: =ListAVS!$B$61&" " -> Cena celkem bez DPH | AD47: =SUM(AD9:AD45) -> 0 | AF47: =SUM(AF9:AF46) -> 0 | AH47: =SUM(AH9:AH46) -> 0
N48: =HF!$L$33 -> 1 | P48: =HF!$N$33 -> 1 | R48: =HF!$P$33 -> 1 | T48: =MenuAVS!$P$28 -> 1 | Y48: =HF!$R$33 -> 1 | Z48: =Param!M10 -> Parametry HF
N49: záv. | P49: střed. | R49: podl. | T49: kryt. | W49: pohyb: | Y49: montáž: | Z49: =Param!M11 -> Zdvihač | AA49: =Param!N11 -> ks | AB49: =Param!O11 -> min | AC49: =Param!P11 -> max | AD49: =Param!Q11 -> alu max.
N50: =ListAVS!$B$133 -> Expando | P50: =ListAVS!$B$133 -> Expando | R50: =ListAVS!$B$133 -> Expando | T50: =ListAVS!$B$145 -> Světle šedá (HGR) | W50: Standard | Y50: vruty | Z50: =Param!M12 -> 22F2500 | AA50: =Param!N12 -> 1 | AB50: =Param!O12 -> 2700 | AC50: =Param!P12 -> 11500
N51: =ListAVS!$B$134 -> na vruty | P51: =ListAVS!$B$134 -> na vruty | R51: =ListAVS!$B$134 -> na vruty | T51: =ListAVS!$B$146 -> Tmavě šedá (TGR) | W51: SERVO-DRIVE | Y51: eurošrouby | Z51: =Param!M13 -> 22F2800 | AA51: =Param!N13 -> 1 | AB51: =Param!O13 -> 11500 | AC51: =Param!P13 -> 19300 | AD51: =Param!Q13 -> 19300
T52: =ListAVS!$B$147 -> Hedvábně bílá (SW) | Z52: =Param!M14 -> 22F2800 | AA52: =Param!N14 -> 1.5 | AB52: =Param!O14 -> 19300 | AC52: =Param!P14 -> 28950 | AD52: =Param!Q14 -> 0
N53: =ListAVS!B187&". " -> Pro určení typu zdvihače bude použita zadaná hmotnost. | Z53: =Param!M15 -> 22F2800 | AA53: =Param!N15 -> 2 | AB53: =Param!O15 -> 23000 | AC53: =Param!P15 -> 38600 | AD53: =Param!Q15 -> 0
N54: =ListAVS!B188&". " -> Pro určení typu zdvihače bude použita vypočtená hmotnost.
N55: =ListAVS!B189 -> Chcete-li použít vypočtenou hmotnost, smažte zadanou hodnotu | Z55: =Param!M17 -> Teleskop | AB55: =Param!O17 -> min | AC55: =Param!P17 -> max | AD55: =Param!Q17 -> 0
N56: =ListAVS!B190 -> Chcete-li použít zadanou hmotnost, zadejte ji do políčka | Z56: =Param!M18 -> 20F3200 | AA56: =Param!N18 -> 0 | AB56: =Param!O18 -> 480 | AC56: =Param!P18 -> 605 | AD56: =Param!Q18 -> 0
N57: =ListAVS!B191 -> 0 | Z57: =Param!M19 -> 20F3500 | AA57: =Param!N19 -> 0 | AB57: =Param!O19 -> 605 | AC57: =Param!P19 -> 890 | AD57: =Param!Q19 -> 0
N58: =ListAVS!B192 -> Pro výběr teleskopů bude použita teoretická výška TKH | Z58: =Param!M20 -> 20F3900 | AA58: =Param!N20 -> 0 | AB58: =Param!O20 -> 890 | AC58: =Param!P20 -> 1200 | AD58: =Param!Q20 -> 0
N59: =ListAVS!B193 -> Teoretická výška TKH nesmí být menší než KH | AB59: =Param!O21 -> max. | AC59: =Param!P21 -> 1200 | AD59: =Param!Q21 -> 0
N70: =ListAVS!$B$73 -> Výpočet hmotnosti čel
O71: =ListAVS!$B$179&" " -> Provedení čel | T71: =J4 -> 0 | U71: =IF($Z$78=3,IF($T$71=0,$Y$74," "),IF($T$71>0,$Y$75," ")) ->  | Y71: =IF($Z$78=1,$Z$79,IF($Z$78=2,$Z$80,$Z$81&" "&$Y$81&"kg/m3"))&" A~"&$T$79&"/ B~"&$T$88&"mm" -> MDF (760 kg/m3) A~0/ B~0mm
P72: =IF($Z$78<>3,$Y$73," ")&" " -> Změnit hodnoty můžete v Úvodu plánování
Y73: =" "&ListAVS!$B$410 -> Změnit hodnoty můžete v Úvodu plánování
Y74: =" "&ListAVS!$B$244&" [kg/m3]" -> Zadejte objemovou hmotnost [kg/m3]
Y75: =" "&ListAVS!$B$240&" '"&ListAVS!$B$92&"'" -> Hodnota platí jen pro volbu 'Jiné - volitelná hustota'
R76: =F9 -> Korpus A
N77: =ListAVS!$B$74&" KB [mm] " -> Šířka korpusu KB [mm] | T77: =H10 -> 0 | Y77: =T77*T78*T79 -> 0
N78: =ListAVS!$B$75&" KH [mm] " -> Výška korpusu KH [mm] | T78: =H11 -> 0 | Y78: =Y77/1000000000 -> 0 | Z78: 1
N79: =ListAVS!$B$80&" TS [mm] " -> Síla čela TS [mm] | T79: =H13 -> 0 | U79: =IF(SUM(T77,T78)=0," ",IF(T79=0," ● "&ListAVS!$B$128," ")) ->  | Y79: =MenuAVS!$C$31 -> 760 | Z79: =ListAVS!$B$90&" ("&Y79&" kg/m3)" -> MDF (760 kg/m3)
N80: =ListAVS!$B$83&" [kg] " -> Hmotnost úchytky [kg] | T80: =H14 -> 0 | U80: =IF(SUM(T77,T78)=0," ",IF(T80=0," ● "&ListAVS!$B$129," ")) ->  | Y80: =MenuAVS!$C$32 -> 680 | Z80: =ListAVS!$B$91&" ("&Y80&" kg/m3)" -> Dřevotříska (680 kg/m3)
N81: =ListAVS!$B$79&" [kg] " -> Vypočtená hmotnost čela [kg] | T81: =IF(X81=0,0,X81+T80) -> 0 | X81: =IF(T77*T78*T79=0,0,IF(Z78=1,Y78*Y79,IF(Z78=2,Y78*Y80,Y78*Y81))) -> 0 | Y81: =$T$71 -> 0 | Z81: =ListAVS!$B$92 -> Jiné - volitelná hustota
O82: =IF(T81>0,IF(T80=0,$Y$95," ")," ") -> 
R85: =D20 -> 
N86: =ListAVS!$B$74&" KB [mm] " -> Šířka korpusu KB [mm] | T86: =H21 -> 0 | Y86: =T86*T87*T88 -> 0
N87: =ListAVS!$B$75&" KH [mm] " -> Výška korpusu KH [mm] | T87: =H22 -> 0 | Y87: =Y86/1000000000 -> 0 | Z87: =Z78 -> 1
N88: =ListAVS!$B$80&" TS [mm] " -> Síla čela TS [mm] | T88: =H24 -> 0 | U88: =IF(SUM(T86,T87)=0," ",IF(T88=0," ● "&ListAVS!$B$128," ")) ->  | Y88: =$Y$79 -> 760 | Z88: =$Z$79 -> MDF (760 kg/m3)
N89: =ListAVS!$B$83&" [kg] " -> Hmotnost úchytky [kg] | T89: =H25 -> 0 | U89: =IF(SUM(T86,T87)=0," ",IF(T89=0," ● "&ListAVS!$B$129," ")) ->  | Y89: =$Y$80 -> 680 | Z89: =$Z$80 -> Dřevotříska (680 kg/m3)
N90: =ListAVS!$B$79&" [kg] " -> Vypočtená hmotnost čela [kg] | T90: =IF(X90=0,0,X90+T89) -> 0 | X90: =IF(T86*T87*T88=0,0,IF(Z87=1,Y87*Y88,IF(Z87=2,Y87*Y89,Y87*Y90))) -> 0 | Y90: =$Y$81 -> 0 | Z90: =$Z$81 -> Jiné - volitelná hustota
O91: =IF(T90>0,IF(T89=0,$Y$95," ")," ") -> 
Y95: =ListAVS!$B$102&"!" -> Není započtena hmotnost úchytky!
B100: =ListAVS!$B$194 -> Výpočet asymetrických čel
B102: =" "&ListAVS!$B$197 -> Parametry korpusu
B103: =ListAVS!$B$75&" KH [mm] " -> Výška korpusu KH [mm] | K103: =IF(I103<480, " min. 480", IF(I103>1200, " max. 1200", " ")) -> min. 480 | N103: <=519 | O103: >=520
B104: =ListAVS!$B$200&" F1 [mm] " -> Mezera nahoře F1 [mm]
B105: =ListAVS!$B$201&" F2 [mm] " -> Mezera mezi čely F2 [mm] | K105: =IF($I$103=0," ",IF($I$105<1.5," min. 1,5 mm!"," ")) -> 
B106: =ListAVS!$B$202&" F3 [mm] " -> Mezera dole F3 [mm] | M106: Z | N106: 170 | O106: 189
B107: =ListAVS!$B$203&" [mm] " -> Síla dna korpusu [mm] | M107: H | N107: 93 | O107: 116
B109: =" "&ListAVS!$B$205 -> Výsledky plánování | N109: FHo | O109: FHo
G110: =ListAVS!$B$206&" [mm] " -> Možné výšky čel [mm] | N110: min ↓↓ | O110: min ↓↓
B111: =ListAVS!$B$207 -> Čelo nahoře (FHo) v rozmezí | G111: min. | H111: =IF(AND($I$103>=480, $I$103<=519), $N$111, IF(AND($I$103>=520, $I$103<=1200), $O$111, $S$115)) -> nelze | I111: max. | J111: =IF(AND($I$103>=480, $I$103<=519), $N$115, IF(AND($I$103>=520, $I$103<=1200), $O$115, $S$115)) -> nelze | N111: =SUM(I103, -I104, -I105, -I106, -N120) -> 0 | O111: =SUM(I103, -I104, -I105, -I106, -O120) -> 0
B112: =ListAVS!$B$208 -> Čelo dole (FHu) v rozmezí | G112: min. | H112: =IF(AND($I$103>=480, $I$103<=519), $N$118, IF(AND($I$103>=520, $I$103<=1200), $O$118, $S$115)) -> nelze | I112: max. | J112: =IF(AND($I$103>=480, $I$103<=519), $N$120, IF(AND($I$103>=520, $I$103<=1200), $O$120, $S$115)) -> nelze | N112: max ↓↓ | O112: max ↓↓
N113: =ROUNDUP(SUM(519, -$I$104, -$I$105, -$I$106)/2, 0) -> 260 | O113: =ROUNDUP(SUM(1200, -$I$104, -$I$105, -$I$106)/2, 0) -> 600 | P113: absolutně
B114: =ListAVS!$B$214&" FHo [mm] " -> Výška čela nahoře FHo [mm] | K114: =IF($I$103=0," ",IF($I$114>$J$111,V114,IF($I$114<$H$111,$S$114," "))) ->  | N114: =SUM(I103, -I104, -I105, -I106, -N118) -> -219 | O114: =SUM(I103, -I104, -I105, -I106, -O118) -> -238 | P114: vypočtená | S114: =" min. "&TEXT($H$111,"#")&" mm!" -> min. nelze mm! | V114: =" max. "&TEXT($J$111,"#")&" mm!" -> max. nelze mm!
B115: =ListAVS!$B$215&" FHu [mm] " -> Výška čela dole FHu [mm] | I115: =IF($I$114<$H$111,$S$115,IF($I$114>$J$111,$S$115,+$I$103-$I$104-$I$105-$I$106-$I$114)) -> nelze | N115: =IF($N$114>$N$113, $N$113, $N$114) -> -219 | O115: =IF($O$114>$O$113, $O$113, $O$114) -> -238 | P115: výsledná | S115: =ListAVS!B211 -> nelze
B116: =ListAVS!$B$216&" H [mm] " -> Pozice zdvihače H [mm] | I116: =IF(AND($I$103>=480, $I$103<520), $N$107, IF(AND($I$103>=520, $I$103<=1200), $O$107, $S$115)) -> nelze | N116: FHu | O116: FHu
B117: =ListAVS!$B$217&" Z [mm] " -> Pozice mont. podložky pro teleskopy Z [mm] | I117: =IF(AND($I$103>=480, $I$103<520), $N$106, IF(AND($I$103>=520, $I$103<=1200), $O$106, $S$115)) -> nelze | N117: min ↓↓ | O117: min ↓↓
B118: =ListAVS!$B$218&" TKH [mm] * " -> Teoretická výška korpusu TKH [mm] * | I118: =IF($I$115=$S$115, $S$115, IF($Q$118>=480, IF($Q$118<=1202, $Q$118, $S$115)," ")) -> nelze | N118: =SUM(N106, 32, 17, $I$107, -$I$106) -> 219 | O118: =SUM(O106, 32, 17, $I$107, -$I$106) -> 238 | P118: TKH | Q118: =ROUND(SUM($I$114*2+$I$104+$I$105+$I$106), -1) -> 0
N119: max ↓↓ | O119: max ↓↓
B120: * | C120: =ListAVS!$B$220 -> Tuto výšku zadejte do tabulky pro plánování výklopů | N120: =ROUNDDOWN(SUM(I103, -I104, -I105, -I106)/2, 0) -> 0 | O120: =ROUNDDOWN(SUM(I103, -I104, -I105, -I106)/2, 0) -> 0
I125: =ListAVS!$B$167 -> Zpět
B140: AVENTOS HF
B142: V případě dřevěných čel můžete naplánovat korpusy širší než 1800 mm. Pokud je kvůli nosnosti nutný třetí zdvihač, musí se přidat mezistěna.
B143: V případě dvou párů zdvihačů jsou nutné dvě mezistěny nebo jedna zdvojená mezistěna.
B145: =ListAVS!$B$302 -> Potřebný zdvihač se určí pomocí ukazatele výkonnosti.
B146: =ListAVS!$B$303 -> Ukazatel výkonnosti závisí na hmotnosti dolního i horního čílka, a rovněž na výšce korpusu.
D149: =ListAVS!$B$86&" = " -> Ukazatel výkonnosti = | E149: =ListAVS!$B$319&" [kg]" -> výška korpusu KH [mm] x hmotnost obou čel včetně úchytky [kg]
B151: =ListAVS!$B$307 -> Je-li ukazatel výkonnosti větší než 19300, přidá se třetí zdvihač.
B152: =ListAVS!$B$308 -> Je-li ukazatel výkonnosti větší než 28950, přidá se druhý pár zdvihačů.
B153: =ListAVS!$B$309 -> Pokud je zvolen SERVO-DRIVE, přidá se rovněž druhá pohonná jednotka.
B154: =ListAVS!$B$181 -> Přídavný třetí zdvihač může být použit pouze s plným spodním čelem!
B156: =ListAVS!$B$311 -> Pokud znáte hmotnost čela, můžete ji zadat, jinak použijte "Výpočet hmotnosti".
B157: =ListAVS!$B$312 -> V tabulce má přednost zadaná hodnota. Chcete-li použít vypočtenou hmotnost, smažte zadanou hodnotu.
B159: =ListAVS!$B$322&". "&ListAVS!$B$323&"." -> Délka teleskopů závisí na výšce korpusu KH. U asymetrických čel se použije teoretická výška TKH.
B161: =" "&ListAVS!$B$162&":" -> Asymetrická čela:
B162: =" "&ListAVS!$B$320 -> Teoretická výška korpusu (TKH) = výška horního čela (FHo) x 2 (včetně mezer)
B164: =ListAVS!$B$315 -> U asymetrických čel musí být větší čelo nahoře!
B166: =ListAVS!$B$325 -> Pokud zadáte hodnotu TKH, použije se pro určení délky teleskopů
B167: =ListAVS!$B$326 -> Nemáte-li asymetrická čela, nechte políčko prázdné.
B168: =ListAVS!$B$327&" ' "&ListAVS!$B$194&"' " -> Pro výpočet TKH použijte ' Výpočet asymetrických čel'
B171: =ListAVS!$B$305 -> Chcete-li změnit barvu krytek, přejděte na "Úvod plánování"
L179: =ListAVS!$B$167 -> Zpět

Sheet HFwa
B2: AVENTOS HF top | O2: rámeček | S2: 3 | AL2: =ListAVS!$B$152 -> Jdi na
B4: =ListAVS!$B$19&" ***" -> Široké alurámečky *** | F4: =ListAVS!$B$179&" " -> Provedení čel | K4: =U71 ->  | O4: 1 | S4: =" "&ListAVS!$B$41&" A " -> Cena za korpus A | X4: výpočet | AL4: =" "&ListAVS!$B$153 -> Úvod plánování
E5: =IF($AF$77<>3,$Y$76," ")&" " -> Změnit hodnoty můžete v Úvodu plánování | O5: A = 1 | S5: =" "&ListAVS!$B$41&" B " -> Cena za korpus B | AL5: =" "&ListAVS!$B$154 -> Nápověda
O6: B = 2 | S6: =" "&ListAVS!$B$61 -> Cena celkem bez DPH
B7: =ListAVS!$B$51&": " -> Cena kování: | G7: =IF(S2=1,$AF$47,IF($S$2=2,$AH$47,IF($S$2=3,$AD$47,0))) -> 0 | Y7: =$B$2 -> AVENTOS HF top | AL7: =" "&ListAVS!$B$159 -> Doplňky
H8: =IF(AND(OR($S$9=2, $S$20=2), $AD$47>0), $N$35, " ") ->  | Y8: =ListAVS!B52 -> Název | Z8: =ListAVS!$B$53 -> Číslo artiklu | AA8: =ListAVS!B54 -> Barva | AB8: =ListAVS!B56 -> Ks | AC8: =ListAVS!B58 -> Jednotková cena | AD8: =ListAVS!B59 -> Celkem | AE8: A | AF8: Cena | AG8: B | AH8: Cena | AN8: =" "&ListAVS!$B$86&" LF " -> Ukazatel výkonnosti LF | AP8: Zdvihací mechanizmus vruty | AQ8: Zdvihací mechanizmus šrouby
B9: ="▼ "&ListAVS!$B$317 -> ▼ Způsob otvírání | D9: =IF($M$17>0, ListAVS!$B$37&": ", " ") ->  | E9: =IF(SUM($AE$9:$AE$10)>0,25,IF(SUM($AE$11:$AE$12)>0,28," ")) ->  | F9: =ListAVS!$B$64&" A" -> Korpus A | N9: zdvih A | P9: teleskop | S9: 1 | T9: FALSE | V9: - SRVDRV | Y9: =CenAVS!A11 -> Sada zdvihačů HF top, na vruty | Z9: =CenAVS!B11 -> 22F2500 | AA9: =CenAVS!C11 -> ZN | AB9: =SUM(AE9,AG9) -> 0 | AC9: =CenAVS!F11 -> 1651.93 | AD9: =AB9*AC9 -> 0 | AE9: =IF($Y$48=1,ROUNDUP($M$17*$O$11,0),0) -> 0 | AF9: =$AC9*AE9 -> 0 | AG9: =IF($Y$48=1,ROUNDUP($M$28*$O$22,0),0) -> 0 | AH9: =$AC9*AG9 -> 0 | AL9: =" "&ListAVS!$B$156 -> Přehled korpusů | AN9: 2700 - 13500 | AP9: 22F2500 | AQ9: 22F2510
B10: =ListAVS!$B$74&" KB [mm] " -> Šířka korpusu KB [mm] | I10: =IF(H10=0," ",IF($H10<220," min. 220mm", IF($H10>1800, " max. 1800mm", " ")))&IF(H17>0,IF(H10=0,"● "&ListAVS!$B$128," ")," ") ->  | P10: F32 | Q10: =IF(AND($P$16>=$AB$54,$P$16<=$AC$54),SUM($O$11:$O$12),0) -> 0 | T10: Závěs A | V10: Závěs As | Y10: =CenAVS!A12 -> Sada zdvihačů HF top, předmont. eurošrouby | Z10: =CenAVS!B12 -> 22F2510 | AA10: =CenAVS!C12 -> ZN | AB10: 0 | AC10: =CenAVS!F12 -> 1651.93 | AD10: =AB10*AC10 -> 0 | AE10: =IF($Y$48=2,ROUNDUP($M$17*$O$11,0),0) -> 0 | AF10: 0 | AG10: =IF($Y$48=2,ROUNDUP($M$28*$O$22,0),0) -> 0 | AH10: 0 | AL10: =" "&ListAVS!$B$157 -> Objednávka | AN10: 10000 - 19300 | AP10: 22F2800 | AQ10: 22F2810
B11: =ListAVS!$B$75&" [mm]" -> Výška korpusu [mm] | E11: TKH * | G11: KH | I11: =IF(H11=0," ",IF($H11<480," min. 480mm",IF($H11>1200," max. 1 200mm"," ")))&IF(H17>0,IF(H11=0,"● "&ListAVS!$B$128," ")," ") ->  | N11: F25 | O11: =IF($H16<$AB$50,0,IF($H16<=$AC$50,1,0)) -> 0 | P11: F35 | Q11: =IF(AND($P$16>=$AB$55,$P$16<=$AC$55),SUM($O$11:$O$12),0) -> 0 | T11: T558E | U11: =IF($N$48=1, IF(OR($H$10>=1200, $T$17>=12), 3, 2))+IF($N$48=1,IF(OR($H$10=1800, $T$17>=20), 1, 0)) -> 0 | V11: Z553E | W11: =IF($P$48=1, IF(OR($H$10>=1200, $T$17>=12), 3, 2))+IF($P$48=1,IF(OR($H$10=1800, $T$17>=20), 1, 0)) -> 0 | Y11: =CenAVS!A13 -> Sada zdvihačů HF top, na vruty | Z11: =CenAVS!B13 -> 22F2800 | AA11: =CenAVS!C13 -> ZN | AB11: 0 | AC11: =CenAVS!F13 -> 1805.55 | AD11: 0 | AE11: =IF($Y$48=1,ROUNDUP($M$17*$O$12,0),0) -> 0 | AF11: 0 | AG11: =IF($Y$48=1,ROUNDUP($M$28*$O$23,0),0) -> 0 | AH11: 0
B12: =ListAVS!$B$77&" [kg] ** " -> Hmotnost čela včetně úchytky [kg] ** | I12: =IF($T14="ne", " ", IF(AND($H12=0,$H15=0, $H17>0),$N$38," "))&IF(AND($H17>0, $H12>0, $M17>0),$N$41," ") ->  | N12: F28 | O12: =IF($H16<$AB$51,0,IF($H16<=$AC$51,1,0)) -> 0 | P12: F39 | Q12: =IF(AND($P$16>=$AB$56,$P$16<=$AC$56),SUM($O$11:$O$12),0) -> 0 | T12: T5550 | U12: =IF($N$48=2, IF(OR($H$10>=1200, $T$17>=12), 3, 2))+IF($N$48=2,IF(OR($H$10=1800, $T$17>=20), 1, 0)) -> 2 | V12: Z5500 | W12: =IF($P$48=2, IF(OR($H$10>=1200, $T$17>=12), 3, 2))+IF($P$48=2,IF(OR($H$10=1800, $T$17>=20), 1, 0)) -> 2 | Y12: =CenAVS!A14 -> Sada zdvihačů HF top, předmont. eurošrouby | Z12: =CenAVS!B14 -> 22F2810 | AA12: =CenAVS!C14 -> ZN | AB12: 0 | AC12: =CenAVS!F14 -> 1805.55 | AD12: 0 | AE12: =IF($Y$48=2,ROUNDUP($M$17*$O$12,0),0) -> 0 | AF12: 0 | AG12: =IF($Y$48=2,ROUNDUP($M$28*$O$23,0),0) -> 0 | AH12: 0 | AN12: =ListAVS!$B$86&" LF = "&ListAVS!$B$319&" [kg]" -> Ukazatel výkonnosti LF = výška korpusu KH [mm] x hmotnost obou čel včetně úchytky [kg]
B13: =ListAVS!$B$292 -> Výpočet hmotnosti | D13: =ListAVS!$B$80&" TS [mm] " -> Síla čela TS [mm] | Y13: =CenAVS!A15 -> Sada teleskopů HF top (480–610 mm) | Z13: =CenAVS!B15 -> 22F3200 | AA13: =CenAVS!C15 -> NI | AB13: 0 | AC13: =CenAVS!F15 -> 785.14 | AD13: 0 | AE13: =ROUNDUP($M$17*Q10,0) -> 0 | AF13: 0 | AG13: =ROUNDUP($M$28*Q21,0) -> 0 | AH13: 0
D14: =ListAVS!$B$83&" [kg] " -> Hmotnost úchytky [kg] | I14: =IF(M17=0, " ", IF(AND(H12=0, S9=1, H14=0), " ● "&ListAVS!$B$129," ")) ->  | S14: limit v/š | T14: =IF(AND(220<=H10, H10<=1800, 480<=P16, P16<=1200),"ano","ne") -> ne | Y14: =CenAVS!A16 -> Sada teleskopů HF top (600–910 mm) | Z14: =CenAVS!B16 -> 22F3500 | AA14: =CenAVS!C16 -> NI | AB14: 0 | AC14: =CenAVS!F16 -> 964.4 | AD14: 0 | AE14: =ROUNDUP($M$17*Q11,0) -> 0 | AF14: 0 | AG14: =ROUNDUP($M$28*Q22,0) -> 0 | AH14: 0
D15: =ListAVS!$B$79&" [kg] " -> Vypočtená hmotnost čela [kg] | H15: =$T$81 -> 0 | I15: =IF($M17>0,IF($H15>0,IF($H12=0,$N$41," ")," ")," ")&IF(AND(H17>0, H12=0, Z78=3, $J$4=0), $N$39, " ") ->  | S15: limit LF | T15: =IF(AND(H16>=$AB$50, H16<=$AC$51), "ano", "ne") -> ne | Y15: =CenAVS!A17 -> Sada teleskopů HF top (840–1200 mm) | Z15: =CenAVS!B17 -> 22F3900 | AA15: =CenAVS!C17 -> NI | AB15: 0 | AC15: =CenAVS!F17 -> 1143.64 | AD15: 0 | AE15: =ROUNDUP($M$17*Q12,0) -> 0 | AF15: 0 | AG15: =ROUNDUP($M$28*Q23,0) -> 0 | AH15: 0
B16: =ListAVS!$B$86&" LF " -> Ukazatel výkonnosti LF | H16: =IF(H12>0, H11*H12, H11*H15) -> 0 | I16: =IF(OR($T14="ne", $H17=0), " ", IF(AND(H16>0, H16<$AB$50), $T$44, IF($H16>$AC$51, $N$44, " "))) ->  | O16: výška korpusu | P16: =IF(F11>0,IF(F11>=H11,F11,0),H11) -> 0 | Y16: =CenAVS!A47 -> Sada krytek HF, HS, HL top, světle šedá | Z16: =CenAVS!B47 -> 22.8000 | AA16: =CenAVS!C47 -> HGR | AB16: =SUM(AE16,AG16) -> 0 | AC16: =CenAVS!F47 -> 252.85 | AD16: 0 | AE16: =IF(AND($S$9=1, $T$48=1), SUM($AE$9:$AE$12), 0) -> 0 | AF16: 0 | AG16: =IF(AND($S$20=1, $T$48=1), SUM($AG$9:$AG$12), 0) -> 0 | AH16: 0
B17: =ListAVS!$B$71&" " -> Počet skříněk | M17: =IF($H10*$P16=0,0,IF(SUM($H12,$H15)=0,0,IF($P16>$AC$57,0,IF(P16<$AB$54,0,IF(OR(T14="ne", T15="ne"),0,$H17))))) -> 0 | N17: ← Hlavní údaj | S17: hmot = | T17: =IF(H12>0,H12,H15) -> 0 | U17: =IF(SUM(H12,H15)=0,0,IF(H12>0,1,2)) -> 0 | V17: zadaná / vypočtená | Y17: =CenAVS!A48 -> Sada krytek HF, HS, HL top, tmavě šedá | Z17: =CenAVS!B48 -> 22.8000 | AA17: =CenAVS!C48 -> TGR | AB17: 0 | AC17: =CenAVS!F48 -> 275.94 | AD17: 0 | AE17: =IF(AND($S$9=1, $T$48=2), SUM($AE$9:$AE$12), 0) -> 0 | AF17: 0 | AG17: =IF(AND($S$20=1, $T$48=2), SUM($AG$9:$AG$12), 0) -> 0 | AH17: 0 | AN17: vruty = zdvihače s integrovanou šablonou (bez nutnosti rozměřování)
B18: =IF(H17>0,IF(U17=0," ",IF(U17=1,$N$53,$N$54))," ")&IF(H17>0,IF(U17=0," ",IF(U17=1,$N$55,$N$56))," ") ->  | Y18: =CenAVS!A49 -> Sada krytek HF, HS, HL top, hedvábně bílá | Z18: =CenAVS!B49 -> 22.8000 | AA18: =CenAVS!C49 -> SW | AB18: 0 | AC18: =CenAVS!F49 -> 275.94 | AD18: 0 | AE18: =IF(AND($S$9=1, $T$48=3), SUM($AE$9:$AE$12), 0) -> 0 | AF18: 0 | AG18: =IF(AND($S$20=1, $T$48=3), SUM($AG$9:$AG$12), 0) -> 0 | AH18: 0 | AN18: šrouby = zdvihače s přednotovanými šrouby (nutné předvrtání)
B19: =IF(F11=0," ",IF(F11>1200,"TKH = max. 1200!",IF(F11<480,"TKH = min. 480!",IF(F11<H11,$N$59,IF(H17>0,IF(F11=0," ",IF(AND(F11>0,M17=1), $N$58," "))," "))))) ->  | Y19: =CenAVS!A50 -> Sada krytek pro SERVO-DRIVE, světle šedá | Z19: =CenAVS!B50 -> 23.8000 | AA19: =CenAVS!C50 -> HGR | AB19: 0 | AC19: =CenAVS!F50 -> 2606.76 | AD19: 0 | AE19: =IF(AND($S$9=2, $T$48=1), $AE$45, 0) -> 0 | AF19: 0 | AG19: =IF(AND($S$20=2, $T$48=1), $AG$45, 0) -> 0 | AH19: 0 | AL19: =" "&ListAVS!$B$194 -> Výpočet asymetrických čel
B20: ="▼ "&ListAVS!$B$317 -> ▼ Způsob otvírání | D20: =IF($M$28>0, ListAVS!$B$37&": ", " ") ->  | E20: =IF(SUM($AG$9:$AG$10)>0,25,IF(SUM($AG$11:$AG$12)>0,28," ")) ->  | F20: =ListAVS!$B$64&" B" -> Korpus B | N20: zdvih B | P20: teleskop | S20: 1 | T20: FALSE | V20: - SRVDRV | Y20: =CenAVS!A51 -> Sada krytek pro SERVO-DRIVE, tmavě šedá | Z20: =CenAVS!B51 -> 23.8000 | AA20: =CenAVS!C51 -> TGR | AB20: 0 | AC20: =CenAVS!F51 -> 2709.29 | AD20: 0 | AE20: =IF(AND($S$9=2, $T$48=2), $AE$45, 0) -> 0 | AF20: 0 | AG20: =IF(AND($S$20=2, $T$48=2), $AG$45, 0) -> 0 | AH20: 0
B21: =ListAVS!$B$74&" KB [mm] " -> Šířka korpusu KB [mm] | I21: =IF(H21=0," ",IF($H21<220," min. 220mm",IF($H21>1800," max. 1 800mm"," ")))&IF(H28>0,IF(H21=0,"● "&ListAVS!$B$128," ")," ") ->  | P21: F32 | Q21: =IF(AND($P$27>=$AB$54,$P$27<=$AC$54),SUM($O$22:$O$23),0) -> 0 | T21: Závěs B | V21: Závěs Bs | Y21: =CenAVS!A52 -> Sada krytek pro SERVO-DRIVE,hedvábně bílá | Z21: =CenAVS!B52 -> 23.8000 | AA21: =CenAVS!C52 -> SW | AB21: 0 | AC21: =CenAVS!F52 -> 2709.29 | AD21: 0 | AE21: =IF(AND($S$9=2, $T$48=3), $AE$45, 0) -> 0 | AF21: 0 | AG21: =IF(AND($S$20=2, $T$48=3), $AG$45, 0) -> 0 | AH21: 0
B22: =ListAVS!$B$75&" [mm]" -> Výška korpusu [mm] | E22: TKH * | G22: KH | I22: =IF(H22=0," ",IF($H22<480," min. 480mm",IF($H22>1200," max. 1 200mm"," ")))&IF(H28>0,IF(H22=0,"● "&ListAVS!$B$128," ")," ") ->  | N22: F25 | O22: =IF($H27<$AB$50,0,IF($H27<=$AC$50,1,0)) -> 0 | P22: F35 | Q22: =IF(AND($P$27>=$AB$55,$P$27<=$AC$55),SUM($O$22:$O$23),0) -> 0 | T22: T558E | U22: =IF($N$48=1, IF(OR($H$21>=1200, $T$28>=12), 3, 2))+IF($N$48=1,IF(OR($H$21=1800, $T$28>=20), 1, 0)) -> 0 | V22: Z553E | W22: =IF($P$48=1, IF(OR($H$21>=1200, $T$28>=12), 3, 2))+IF($P$48=1,IF(OR($H$21=1800, $T$28>=20), 1, 0)) -> 0 | Y22: =CenAVS!A18 -> Závěs CLIP top 120° | Z22: =CenAVS!B18 -> 70T5550.TL | AA22: =CenAVS!C18 -> NI | AB22: 0 | AC22: =CenAVS!F18 -> 56.56 | AD22: 0 | AE22: =$U$12*$M$17 -> 0 | AF22: 0 | AG22: =$U$23*$M$28 -> 0 | AH22: 0
B23: =ListAVS!$B$77&" [kg] ** " -> Hmotnost čela včetně úchytky [kg] ** | I23: =IF($H28=0," ",IF(SUM($H23,$H26)=0,$N$38," "))&IF($H28>0,IF($H23>0,$N$41," ")," ") ->  | N23: F28 | O23: =IF($H27<$AB$51,0,IF($H27<=$AC$51,1,IF($H27>$AB$52,1.5,0))) -> 0 | P23: F39 | Q23: =IF(AND($P$27>=$AB$56,$P$27<=$AC$56),SUM($O$22:$O$23),0) -> 0 | T23: T5550 | U23: =IF($N$48=2, IF(OR($H$21>=1200, $T$28>=12), 3, 2))+IF($N$48=2,IF(OR($H$21=1800, $T$28>=20), 1, 0)) -> 2 | V23: Z5500 | W23: =IF($P$48=2, IF(OR($H$21>=1200, $T$28>=12), 3, 2))+IF($P$48=2,IF(OR($H$21=1800, $T$28>=20), 1, 0)) -> 2 | Y23: =CenAVS!A19 -> Závěs CLIP top 120° EXPANDO | Z23: =CenAVS!B19 -> 70T558E | AA23: =CenAVS!C19 -> NI | AB23: 0 | AC23: =CenAVS!F19 -> 53.42 | AD23: 0 | AF23: 0 | AH23: 0
B24: =ListAVS!$B$292 -> Výpočet hmotnosti | D24: =ListAVS!$B$80&" TS [mm] " -> Síla čela TS [mm] | Y24: =CenAVS!A20 -> Středový závěs CLIP top | Z24: =CenAVS!B20 -> 78Z5500T | AA24: =CenAVS!C20 -> NI | AB24: 0 | AC24: =CenAVS!F20 -> 92.71 | AD24: 0 | AE24: =$M$17*$W$12 -> 0 | AF24: 0 | AG24: =$M$28*$W$23 -> 0 | AH24: 0
D25: =ListAVS!$B$83&" [kg] " -> Hmotnost úchytky [kg] | I25: =IF(M28=0, " ", IF(AND(H23=0, S20=1, H25=0), " ● "&ListAVS!$B$129," ")) ->  | S25: limit v/š | T25: =IF(AND(220<=H21, H21<=1800, 480<=P27, P27<=1200),"ano","ne") -> ne | Y25: =CenAVS!A21 -> Středový závěs CLIP top EXPANDO | Z25: =CenAVS!B21 -> 78Z553ET | AA25: =CenAVS!C21 -> NI | AB25: 0 | AC25: =CenAVS!F21 -> 95.69 | AD25: 0 | AF25: 0 | AH25: 0
D26: =ListAVS!$B$79&" [kg] " -> Vypočtená hmotnost čela [kg] | H26: =$T$90 -> 0 | I26: =IF($M28>0,IF($H26>0,IF($H23=0,$N$41," ")," ")," ")&IF(AND(H28>0, H23=0, Z87=3, $J$4=0), $N$39, " ") ->  | S26: limit LF | T26: =IF(AND(H27>=$AB$50, H27<=$AC$51), "ano", "ne") -> ne | Y26: =CenAVS!A22 -> Závěs CLIP top pro alurámečky | Z26: =CenAVS!B22 -> 72T550A.TL | AA26: =CenAVS!C22 -> NI | AC26: =CenAVS!F22 -> 77.18 | AD26: 0 | AF26: 0 | AH26: 0
H27: =IF(H23>0, H22*H23, H22*H26) -> 0 | I27: =IF(OR($T25="ne", $H28=0), " ", IF(AND(H27>0, H27<$AB$50), $T$44, IF($H27>$AC$51, $N$44, " "))) ->  | O27: výška korpusu | P27: =IF(F22>0,IF(F22>=H22,F22,0),H22) -> 0 | Y27: =CenAVS!A23 -> Střed. závěs CLIP top pro alurámečky | Z27: =CenAVS!B23 -> 78Z550AT | AA27: =CenAVS!C23 -> NI | AC27: =CenAVS!F23 -> 101.63 | AD27: 0 | AF27: 0 | AH27: 0
B28: =ListAVS!$B$71&" " -> Počet skříněk | M28: =IF($H21*$P27=0,0,IF(SUM($H23,$H26)=0,0,IF($P27>$AC$57,0,IF(P27<$AB$54,0,IF(OR(T25="ne", T26="ne"),0,$H28))))) -> 0 | N28: ← Hlavní údaj | S28: hmot = | T28: =IF(H23>0,H23,H26) -> 0 | U28: =IF(SUM(H23,H26)=0,0,IF(H23>0,1,2)) -> 0 | V28: zadaná / vypočtená | Y28: =CenAVS!A24 -> Adaptér CLIP k teleskopům P | Z28: =CenAVS!B24 -> 175H5B00 R | AA28: =CenAVS!C24 -> NI | AC28: =CenAVS!F24 -> 90.34 | AD28: 0 | AF28: 0 | AH28: 0
B29: =IF(H28>0,IF(U28=0," ",IF(U28=1,$N$53,$N$54))," ")&IF(H28>0,IF(U28=0," ",IF(U28=1,$N$55,$N$56))," ") ->  | Y29: =CenAVS!A25 -> Adaptér CLIP k teleskopům L | Z29: =CenAVS!B25 -> 175H5B00 L | AA29: =CenAVS!C25 -> NI | AC29: =CenAVS!F25 -> 90.34 | AD29: 0 | AF29: 0 | AH29: 0
B30: =IF(F22=0," ",IF(F22>1200,"TKH = max. 1200!",IF(F22<480,"TKH = min. 480!",IF(F22<H22,$N$59,IF(H28>0,IF(F22=0," ",IF(AND(F22>0,M28=1), $N$58," "))," "))))) ->  | Y30: =CenAVS!A26 -> Adaptér CLIP ke středovým závěsům | Z30: =CenAVS!B26 -> 175H5A00 | AA30: =CenAVS!C26 -> NI | AC30: =CenAVS!F26 -> 90.34 | AD30: 0 | AF30: 0 | AH30: 0
B31: =IF(OR(AND($S$9=2, $M$17>0), AND($S$20=2, $M$28>0)), ListAVS!$B$175, " ") ->  | S31: =IF($T$31=FALSE,2,1) -> 1 | T31: TRUE | V31: - Zdroj
P32: 2
Y33: =CenAVS!A27 -> 0 | Z33: =CenAVS!B27 -> 0 | AA33: =CenAVS!C27 -> 0 | AC33: =CenAVS!F27 -> 0 | AD33: 0 | AF33: 0 | AH33: 0
AD34: 0 | AF34: 0 | AH34: 0
N35: =ListAVS!B176 -> Cena bez napájecího zdroje! | AD35: 0 | AF35: 0 | AH35: 0
Y36: =CenAVS!A162 -> CLIP top montážní podložka, excentr, 0 mm | Z36: =CenAVS!B162 -> 173H7100 | AA36: =CenAVS!C162 -> NI | AB36: =SUM(AE36,AG36) -> 0 | AC36: =CenAVS!F162 -> 17.84 | AD36: 0 | AE36: =AE24 -> 0 | AF36: 0 | AG36: =AG24 -> 0 | AH36: 0
C37: ="* "&ListAVS!$B$183 -> * Pouze pro asymetrická čela: zadejte teoretickou výšku TKH. | N37: =" "&ListAVS!$B$115 -> Zadejte hmotnost nebo vyplňte všechny buňky | Y37: =CenAVS!A163 -> CLIP top mont. podložka, excentr, EXPANDO, 0 mm | Z37: =CenAVS!B163 -> 174H7100E | AA37: =CenAVS!C163 -> NI | AC37: =CenAVS!F163 -> 19.39 | AD37: 0 | AF37: 0 | AH37: 0
C38: =" ( "&ListAVS!$B$184&")" -> ( TKH = dvojnásobná výška horního čela včetně mezer) | N38: =" "&ListAVS!$B$116 -> Zadejte hmotnost nebo vyplňte nahoře sílu skla | AF38: 0 | AH38: 0
C39: =" "&ListAVS!$B$327&" '"&ListAVS!$B$194&"' " -> Pro výpočet TKH použijte 'Výpočet asymetrických čel' | N39: =" "&ListAVS!$B$117 -> Vyplňte nahoře objemovou hmotnost
N40: =" "&ListAVS!$B$118 -> Vyplňte nahoře sílu skla
C41: ="** "&ListAVS!$B$186 -> ** Pokud znáte hmotnost a nechcete využít výpočtu hmotnosti | N41: ="◄ "&ListAVS!$B$111 -> ◄ hodnota bude použita pro výpočet LF
C42: ="*** "&ListAVS!$B$403 -> *** Vyberte typ alurámečku! | N42: =" * "&ListAVS!$B$127 -> * Doplňte hodnoty | Y42: =CenAVS!A166 -> CLIP top přímá mont. podložka, ocel, 0 mm | Z42: =CenAVS!B166 -> 175H3100 | AA42: =CenAVS!C166 -> NI | AB42: =SUM(AE42,AG42) -> 0 | AC42: =CenAVS!F166 -> 16.98 | AD42: 0 | AE42: =IF($R$48=2, $U12*$M17, 0)+SUM($Q10*2, $Q11*2, $Q12*2)*$M$17 -> 0 | AF42: =$AC42*AE42 -> 0 | AG42: =IF($R$48=2, $U23*$M28, 0)+SUM($Q21*2, $Q22*2, $Q23*2)*$M$28 -> 0 | AH42: =$AC42*AG42 -> 0
C43: =" "&ListAVS!$B$404 -> Více informací k výběru alurámečků v Nápovědě | Y43: =CenAVS!A167 -> CLIP top přímá mont. podložka, ocel, EXP, 0 mm | Z43: =CenAVS!B167 -> 177H3100E | AA43: =CenAVS!C167 -> NI | AB43: =SUM(AE43,AG43) -> 0 | AC43: =CenAVS!F167 -> 17.07 | AD43: 0 | AE43: =IF($R$48=1, $U12*$M17, 0) -> 0 | AF43: =$AC43*AE45 -> 0 | AG43: =IF($R$48=1, $U23*$M28, 0) -> 0 | AH43: =$AC43*AG43 -> 0
N44: =" max. 19.300! "&ListAVS!$B$121 -> max. 19.300! Upravte hmotnost nebo výšku | T44: =" min. "&$AB$50&"! "&ListAVS!$B$121 -> min. 2700! Upravte hmotnost nebo výšku | Y44: =CenAVS!A169 -> 0 | Z44: =CenAVS!B169 -> 0 | AA44: =CenAVS!C169 -> 0 | AC44: =CenAVS!F169 -> 0 | AD44: 0 | AF44: =$AC44*AE44 -> 0 | AH44: =$AC44*AG44 -> 0
N45: =" "&ListAVS!$B$119 -> Přídavný třetí zdvihač | U45: =" "&ListAVS!B126 -> Použijte pouze jeden zdvihač | Y45: =CenAVS!A171 -> SERVO-DRIVE jednotka (sada) | Z45: =CenAVS!B171 -> 23.A000 | AA45: =CenAVS!C171 -> R7037 | AB45: =SUM(AE45,AG45) -> 0 | AC45: =CenAVS!F171 -> 8297.32 | AD45: 0 | AE45: =IF($S$9=1, 0, $M$17)+IF(AND($S$9=2, $H$16>$AB$52), $M$17, 0) -> 0 | AF45: =$AC45*AE45 -> 0 | AG45: =IF($S$20=1, 0, $M$28)+IF(AND($S$20=2, $H$27>$AB$52), $M$28, 0) -> 0 | AH45: =$AC45*AG45 -> 0
N46: =ListAVS!$B$181 -> Přídavný třetí zdvihač může být použit pouze s plným spodním čelem!
AC47: =ListAVS!$B$61&" " -> Cena celkem bez DPH | AD47: =SUM(AD9:AD45) -> 0 | AF47: =SUM(AF9:AF46) -> 0 | AH47: =SUM(AH9:AH46) -> 0
N48: 2 | O48: 2 | P48: 2 | Q48: 2 | R48: =HF!$P$33 -> 1 | T48: =MenuAVS!$P$28 -> 1 | Y48: =HF!$R$33 -> 1 | Z48: =Param!M10 -> Parametry HF
N49: záv. | O49: alu | P49: střed. | Q49: alu | R49: podl. | T49: kryt. | W49: Provedení: | Y49: montáž: | Z49: =Param!M11 -> Zdvihač | AA49: =Param!N11 -> ks | AB49: =Param!O11 -> min | AC49: =Param!P11 -> max | AD49: =Param!Q11 -> alu max.
N50: =ListAVS!$B$133 -> Expando | P50: =ListAVS!$B$133 -> Expando | R50: =ListAVS!$B$133 -> Expando | T50: =ListAVS!$B$145 -> Světle šedá (HGR) | W50: Standard | Y50: vruty | Z50: =Param!M12 -> 22F2500 | AA50: =Param!N12 -> 1 | AB50: =Param!O12 -> 2700 | AC50: =Param!P12 -> 11500
N51: =ListAVS!$B$134 -> na vruty | P51: =ListAVS!$B$134 -> na vruty | R51: =ListAVS!$B$134 -> na vruty | T51: =ListAVS!$B$146 -> Tmavě šedá (TGR) | W51: SERVO-DRIVE | Y51: eurošrouby | Z51: =Param!M13 -> 22F2800 | AA51: =Param!N13 -> 1 | AB51: =Param!O13 -> 11500 | AC51: =Param!P13 -> 19300 | AD51: =Param!Q13 -> 19300
T52: =ListAVS!$B$147 -> Hedvábně bílá (SW) | Z52: =Param!M14 -> 22F2800 | AA52: =Param!N14 -> 1.5 | AB52: =Param!O14 -> 19300 | AC52: =Param!P14 -> 28950 | AD52: =Param!Q14 -> 0
N53: =ListAVS!B187 -> Pro určení typu zdvihače bude použita zadaná hmotnost | Z53: =Param!M17 -> Teleskop | AB53: =Param!O17 -> min | AC53: =Param!P17 -> max | AD53: =Param!Q17 -> 0
N54: =ListAVS!B188 -> Pro určení typu zdvihače bude použita vypočtená hmotnost | Z54: =Param!M18 -> 20F3200 | AA54: =Param!N18 -> 0 | AB54: =Param!O18 -> 480 | AC54: =Param!P18 -> 605 | AD54: =Param!Q18 -> 0
N55: =". "&ListAVS!$B$189 -> . Chcete-li použít vypočtenou hmotnost, smažte zadanou hodnotu | Z55: =Param!M19 -> 20F3500 | AA55: =Param!N19 -> 0 | AB55: =Param!O19 -> 605 | AC55: =Param!P19 -> 890 | AD55: =Param!Q19 -> 0
N56: =". "&ListAVS!$B$190 -> . Chcete-li použít zadanou hmotnost, zadejte ji do políčka | Z56: =Param!M20 -> 20F3900 | AA56: =Param!N20 -> 0 | AB56: =Param!O20 -> 890 | AC56: =Param!P20 -> 1200 | AD56: =Param!Q20 -> 0
N57: =ListAVS!B191 -> 0 | AB57: =Param!O21 -> max. | AC57: =Param!P21 -> 1200 | AD57: =Param!Q21 -> 0
N58: =ListAVS!B192 -> Pro výběr teleskopů bude použita teoretická výška TKH
N59: =ListAVS!B193 -> Teoretická výška TKH nesmí být menší než KH
N70: =ListAVS!$B$73 -> Výpočet hmotnosti čel
O71: =ListAVS!$B$179&" " -> Provedení čel | T71: =J4 -> 0 | U71: =IF($AF$77=3,IF($T$71=0,$Y$74," "),IF($T$71>0,$Y$75," ")) ->  | Y71: =IF($AF$77=1,$AF$94,IF($AF$77=2,$AF$95,$AF$96&" - "&$Y$81&"mm")) -> Alurámečky s 4mm sklem | AD71: =MenuAVS!$Q$81 -> 2500
Y72: =" "&ListAVS!$B$243 -> Změnit objemovou hmotnost
Y73: =" "&ListAVS!$B$244&" [kg/m3]" -> Zadejte objemovou hmotnost [kg/m3]
Y74: =" "&ListAVS!$B$245&" [mm]" -> Zadejte sílu skla [mm]
Y75: =" "&ListAVS!$B$240&" '"&ListAVS!$B$95&"'" -> Hodnota platí jen pro volbu 'Alurámečky s jiným sklem'
R76: =D9 ->  | Y76: =" "&ListAVS!$B$410 -> Změnit hodnoty můžete v Úvodu plánování | AE76: váha spoj. | AF76: tl. skla | AG76: typ alu
N77: =ListAVS!$B$74&" KB [mm] " -> Šířka korpusu KB [mm] | T77: =H10 -> 0 | Y77: =T77*T78*T79 -> 0 | AD77: =IF($AG$77=1,$X$94,$X$95) -> 0.62 | AE77: =$X$96*2 -> 1.22 | AF77: 1 | AG77: =$O$4 -> 1
N78: =ListAVS!$B$75&" KH [mm] " -> Výška korpusu KH [mm] | T78: =H11 -> 0 | Y78: =Y77/1000000000 -> 0 | Z78: =AF77 -> 1 | AD78: váha alu | AE78: =SUM(T77*4,(T78-180)*2)*AD77/1000 -> -0.2232 | AF78: A plocha B
N79: =ListAVS!$B$80&" TS [mm] " -> Síla čela TS [mm] | Y79: =MenuAVS!$C$31 -> 760 | Z79: =ListAVS!$B$90&" ("&Y79&" kg/m3)" -> MDF (760 kg/m3) | AD79: =$AD$71*4/1000 -> 10 | AE79: =IF($AG$77=1,AF79*AD79,AG79*AD79) -> 0.128 | AF79: =SUM(($T$77-80)*($T$78-160)/1000000) -> 0.0128 | AG79: =SUM(($T$77-6)*($T$78-15)/1000000) -> 9e-05 | AH79: 4mm
N80: =ListAVS!$B$83&" [kg] " -> Hmotnost úchytky [kg] | T80: =H14 -> 0 | U80: =IF(SUM(T77,T78)=0," ",IF(T80=0," ● "&ListAVS!$B$129," ")) ->  | Y80: =MenuAVS!$C$32 -> 680 | Z80: =ListAVS!$B$91&" ("&Y80&" kg/m3)" -> Dřevotříska (680 kg/m3) | AD80: =$AD$71*5/1000 -> 12.5 | AE80: =IF($AG$77=1,AF80*AD80,AG80*AD80) -> 0.16 | AF80: =SUM(($T$77-80)*($T$78-160)/1000000) -> 0.0128 | AG80: =SUM(($T$77-6)*($T$78-15)/1000000) -> 9e-05 | AH80: 5mm
N81: =ListAVS!$B$79&" [kg] " -> Vypočtená hmotnost čela [kg] | T81: =IF(AD82=0,0,AD82+T80) -> 0 | X81: =IF(T77*T78*T79=0,0,IF(Z78=1,Y78*Y79+T80,IF(Z78=2,Y78*Y80+T80,Y78*Y81+T80))) -> 0 | Y81: =$T$71 -> 0 | Z81: =ListAVS!$B$92 -> Jiné - volitelná hustota | AD81: =$AD$71*$T$71/1000 -> 0 | AE81: =IF($AG$77=1,AF81*AD81,AG81*AD81) -> 0 | AF81: =SUM(($T$77-80)*($T$78-160)/1000000) -> 0.0128 | AG81: =SUM(($T$77-6)*($T$78-15)/1000000) -> 9e-05 | AH81: jiné
O82: =IF(T81>0,IF(T80=0,$Z$94," ")," ") ->  | AD82: =IF(OR(AND(AF77=3, $T$71=0), T77*T78=0), 0, SUM(IF(AF77=1,AE79,IF(AF77=2,AE80,AE81)),AE78,AE77)) -> 0
R85: =D20 ->  | AE85: váha spoj. | AF85: tl. skla | AG85: typ alu
N86: =ListAVS!$B$74&" KB [mm] " -> Šířka korpusu KB [mm] | T86: =H21 -> 0 | Y86: =T86*T87*T88 -> 0 | AD86: =IF($AG$77=1,$X$94,$X$95) -> 0.62 | AE86: =$X$96*2 -> 1.22 | AF86: =$AF$77 -> 1 | AG86: =$AG$77 -> 1
N87: =ListAVS!$B$75&" KH [mm] " -> Výška korpusu KH [mm] | T87: =H22 -> 0 | Y87: =Y86/1000000000 -> 0 | Z87: =AF86 -> 1 | AD87: váha alu | AE87: =SUM(T86*4,(T87-180)*2)*AD86/1000 -> -0.2232 | AF87: A plocha B
N88: =ListAVS!$B$80&" TS [mm] " -> Síla čela TS [mm] | Y88: =$Y$79 -> 760 | Z88: =$Z$79 -> MDF (760 kg/m3) | AD88: =AD79 -> 10 | AE88: =IF($AG$77=1,AF88*AD88,AG88*AD88) -> 0.128 | AF88: =SUM(($T$86-80)*($T$87-160)/1000000) -> 0.0128 | AG88: =SUM(($T$86-6)*($T$87-15)/1000000) -> 9e-05 | AH88: 4mm
N89: =ListAVS!$B$83&" [kg] " -> Hmotnost úchytky [kg] | T89: =H25 -> 0 | U89: =IF(SUM(T86,T87)=0," ",IF(T89=0," ● "&ListAVS!$B$129," ")) ->  | Y89: =$Y$80 -> 680 | Z89: =$Z$80 -> Dřevotříska (680 kg/m3) | AD89: =AD80 -> 12.5 | AE89: =IF($AG$77=1,AF89*AD89,AG89*AD89) -> 0.16 | AF89: =SUM(($T$86-80)*($T$87-160)/1000000) -> 0.0128 | AG89: =SUM(($T$86-6)*($T$87-15)/1000000) -> 9e-05 | AH89: 5mm
N90: =ListAVS!$B$79&" [kg] " -> Vypočtená hmotnost čela [kg] | T90: =IF(AD91=0,0,AD91+T89) -> 0 | X90: =IF(T86*T87*T88=0,0,IF(Z87=1,Y87*Y88+T89,IF(Z87=2,Y87*Y89+T89,Y87*Y90+T89))) -> 0 | Y90: =$Y$81 -> 0 | Z90: =$Z$81 -> Jiné - volitelná hustota | AD90: =AD81 -> 0 | AE90: =IF($AG$77=1,AF90*AD90,AG90*AD90) -> 0 | AF90: =SUM(($T$86-80)*($T$87-160)/1000000) -> 0.0128 | AG90: =SUM(($T$86-6)*($T$87-15)/1000000) -> 9e-05 | AH90: jiné
O91: =IF(T90>0,IF(T89=0,$Z$94," ")," ") ->  | AD91: =IF(OR(AND(AF86=3, $T$71=0), T86*T87=0), 0, SUM(IF(AF86=1,AE88,IF(AF86=2,AE89,AE90)),AE87,AE86)) -> 0
W94: =ListAVS!$B$422&" " -> s vloženým sklem | X94: =MenuAVS!$I$86 -> 0.62 | Z94: =ListAVS!$B$102&"!" -> Není započtena hmotnost úchytky! | AF94: =ListAVS!$B$93 -> Alurámečky s 4mm sklem
W95: =ListAVS!$B$423&" " -> s naloženým nebo nalepeným sklem | X95: =MenuAVS!$I$87 -> 0.63 | AF95: =ListAVS!$B$94 -> Alurámečky s 5mm sklem
W96: =ListAVS!$B$405&" [kg/set] * " -> Hmotnost spojovacího materiálu [kg/set] * | X96: =MenuAVS!$I$88 -> 0.61 | AF96: =ListAVS!$B$95 -> Alurámečky s jiným sklem
B100: =ListAVS!$B$194 -> Výpočet asymetrických čel
B102: =" "&ListAVS!$B$197 -> Parametry korpusu
B103: =ListAVS!$B$75&" KH [mm] " -> Výška korpusu KH [mm] | K103: =IF(I103<480, " min. 480", IF(I103>1200, " max. 1200", " ")) -> min. 480 | N103: <=519 | O103: >=520
B104: =ListAVS!$B$200&" F1 [mm] " -> Mezera nahoře F1 [mm]
B105: =ListAVS!$B$201&" F2 [mm] " -> Mezera mezi čely F2 [mm] | K105: =IF($I$103=0," ",IF($I$105<1.5," min. 1,5 mm!"," ")) -> 
B106: =ListAVS!$B$202&" F3 [mm] " -> Mezera dole F3 [mm] | M106: Z | N106: 170 | O106: 189
B107: =ListAVS!$B$203&" [mm] " -> Síla dna korpusu [mm] | M107: H | N107: 93 | O107: 116
B109: =" "&ListAVS!$B$205 -> Výsledky plánování | N109: FHo | O109: FHo
G110: =ListAVS!$B$206&" [mm] " -> Možné výšky čel [mm] | N110: min ↓↓ | O110: min ↓↓
B111: =ListAVS!$B$207 -> Čelo nahoře (FHo) v rozmezí | G111: min. | H111: =IF(AND($I$103>=480, $I$103<=519), $N$111, IF(AND($I$103>=520, $I$103<=1200), $O$111, $S$115)) -> nelze | I111: max. | J111: =IF(AND($I$103>=480, $I$103<=519), $N$115, IF(AND($I$103>=520, $I$103<=1200), $O$115, $S$115)) -> nelze | N111: =SUM(I103, -I104, -I105, -I106, -N120) -> 0 | O111: =SUM(I103, -I104, -I105, -I106, -O120) -> 0
B112: =ListAVS!$B$208 -> Čelo dole (FHu) v rozmezí | G112: min. | H112: =IF(AND($I$103>=480, $I$103<=519), $N$118, IF(AND($I$103>=520, $I$103<=1200), $O$118, $S$115)) -> nelze | I112: max. | J112: =IF(AND($I$103>=480, $I$103<=519), $N$120, IF(AND($I$103>=520, $I$103<=1200), $O$120, $S$115)) -> nelze | N112: max ↓↓ | O112: max ↓↓
N113: =ROUNDUP(SUM(519, -$I$104, -$I$105, -$I$106)/2, 0) -> 260 | O113: =ROUNDUP(SUM(1200, -$I$104, -$I$105, -$I$106)/2, 0) -> 600 | P113: absolutně
B114: =ListAVS!$B$214&" FHo [mm] " -> Výška čela nahoře FHo [mm] | K114: =IF($I$103=0," ",IF($I$114>$J$111,V114,IF($I$114<$H$111,$S$114," "))) ->  | N114: =SUM(I103, -I104, -I105, -I106, -N118) -> -219 | O114: =SUM(I103, -I104, -I105, -I106, -O118) -> -238 | P114: vypočtená | S114: =" min. "&TEXT($H$111,"#")&" mm!" -> min. nelze mm! | V114: =" max. "&TEXT($J$111,"#")&" mm!" -> max. nelze mm!
B115: =ListAVS!$B$215&" FHu [mm] " -> Výška čela dole FHu [mm] | I115: =IF($I$114<$H$111,$S$115,IF($I$114>$J$111,$S$115,+$I$103-$I$104-$I$105-$I$106-$I$114)) -> nelze | N115: =IF($N$114>$N$113, $N$113, $N$114) -> -219 | O115: =IF($O$114>$O$113, $O$113, $O$114) -> -238 | P115: výsledná | S115: =ListAVS!B211 -> nelze
B116: =ListAVS!$B$216&" H [mm] " -> Pozice zdvihače H [mm] | I116: =IF(AND($I$103>=480, $I$103<520), $N$107, IF(AND($I$103>=520, $I$103<=1200), $O$107, $S$115)) -> nelze | N116: FHu | O116: FHu
B117: =ListAVS!$B$217&" Z [mm] " -> Pozice mont. podložky pro teleskopy Z [mm] | I117: =IF(AND($I$103>=480, $I$103<520), $N$106, IF(AND($I$103>=520, $I$103<=1200), $O$106, $S$115)) -> nelze | N117: min ↓↓ | O117: min ↓↓
B118: =ListAVS!$B$218&" TKH [mm] * " -> Teoretická výška korpusu TKH [mm] * | I118: =IF($I$115=$S$115, $S$115, IF($Q$118>=480, IF($Q$118<=1202, $Q$118, $S$115)," ")) -> nelze | N118: =SUM(N106, 32, 17, $I$107, -$I$106) -> 219 | O118: =SUM(O106, 32, 17, $I$107, -$I$106) -> 238 | P118: TKH | Q118: =ROUND(SUM($I$114*2+$I$104+$I$105+$I$106), -1) -> 0
N119: max ↓↓ | O119: max ↓↓
B120: * | C120: =ListAVS!$B$220 -> Tuto výšku zadejte do tabulky pro plánování výklopů | N120: =ROUNDDOWN(SUM(I103, -I104, -I105, -I106)/2, 0) -> 0 | O120: =ROUNDDOWN(SUM(I103, -I104, -I105, -I106)/2, 0) -> 0
I125: =ListAVS!$B$167 -> Zpět
B140: AVENTOS HF
B142: =ListAVS!$B$302 -> Potřebný zdvihač se určí pomocí ukazatele výkonnosti.
B143: =ListAVS!$B$303 -> Ukazatel výkonnosti závisí na hmotnosti dolního i horního čílka, a rovněž na výšce korpusu.
D146: =ListAVS!$B$86&" = " -> Ukazatel výkonnosti = | E146: =ListAVS!$B$319&" [kg]" -> výška korpusu KH [mm] x hmotnost obou čel včetně úchytky [kg]
B152: =ListAVS!$B$311 -> Pokud znáte hmotnost čela, můžete ji zadat, jinak použijte "Výpočet hmotnosti".
B153: =ListAVS!$B$312 -> V tabulce má přednost zadaná hodnota. Chcete-li použít vypočtenou hmotnost, smažte zadanou hodnotu.
B155: =ListAVS!$B$322&". "&ListAVS!$B$323&"." -> Délka teleskopů závisí na výšce korpusu KH. U asymetrických čel se použije teoretická výška TKH.
B157: =" "&ListAVS!$B$162&":" -> Asymetrická čela:
B158: =" "&ListAVS!$B$320 -> Teoretická výška korpusu (TKH) = výška horního čela (FHo) x 2 (včetně mezer)
B160: =ListAVS!$B$315 -> U asymetrických čel musí být větší čelo nahoře!
B162: =ListAVS!$B$325 -> Pokud zadáte hodnotu TKH, použije se pro určení délky teleskopů
B163: =ListAVS!$B$326 -> Nemáte-li asymetrická čela, nechte políčko prázdné.
B164: =ListAVS!$B$327&" ' "&ListAVS!$B$194&"' " -> Pro výpočet TKH použijte ' Výpočet asymetrických čel'
B167: =ListAVS!$B$305 -> Chcete-li změnit barvu krytek, přejděte na "Úvod plánování"
B169: =ListAVS!$B$411 -> Věnujte pozornost výběru alurámečků.
B170: =ListAVS!$B$412 -> Vyberte, který typ lépe odpovídá tvaru použitého alurámečku.
B171: =ListAVS!$B$413 -> Způsob osazení skla do rámečku výrazně ovlivňuje plochu skla a tím i hmotnost!
C173: =" "&ListAVS!$B$422&" " -> s vloženým sklem
C175: =" "&ListAVS!$B$423&" " -> s naloženým nebo nalepeným sklem
L177: =ListAVS!$B$167 -> Zpět

Sheet HFw_wa
B2: AVENTOS HF top | O2: rámeček | S2: 3 | AL2: =ListAVS!$B$152 -> Jdi na
B4: =ListAVS!$B$17 -> Dřevěné čelo | F4: =ListAVS!$B$35&" " -> horní čelo | K4: =U71 ->  | O4: 1 | S4: =" "&ListAVS!$B$41&" A " -> Cena za korpus A | X4: výpočet | AL4: =" "&ListAVS!$B$153 -> Úvod plánování
B5: =ListAVS!$B$20&" ***" -> Široký alurámeček *** | F5: =ListAVS!$B$36&" " -> dolní čelo | K5: =U73 ->  | O5: A = 1 | S5: =" "&ListAVS!$B$41&" B " -> Cena za korpus B | AL5: =" "&ListAVS!$B$154 -> Nápověda
J6: =IF($Z$78<>3,$Y$73," ")&" " -> Změnit hodnoty můžete v Úvodu plánování | O6: B = 2 | S6: =" "&ListAVS!$B$61 -> Cena celkem bez DPH
B7: =ListAVS!$B$51&": " -> Cena kování: | G7: =IF(S2=1,$AF$47,IF($S$2=2,$AH$47,IF($S$2=3,$AD$47,0))) -> 0 | Y7: =$B$2 -> AVENTOS HF top | AL7: =" "&ListAVS!$B$159 -> Doplňky
H8: =IF(AND(OR($S$9=2, $S$20=2), $AD$47>0), $N$35, " ") ->  | Y8: =ListAVS!B52 -> Název | Z8: =ListAVS!$B$53 -> Číslo artiklu | AA8: =ListAVS!B54 -> Barva | AB8: =ListAVS!B56 -> Ks | AC8: =ListAVS!B58 -> Jednotková cena | AD8: =ListAVS!B59 -> Celkem | AE8: A | AF8: Cena | AG8: B | AH8: Cena | AN8: =" "&ListAVS!$B$86&" LF " -> Ukazatel výkonnosti LF | AP8: Zdvihací mechanizmus vruty | AQ8: Zdvihací mechanizmus šrouby
B9: ="▼ "&ListAVS!$B$317 -> ▼ Způsob otvírání | D9: =IF($M$17>0, ListAVS!$B$37&": ", " ") ->  | E9: =IF(SUM($AE$9:$AE$10)>0,25,IF(SUM($AE$11:$AE$12)>0,28," ")) ->  | F9: =ListAVS!$B$64&" A" -> Korpus A | N9: zdvih A | P9: teleskop | S9: 1 | T9: FALSE | V9: - SRVDRV | Y9: =CenAVS!A11 -> Sada zdvihačů HF top, na vruty | Z9: =CenAVS!B11 -> 22F2500 | AA9: =CenAVS!C11 -> ZN | AB9: =SUM(AE9,AG9) -> 0 | AC9: =CenAVS!F11 -> 1651.93 | AD9: =AB9*AC9 -> 0 | AE9: =IF($Y$48=1,ROUNDUP($M$17*$O$11,0),0) -> 0 | AF9: =$AC9*AE9 -> 0 | AG9: =IF($Y$48=1,ROUNDUP($M$28*$O$22,0),0) -> 0 | AH9: =$AC9*AG9 -> 0 | AL9: =" "&ListAVS!$B$156 -> Přehled korpusů | AN9: 2700 - 13500 | AP9: 22F2500 | AQ9: 22F2510
B10: =ListAVS!$B$74&" KB [mm] " -> Šířka korpusu KB [mm] | I10: =IF(H10=0," ",IF($H10<220," min. 220mm", IF($H10>1800, " max. 1800mm", " ")))&IF(H17>0,IF(H10=0,"● "&ListAVS!$B$128," ")," ") ->  | P10: F32 | Q10: =IF(AND($P$16>=$AB$54,$P$16<=$AC$54),SUM($O$11:$O$12),0) -> 0 | T10: Závěs A | V10: Závěs As | Y10: =CenAVS!A12 -> Sada zdvihačů HF top, předmont. eurošrouby | Z10: =CenAVS!B12 -> 22F2510 | AA10: =CenAVS!C12 -> ZN | AB10: 0 | AC10: =CenAVS!F12 -> 1651.93 | AD10: =AB10*AC10 -> 0 | AE10: =IF($Y$48=2,ROUNDUP($M$17*$O$11,0),0) -> 0 | AF10: 0 | AG10: =IF($Y$48=2,ROUNDUP($M$28*$O$22,0),0) -> 0 | AH10: 0 | AL10: =" "&ListAVS!$B$157 -> Objednávka | AN10: 10000 - 19300 | AP10: 22F2800 | AQ10: 22F2810
B11: =ListAVS!$B$75&" [mm]" -> Výška korpusu [mm] | E11: TKH * | G11: KH | I11: =IF(H11=0," ",IF($H11<480," min. 480mm",IF($H11>1200," max. 1 200mm"," ")))&IF(H17>0,IF(H11=0,"● "&ListAVS!$B$128," ")," ") ->  | N11: F25 | O11: =IF($H16<$AB$50,0,IF($H16<=$AC$50,1,0)) -> 0 | P11: F35 | Q11: =IF(AND($P$16>=$AB$55,$P$16<=$AC$55),SUM($O$11:$O$12),0) -> 0 | T11: T558E | U11: =IF($N$48=1, IF(OR($H$10>=1200, $T$17>=12), 3, 2))+IF($N$48=1,IF(OR($H$10=1800, $T$17>=20), 1, 0)) -> 2 | V11: Z553E | W11: =IF($P$48=1, IF(OR($H$10>=1200, $T$17>=12), 3, 2))+IF($P$48=1,IF(OR($H$10=1800, $T$17>=20), 1, 0)) -> 0 | Y11: =CenAVS!A13 -> Sada zdvihačů HF top, na vruty | Z11: =CenAVS!B13 -> 22F2800 | AA11: =CenAVS!C13 -> ZN | AB11: 0 | AC11: =CenAVS!F13 -> 1805.55 | AD11: 0 | AE11: =IF($Y$48=1,ROUNDUP($M$17*$O$12,0),0) -> 0 | AF11: 0 | AG11: =IF($Y$48=1,ROUNDUP($M$28*$O$23,0),0) -> 0 | AH11: 0
B12: =ListAVS!$B$77&" [kg] ** " -> Hmotnost čela včetně úchytky [kg] ** | I12: =IF($T14="ne", " ", IF(AND($H12=0,$H15=0, $H17>0),$N$37," "))&IF(AND($H17>0, $H12>0, $M17>0),$N$41," ") ->  | N12: F28 | O12: =IF($H16<$AB$51,0,IF($H16<=$AC$51,1,0)) -> 0 | P12: F39 | Q12: =IF(AND($P$16>=$AB$56,$P$16<=$AC$56),SUM($O$11:$O$12),0) -> 0 | T12: T5550 | U12: =IF($N$48=2, IF(OR($H$10>=1200, $T$17>=12), 3, 2))+IF($N$48=2,IF(OR($H$10=1800, $T$17>=20), 1, 0)) -> 0 | V12: Z5500 | W12: =IF($P$48=2, IF(OR($H$10>=1200, $T$17>=12), 3, 2))+IF($P$48=2,IF(OR($H$10=1800, $T$17>=20), 1, 0)) -> 2 | Y12: =CenAVS!A14 -> Sada zdvihačů HF top, předmont. eurošrouby | Z12: =CenAVS!B14 -> 22F2810 | AA12: =CenAVS!C14 -> ZN | AB12: 0 | AC12: =CenAVS!F14 -> 1805.55 | AD12: 0 | AE12: =IF($Y$48=2,ROUNDUP($M$17*$O$12,0),0) -> 0 | AF12: 0 | AG12: =IF($Y$48=2,ROUNDUP($M$28*$O$23,0),0) -> 0 | AH12: 0 | AN12: =ListAVS!$B$86&" LF = "&ListAVS!$B$319&" [kg]" -> Ukazatel výkonnosti LF = výška korpusu KH [mm] x hmotnost obou čel včetně úchytky [kg]
B13: =ListAVS!$B$292 -> Výpočet hmotnosti | D13: =ListAVS!$B$81&" TS [mm] " -> Síla horního čela TS [mm] | I13: =IF(OR(H17=0, $T14="ne")," ",IF(AND(H12=0, H13=0)," ● "&ListAVS!$B$128," ")) ->  | Y13: =CenAVS!A15 -> Sada teleskopů HF top (480–610 mm) | Z13: =CenAVS!B15 -> 22F3200 | AA13: =CenAVS!C15 -> NI | AB13: 0 | AC13: =CenAVS!F15 -> 785.14 | AD13: 0 | AE13: =ROUNDUP($M$17*Q10,0) -> 0 | AF13: 0 | AG13: =ROUNDUP($M$28*Q21,0) -> 0 | AH13: 0
D14: =ListAVS!$B$83&" [kg] " -> Hmotnost úchytky [kg] | I14: =IF(M17=0, " ", IF(AND(H12=0, S9=1, H14=0), " ● "&ListAVS!$B$129," ")) ->  | S14: limit v/š | T14: =IF(AND(220<=H10, H10<=1800, 480<=P16, P16<=1200),"ano","ne") -> ne | Y14: =CenAVS!A16 -> Sada teleskopů HF top (600–910 mm) | Z14: =CenAVS!B16 -> 22F3500 | AA14: =CenAVS!C16 -> NI | AB14: 0 | AC14: =CenAVS!F16 -> 964.4 | AD14: 0 | AE14: =ROUNDUP($M$17*Q11,0) -> 0 | AF14: 0 | AG14: =ROUNDUP($M$28*Q22,0) -> 0 | AH14: 0
D15: =ListAVS!$B$79&" [kg] " -> Vypočtená hmotnost čela [kg] | H15: =$T$81 -> 0 | I15: =IF($M17>0,IF($H15>0,IF($H12=0,$N$41," ")," ")," ")&IF(AND(H17>0, H12=0, Z78=3, $J$4=0), $N$39, " ") ->  | S15: limit LF | T15: =IF(AND(H16>=$AB$50, H16<=$AC$51), "ano", "ne") -> ne | Y15: =CenAVS!A17 -> Sada teleskopů HF top (840–1200 mm) | Z15: =CenAVS!B17 -> 22F3900 | AA15: =CenAVS!C17 -> NI | AB15: 0 | AC15: =CenAVS!F17 -> 1143.64 | AD15: 0 | AE15: =ROUNDUP($M$17*Q12,0) -> 0 | AF15: 0 | AG15: =ROUNDUP($M$28*Q23,0) -> 0 | AH15: 0
B16: =ListAVS!$B$86&" LF " -> Ukazatel výkonnosti LF | H16: =IF(H12>0, H11*H12, H11*H15) -> 0 | I16: =IF(OR($T14="ne", $H17=0), " ", IF(AND(H16>0, H16<$AB$50), $T$44, IF($H16>$AC$51, $N$44, " "))) ->  | O16: výška korpusu | P16: =IF(F11>0,IF(F11>=H11,F11,0),H11) -> 0 | Y16: =CenAVS!A47 -> Sada krytek HF, HS, HL top, světle šedá | Z16: =CenAVS!B47 -> 22.8000 | AA16: =CenAVS!C47 -> HGR | AB16: =SUM(AE16,AG16) -> 0 | AC16: =CenAVS!F47 -> 252.85 | AD16: 0 | AE16: =IF(AND($S$9=1, $T$48=1), SUM($AE$9:$AE$12), 0) -> 0 | AF16: 0 | AG16: =IF(AND($S$20=1, $T$48=1), SUM($AG$9:$AG$12), 0) -> 0 | AH16: 0
B17: =ListAVS!$B$71&" " -> Počet skříněk | M17: =IF($H10*$P16=0,0,IF(SUM($H12,$H15)=0,0,IF($P16>$AC$57,0,IF(P16<$AB$54,0,IF(OR(T14="ne", T15="ne"),0,$H17))))) -> 0 | N17: ← Hlavní údaj | S17: hmot = | T17: =IF(H12>0,H12,H15) -> 0 | U17: =IF(SUM(H12,H15)=0,0,IF(H12>0,1,2)) -> 0 | V17: zadaná / vypočtená | Y17: =CenAVS!A48 -> Sada krytek HF, HS, HL top, tmavě šedá | Z17: =CenAVS!B48 -> 22.8000 | AA17: =CenAVS!C48 -> TGR | AB17: 0 | AC17: =CenAVS!F48 -> 275.94 | AD17: 0 | AE17: =IF(AND($S$9=1, $T$48=2), SUM($AE$9:$AE$12), 0) -> 0 | AF17: 0 | AG17: =IF(AND($S$20=1, $T$48=2), SUM($AG$9:$AG$12), 0) -> 0 | AH17: 0 | AN17: vruty = zdvihače s integrovanou šablonou (bez nutnosti rozměřování)
B18: =IF(H17>0,IF(U17=0," ",IF(U17=1,$N$53,$N$54))," ")&IF(H17>0,IF(U17=0," ",IF(U17=1,$N$55,$N$56))," ") ->  | Y18: =CenAVS!A49 -> Sada krytek HF, HS, HL top, hedvábně bílá | Z18: =CenAVS!B49 -> 22.8000 | AA18: =CenAVS!C49 -> SW | AB18: 0 | AC18: =CenAVS!F49 -> 275.94 | AD18: 0 | AE18: =IF(AND($S$9=1, $T$48=3), SUM($AE$9:$AE$12), 0) -> 0 | AF18: 0 | AG18: =IF(AND($S$20=1, $T$48=3), SUM($AG$9:$AG$12), 0) -> 0 | AH18: 0 | AN18: šrouby = zdvihače s přednotovanými šrouby (nutné předvrtání)
B19: =IF(F11=0," ",IF(F11>1200,"TKH = max. 1200!",IF(F11<480,"TKH = min. 480!",IF(F11<H11,$N$59,IF(H17>0,IF(F11=0," ",IF(AND(F11>0,M17=1), $N$58," "))," "))))) ->  | Y19: =CenAVS!A50 -> Sada krytek pro SERVO-DRIVE, světle šedá | Z19: =CenAVS!B50 -> 23.8000 | AA19: =CenAVS!C50 -> HGR | AB19: 0 | AC19: =CenAVS!F50 -> 2606.76 | AD19: 0 | AE19: =IF(AND($S$9=2, $T$48=1), $AE$45, 0) -> 0 | AF19: 0 | AG19: =IF(AND($S$20=2, $T$48=1), $AG$45, 0) -> 0 | AH19: 0 | AL19: =" "&ListAVS!$B$194 -> Výpočet asymetrických čel
B20: ="▼ "&ListAVS!$B$317 -> ▼ Způsob otvírání | D20: =IF($M$28>0, ListAVS!$B$37&": ", " ") ->  | E20: =IF(SUM($AG$9:$AG$10)>0,25,IF(SUM($AG$11:$AG$12)>0,28," ")) ->  | F20: =ListAVS!$B$64&" B" -> Korpus B | N20: zdvih B | P20: teleskop | S20: 1 | T20: FALSE | V20: - SRVDRV | Y20: =CenAVS!A51 -> Sada krytek pro SERVO-DRIVE, tmavě šedá | Z20: =CenAVS!B51 -> 23.8000 | AA20: =CenAVS!C51 -> TGR | AB20: 0 | AC20: =CenAVS!F51 -> 2709.29 | AD20: 0 | AE20: =IF(AND($S$9=2, $T$48=2), $AE$45, 0) -> 0 | AF20: 0 | AG20: =IF(AND($S$20=2, $T$48=2), $AG$45, 0) -> 0 | AH20: 0
B21: =ListAVS!$B$74&" KB [mm] " -> Šířka korpusu KB [mm] | I21: =IF(H21=0," ",IF($H21<220," min. 220mm",IF($H21>1800," max. 1 800mm"," ")))&IF(H28>0,IF(H21=0,"● "&ListAVS!$B$128," ")," ") ->  | P21: F32 | Q21: =IF(AND($P$27>=$AB$54,$P$27<=$AC$54),SUM($O$22:$O$23),0) -> 0 | T21: Závěs B | V21: Závěs Bs | Y21: =CenAVS!A52 -> Sada krytek pro SERVO-DRIVE,hedvábně bílá | Z21: =CenAVS!B52 -> 23.8000 | AA21: =CenAVS!C52 -> SW | AB21: 0 | AC21: =CenAVS!F52 -> 2709.29 | AD21: 0 | AE21: =IF(AND($S$9=2, $T$48=3), $AE$45, 0) -> 0 | AF21: 0 | AG21: =IF(AND($S$20=2, $T$48=3), $AG$45, 0) -> 0 | AH21: 0
B22: =ListAVS!$B$75&" [mm]" -> Výška korpusu [mm] | E22: TKH * | G22: KH | I22: =IF(H22=0," ",IF($H22<480," min. 480mm",IF($H22>1200," max. 1 200mm"," ")))&IF(H28>0,IF(H22=0,"● "&ListAVS!$B$128," ")," ") ->  | N22: F25 | O22: =IF($H27<$AB$50,0,IF($H27<=$AC$50,1,0)) -> 0 | P22: F35 | Q22: =IF(AND($P$27>=$AB$55,$P$27<=$AC$55),SUM($O$22:$O$23),0) -> 0 | T22: T558E | U22: =IF($N$48=1, IF(OR($H$21>=1200, $T$28>=12), 3, 2))+IF($N$48=1,IF(OR($H$21=1800, $T$28>=20), 1, 0)) -> 2 | V22: Z553E | W22: =IF($P$48=1, IF(OR($H$21>=1200, $T$28>=12), 3, 2))+IF($P$48=1,IF(OR($H$21=1800, $T$28>=20), 1, 0)) -> 0 | Y22: =CenAVS!A18 -> Závěs CLIP top 120° | Z22: =CenAVS!B18 -> 70T5550.TL | AA22: =CenAVS!C18 -> NI | AB22: 0 | AC22: =CenAVS!F18 -> 56.56 | AD22: 0 | AE22: =$U$12*$M$17 -> 0 | AF22: 0 | AG22: =$U$23*$M$28 -> 0 | AH22: 0
B23: =ListAVS!$B$77&" [kg] ** " -> Hmotnost čela včetně úchytky [kg] ** | I23: =IF($H28=0," ",IF(SUM($H23,$H26)=0,$N$38," "))&IF($H28>0,IF($H23>0,$N$41," ")," ") ->  | N23: F28 | O23: =IF($H27<$AB$51,0,IF($H27<=$AC$51,1,IF($H27>$AB$52,1.5,0))) -> 0 | P23: F39 | Q23: =IF(AND($P$27>=$AB$56,$P$27<=$AC$56),SUM($O$22:$O$23),0) -> 0 | T23: T5550 | U23: =IF($N$48=2, IF(OR($H$21>=1200, $T$28>=12), 3, 2))+IF($N$48=2,IF(OR($H$21=1800, $T$28>=20), 1, 0)) -> 0 | V23: Z5500 | W23: =IF($P$48=2, IF(OR($H$21>=1200, $T$28>=12), 3, 2))+IF($P$48=2,IF(OR($H$21=1800, $T$28>=20), 1, 0)) -> 2 | Y23: =CenAVS!A19 -> Závěs CLIP top 120° EXPANDO | Z23: =CenAVS!B19 -> 70T558E | AA23: =CenAVS!C19 -> NI | AB23: 0 | AC23: =CenAVS!F19 -> 53.42 | AD23: 0 | AE23: =$U$11*$M$17 -> 0 | AF23: 0 | AG23: =$U$22*$M$28 -> 0 | AH23: 0
B24: =ListAVS!$B$292 -> Výpočet hmotnosti | D24: =ListAVS!$B$81&" TS [mm] " -> Síla horního čela TS [mm] | I24: =IF(H28=0," ",IF(AND(H23=0, H24=0)," ● "&ListAVS!$B$128," ")) ->  | Y24: =CenAVS!A20 -> Středový závěs CLIP top | Z24: =CenAVS!B20 -> 78Z5500T | AA24: =CenAVS!C20 -> NI | AB24: 0 | AC24: =CenAVS!F20 -> 92.71 | AD24: 0 | AE24: =$M$17*$W$12 -> 0 | AF24: 0 | AG24: =$M$28*$W$23 -> 0 | AH24: 0
D25: =ListAVS!$B$83&" [kg] " -> Hmotnost úchytky [kg] | I25: =IF(M28=0, " ", IF(AND(H23=0, S20=1, H25=0), " ● "&ListAVS!$B$129," ")) ->  | S25: limit v/š | T25: =IF(AND(220<=H21, H21<=1800, 480<=P27, P27<=1200),"ano","ne") -> ne | Y25: =CenAVS!A21 -> Středový závěs CLIP top EXPANDO | Z25: =CenAVS!B21 -> 78Z553ET | AA25: =CenAVS!C21 -> NI | AB25: 0 | AC25: =CenAVS!F21 -> 95.69 | AD25: 0 | AF25: 0 | AH25: 0
D26: =ListAVS!$B$79&" [kg] " -> Vypočtená hmotnost čela [kg] | H26: =$T$90 -> 0 | I26: =IF($H28>0,IF($H26>0,IF($H23=0,$N$41," ")," ")," ")&IF(AND(H28>0, H23=0, Z87=3, $J$4=0), $N$39, " ") ->  | S26: limit LF | T26: =IF(AND(H27>=$AB$50, H27<=$AC$51), "ano", "ne") -> ne | Y26: =CenAVS!A22 -> Závěs CLIP top pro alurámečky | Z26: =CenAVS!B22 -> 72T550A.TL | AA26: =CenAVS!C22 -> NI | AC26: =CenAVS!F22 -> 77.18 | AD26: 0 | AF26: 0 | AH26: 0
B27: =ListAVS!$B$86&" LF " -> Ukazatel výkonnosti LF | H27: =IF(H23>0, H22*H23, H22*H26) -> 0 | I27: =IF(AND(H27>0, H27<$AB$50), $T$44, IF($H27>$AC$51, $N$44, " ")) ->  | O27: výška korpusu | P27: =IF(F22>0,IF(F22>=H22,F22,0),H22) -> 0 | Y27: =CenAVS!A23 -> Střed. závěs CLIP top pro alurámečky | Z27: =CenAVS!B23 -> 78Z550AT | AA27: =CenAVS!C23 -> NI | AC27: =CenAVS!F23 -> 101.63 | AD27: 0 | AF27: 0 | AH27: 0
B28: =ListAVS!$B$71&" " -> Počet skříněk | M28: =IF($H21*$P27=0,0,IF(SUM($H23,$H26)=0,0,IF($P27>$AC$57,0,IF(P27<$AB$54,0,IF(OR(T25="ne", T26="ne"),0,$H28))))) -> 0 | N28: ← Hlavní údaj | S28: hmot = | T28: =IF(H23>0,H23,H26) -> 0 | U28: =IF(SUM(H23,H26)=0,0,IF(H23>0,1,2)) -> 0 | V28: zadaná / vypočtená | Y28: =CenAVS!A24 -> Adaptér CLIP k teleskopům P | Z28: =CenAVS!B24 -> 175H5B00 R | AA28: =CenAVS!C24 -> NI | AC28: =CenAVS!F24 -> 90.34 | AD28: 0 | AF28: 0 | AH28: 0
B29: =IF(H28>0,IF(U28=0," ",IF(U28=1,$N$53,$N$54))," ")&IF(H28>0,IF(U28=0," ",IF(U28=1,$N$55,$N$56))," ") ->  | Y29: =CenAVS!A25 -> Adaptér CLIP k teleskopům L | Z29: =CenAVS!B25 -> 175H5B00 L | AA29: =CenAVS!C25 -> NI | AC29: =CenAVS!F25 -> 90.34 | AD29: 0 | AF29: 0 | AH29: 0
B30: =IF(F22=0," ",IF(F22>1200,"TKH = max. 1200!",IF(F22<480,"TKH = min. 480!",IF(F22<H22,$N$59,IF(H28>0,IF(F22=0," ",IF(AND(F22>0,M28=1), $N$58," "))," "))))) ->  | Y30: =CenAVS!A26 -> Adaptér CLIP ke středovým závěsům | Z30: =CenAVS!B26 -> 175H5A00 | AA30: =CenAVS!C26 -> NI | AC30: =CenAVS!F26 -> 90.34 | AD30: 0 | AF30: 0 | AH30: 0
B31: =IF(OR(AND($S$9=2, $M$17>0), AND($S$20=2, $M$28>0)), ListAVS!$B$175, " ") ->  | S31: =IF($T$31=FALSE,2,1) -> 1 | T31: TRUE | V31: - Zdroj
Y33: =CenAVS!A27 -> 0 | Z33: =CenAVS!B27 -> 0 | AA33: =CenAVS!C27 -> 0 | AC33: =CenAVS!F27 -> 0 | AD33: 0 | AF33: 0 | AH33: 0
AD34: 0 | AF34: 0 | AH34: 0
N35: =ListAVS!B176 -> Cena bez napájecího zdroje! | AD35: 0 | AF35: 0 | AH35: 0
Y36: =CenAVS!A162 -> CLIP top montážní podložka, excentr, 0 mm | Z36: =CenAVS!B162 -> 173H7100 | AA36: =CenAVS!C162 -> NI | AC36: =CenAVS!F162 -> 17.84 | AD36: 0 | AF36: 0 | AH36: 0
C37: ="* "&ListAVS!$B$183 -> * Pouze pro asymetrická čela: zadejte teoretickou výšku TKH. | N37: =" "&ListAVS!$B$115 -> Zadejte hmotnost nebo vyplňte všechny buňky | Y37: =CenAVS!A163 -> CLIP top mont. podložka, excentr, EXPANDO, 0 mm | Z37: =CenAVS!B163 -> 174H7100E | AA37: =CenAVS!C163 -> NI | AC37: =CenAVS!F163 -> 19.39 | AD37: 0 | AF37: 0 | AH37: 0
C38: =" ( "&ListAVS!$B$184&")" -> ( TKH = dvojnásobná výška horního čela včetně mezer) | AF38: 0 | AH38: 0
C39: =" "&ListAVS!$B$327&" '"&ListAVS!$B$194&"' " -> Pro výpočet TKH použijte 'Výpočet asymetrických čel' | N39: =" "&ListAVS!$B$117 -> Vyplňte nahoře objemovou hmotnost
C41: ="** "&ListAVS!$B$186 -> ** Pokud znáte hmotnost a nechcete využít výpočtu hmotnosti | N41: ="◄ "&ListAVS!$B$111 -> ◄ hodnota bude použita pro výpočet LF
C42: ="*** "&ListAVS!$B$403 -> *** Vyberte typ alurámečku! | N42: =" * "&ListAVS!$B$127 -> * Doplňte hodnoty | Y42: =CenAVS!A166 -> CLIP top přímá mont. podložka, ocel, 0 mm | Z42: =CenAVS!B166 -> 175H3100 | AA42: =CenAVS!C166 -> NI | AB42: =SUM(AE42,AG42) -> 0 | AC42: =CenAVS!F166 -> 16.98 | AD42: 0 | AE42: =IF($R$48=2, SUM($U$11*$M$17, $U12*$M17, $W$12*$M$17), 0)+SUM($Q10*2, $Q11*2, $Q12*2)*$M$17 -> 0 | AF42: =$AC42*AE42 -> 0 | AG42: =IF($R$48=2, SUM($U$22*$M$28, $U23*$M28, $W$23*$M$28), 0)+SUM($Q21*2, $Q22*2, $Q23*2)*$M$28 -> 0 | AH42: =$AC42*AG42 -> 0
C43: =" "&ListAVS!$B$404 -> Více informací k výběru alurámečků v Nápovědě | Y43: =CenAVS!A167 -> CLIP top přímá mont. podložka, ocel, EXP, 0 mm | Z43: =CenAVS!B167 -> 177H3100E | AA43: =CenAVS!C167 -> NI | AB43: =SUM(AE43,AG43) -> 0 | AC43: =CenAVS!F167 -> 17.07 | AD43: 0 | AE43: =IF($R$48=1, SUM($U$11*$M$17, $U$12*$M$17, $W$12*$M$17), 0) -> 0 | AF43: =$AC43*AE45 -> 0 | AG43: =IF($R$48=1, SUM($U$22*$M$28, $U$23*$M$28, $W$23*$M$28), 0) -> 0 | AH43: =$AC43*AG43 -> 0
N44: =" max. 19.300! "&ListAVS!$B$121 -> max. 19.300! Upravte hmotnost nebo výšku | T44: =" min. "&$AB$50&"! "&ListAVS!$B$121 -> min. 2700! Upravte hmotnost nebo výšku | Y44: =CenAVS!A169 -> 0 | Z44: =CenAVS!B169 -> 0 | AA44: =CenAVS!C169 -> 0 | AC44: =CenAVS!F169 -> 0 | AD44: 0 | AF44: =$AC44*AE44 -> 0 | AH44: =$AC44*AG44 -> 0
N45: =" "&ListAVS!$B$119 -> Přídavný třetí zdvihač | U45: =" "&ListAVS!B126 -> Použijte pouze jeden zdvihač | Y45: =CenAVS!A171 -> SERVO-DRIVE jednotka (sada) | Z45: =CenAVS!B171 -> 23.A000 | AA45: =CenAVS!C171 -> R7037 | AB45: =SUM(AE45,AG45) -> 0 | AC45: =CenAVS!F171 -> 8297.32 | AD45: 0 | AE45: =IF($S$9=1, 0, $M$17)+IF(AND($S$9=2, $H$16>$AB$52), $M$17, 0) -> 0 | AF45: =$AC45*AE45 -> 0 | AG45: =IF($S$20=1, 0, $M$28)+IF(AND($S$20=2, $H$27>$AB$52), $M$28, 0) -> 0 | AH45: =$AC45*AG45 -> 0
N46: =ListAVS!$B$181 -> Přídavný třetí zdvihač může být použit pouze s plným spodním čelem!
AC47: =ListAVS!$B$61&" " -> Cena celkem bez DPH | AD47: =SUM(AD9:AD45) -> 0 | AF47: =SUM(AF9:AF46) -> 0 | AH47: =SUM(AH9:AH46) -> 0
N48: =HF!$L$33 -> 1 | O48: 2 | P48: 2 | Q48: 2 | R48: =HF!$P$33 -> 1 | T48: =MenuAVS!$P$28 -> 1 | Y48: =HF!$R$33 -> 1 | Z48: =Param!M10 -> Parametry HF
N49: záv. | O49: alu | P49: střed. | Q49: alu | R49: podl. | T49: kryt. | W49: Provedení: | Y49: montáž: | Z49: =Param!M11 -> Zdvihač | AA49: =Param!N11 -> ks | AB49: =Param!O11 -> min | AC49: =Param!P11 -> max | AD49: =Param!Q11 -> alu max.
N50: =ListAVS!$B$133 -> Expando | P50: =ListAVS!$B$133 -> Expando | R50: =ListAVS!$B$133 -> Expando | T50: =ListAVS!$B$145 -> Světle šedá (HGR) | W50: Standard | Y50: vruty | Z50: =Param!M12 -> 22F2500 | AA50: =Param!N12 -> 1 | AB50: =Param!O12 -> 2700 | AC50: =Param!P12 -> 11500
N51: =ListAVS!$B$134 -> na vruty | P51: =ListAVS!$B$134 -> na vruty | R51: =ListAVS!$B$134 -> na vruty | T51: =ListAVS!$B$147 -> Hedvábně bílá (SW) | W51: SERVO-DRIVE | Y51: eurošrouby | Z51: =Param!M13 -> 22F2800 | AA51: =Param!N13 -> 1 | AB51: =Param!O13 -> 11500 | AC51: =Param!P13 -> 19300 | AD51: =Param!Q13 -> 19300
T52: =ListAVS!$B$148 -> 0 | Z52: =Param!M14 -> 22F2800 | AA52: =Param!N14 -> 1.5 | AB52: =Param!O14 -> 19300 | AC52: =Param!P14 -> 28950 | AD52: =Param!Q14 -> 0
N53: =ListAVS!B187 -> Pro určení typu zdvihače bude použita zadaná hmotnost | Z53: =Param!M17 -> Teleskop | AB53: =Param!O17 -> min | AC53: =Param!P17 -> max | AD53: =Param!Q17 -> 0
N54: =ListAVS!B188 -> Pro určení typu zdvihače bude použita vypočtená hmotnost | Z54: =Param!M18 -> 20F3200 | AA54: =Param!N18 -> 0 | AB54: =Param!O18 -> 480 | AC54: =Param!P18 -> 605 | AD54: =Param!Q18 -> 0
N55: =". "&ListAVS!$B$189 -> . Chcete-li použít vypočtenou hmotnost, smažte zadanou hodnotu | Z55: =Param!M19 -> 20F3500 | AA55: =Param!N19 -> 0 | AB55: =Param!O19 -> 605 | AC55: =Param!P19 -> 890 | AD55: =Param!Q19 -> 0
N56: =". "&ListAVS!$B$190 -> . Chcete-li použít zadanou hmotnost, zadejte ji do políčka | Z56: =Param!M20 -> 20F3900 | AA56: =Param!N20 -> 0 | AB56: =Param!O20 -> 890 | AC56: =Param!P20 -> 1200 | AD56: =Param!Q20 -> 0
N57: =ListAVS!B191 -> 0 | AB57: =Param!O21 -> max. | AC57: =Param!P21 -> 1200 | AD57: =Param!Q21 -> 0
N58: =ListAVS!B192 -> Pro výběr teleskopů bude použita teoretická výška TKH
N59: =ListAVS!B193 -> Teoretická výška TKH nesmí být menší než KH
N70: =ListAVS!$B$73 -> Výpočet hmotnosti čel
O71: =ListAVS!$B$35&" " -> horní čelo | T71: =J4 -> 0 | U71: =IF(Z78=3,IF(T71=0,Y74," "),IF(T71>0,Y75," ")) ->  | Y71: =IF($Z$78=1,$Z$79,IF($Z$78=2,$Z$80,$Z$81&" "&$Y$81&"kg/m3"))&" A~"&$T$79&"/ B~"&$T$88&"mm" -> MDF (760 kg/m3) A~0/ B~0mm | AD71: =MenuAVS!$Q$81 -> 2500
P72: =IF($Z$78<>3,$Y$73," ")&" " -> Změnit hodnoty můžete v Úvodu plánování | Y72: =IF($AF$77=1,$AF$94,IF($AF$77=2,$AF$95,$AF$96&" - "&$T$73&"mm")) -> Alurámečky s 4mm sklem
O73: =ListAVS!$B$36&" " -> dolní čelo | T73: =J5 -> 0 | U73: =IF(AF77=3,IF(T73=0,AE74," "),IF(T73>0,AE75," ")) ->  | Y73: =" "&ListAVS!$B$410 -> Změnit hodnoty můžete v Úvodu plánování
Y74: =" "&ListAVS!$B$244&" [kg/m3]" -> Zadejte objemovou hmotnost [kg/m3] | AE74: =" "&ListAVS!$B$245&" [mm]" -> Zadejte sílu skla [mm]
Y75: =" "&ListAVS!$B$240&" '"&ListAVS!$B$92&"'" -> Hodnota platí jen pro volbu 'Jiné - volitelná hustota' | AE75: =" "&ListAVS!$B$240&" '"&ListAVS!$B$95&"'" -> Hodnota platí jen pro volbu 'Alurámečky s jiným sklem'
R76: =D9 ->  | AE76: váha spoj. | AF76: tl. skla | AG76: typ alu
N77: =ListAVS!$B$74&" KB [mm] " -> Šířka korpusu KB [mm] | T77: =H10 -> 0 | Y77: =T77*T78*T79/2 -> 0 | AD77: =IF($AG$77=1,$X$94,$X$95) -> 0.62 | AE77: =$X$96 -> 0.61 | AF77: 1 | AG77: =$O$4 -> 1
N78: =ListAVS!$B$75&" KH [mm] " -> Výška korpusu KH [mm] | T78: =H11 -> 0 | Y78: =Y77/1000000000 -> 0 | Z78: 1 | AD78: váha alu | AE78: =SUM(T77*2,(T78/2-90)*2)*AD77/1000 -> -0.1116 | AF78: A plocha B
N79: =ListAVS!$B$80&" TS [mm] " -> Síla čela TS [mm] | T79: =H13 -> 0 | U79: =IF(SUM(T77,T78)=0," ",IF(T79=0," ● "&ListAVS!$B$128," ")) ->  | Y79: =MenuAVS!$C$31 -> 760 | Z79: =ListAVS!$B$90&" ("&Y79&" kg/m3)" -> MDF (760 kg/m3) | AD79: =$AD$71*4/1000 -> 10 | AE79: =IF($AG$77=1,AF79*AD79,AG79*AD79) -> 0.064 | AF79: =SUM(($T$77-80)*($T$78/2-80)/1000000) -> 0.0064 | AG79: =SUM(($T$77-6)*($T$78/2-6)/1000000) -> 3.6e-05 | AH79: 4mm
N80: =ListAVS!$B$83&" [kg] " -> Hmotnost úchytky [kg] | T80: =H14 -> 0 | U80: =IF(SUM(T77,T78)=0," ",IF(T80=0," ● "&ListAVS!$B$129," ")) ->  | Y80: =MenuAVS!$C$32 -> 680 | Z80: =ListAVS!$B$91&" ("&Y80&" kg/m3)" -> Dřevotříska (680 kg/m3) | AD80: =$AD$71*5/1000 -> 12.5 | AE80: =IF($AG$77=1,AF80*AD80,AG80*AD80) -> 0.08 | AF80: =SUM(($T$77-80)*($T$78/2-80)/1000000) -> 0.0064 | AG80: =SUM(($T$77-6)*($T$78/2-6)/1000000) -> 3.6e-05 | AH80: 5mm
N81: =ListAVS!$B$79&" [kg] " -> Vypočtená hmotnost čela [kg] | T81: =IF(X81*AD82<>0,SUM(X81,AD82,T80),0) -> 0 | X81: =IF(T77*T78*T79=0,0,IF(Z78=1,Y78*Y79,IF(Z78=2,Y78*Y80,Y78*Y81))) -> 0 | Y81: =$T$71 -> 0 | Z81: =ListAVS!$B$92 -> Jiné - volitelná hustota | AD81: =$AD$71*$T$73/1000 -> 0 | AE81: =IF($AG$77=1,AF81*AD81,AG81*AD81) -> 0 | AF81: =SUM(($T$77-80)*($T$78/2-80)/1000000) -> 0.0064 | AG81: =SUM(($T$77-6)*($T$78/2-6)/1000000) -> 3.6e-05 | AH81: jiné
O82: =IF(T81>0,IF(T80=0,$Z$94," ")," ") ->  | AD82: =IF(OR(AND(AF77=3, $T$73=0), T77*T78=0), 0, SUM(IF(AF77=1,AE79,IF(AF77=2,AE80,AE81)),AE78,AE77)) -> 0
R85: =D20 ->  | AE85: váha spoj. | AF85: tl. skla | AG85: typ alu
N86: =ListAVS!$B$74&" KB [mm] " -> Šířka korpusu KB [mm] | T86: =H21 -> 0 | Y86: =T86*T87*T88 -> 0 | AD86: =IF($AG$77=1,$X$94,$X$95) -> 0.62 | AE86: =$X$96 -> 0.61 | AF86: =$AF$77 -> 1 | AG86: =$AG$77 -> 1
N87: =ListAVS!$B$75&" KH [mm] " -> Výška korpusu KH [mm] | T87: =H22 -> 0 | Y87: =Y86/1000000000/2 -> 0 | Z87: =Z78 -> 1 | AD87: váha alu | AE87: =SUM(T86*2,(T87/2-90)*2)*AD86/1000 -> -0.1116 | AF87: A plocha B
N88: =ListAVS!$B$80&" TS [mm] " -> Síla čela TS [mm] | T88: =H24 -> 0 | U88: =IF(SUM(T86,T87)=0," ",IF(T88=0," ● "&ListAVS!$B$128," ")) ->  | Y88: =$Y$79 -> 760 | Z88: =$Z$79 -> MDF (760 kg/m3) | AD88: =AD79 -> 10 | AE88: =IF($AG$77=1,AF88*AD88,AG88*AD88) -> 0.064 | AF88: =SUM(($T$86-80)*($T$87/2-80)/1000000) -> 0.0064 | AG88: =SUM(($T$86-6)*($T$87/2-6)/1000000) -> 3.6e-05 | AH88: 4mm
N89: =ListAVS!$B$83&" [kg] " -> Hmotnost úchytky [kg] | T89: =H25 -> 0 | U89: =IF(SUM(T86,T87)=0," ",IF(T89=0," ● "&ListAVS!$B$129," ")) ->  | Y89: =$Y$80 -> 680 | Z89: =$Z$80 -> Dřevotříska (680 kg/m3) | AD89: =AD80 -> 12.5 | AE89: =IF($AG$77=1,AF89*AD89,AG89*AD89) -> 0.08 | AF89: =SUM(($T$86-80)*($T$87/2-80)/1000000) -> 0.0064 | AG89: =SUM(($T$86-6)*($T$87/2-6)/1000000) -> 3.6e-05 | AH89: 5mm
N90: =ListAVS!$B$79&" [kg] " -> Vypočtená hmotnost čela [kg] | T90: =IF(X90*AD91<>0,SUM(X90,AD91,T89),0) -> 0 | X90: =IF(T86*T87*T88=0,0,IF(Z87=1,Y87*Y88,IF(Z87=2,Y87*Y89,Y87*Y90))) -> 0 | Y90: =$Y$81 -> 0 | Z90: =$Z$81 -> Jiné - volitelná hustota | AD90: =AD81 -> 0 | AE90: =IF($AG$77=1,AF90*AD90,AG90*AD90) -> 0 | AF90: =SUM(($T$86-80)*($T$87/2-80)/1000000) -> 0.0064 | AG90: =SUM(($T$86-6)*($T$87/2-6)/1000000) -> 3.6e-05 | AH90: jiné
O91: =IF(T90>0,IF(T89=0,$Z$94," ")," ") ->  | AD91: =IF(OR(AND(AF86=3, $T$73=0), T86*T87=0), 0, SUM(IF(AF86=1,AE88,IF(AF86=2,AE89,AE90)),AE87,AE86)) -> 0
W94: =ListAVS!$B$422&" " -> s vloženým sklem | X94: =MenuAVS!$I$86 -> 0.62 | Z94: =ListAVS!$B$102&"!" -> Není započtena hmotnost úchytky! | AF94: =ListAVS!$B$93 -> Alurámečky s 4mm sklem
W95: =ListAVS!$B$423&" " -> s naloženým nebo nalepeným sklem | X95: =MenuAVS!$I$87 -> 0.63 | AF95: =ListAVS!$B$94 -> Alurámečky s 5mm sklem
W96: =ListAVS!$B$405&" [kg/set] * " -> Hmotnost spojovacího materiálu [kg/set] * | X96: =MenuAVS!$I$88 -> 0.61 | AF96: =ListAVS!$B$95 -> Alurámečky s jiným sklem
B100: =ListAVS!$B$194 -> Výpočet asymetrických čel
B102: =" "&ListAVS!$B$197 -> Parametry korpusu
B103: =ListAVS!$B$75&" KH [mm] " -> Výška korpusu KH [mm] | K103: =IF(I103<480, " min. 480", IF(I103>1200, " max. 1200", " ")) -> min. 480 | N103: <=519 | O103: >=520
B104: =ListAVS!$B$200&" F1 [mm] " -> Mezera nahoře F1 [mm]
B105: =ListAVS!$B$201&" F2 [mm] " -> Mezera mezi čely F2 [mm] | K105: =IF($I$103=0," ",IF($I$105<1.5," min. 1,5 mm!"," ")) -> 
B106: =ListAVS!$B$202&" F3 [mm] " -> Mezera dole F3 [mm] | M106: Z | N106: 170 | O106: 189
B107: =ListAVS!$B$203&" [mm] " -> Síla dna korpusu [mm] | M107: H | N107: 93 | O107: 116
B109: =" "&ListAVS!$B$205 -> Výsledky plánování | N109: FHo | O109: FHo
G110: =ListAVS!$B$206&" [mm] " -> Možné výšky čel [mm] | N110: min ↓↓ | O110: min ↓↓
B111: =ListAVS!$B$207 -> Čelo nahoře (FHo) v rozmezí | G111: min. | H111: =IF(AND($I$103>=480, $I$103<=519), $N$111, IF(AND($I$103>=520, $I$103<=1200), $O$111, $S$115)) -> nelze | I111: max. | J111: =IF(AND($I$103>=480, $I$103<=519), $N$115, IF(AND($I$103>=520, $I$103<=1200), $O$115, $S$115)) -> nelze | N111: =SUM(I103, -I104, -I105, -I106, -N120) -> 0 | O111: =SUM(I103, -I104, -I105, -I106, -O120) -> 0
B112: =ListAVS!$B$208 -> Čelo dole (FHu) v rozmezí | G112: min. | H112: =IF(AND($I$103>=480, $I$103<=519), $N$118, IF(AND($I$103>=520, $I$103<=1200), $O$118, $S$115)) -> nelze | I112: max. | J112: =IF(AND($I$103>=480, $I$103<=519), $N$120, IF(AND($I$103>=520, $I$103<=1200), $O$120, $S$115)) -> nelze | N112: max ↓↓ | O112: max ↓↓
N113: =ROUNDUP(SUM(519, -$I$104, -$I$105, -$I$106)/2, 0) -> 260 | O113: =ROUNDUP(SUM(1200, -$I$104, -$I$105, -$I$106)/2, 0) -> 600 | P113: absolutně
B114: =ListAVS!$B$214&" FHo [mm] " -> Výška čela nahoře FHo [mm] | K114: =IF($I$103=0," ",IF($I$114>$J$111,V114,IF($I$114<$H$111,$S$114," "))) ->  | N114: =SUM(I103, -I104, -I105, -I106, -N118) -> -219 | O114: =SUM(I103, -I104, -I105, -I106, -O118) -> -238 | P114: vypočtená | S114: =" min. "&TEXT($H$111,"#")&" mm!" -> min. nelze mm! | V114: =" max. "&TEXT($J$111,"#")&" mm!" -> max. nelze mm!
B115: =ListAVS!$B$215&" FHu [mm] " -> Výška čela dole FHu [mm] | I115: =IF($I$114<$H$111,$S$115,IF($I$114>$J$111,$S$115,+$I$103-$I$104-$I$105-$I$106-$I$114)) -> nelze | N115: =IF($N$114>$N$113, $N$113, $N$114) -> -219 | O115: =IF($O$114>$O$113, $O$113, $O$114) -> -238 | P115: výsledná | S115: =ListAVS!B211 -> nelze
B116: =ListAVS!$B$216&" H [mm] " -> Pozice zdvihače H [mm] | I116: =IF(AND($I$103>=480, $I$103<520), $N$107, IF(AND($I$103>=520, $I$103<=1200), $O$107, $S$115)) -> nelze | N116: FHu | O116: FHu
B117: =ListAVS!$B$217&" Z [mm] " -> Pozice mont. podložky pro teleskopy Z [mm] | I117: =IF(AND($I$103>=480, $I$103<520), $N$106, IF(AND($I$103>=520, $I$103<=1200), $O$106, $S$115)) -> nelze | N117: min ↓↓ | O117: min ↓↓
B118: =ListAVS!$B$218&" TKH [mm] * " -> Teoretická výška korpusu TKH [mm] * | I118: =IF($I$115=$S$115, $S$115, IF($Q$118>=480, IF($Q$118<=1202, $Q$118, $S$115)," ")) -> nelze | N118: =SUM(N106, 32, 17, $I$107, -$I$106) -> 219 | O118: =SUM(O106, 32, 17, $I$107, -$I$106) -> 238 | P118: TKH | Q118: =ROUND(SUM($I$114*2+$I$104+$I$105+$I$106), -1) -> 0
N119: max ↓↓ | O119: max ↓↓
B120: * | C120: =ListAVS!$B$220 -> Tuto výšku zadejte do tabulky pro plánování výklopů | N120: =ROUNDDOWN(SUM(I103, -I104, -I105, -I106)/2, 0) -> 0 | O120: =ROUNDDOWN(SUM(I103, -I104, -I105, -I106)/2, 0) -> 0
I125: =ListAVS!$B$167 -> Zpět
B139: AVENTOS HF
B141: =ListAVS!$B$302 -> Potřebný zdvihač se určí pomocí ukazatele výkonnosti.
B142: =ListAVS!$B$303 -> Ukazatel výkonnosti závisí na hmotnosti dolního i horního čílka, a rovněž na výšce korpusu.
D145: =ListAVS!$B$86&" = " -> Ukazatel výkonnosti = | E145: =ListAVS!$B$319&" [kg]" -> výška korpusu KH [mm] x hmotnost obou čel včetně úchytky [kg]
B151: =ListAVS!$B$311 -> Pokud znáte hmotnost čela, můžete ji zadat, jinak použijte "Výpočet hmotnosti".
B152: =ListAVS!$B$312 -> V tabulce má přednost zadaná hodnota. Chcete-li použít vypočtenou hmotnost, smažte zadanou hodnotu.
B154: =ListAVS!$B$322&". "&ListAVS!$B$323&"." -> Délka teleskopů závisí na výšce korpusu KH. U asymetrických čel se použije teoretická výška TKH.
B156: =" "&ListAVS!$B$162&":" -> Asymetrická čela:
B157: =" "&ListAVS!$B$320 -> Teoretická výška korpusu (TKH) = výška horního čela (FHo) x 2 (včetně mezer)
B159: =ListAVS!$B$315 -> U asymetrických čel musí být větší čelo nahoře!
B161: =ListAVS!$B$325 -> Pokud zadáte hodnotu TKH, použije se pro určení délky teleskopů
B162: =ListAVS!$B$326 -> Nemáte-li asymetrická čela, nechte políčko prázdné.
B163: =ListAVS!$B$327&" ' "&ListAVS!$B$194&"' " -> Pro výpočet TKH použijte ' Výpočet asymetrických čel'
B166: =ListAVS!$B$305 -> Chcete-li změnit barvu krytek, přejděte na "Úvod plánování"
B168: =ListAVS!$B$411 -> Věnujte pozornost výběru alurámečků.
B169: =ListAVS!$B$412 -> Vyberte, který typ lépe odpovídá tvaru použitého alurámečku.
B170: =ListAVS!$B$413 -> Způsob osazení skla do rámečku výrazně ovlivňuje plochu skla a tím i hmotnost!
C172: =" "&ListAVS!$B$422&" " -> s vloženým sklem
C174: =" "&ListAVS!$B$423&" " -> s naloženým nebo nalepeným sklem
L176: =ListAVS!$B$167 -> Zpět

Sheet HFwa_w
B2: AVENTOS HF top | O2: rámeček | S2: 3 | AL2: =ListAVS!$B$152 -> Jdi na
B4: =ListAVS!$B$20&" ***" -> Široký alurámeček *** | F4: =ListAVS!$B$35&" " -> horní čelo | K4: =U71 ->  | O4: 1 | S4: =" "&ListAVS!$B$41&" A " -> Cena za korpus A | X4: výpočet | AL4: =" "&ListAVS!$B$153 -> Úvod plánování
B5: =ListAVS!$B$17 -> Dřevěné čelo | F5: =ListAVS!$B$36&" " -> dolní čelo | K5: =U72 ->  | O5: A = 1 | S5: =" "&ListAVS!$B$41&" B " -> Cena za korpus B | AL5: =" "&ListAVS!$B$154 -> Nápověda
J6: =IF($AF$77<>3,$Y$73," ")&" " -> Změnit hodnoty můžete v Úvodu plánování | O6: B = 2 | S6: =" "&ListAVS!$B$61 -> Cena celkem bez DPH
B7: =ListAVS!$B$51&": " -> Cena kování: | G7: =IF(S2=1,$AF$47,IF($S$2=2,$AH$47,IF($S$2=3,$AD$47,0))) -> 0 | Y7: =$B$2 -> AVENTOS HF top | AL7: =" "&ListAVS!$B$159 -> Doplňky
H8: =IF(AND(OR($S$9=2, $S$20=2), $AD$47>0), $N$35, " ") ->  | Y8: =ListAVS!B52 -> Název | Z8: =ListAVS!$B$53 -> Číslo artiklu | AA8: =ListAVS!B54 -> Barva | AB8: =ListAVS!B56 -> Ks | AC8: =ListAVS!B58 -> Jednotková cena | AD8: =ListAVS!B59 -> Celkem | AE8: A | AF8: Cena | AG8: B | AH8: Cena | AN8: =" "&ListAVS!$B$86&" LF " -> Ukazatel výkonnosti LF | AP8: Zdvihací mechanizmus vruty | AQ8: Zdvihací mechanizmus šrouby
B9: ="▼ "&ListAVS!$B$317 -> ▼ Způsob otvírání | D9: =IF($M$17>0, ListAVS!$B$37&": ", " ") ->  | E9: =IF(SUM($AE$9:$AE$10)>0,25,IF(SUM($AE$11:$AE$12)>0,28," ")) ->  | F9: =ListAVS!$B$64&" A" -> Korpus A | N9: zdvih A | P9: teleskop | S9: 1 | T9: FALSE | V9: - SRVDRV | Y9: =CenAVS!A11 -> Sada zdvihačů HF top, na vruty | Z9: =CenAVS!B11 -> 22F2500 | AA9: =CenAVS!C11 -> ZN | AB9: =SUM(AE9,AG9) -> 0 | AC9: =CenAVS!F11 -> 1651.93 | AD9: =AB9*AC9 -> 0 | AE9: =IF($Y$48=1,ROUNDUP($M$17*$O$11,0),0) -> 0 | AF9: =$AC9*AE9 -> 0 | AG9: =IF($Y$48=1,ROUNDUP($M$28*$O$22,0),0) -> 0 | AH9: =$AC9*AG9 -> 0 | AL9: =" "&ListAVS!$B$156 -> Přehled korpusů | AN9: 2700 - 13500 | AP9: 22F2500 | AQ9: 22F2510
B10: =ListAVS!$B$74&" KB [mm] " -> Šířka korpusu KB [mm] | I10: =IF(H10=0," ",IF($H10<220," min. 220mm"," "))&IF(H17>0,IF(H10=0,"● "&ListAVS!$B$128," ")," ") ->  | P10: F32 | Q10: =IF(AND($P$16>=$AB$54,$P$16<=$AC$54),SUM($O$11:$O$12),0) -> 0 | T10: Závěs A | V10: Závěs As | Y10: =CenAVS!A12 -> Sada zdvihačů HF top, předmont. eurošrouby | Z10: =CenAVS!B12 -> 22F2510 | AA10: =CenAVS!C12 -> ZN | AB10: 0 | AC10: =CenAVS!F12 -> 1651.93 | AD10: =AB10*AC10 -> 0 | AE10: =IF($Y$48=2,ROUNDUP($M$17*$O$11,0),0) -> 0 | AF10: 0 | AG10: =IF($Y$48=2,ROUNDUP($M$28*$O$22,0),0) -> 0 | AH10: 0 | AL10: =" "&ListAVS!$B$157 -> Objednávka | AN10: 10000 - 19300 | AP10: 22F2800 | AQ10: 22F2810
B11: =ListAVS!$B$75&" [mm]" -> Výška korpusu [mm] | E11: TKH * | G11: KH | I11: =IF(H11=0," ",IF($H11<480," min. 480mm",IF($H11>1200," max. 1 200mm"," ")))&IF(H17>0,IF(H11=0,"● "&ListAVS!$B$128," ")," ") ->  | N11: F25 | O11: =IF($H16<$AB$50,0,IF($H16<=$AC$50,1,0)) -> 0 | P11: F35 | Q11: =IF(AND($P$16>=$AB$55,$P$16<=$AC$55),SUM($O$11:$O$12),0) -> 0 | T11: T558E | U11: =IF($N$48=1, IF(OR($H$10>=1200, $T$17>=12), 3, 2))+IF($N$48=1,IF(OR($H$10=1800, $T$17>=20), 1, 0)) -> 0 | V11: Z553E | W11: =IF($P$48=1, IF(OR($H$10>=1200, $T$17>=12), 3, 2))+IF($P$48=1,IF(OR($H$10=1800, $T$17>=20), 1, 0)) -> 2 | Y11: =CenAVS!A13 -> Sada zdvihačů HF top, na vruty | Z11: =CenAVS!B13 -> 22F2800 | AA11: =CenAVS!C13 -> ZN | AB11: 0 | AC11: =CenAVS!F13 -> 1805.55 | AD11: 0 | AE11: =IF($Y$48=1,ROUNDUP($M$17*$O$12,0),0) -> 0 | AF11: 0 | AG11: =IF($Y$48=1,ROUNDUP($M$28*$O$23,0),0) -> 0 | AH11: 0
B12: =ListAVS!$B$77&" [kg] ** " -> Hmotnost čela včetně úchytky [kg] ** | I12: =IF($T14="ne", " ", IF(AND($H12=0,$H15=0, $H17>0),$N$37," "))&IF(AND($H17>0, $H12>0, $M17>0),$N$41," ") ->  | N12: F28 | O12: =IF($H16<$AB$51,0,IF($H16<=$AC$51,1,0)) -> 0 | P12: F39 | Q12: =IF(AND($P$16>=$AB$56,$P$16<=$AC$56),SUM($O$11:$O$12),0) -> 0 | T12: T5550 | U12: =IF($N$48=2, IF(OR($H$10>=1200, $T$17>=12), 3, 2))+IF($N$48=2,IF(OR($H$10=1800, $T$17>=20), 1, 0)) -> 2 | V12: Z5500 | W12: =IF($P$48=2, IF(OR($H$10>=1200, $T$17>=12), 3, 2))+IF($P$48=2,IF(OR($H$10=1800, $T$17>=20), 1, 0)) -> 0 | Y12: =CenAVS!A14 -> Sada zdvihačů HF top, předmont. eurošrouby | Z12: =CenAVS!B14 -> 22F2810 | AA12: =CenAVS!C14 -> ZN | AB12: 0 | AC12: =CenAVS!F14 -> 1805.55 | AD12: 0 | AE12: =IF($Y$48=2,ROUNDUP($M$17*$O$12,0),0) -> 0 | AF12: 0 | AG12: =IF($Y$48=2,ROUNDUP($M$28*$O$23,0),0) -> 0 | AH12: 0 | AN12: =ListAVS!$B$86&" LF = "&ListAVS!$B$319&" [kg]" -> Ukazatel výkonnosti LF = výška korpusu KH [mm] x hmotnost obou čel včetně úchytky [kg]
B13: =ListAVS!$B$292 -> Výpočet hmotnosti | D13: =ListAVS!$B$82&" TS [mm] " -> Síla dolního čela TS [mm] | I13: =IF(OR(H17=0, $T14="ne")," ",IF(AND(H12=0, H13=0)," ● "&ListAVS!$B$128," ")) ->  | Y13: =CenAVS!A15 -> Sada teleskopů HF top (480–610 mm) | Z13: =CenAVS!B15 -> 22F3200 | AA13: =CenAVS!C15 -> NI | AB13: 0 | AC13: =CenAVS!F15 -> 785.14 | AD13: 0 | AE13: =ROUNDUP($M$17*Q10,0) -> 0 | AF13: 0 | AG13: =ROUNDUP($M$28*Q21,0) -> 0 | AH13: 0
D14: =ListAVS!$B$83&" [kg] " -> Hmotnost úchytky [kg] | I14: =IF(M17=0, " ", IF(AND(H12=0, S9=1, H14=0), " ● "&ListAVS!$B$129," ")) ->  | S14: limit v/š | T14: =IF(AND(220<=H10, H10<=1800, 480<=P16, P16<=1200),"ano","ne") -> ne | Y14: =CenAVS!A16 -> Sada teleskopů HF top (600–910 mm) | Z14: =CenAVS!B16 -> 22F3500 | AA14: =CenAVS!C16 -> NI | AB14: 0 | AC14: =CenAVS!F16 -> 964.4 | AD14: 0 | AE14: =ROUNDUP($M$17*Q11,0) -> 0 | AF14: 0 | AG14: =ROUNDUP($M$28*Q22,0) -> 0 | AH14: 0
D15: =ListAVS!$B$79&" [kg] " -> Vypočtená hmotnost čela [kg] | H15: =$T$81 -> 0 | I15: =IF($M17>0,IF($H15>0,IF($H12=0,$N$41," ")," ")," ")&IF(AND(H17>0, H12=0, Z78=3, $J$4=0), $N$39, " ") ->  | S15: limit LF | T15: =IF(AND(H16>=$AB$50, H16<=$AC$51), "ano", "ne") -> ne | Y15: =CenAVS!A17 -> Sada teleskopů HF top (840–1200 mm) | Z15: =CenAVS!B17 -> 22F3900 | AA15: =CenAVS!C17 -> NI | AB15: 0 | AC15: =CenAVS!F17 -> 1143.64 | AD15: 0 | AE15: =ROUNDUP($M$17*Q12,0) -> 0 | AF15: 0 | AG15: =ROUNDUP($M$28*Q23,0) -> 0 | AH15: 0
B16: =ListAVS!$B$86&" LF " -> Ukazatel výkonnosti LF | H16: =IF(H12>0, H11*H12, H11*H15) -> 0 | I16: =IF(AND(H16>0, H16<$AB$50), $T$44, IF($H16>$AC$51, $N$44, " ")) ->  | O16: výška korpusu | P16: =IF(F11>0,IF(F11>=H11,F11,0),H11) -> 0 | Y16: =CenAVS!A47 -> Sada krytek HF, HS, HL top, světle šedá | Z16: =CenAVS!B47 -> 22.8000 | AA16: =CenAVS!C47 -> HGR | AB16: =SUM(AE16,AG16) -> 0 | AC16: =CenAVS!F47 -> 252.85 | AD16: 0 | AE16: =IF(AND($S$9=1, $T$48=1), SUM($AE$9:$AE$12), 0) -> 0 | AF16: 0 | AG16: =IF(AND($S$20=1, $T$48=1), SUM($AG$9:$AG$12), 0) -> 0 | AH16: 0
B17: =ListAVS!$B$71&" " -> Počet skříněk | M17: =IF($H10*$P16=0,0,IF(SUM($H12,$H15)=0,0,IF($P16>$AC$57,0,IF(P16<$AB$54,0,IF(OR(T14="ne", T15="ne"),0,$H17))))) -> 0 | N17: ← Hlavní údaj | S17: hmot = | T17: =IF(H12>0,H12,H15) -> 0 | U17: =IF(SUM(H12,H15)=0,0,IF(H12>0,1,2)) -> 0 | V17: zadaná / vypočtená | Y17: =CenAVS!A48 -> Sada krytek HF, HS, HL top, tmavě šedá | Z17: =CenAVS!B48 -> 22.8000 | AA17: =CenAVS!C48 -> TGR | AB17: 0 | AC17: =CenAVS!F48 -> 275.94 | AD17: 0 | AE17: =IF(AND($S$9=1, $T$48=2), SUM($AE$9:$AE$12), 0) -> 0 | AF17: 0 | AG17: =IF(AND($S$20=1, $T$48=2), SUM($AG$9:$AG$12), 0) -> 0 | AH17: 0 | AN17: vruty = zdvihače s integrovanou šablonou (bez nutnosti rozměřování)
B18: =IF(H17>0,IF(U17=0," ",IF(U17=1,$N$53,$N$54))," ")&IF(H17>0,IF(U17=0," ",IF(U17=1,$N$55,$N$56))," ") ->  | Y18: =CenAVS!A49 -> Sada krytek HF, HS, HL top, hedvábně bílá | Z18: =CenAVS!B49 -> 22.8000 | AA18: =CenAVS!C49 -> SW | AB18: 0 | AC18: =CenAVS!F49 -> 275.94 | AD18: 0 | AE18: =IF(AND($S$9=1, $T$48=3), SUM($AE$9:$AE$12), 0) -> 0 | AF18: 0 | AG18: =IF(AND($S$20=1, $T$48=3), SUM($AG$9:$AG$12), 0) -> 0 | AH18: 0 | AN18: šrouby = zdvihače s přednotovanými šrouby (nutné předvrtání)
B19: =IF(F11=0," ",IF(F11>1200,"TKH = max. 1200!",IF(F11<480,"TKH = min. 480!",IF(F11<H11,$N$59,IF(H17>0,IF(F11=0," ",IF(AND(F11>0,M17=1), $N$58," "))," "))))) ->  | Y19: =CenAVS!A50 -> Sada krytek pro SERVO-DRIVE, světle šedá | Z19: =CenAVS!B50 -> 23.8000 | AA19: =CenAVS!C50 -> HGR | AB19: 0 | AC19: =CenAVS!F50 -> 2606.76 | AD19: 0 | AE19: =IF(AND($S$9=2, $T$48=1), $AE$45, 0) -> 0 | AF19: 0 | AG19: =IF(AND($S$20=2, $T$48=1), $AG$45, 0) -> 0 | AH19: 0 | AL19: =" "&ListAVS!$B$194 -> Výpočet asymetrických čel
B20: ="▼ "&ListAVS!$B$317 -> ▼ Způsob otvírání | D20: =IF($M$28>0, ListAVS!$B$37&": ", " ") ->  | E20: =IF(SUM($AG$9:$AG$10)>0,25,IF(SUM($AG$11:$AG$12)>0,28," ")) ->  | F20: =ListAVS!$B$64&" B" -> Korpus B | N20: zdvih B | P20: teleskop | S20: 1 | T20: FALSE | V20: - SRVDRV | Y20: =CenAVS!A51 -> Sada krytek pro SERVO-DRIVE, tmavě šedá | Z20: =CenAVS!B51 -> 23.8000 | AA20: =CenAVS!C51 -> TGR | AB20: 0 | AC20: =CenAVS!F51 -> 2709.29 | AD20: 0 | AE20: =IF(AND($S$9=2, $T$48=2), $AE$45, 0) -> 0 | AF20: 0 | AG20: =IF(AND($S$20=2, $T$48=2), $AG$45, 0) -> 0 | AH20: 0
B21: =ListAVS!$B$74&" KB [mm] " -> Šířka korpusu KB [mm] | I21: =IF(H21=0," ",IF($H21<220," min. 220mm",IF($H21>1800," max. 1 800mm"," ")))&IF(H28>0,IF(H21=0,"● "&ListAVS!$B$128," ")," ") ->  | P21: F32 | Q21: =IF(AND($P$27>=$AB$54,$P$27<=$AC$54),SUM($O$22:$O$23),0) -> 0 | T21: Závěs B | V21: Závěs Bs | Y21: =CenAVS!A52 -> Sada krytek pro SERVO-DRIVE,hedvábně bílá | Z21: =CenAVS!B52 -> 23.8000 | AA21: =CenAVS!C52 -> SW | AB21: 0 | AC21: =CenAVS!F52 -> 2709.29 | AD21: 0 | AE21: =IF(AND($S$9=2, $T$48=3), $AE$45, 0) -> 0 | AF21: 0 | AG21: =IF(AND($S$20=2, $T$48=3), $AG$45, 0) -> 0 | AH21: 0
B22: =ListAVS!$B$75&" [mm]" -> Výška korpusu [mm] | E22: TKH * | G22: KH | I22: =IF(H22=0," ",IF($H22<480," min. 480mm",IF($H22>1200," max. 1 200mm"," ")))&IF(H28>0,IF(H22=0,"● "&ListAVS!$B$128," ")," ") ->  | N22: F25 | O22: =IF($H27<$AB$50,0,IF($H27<=$AC$50,1,0)) -> 0 | P22: F35 | Q22: =IF(AND($P$27>=$AB$55,$P$27<=$AC$55),SUM($O$22:$O$23),0) -> 0 | T22: T558E | U22: =IF($N$48=1, IF(OR($H$21>=1200, $T$28>=12), 3, 2))+IF($N$48=1,IF(OR($H$21=1800, $T$28>=20), 1, 0)) -> 0 | V22: Z553E | W22: =IF($P$48=1, IF(OR($H$21>=1200, $T$28>=12), 3, 2))+IF($P$48=1,IF(OR($H$21=1800, $T$28>=20), 1, 0)) -> 2 | Y22: =CenAVS!A18 -> Závěs CLIP top 120° | Z22: =CenAVS!B18 -> 70T5550.TL | AA22: =CenAVS!C18 -> NI | AB22: 0 | AC22: =CenAVS!F18 -> 56.56 | AD22: 0 | AE22: =$U$12*$M$17 -> 0 | AF22: 0 | AG22: =$U$23*$M$28 -> 0 | AH22: 0
B23: =ListAVS!$B$77&" [kg] ** " -> Hmotnost čela včetně úchytky [kg] ** | I23: =IF($H28=0," ",IF(SUM($H23,$H26)=0,$N$37," "))&IF($H28>0,IF($H23>0,$N$41," ")," ") ->  | N23: F28 | O23: =IF($H27<$AB$51,0,IF($H27<=$AC$51,1,IF($H27>$AB$52,1.5,0))) -> 0 | P23: F39 | Q23: =IF(AND($P$27>=$AB$56,$P$27<=$AC$56),SUM($O$22:$O$23),0) -> 0 | T23: T5550 | U23: =IF($N$48=2, IF(OR($H$21>=1200, $T$28>=12), 3, 2))+IF($N$48=2,IF(OR($H$21=1800, $T$28>=20), 1, 0)) -> 2 | V23: Z5500 | W23: =IF($P$48=2, IF(OR($H$21>=1200, $T$28>=12), 3, 2))+IF($P$48=2,IF(OR($H$21=1800, $T$28>=20), 1, 0)) -> 0 | Y23: =CenAVS!A19 -> Závěs CLIP top 120° EXPANDO | Z23: =CenAVS!B19 -> 70T558E | AA23: =CenAVS!C19 -> NI | AB23: 0 | AC23: =CenAVS!F19 -> 53.42 | AD23: 0 | AE23: =$U$11*$M$17 -> 0 | AF23: 0 | AG23: =$U$22*$M$28 -> 0 | AH23: 0
B24: =ListAVS!$B$292 -> Výpočet hmotnosti | D24: =ListAVS!$B$82&" TS [mm] " -> Síla dolního čela TS [mm] | I24: =IF(H28=0," ",IF(AND(H23=0, H24=0)," ● "&ListAVS!$B$128," ")) ->  | Y24: =CenAVS!A20 -> Středový závěs CLIP top | Z24: =CenAVS!B20 -> 78Z5500T | AA24: =CenAVS!C20 -> NI | AB24: 0 | AC24: =CenAVS!F20 -> 92.71 | AD24: 0 | AE24: =$M$17*$W$12 -> 0 | AF24: 0 | AG24: =$M$28*$W$23 -> 0 | AH24: 0
D25: =ListAVS!$B$83&" [kg] " -> Hmotnost úchytky [kg] | I25: =IF(M28=0, " ", IF(AND(H23=0, S20=1, H25=0), " ● "&ListAVS!$B$129," ")) ->  | S25: limit v/š | T25: =IF(AND(220<=H21, H21<=1800, 480<=P27, P27<=1200),"ano","ne") -> ne | Y25: =CenAVS!A21 -> Středový závěs CLIP top EXPANDO | Z25: =CenAVS!B21 -> 78Z553ET | AA25: =CenAVS!C21 -> NI | AB25: 0 | AC25: =CenAVS!F21 -> 95.69 | AD25: 0 | AE25: =$M$17*$W$11 -> 0 | AF25: 0 | AG25: =$M$28*$W$22 -> 0 | AH25: 0
D26: =ListAVS!$B$79&" [kg] " -> Vypočtená hmotnost čela [kg] | H26: =$T$90 -> 0 | I26: =IF($M28>0,IF($H26>0,IF($H23=0,$N$41," ")," ")," ")&IF(AND(H28>0, H23=0, Z89=3, $J$4=0), $N$39, " ") ->  | S26: limit LF | T26: =IF(AND(H27>=$AB$50, H27<=$AC$51), "ano", "ne") -> ne | Y26: =CenAVS!A22 -> Závěs CLIP top pro alurámečky | Z26: =CenAVS!B22 -> 72T550A.TL | AA26: =CenAVS!C22 -> NI | AC26: =CenAVS!F22 -> 77.18 | AD26: 0 | AF26: 0 | AH26: 0
B27: =ListAVS!$B$86&" LF " -> Ukazatel výkonnosti LF | H27: =IF(H22<1041,IF(H22>479,IF(H23>0,H22*H23,H22*H26),0),0) -> 0 | I27: =IF(AND(H27>0, H27<$AB$50), $T$44, IF($H27>$AC$51, $N$44, " ")) ->  | O27: výška korpusu | P27: =IF(F22>0,IF(F22>=H22,F22,0),H22) -> 0 | Y27: =CenAVS!A23 -> Střed. závěs CLIP top pro alurámečky | Z27: =CenAVS!B23 -> 78Z550AT | AA27: =CenAVS!C23 -> NI | AC27: =CenAVS!F23 -> 101.63 | AD27: 0 | AF27: 0 | AH27: 0
B28: =ListAVS!$B$71&" " -> Počet skříněk | M28: =IF($H21*$P27=0,0,IF(SUM($H23,$H26)=0,0,IF($P27>$AC$57,0,IF(P27<$AB$54,0,IF(OR(T25="ne", T26="ne"),0,$H28))))) -> 0 | N28: ← Hlavní údaj | S28: hmot = | T28: =IF(H23>0,H23,H26) -> 0 | U28: =IF(SUM(H23,H26)=0,0,IF(H23>0,1,2)) -> 0 | V28: zadaná / vypočtená | Y28: =CenAVS!A24 -> Adaptér CLIP k teleskopům P | Z28: =CenAVS!B24 -> 175H5B00 R | AA28: =CenAVS!C24 -> NI | AC28: =CenAVS!F24 -> 90.34 | AD28: 0 | AF28: 0 | AH28: 0
B29: =IF(H28>0,IF(U28=0," ",IF(U28=1,$N$53,$N$54))," ")&IF(H28>0,IF(U28=0," ",IF(U28=1,$N$55,$N$56))," ") ->  | Y29: =CenAVS!A25 -> Adaptér CLIP k teleskopům L | Z29: =CenAVS!B25 -> 175H5B00 L | AA29: =CenAVS!C25 -> NI | AC29: =CenAVS!F25 -> 90.34 | AD29: 0 | AF29: 0 | AH29: 0
B30: =IF(F22=0," ",IF(F22>1200,"TKH = max. 1200!",IF(F22<480,"TKH = min. 480!",IF(F22<H22,$N$59,IF(H28>0,IF(F22=0," ",IF(AND(F22>0,M28=1), $N$58," "))," "))))) ->  | Y30: =CenAVS!A26 -> Adaptér CLIP ke středovým závěsům | Z30: =CenAVS!B26 -> 175H5A00 | AA30: =CenAVS!C26 -> NI | AC30: =CenAVS!F26 -> 90.34 | AD30: 0 | AF30: 0 | AH30: 0
B31: =IF(OR(AND($S$9=2, $M$17>0), AND($S$20=2, $M$28>0)), ListAVS!$B$175, " ") ->  | S31: =IF($T$31=FALSE,2,1) -> 1 | T31: TRUE | V31: - Zdroj
Y33: =CenAVS!A27 -> 0 | Z33: =CenAVS!B27 -> 0 | AA33: =CenAVS!C27 -> 0 | AC33: =CenAVS!F27 -> 0 | AD33: 0 | AF33: 0 | AH33: 0
AD34: 0 | AF34: 0 | AH34: 0
C35: =IF($H16>25900," ",IF($H16>17250,$N$46,IF($H27>25900," ",IF($H27>17250,$N$46," ")))) ->  | N35: =ListAVS!B176 -> Cena bez napájecího zdroje! | AD35: 0 | AF35: 0 | AH35: 0
Y36: =CenAVS!A162 -> CLIP top montážní podložka, excentr, 0 mm | Z36: =CenAVS!B162 -> 173H7100 | AA36: =CenAVS!C162 -> NI | AB36: =SUM(AE36,AG36) -> 0 | AC36: =CenAVS!F162 -> 17.84 | AD36: 0 | AE36: =SUM($AE$24:$AE$25) -> 0 | AF36: 0 | AG36: =SUM($AG$24:$AG$25) -> 0 | AH36: 0
C37: ="* "&ListAVS!$B$183 -> * Pouze pro asymetrická čela: zadejte teoretickou výšku TKH. | N37: =" "&ListAVS!$B$115 -> Zadejte hmotnost nebo vyplňte všechny buňky | Y37: =CenAVS!A163 -> CLIP top mont. podložka, excentr, EXPANDO, 0 mm | Z37: =CenAVS!B163 -> 174H7100E | AA37: =CenAVS!C163 -> NI | AC37: =CenAVS!F163 -> 19.39 | AD37: 0 | AF37: 0 | AH37: 0
C38: =" ( "&ListAVS!$B$184&")" -> ( TKH = dvojnásobná výška horního čela včetně mezer) | AF38: 0 | AH38: 0
C39: =" "&ListAVS!$B$327&" '"&ListAVS!$B$194&"' " -> Pro výpočet TKH použijte 'Výpočet asymetrických čel' | N39: =" "&ListAVS!$B$117 -> Vyplňte nahoře objemovou hmotnost
C41: ="** "&ListAVS!$B$186 -> ** Pokud znáte hmotnost a nechcete využít výpočtu hmotnosti | N41: ="◄ "&ListAVS!$B$111 -> ◄ hodnota bude použita pro výpočet LF
C42: ="*** "&ListAVS!$B$403 -> *** Vyberte typ alurámečku! | N42: =" * "&ListAVS!$B$127 -> * Doplňte hodnoty | Y42: =CenAVS!A166 -> CLIP top přímá mont. podložka, ocel, 0 mm | Z42: =CenAVS!B166 -> 175H3100 | AA42: =CenAVS!C166 -> NI | AB42: =SUM(AE42,AG42) -> 0 | AC42: =CenAVS!F166 -> 16.98 | AD42: 0 | AE42: =IF($R$48=2, SUM($U$11, $U$12, $W$12, $Q$10*2, $Q$11*2, $Q$12*2)*$M$17, 0) -> 0 | AF42: =$AC42*AE42 -> 0 | AG42: =IF($R$48=2, SUM($U$22, $U$23, $W$23, $Q$21*2, $Q$22*2, $Q$23*2)*$M$28, 0) -> 0 | AH42: =$AC42*AG42 -> 0
C43: =" "&ListAVS!$B$404 -> Více informací k výběru alurámečků v Nápovědě | Y43: =CenAVS!A167 -> CLIP top přímá mont. podložka, ocel, EXP, 0 mm | Z43: =CenAVS!B167 -> 177H3100E | AA43: =CenAVS!C167 -> NI | AB43: =SUM(AE43,AG43) -> 0 | AC43: =CenAVS!F167 -> 17.07 | AD43: 0 | AE43: =IF($R$48=1, SUM($U$11, $U$12, $W$12, $Q$10*2, $Q$11*2, $Q$12*2)*$M$17, 0) -> 0 | AF43: =$AC43*AE45 -> 0 | AG43: =IF($R$48=1, SUM($U$22, $U$23, $W$23, $Q$21*2, $Q$22*2, $Q$23*2)*$M$28, 0) -> 0 | AH43: =$AC43*AG43 -> 0
N44: =" max. 19.300! "&ListAVS!$B$121 -> max. 19.300! Upravte hmotnost nebo výšku | T44: =" min. "&$AB$50&"! "&ListAVS!$B$121 -> min. 2700! Upravte hmotnost nebo výšku | Y44: =CenAVS!A169 -> 0 | Z44: =CenAVS!B169 -> 0 | AA44: =CenAVS!C169 -> 0 | AC44: =CenAVS!F169 -> 0 | AD44: 0 | AF44: =$AC44*AE44 -> 0 | AH44: =$AC44*AG44 -> 0
N45: =" "&ListAVS!$B$119&"!" -> Přídavný třetí zdvihač! | Q45: =" "&ListAVS!$B$125&"!" -> Druhá pohonná jednotka! | U45: =" "&ListAVS!B126 -> Použijte pouze jeden zdvihač | Y45: =CenAVS!A171 -> SERVO-DRIVE jednotka (sada) | Z45: =CenAVS!B171 -> 23.A000 | AA45: =CenAVS!C171 -> R7037 | AB45: =SUM(AE45,AG45) -> 0 | AC45: =CenAVS!F171 -> 8297.32 | AD45: 0 | AE45: =IF($S$9=1, 0, $M$17)+IF(AND($S$9=2, $H$16>$AB$52), $M$17, 0) -> 0 | AF45: =$AC45*AE45 -> 0 | AG45: =IF($S$20=1, 0, $M$28)+IF(AND($S$20=2, $H$27>$AB$52), $M$28, 0) -> 0 | AH45: =$AC45*AG45 -> 0
N46: =ListAVS!$B$181 -> Přídavný třetí zdvihač může být použit pouze s plným spodním čelem!
AC47: =ListAVS!$B$61&" " -> Cena celkem bez DPH | AD47: =SUM(AD9:AD45) -> 0 | AF47: =SUM(AF9:AF46) -> 0 | AH47: =SUM(AH9:AH46) -> 0
N48: 2 | O48: 2 | P48: =HF!$N$33 -> 1 | Q48: 2 | R48: =HF!$P$33 -> 1 | T48: =MenuAVS!$P$28 -> 1 | Y48: =HF!$R$33 -> 1 | Z48: =Param!M10 -> Parametry HF
N49: záv. | O49: alu | P49: střed. | Q49: alu | R49: podl. | T49: kryt. | W49: Provedení: | Y49: montáž: | Z49: =Param!M11 -> Zdvihač | AA49: =Param!N11 -> ks | AB49: =Param!O11 -> min | AC49: =Param!P11 -> max | AD49: =Param!Q11 -> alu max.
N50: =ListAVS!$B$133 -> Expando | P50: =ListAVS!$B$133 -> Expando | R50: =ListAVS!$B$133 -> Expando | T50: =ListAVS!$B$145 -> Světle šedá (HGR) | W50: Standard | Y50: vruty | Z50: =Param!M12 -> 22F2500 | AA50: =Param!N12 -> 1 | AB50: =Param!O12 -> 2700 | AC50: =Param!P12 -> 11500
N51: =ListAVS!$B$134 -> na vruty | P51: =ListAVS!$B$134 -> na vruty | R51: =ListAVS!$B$134 -> na vruty | T51: =ListAVS!$B$146 -> Tmavě šedá (TGR) | W51: SERVO-DRIVE | Y51: eurošrouby | Z51: =Param!M13 -> 22F2800 | AA51: =Param!N13 -> 1 | AB51: =Param!O13 -> 11500 | AC51: =Param!P13 -> 19300 | AD51: =Param!Q13 -> 19300
T52: =ListAVS!$B$147 -> Hedvábně bílá (SW) | Z52: =Param!M14 -> 22F2800 | AA52: =Param!N14 -> 1.5 | AB52: =Param!O14 -> 19300 | AC52: =Param!P14 -> 28950 | AD52: =Param!Q14 -> 0
N53: =ListAVS!B187 -> Pro určení typu zdvihače bude použita zadaná hmotnost | Z53: =Param!M17 -> Teleskop | AB53: =Param!O17 -> min | AC53: =Param!P17 -> max | AD53: =Param!Q17 -> 0
N54: =ListAVS!B188 -> Pro určení typu zdvihače bude použita vypočtená hmotnost | Z54: =Param!M18 -> 20F3200 | AA54: =Param!N18 -> 0 | AB54: =Param!O18 -> 480 | AC54: =Param!P18 -> 605 | AD54: =Param!Q18 -> 0
N55: =". "&ListAVS!$B$189 -> . Chcete-li použít vypočtenou hmotnost, smažte zadanou hodnotu | Z55: =Param!M19 -> 20F3500 | AA55: =Param!N19 -> 0 | AB55: =Param!O19 -> 605 | AC55: =Param!P19 -> 890 | AD55: =Param!Q19 -> 0
N56: =". "&ListAVS!$B$190 -> . Chcete-li použít zadanou hmotnost, zadejte ji do políčka | Z56: =Param!M20 -> 20F3900 | AA56: =Param!N20 -> 0 | AB56: =Param!O20 -> 890 | AC56: =Param!P20 -> 1200 | AD56: =Param!Q20 -> 0
N57: =ListAVS!B191 -> 0 | AB57: =Param!O21 -> max. | AC57: =Param!P21 -> 1200 | AD57: =Param!Q21 -> 0
N58: =ListAVS!B192 -> Pro výběr teleskopů bude použita teoretická výška TKH
N59: =ListAVS!B193 -> Teoretická výška TKH nesmí být menší než KH
N70: =ListAVS!$B$73 -> Výpočet hmotnosti čel
O71: =ListAVS!$B$35&" " -> horní čelo | T71: =J4 -> 0 | U71: =IF(AF77=3,IF(T71=0,AE74," "),IF(T71>0,AE75," ")) ->  | Y71: =IF($AF$77=1,$AF$94,IF($AF$77=2,$AF$95,$AF$96&" - "&$T$71&"mm")) -> Alurámečky s 4mm sklem | AD71: =MenuAVS!$Q$81 -> 2500
O72: =ListAVS!$B$36&" " -> dolní čelo | T72: =J5 -> 0 | U72: =IF(Z78=3,IF(T72=0,Y74," "),IF(T72>0,Y75," ")) ->  | Y72: =IF($Z$78=1,$Z$79,IF($Z$78=2,$Z$80,$Z$81&" "&$Y$81&"kg/m3"))&" A~"&$T$79&"/ B~"&$T$88&"mm" -> MDF (760 kg/m3) A~0/ B~0mm
P73: =IF($Z$78<>3,$Y$73," ")&" " -> Změnit hodnoty můžete v Úvodu plánování | Y73: =" "&ListAVS!$B$410 -> Změnit hodnoty můžete v Úvodu plánování
Y74: =" "&ListAVS!$B$244&" [kg/m3]" -> Zadejte objemovou hmotnost [kg/m3] | AE74: =" "&ListAVS!$B$245&" [mm]" -> Zadejte sílu skla [mm]
Y75: =" "&ListAVS!$B$240&" '"&ListAVS!$B$92&"'" -> Hodnota platí jen pro volbu 'Jiné - volitelná hustota' | AE75: =" "&ListAVS!$B$240&" '"&ListAVS!$B$95&"'" -> Hodnota platí jen pro volbu 'Alurámečky s jiným sklem'
R76: =D9 ->  | AE76: váha spoj. | AF76: tl. skla | AG76: typ alu
N77: =ListAVS!$B$74&" KB [mm] " -> Šířka korpusu KB [mm] | T77: =H10 -> 0 | Y77: =T77*T78*T79/2 -> 0 | AD77: =IF($AG$77=1,$X$94,$X$95) -> 0.62 | AE77: =$X$96 -> 0.61 | AF77: 1 | AG77: =$O$4 -> 1
N78: =ListAVS!$B$75&" KH [mm] " -> Výška korpusu KH [mm] | T78: =H11 -> 0 | Y78: =Y77/1000000000 -> 0 | Z78: =AF77 -> 1 | AD78: váha alu | AE78: =SUM(T77*2,(T78/2-90)*2)*AD77/1000 -> -0.1116 | AF78: A plocha B
N79: =ListAVS!$B$80&" TS [mm] " -> Síla čela TS [mm] | T79: =H13 -> 0 | U79: =IF(SUM(T77,T78)=0," ",IF(T79=0," ● "&ListAVS!$B$128," ")) ->  | Y79: =MenuAVS!$C$31 -> 760 | Z79: =ListAVS!$B$90&" ("&Y79&" kg/m3)" -> MDF (760 kg/m3) | AD79: =$AD$71*4/1000 -> 10 | AE79: =IF($AG$77=1,AF79*AD79,AG79*AD79) -> 0.064 | AF79: =SUM(($T$77-80)*($T$78/2-80)/1000000) -> 0.0064 | AG79: =SUM(($T$77-6)*($T$78/2-6)/1000000) -> 3.6e-05 | AH79: 4mm
N80: =ListAVS!$B$83&" [kg] " -> Hmotnost úchytky [kg] | T80: =H14 -> 0 | U80: =IF(SUM(T77,T78)=0," ",IF(T80=0," ● "&ListAVS!$B$129," ")) ->  | Y80: =MenuAVS!$C$32 -> 680 | Z80: =ListAVS!$B$91&" ("&Y80&" kg/m3)" -> Dřevotříska (680 kg/m3) | AD80: =$AD$71*5/1000 -> 12.5 | AE80: =IF($AG$77=1,AF80*AD80,AG80*AD80) -> 0.08 | AF80: =SUM(($T$77-80)*($T$78/2-80)/1000000) -> 0.0064 | AG80: =SUM(($T$77-6)*($T$78/2-6)/1000000) -> 3.6e-05 | AH80: 5mm
N81: =ListAVS!$B$79&" [kg] " -> Vypočtená hmotnost čela [kg] | T81: =IF(X81*AD82<>0,SUM(X81,AD82,T80),0) -> 0 | X81: =IF(T77*T78*T79=0,0,IF(Z78=1,Y78*Y79,IF(Z78=2,Y78*Y80,Y78*Y81))) -> 0 | Y81: =$T$72 -> 0 | Z81: =ListAVS!$B$92 -> Jiné - volitelná hustota | AD81: =$AD$71*$T$71/1000 -> 0 | AE81: =IF($AG$77=1,AF81*AD81,AG81*AD81) -> 0 | AF81: =SUM(($T$77-80)*($T$78/2-80)/1000000) -> 0.0064 | AG81: =SUM(($T$77-6)*($T$78/2-6)/1000000) -> 3.6e-05 | AH81: jiné
O82: =IF(T81>0,IF(T80=0,$Z$94," ")," ") ->  | AD82: =IF(OR(AND(AF77=3, $T$71=0), T77*T78=0), 0, SUM(IF(AF77=1,AE79,IF(AF77=2,AE80,AE81)),AE78,AE77)) -> 0
R85: =D20 ->  | AE85: váha spoj. | AF85: tl. skla | AG85: typ alu
N86: =ListAVS!$B$74&" KB [mm] " -> Šířka korpusu KB [mm] | T86: =H21 -> 0 | Y86: =T86*T87*T88 -> 0 | AD86: =IF($AG$77=1,$X$94,$X$95) -> 0.62 | AE86: =$X$96 -> 0.61 | AF86: =$AF$77 -> 1 | AG86: =$AG$77 -> 1
N87: =ListAVS!$B$75&" KH [mm] " -> Výška korpusu KH [mm] | T87: =H22 -> 0 | Y87: =Y86/1000000000/2 -> 0 | Z87: =Z78 -> 1 | AD87: váha alu | AE87: =SUM(T86*2,(T87/2-90)*2)*AD86/1000 -> -0.1116 | AF87: A plocha B
N88: =ListAVS!$B$80&" TS [mm] " -> Síla čela TS [mm] | T88: =H24 -> 0 | U88: =IF(SUM(T86,T87)=0," ",IF(T88=0," ● "&ListAVS!$B$128," ")) ->  | Y88: =$Y$79 -> 760 | Z88: =$Z$79 -> MDF (760 kg/m3) | AD88: =AD79 -> 10 | AE88: =IF($AG$77=1,AF88*AD88,AG88*AD88) -> 0.064 | AF88: =SUM(($T$86-80)*($T$87/2-80)/1000000) -> 0.0064 | AG88: =SUM(($T$86-6)*($T$87/2-6)/1000000) -> 3.6e-05 | AH88: 4mm
N89: =ListAVS!$B$83&" [kg] " -> Hmotnost úchytky [kg] | T89: =H25 -> 0 | U89: =IF(SUM(T86,T87)=0," ",IF(T89=0," ● "&ListAVS!$B$129," ")) ->  | Y89: =$Y$80 -> 680 | Z89: =$Z$80 -> Dřevotříska (680 kg/m3) | AD89: =AD80 -> 12.5 | AE89: =IF($AG$77=1,AF89*AD89,AG89*AD89) -> 0.08 | AF89: =SUM(($T$86-80)*($T$87/2-80)/1000000) -> 0.0064 | AG89: =SUM(($T$86-6)*($T$87/2-6)/1000000) -> 3.6e-05 | AH89: 5mm
N90: =ListAVS!$B$79&" [kg] " -> Vypočtená hmotnost čela [kg] | T90: =IF(X90*AD91<>0,SUM(X90,AD91,T89),0) -> 0 | X90: =IF(T86*T87*T88=0,0,IF(Z87=1,Y87*Y88,IF(Z87=2,Y87*Y89,Y87*Y90))) -> 0 | Y90: =$Y$81 -> 0 | Z90: =$Z$81 -> Jiné - volitelná hustota | AD90: =AD81 -> 0 | AE90: =IF($AG$77=1,AF90*AD90,AG90*AD90) -> 0 | AF90: =SUM(($T$86-80)*($T$87/2-80)/1000000) -> 0.0064 | AG90: =SUM(($T$86-6)*($T$87/2-6)/1000000) -> 3.6e-05 | AH90: jiné
O91: =IF(T90>0,IF(T89=0,$Z$94," ")," ") ->  | AD91: =IF(OR(AND(AF86=3, $T$71=0), T86*T87=0), 0, SUM(IF(AF86=1,AE88,IF(AF86=2,AE89,AE90)),AE87,AE86)) -> 0
W94: =ListAVS!$B$422&" " -> s vloženým sklem | X94: =MenuAVS!$I$86 -> 0.62 | Z94: =ListAVS!$B$102&"!" -> Není započtena hmotnost úchytky! | AF94: =ListAVS!$B$93 -> Alurámečky s 4mm sklem
W95: =ListAVS!$B$423&" " -> s naloženým nebo nalepeným sklem | X95: =MenuAVS!$I$87 -> 0.63 | AF95: =ListAVS!$B$94 -> Alurámečky s 5mm sklem
W96: =ListAVS!$B$405&" [kg/set] * " -> Hmotnost spojovacího materiálu [kg/set] * | X96: =MenuAVS!$I$88 -> 0.61 | AF96: =ListAVS!$B$95 -> Alurámečky s jiným sklem
B100: =ListAVS!$B$194 -> Výpočet asymetrických čel
B102: =" "&ListAVS!$B$197 -> Parametry korpusu
B103: =ListAVS!$B$75&" KH [mm] " -> Výška korpusu KH [mm] | K103: =IF(I103<480, " min. 480", IF(I103>1200, " max. 1200", " ")) -> min. 480 | N103: <=519 | O103: >=520
B104: =ListAVS!$B$200&" F1 [mm] " -> Mezera nahoře F1 [mm]
B105: =ListAVS!$B$201&" F2 [mm] " -> Mezera mezi čely F2 [mm] | K105: =IF($I$103=0," ",IF($I$105<1.5," min. 1,5 mm!"," ")) -> 
B106: =ListAVS!$B$202&" F3 [mm] " -> Mezera dole F3 [mm] | M106: Z | N106: 170 | O106: 189
B107: =ListAVS!$B$203&" [mm] " -> Síla dna korpusu [mm] | M107: H | N107: 93 | O107: 116
B109: =" "&ListAVS!$B$205 -> Výsledky plánování | N109: FHo | O109: FHo
G110: =ListAVS!$B$206&" [mm] " -> Možné výšky čel [mm] | N110: min ↓↓ | O110: min ↓↓
B111: =ListAVS!$B$207 -> Čelo nahoře (FHo) v rozmezí | G111: min. | H111: =IF(AND($I$103>=480, $I$103<=519), $N$111, IF(AND($I$103>=520, $I$103<=1200), $O$111, $S$115)) -> nelze | I111: max. | J111: =IF(AND($I$103>=480, $I$103<=519), $N$115, IF(AND($I$103>=520, $I$103<=1200), $O$115, $S$115)) -> nelze | N111: =SUM(I103, -I104, -I105, -I106, -N120) -> 0 | O111: =SUM(I103, -I104, -I105, -I106, -O120) -> 0
B112: =ListAVS!$B$208 -> Čelo dole (FHu) v rozmezí | G112: min. | H112: =IF(AND($I$103>=480, $I$103<=519), $N$118, IF(AND($I$103>=520, $I$103<=1200), $O$118, $S$115)) -> nelze | I112: max. | J112: =IF(AND($I$103>=480, $I$103<=519), $N$120, IF(AND($I$103>=520, $I$103<=1200), $O$120, $S$115)) -> nelze | N112: max ↓↓ | O112: max ↓↓
N113: =ROUNDUP(SUM(519, -$I$104, -$I$105, -$I$106)/2, 0) -> 260 | O113: =ROUNDUP(SUM(1200, -$I$104, -$I$105, -$I$106)/2, 0) -> 600 | P113: absolutně
B114: =ListAVS!$B$214&" FHo [mm] " -> Výška čela nahoře FHo [mm] | K114: =IF($I$103=0," ",IF($I$114>$J$111,V114,IF($I$114<$H$111,$S$114," "))) ->  | N114: =SUM(I103, -I104, -I105, -I106, -N118) -> -219 | O114: =SUM(I103, -I104, -I105, -I106, -O118) -> -238 | P114: vypočtená | S114: =" min. "&TEXT($H$111,"#")&" mm!" -> min. nelze mm! | V114: =" max. "&TEXT($J$111,"#")&" mm!" -> max. nelze mm!
B115: =ListAVS!$B$215&" FHu [mm] " -> Výška čela dole FHu [mm] | I115: =IF($I$114<$H$111,$S$115,IF($I$114>$J$111,$S$115,+$I$103-$I$104-$I$105-$I$106-$I$114)) -> nelze | N115: =IF($N$114>$N$113, $N$113, $N$114) -> -219 | O115: =IF($O$114>$O$113, $O$113, $O$114) -> -238 | P115: výsledná | S115: =ListAVS!B211 -> nelze
B116: =ListAVS!$B$216&" H [mm] " -> Pozice zdvihače H [mm] | I116: =IF(AND($I$103>=480, $I$103<520), $N$107, IF(AND($I$103>=520, $I$103<=1200), $O$107, $S$115)) -> nelze | N116: FHu | O116: FHu
B117: =ListAVS!$B$217&" Z [mm] " -> Pozice mont. podložky pro teleskopy Z [mm] | I117: =IF(AND($I$103>=480, $I$103<520), $N$106, IF(AND($I$103>=520, $I$103<=1200), $O$106, $S$115)) -> nelze | N117: min ↓↓ | O117: min ↓↓
B118: =ListAVS!$B$218&" TKH [mm] * " -> Teoretická výška korpusu TKH [mm] * | I118: =IF($I$115=$S$115, $S$115, IF($Q$118>=480, IF($Q$118<=1202, $Q$118, $S$115)," ")) -> nelze | N118: =SUM(N106, 32, 17, $I$107, -$I$106) -> 219 | O118: =SUM(O106, 32, 17, $I$107, -$I$106) -> 238 | P118: TKH | Q118: =ROUND(SUM($I$114*2+$I$104+$I$105+$I$106), -1) -> 0
N119: max ↓↓ | O119: max ↓↓
B120: * | C120: =ListAVS!$B$220 -> Tuto výšku zadejte do tabulky pro plánování výklopů | N120: =ROUNDDOWN(SUM(I103, -I104, -I105, -I106)/2, 0) -> 0 | O120: =ROUNDDOWN(SUM(I103, -I104, -I105, -I106)/2, 0) -> 0
I125: =ListAVS!$B$167 -> Zpět
B139: AVENTOS HF
B141: =ListAVS!$B$302 -> Potřebný zdvihač se určí pomocí ukazatele výkonnosti.
B142: =ListAVS!$B$303 -> Ukazatel výkonnosti závisí na hmotnosti dolního i horního čílka, a rovněž na výšce korpusu.
D145: =ListAVS!$B$86&" = " -> Ukazatel výkonnosti = | E145: =ListAVS!$B$319&" [kg]" -> výška korpusu KH [mm] x hmotnost obou čel včetně úchytky [kg]
B147: =ListAVS!$B$307 -> Je-li ukazatel výkonnosti větší než 19300, přidá se třetí zdvihač.
B148: =ListAVS!$B$309 -> Pokud je zvolen SERVO-DRIVE, přidá se rovněž druhá pohonná jednotka.
B149: =ListAVS!$B$181 -> Přídavný třetí zdvihač může být použit pouze s plným spodním čelem!
B151: =ListAVS!$B$311 -> Pokud znáte hmotnost čela, můžete ji zadat, jinak použijte "Výpočet hmotnosti".
B152: =ListAVS!$B$312 -> V tabulce má přednost zadaná hodnota. Chcete-li použít vypočtenou hmotnost, smažte zadanou hodnotu.
B154: =ListAVS!$B$322&". "&ListAVS!$B$323&"." -> Délka teleskopů závisí na výšce korpusu KH. U asymetrických čel se použije teoretická výška TKH.
B156: =" "&ListAVS!$B$162&":" -> Asymetrická čela:
B157: =" "&ListAVS!$B$320 -> Teoretická výška korpusu (TKH) = výška horního čela (FHo) x 2 (včetně mezer)
B159: =ListAVS!$B$315 -> U asymetrických čel musí být větší čelo nahoře!
B161: =ListAVS!$B$325 -> Pokud zadáte hodnotu TKH, použije se pro určení délky teleskopů
B162: =ListAVS!$B$326 -> Nemáte-li asymetrická čela, nechte políčko prázdné.
B163: =ListAVS!$B$327&" ' "&ListAVS!$B$194&"' " -> Pro výpočet TKH použijte ' Výpočet asymetrických čel'
B166: =ListAVS!$B$305 -> Chcete-li změnit barvu krytek, přejděte na "Úvod plánování"
B168: =ListAVS!$B$411 -> Věnujte pozornost výběru alurámečků.
B169: =ListAVS!$B$412 -> Vyberte, který typ lépe odpovídá tvaru použitého alurámečku.
B170: =ListAVS!$B$413 -> Způsob osazení skla do rámečku výrazně ovlivňuje plochu skla a tím i hmotnost!
C172: =" "&ListAVS!$B$422&" " -> s vloženým sklem
C174: =" "&ListAVS!$B$423&" " -> s naloženým nebo nalepeným sklem
L176: =ListAVS!$B$167 -> Zpět

Sheet HFna
B2: AVENTOS HF top | O2: rámeček | S2: 3 | AL2: =ListAVS!$B$152 -> Jdi na
B4: =ListAVS!$B$21&" ***" -> Úzké alurámečky *** | F4: =ListAVS!$B$179&" " -> Provedení čel | K4: =U71 ->  | O4: 1 | S4: =" "&ListAVS!$B$41&" A " -> Cena za korpus A | X4: výpočet | AL4: =" "&ListAVS!$B$153 -> Úvod plánování
E5: =IF($AF$77<>3,$Y$76," ")&" " -> Změnit hodnoty můžete v Úvodu plánování | O5: A = 1 | S5: =" "&ListAVS!$B$41&" B " -> Cena za korpus B | AL5: =" "&ListAVS!$B$154 -> Nápověda
O6: B = 2 | S6: =" "&ListAVS!$B$61 -> Cena celkem bez DPH
B7: =ListAVS!$B$51&": " -> Cena kování: | G7: =IF(S2=1,$AF$47,IF($S$2=2,$AH$47,IF($S$2=3,$AD$47,0))) -> 0 | Y7: =$B$2 -> AVENTOS HF top | AL7: =" "&ListAVS!$B$159 -> Doplňky
H8: =IF(AND(OR($S$9=2, $S$20=2), $AD$47>0), $N$35, " ") ->  | Y8: =ListAVS!B52 -> Název | Z8: =ListAVS!$B$53 -> Číslo artiklu | AA8: =ListAVS!B54 -> Barva | AB8: =ListAVS!B56 -> Ks | AC8: =ListAVS!B58 -> Jednotková cena | AD8: =ListAVS!B59 -> Celkem | AE8: A | AF8: Cena | AG8: B | AH8: Cena | AN8: =" "&ListAVS!$B$86&" LF " -> Ukazatel výkonnosti LF | AP8: Zdvihací mechanizmus vruty | AQ8: Zdvihací mechanizmus šrouby
B9: ="▼ "&ListAVS!$B$317 -> ▼ Způsob otvírání | D9: =IF($M$17>0, ListAVS!$B$37&": ", " ") ->  | E9: =IF(SUM($AE$9:$AE$10)>0,25,IF(SUM($AE$11:$AE$12)>0,28," ")) ->  | F9: =ListAVS!$B$64&" A" -> Korpus A | N9: zdvih A | P9: teleskop | S9: 1 | T9: FALSE | V9: - SRVDRV | Y9: =CenAVS!A11 -> Sada zdvihačů HF top, na vruty | Z9: =CenAVS!B11 -> 22F2500 | AA9: =CenAVS!C11 -> ZN | AB9: =SUM(AE9,AG9) -> 0 | AC9: =CenAVS!F11 -> 1651.93 | AD9: =AB9*AC9 -> 0 | AE9: =IF($Y$48=1,ROUNDUP($M$17*$O$11,0),0) -> 0 | AF9: =$AC9*AE9 -> 0 | AG9: =IF($Y$48=1,ROUNDUP($M$28*$O$22,0),0) -> 0 | AH9: =$AC9*AG9 -> 0 | AL9: =" "&ListAVS!$B$156 -> Přehled korpusů | AN9: 2700 - 13500 | AP9: 22F2500 | AQ9: 22F2510
B10: =ListAVS!$B$74&" KB [mm] " -> Šířka korpusu KB [mm] | I10: =IF(H10=0," ",IF($H10<220," min. 220mm"," "))&IF(H17>0,IF(H10=0,"● "&ListAVS!$B$128," ")," ") ->  | P10: F32 | Q10: =IF(AND($P$16>=$AB$54,$P$16<=$AC$54),SUM($O$11:$O$12),0) -> 0 | T10: Závěs A | V10: Závěs As | Y10: =CenAVS!A12 -> Sada zdvihačů HF top, předmont. eurošrouby | Z10: =CenAVS!B12 -> 22F2510 | AA10: =CenAVS!C12 -> ZN | AB10: 0 | AC10: =CenAVS!F12 -> 1651.93 | AD10: =AB10*AC10 -> 0 | AE10: =IF($Y$48=2,ROUNDUP($M$17*$O$11,0),0) -> 0 | AF10: 0 | AG10: =IF($Y$48=2,ROUNDUP($M$28*$O$22,0),0) -> 0 | AH10: 0 | AL10: =" "&ListAVS!$B$157 -> Objednávka | AN10: 10000 - 19300 | AP10: 22F2800 | AQ10: 22F2810
B11: =ListAVS!$B$75&" [mm]" -> Výška korpusu [mm] | E11: TKH * | G11: KH | I11: =IF(H11=0," ",IF($H11<480," min. 480mm",IF($H11>1200," max. 1 200mm"," ")))&IF(H17>0,IF(H11=0,"● "&ListAVS!$B$128," ")," ") ->  | N11: F25 | O11: =IF($H16<$AB$50,0,IF($H16<=$AC$50,1,0)) -> 0 | P11: F35 | Q11: =IF(AND($P$16>=$AB$55,$P$16<=$AC$55),SUM($O$11:$O$12),0) -> 0 | T11: T558E | U11: =IF($N$48=1, IF(OR($H$10>=1200, $T$17>=12), 3, 2))+IF($N$48=1,IF(OR($H$10=1800, $T$17>=20), 1, 0)) -> 0 | V11: Z553E | W11: =IF($P$48=1, IF(OR($H$10>=1200, $T$17>=12), 3, 2))+IF($P$48=1,IF(OR($H$10=1800, $T$17>=20), 1, 0)) -> 0 | Y11: =CenAVS!A13 -> Sada zdvihačů HF top, na vruty | Z11: =CenAVS!B13 -> 22F2800 | AA11: =CenAVS!C13 -> ZN | AB11: 0 | AC11: =CenAVS!F13 -> 1805.55 | AD11: 0 | AE11: =IF($Y$48=1,ROUNDUP($M$17*$O$12,0),0) -> 0 | AF11: 0 | AG11: =IF($Y$48=1,ROUNDUP($M$28*$O$23,0),0) -> 0 | AH11: 0
B12: =ListAVS!$B$77&" [kg] ** " -> Hmotnost čela včetně úchytky [kg] ** | I12: =IF($T14="ne", " ", IF(AND($H12=0,$H15=0, $H17>0),$N$37," "))&IF(AND($H17>0, $H12>0, $M17>0),$N$41," ") ->  | N12: F28 | O12: =IF($H16<$AB$51,0,IF($H16<=$AC$51,1,0)) -> 0 | P12: F39 | Q12: =IF(AND($P$16>=$AB$56,$P$16<=$AC$56),SUM($O$11:$O$12),0) -> 0 | T12: Z550AT | U12: =IF($N$48=2, IF(OR($H$10>=1200, $T$17>=12), 3, 2))+IF($N$48=2,IF(OR($H$10=1800, $T$17>=20), 1, 0)) -> 2 | V12: Z550AT | W12: =IF($P$48=2, IF(OR($H$10>=1200, $T$17>=12), 3, 2))+IF($P$48=2,IF(OR($H$10=1800, $T$17>=20), 1, 0)) -> 2 | Y12: =CenAVS!A14 -> Sada zdvihačů HF top, předmont. eurošrouby | Z12: =CenAVS!B14 -> 22F2810 | AA12: =CenAVS!C14 -> ZN | AB12: 0 | AC12: =CenAVS!F14 -> 1805.55 | AD12: 0 | AE12: =IF($Y$48=2,ROUNDUP($M$17*$O$12,0),0) -> 0 | AF12: 0 | AG12: =IF($Y$48=2,ROUNDUP($M$28*$O$23,0),0) -> 0 | AH12: 0 | AN12: =ListAVS!$B$86&" LF = "&ListAVS!$B$319&" [kg]" -> Ukazatel výkonnosti LF = výška korpusu KH [mm] x hmotnost obou čel včetně úchytky [kg]
B13: =ListAVS!$B$292 -> Výpočet hmotnosti | D13: =ListAVS!$B$80&" TS [mm] " -> Síla čela TS [mm] | Y13: =CenAVS!A15 -> Sada teleskopů HF top (480–610 mm) | Z13: =CenAVS!B15 -> 22F3200 | AA13: =CenAVS!C15 -> NI | AB13: 0 | AC13: =CenAVS!F15 -> 785.14 | AD13: 0 | AE13: =ROUNDUP($M$17*Q10,0) -> 0 | AF13: 0 | AG13: =ROUNDUP($M$28*Q21,0) -> 0 | AH13: 0
D14: =ListAVS!$B$83&" [kg] " -> Hmotnost úchytky [kg] | I14: =IF(H17=0, " ", IF(AND(H12=0, S9=1, H14=0), " ● "&ListAVS!$B$129," ")) ->  | S14: limit v/š | T14: =IF(AND(220<=H10, H10<=1800, 480<=P16, P16<=1200),"ano","ne") -> ne | Y14: =CenAVS!A16 -> Sada teleskopů HF top (600–910 mm) | Z14: =CenAVS!B16 -> 22F3500 | AA14: =CenAVS!C16 -> NI | AB14: 0 | AC14: =CenAVS!F16 -> 964.4 | AD14: 0 | AE14: =ROUNDUP($M$17*Q11,0) -> 0 | AF14: 0 | AG14: =ROUNDUP($M$28*Q22,0) -> 0 | AH14: 0
D15: =ListAVS!$B$79&" [kg] " -> Vypočtená hmotnost čela [kg] | H15: =$T$81 -> 0 | I15: =IF($H17>0,IF($H15>0,IF($H12=0,$N$41," ")," ")," ")&IF(AND(H17>0, H12=0, Z78=3, $J$4=0), $N$39, " ") ->  | S15: limit LF | T15: =IF(AND(H16>=$AB$50, H16<=$AC$51), "ano", "ne") -> ne | Y15: =CenAVS!A17 -> Sada teleskopů HF top (840–1200 mm) | Z15: =CenAVS!B17 -> 22F3900 | AA15: =CenAVS!C17 -> NI | AB15: 0 | AC15: =CenAVS!F17 -> 1143.64 | AD15: 0 | AE15: =ROUNDUP($M$17*Q12,0) -> 0 | AF15: 0 | AG15: =ROUNDUP($M$28*Q23,0) -> 0 | AH15: 0
B16: =ListAVS!$B$86&" LF " -> Ukazatel výkonnosti LF | H16: =IF(H11<=1200,IF(H11>479,IF(H12>0,H11*H12,H11*H15),0),0) -> 0 | I16: =IF(AND(H16>0, H16<$AB$50), $T$44, IF($H16>$AC$51, $N$44, " ")) ->  | O16: výška korpusu | P16: =IF(F11>0,IF(F11>=H11,F11,0),H11) -> 0 | Y16: =CenAVS!A47 -> Sada krytek HF, HS, HL top, světle šedá | Z16: =CenAVS!B47 -> 22.8000 | AA16: =CenAVS!C47 -> HGR | AB16: =SUM(AE16,AG16) -> 0 | AC16: =CenAVS!F47 -> 252.85 | AD16: 0 | AE16: =IF(AND($S$9=1, $T$48=1), SUM($AE$9:$AE$12), 0) -> 0 | AF16: 0 | AG16: =IF(AND($S$20=1, $T$48=1), SUM($AG$9:$AG$12), 0) -> 0 | AH16: 0
B17: =ListAVS!$B$71&" " -> Počet skříněk | M17: =IF($H10*$P16=0,0,IF(SUM($H12,$H15)=0,0,IF($P16>$AC$57,0,IF(P16<$AB$54,0,IF(OR(T14="ne", T15="ne"),0,$H17))))) -> 0 | N17: ← Hlavní údaj | S17: hmot = | T17: =IF(H12>0,H12,H15) -> 0 | U17: =IF(SUM(H12,H15)=0,0,IF(H12>0,1,2)) -> 0 | V17: zadaná / vypočtená | Y17: =CenAVS!A48 -> Sada krytek HF, HS, HL top, tmavě šedá | Z17: =CenAVS!B48 -> 22.8000 | AA17: =CenAVS!C48 -> TGR | AB17: =SUM(AE17,AG17) -> 0 | AC17: =CenAVS!F48 -> 275.94 | AD17: 0 | AE17: =IF(AND($S$9=1, $T$48=2), SUM($AE$9:$AE$12), 0) -> 0 | AF17: 0 | AG17: =IF(AND($S$20=1, $T$48=2), SUM($AG$9:$AG$12), 0) -> 0 | AH17: 0 | AN17: vruty = zdvihače s integrovanou šablonou (bez nutnosti rozměřování)
B18: =IF(H17>0,IF(U17=0," ",IF(U17=1,$N$53,$N$54))," ")&IF(H17>0,IF(U17=0," ",IF(U17=1,$N$55,$N$56))," ") ->  | Y18: =CenAVS!A49 -> Sada krytek HF, HS, HL top, hedvábně bílá | Z18: =CenAVS!B49 -> 22.8000 | AA18: =CenAVS!C49 -> SW | AB18: 0 | AC18: =CenAVS!F49 -> 275.94 | AD18: 0 | AE18: =IF(AND($S$9=1, $T$48=3), SUM($AE$9:$AE$12), 0) -> 0 | AF18: 0 | AG18: =IF(AND($S$20=1, $T$48=3), SUM($AG$9:$AG$12), 0) -> 0 | AH18: 0 | AN18: šrouby = zdvihače s přednotovanými šrouby (nutné předvrtání)
B19: =IF(F11=0," ",IF(F11>1200,"TKH = max. 1200!",IF(F11<480,"TKH = min. 480!",IF(F11<H11,$N$59,IF(H17>0,IF(F11=0," ",IF(AND(F11>0,M17=1), $N$58," "))," "))))) ->  | Y19: =CenAVS!A50 -> Sada krytek pro SERVO-DRIVE, světle šedá | Z19: =CenAVS!B50 -> 23.8000 | AA19: =CenAVS!C50 -> HGR | AB19: 0 | AC19: =CenAVS!F50 -> 2606.76 | AD19: 0 | AE19: =IF(AND($S$9=2, $T$48=1), $AE$45, 0) -> 0 | AF19: 0 | AG19: =IF(AND($S$20=2, $T$48=1), $AG$45, 0) -> 0 | AH19: 0 | AL19: =" "&ListAVS!$B$194 -> Výpočet asymetrických čel
B20: ="▼ "&ListAVS!$B$317 -> ▼ Způsob otvírání | D20: =IF($M$28>0, ListAVS!$B$37&": ", " ") ->  | E20: =IF(SUM($AG$9:$AG$10)>0,25,IF(SUM($AG$11:$AG$12)>0,28," ")) ->  | F20: =ListAVS!$B$64&" B" -> Korpus B | N20: zdvih B | P20: teleskop | S20: 1 | T20: FALSE | V20: - SRVDRV | Y20: =CenAVS!A51 -> Sada krytek pro SERVO-DRIVE, tmavě šedá | Z20: =CenAVS!B51 -> 23.8000 | AA20: =CenAVS!C51 -> TGR | AB20: 0 | AC20: =CenAVS!F51 -> 2709.29 | AD20: 0 | AE20: =IF(AND($S$9=2, $T$48=2), $AE$45, 0) -> 0 | AF20: 0 | AG20: =IF(AND($S$20=2, $T$48=2), $AG$45, 0) -> 0 | AH20: 0
B21: =ListAVS!$B$74&" KB [mm] " -> Šířka korpusu KB [mm] | I21: =IF(H21=0," ",IF($H21<220," min. 220mm",IF($H21>1800," max. 1 800mm"," ")))&IF(H28>0,IF(H21=0,"● "&ListAVS!$B$128," ")," ") ->  | P21: F32 | Q21: =IF(AND($P$27>=$AB$54,$P$27<=$AC$54),SUM($O$22:$O$23),0) -> 0 | T21: Závěs B | V21: Závěs Bs | Y21: =CenAVS!A52 -> Sada krytek pro SERVO-DRIVE,hedvábně bílá | Z21: =CenAVS!B52 -> 23.8000 | AA21: =CenAVS!C52 -> SW | AB21: 0 | AC21: =CenAVS!F52 -> 2709.29 | AD21: 0 | AE21: =IF(AND($S$9=2, $T$48=3), $AE$45, 0) -> 0 | AF21: 0 | AG21: =IF(AND($S$20=2, $T$48=3), $AG$45, 0) -> 0 | AH21: 0
B22: =ListAVS!$B$75&" [mm]" -> Výška korpusu [mm] | E22: TKH * | G22: KH | I22: =IF(H22=0," ",IF($H22<480," min. 480mm",IF($H22>1200," max. 1 200mm"," ")))&IF(H28>0,IF(H22=0,"● "&ListAVS!$B$128," ")," ") ->  | N22: F25 | O22: =IF($H27<$AB$50,0,IF($H27<=$AC$50,1,0)) -> 0 | P22: F35 | Q22: =IF(AND($P$27>=$AB$55,$P$27<=$AC$55),SUM($O$22:$O$23),0) -> 0 | T22: T558E | U22: =IF($N$48=1, IF(OR($H$21>=1200, $T$28>=12), 3, 2))+IF($N$48=1,IF(OR($H$21=1800, $T$28>=20), 1, 0)) -> 0 | V22: Z553E | W22: =IF($P$48=1, IF(OR($H$21>=1200, $T$28>=12), 3, 2))+IF($P$48=1,IF(OR($H$21=1800, $T$28>=20), 1, 0)) -> 0 | Y22: =CenAVS!A18 -> Závěs CLIP top 120° | Z22: =CenAVS!B18 -> 70T5550.TL | AA22: =CenAVS!C18 -> NI | AB22: 0 | AC22: =CenAVS!F18 -> 56.56 | AD22: 0 | AF22: 0 | AH22: 0
B23: =ListAVS!$B$77&" [kg] ** " -> Hmotnost čela včetně úchytky [kg] ** | I23: =IF($H28=0," ",IF(SUM($H23,$H26)=0,$N$38," "))&IF($H28>0,IF($H23>0,$N$41," ")," ") ->  | N23: F28 | O23: =IF($H27<$AB$51,0,IF($H27<=$AC$51,1,IF($H27>$AB$52,1.5,0))) -> 0 | P23: F39 | Q23: =IF(AND($P$27>=$AB$56,$P$27<=$AC$56),SUM($O$22:$O$23),0) -> 0 | T23: T5550 | U23: =IF($N$48=2, IF(OR($H$21>=1200, $T$28>=12), 3, 2))+IF($N$48=2,IF(OR($H$21=1800, $T$28>=20), 1, 0)) -> 2 | V23: Z550AT | W23: =IF($P$48=2, IF(OR($H$21>=1200, $T$28>=12), 3, 2))+IF($P$48=2,IF(OR($H$21=1800, $T$28>=20), 1, 0)) -> 2 | Y23: =CenAVS!A19 -> Závěs CLIP top 120° EXPANDO | Z23: =CenAVS!B19 -> 70T558E | AA23: =CenAVS!C19 -> NI | AB23: 0 | AC23: =CenAVS!F19 -> 53.42 | AD23: 0 | AF23: 0 | AH23: 0
B24: =ListAVS!$B$292 -> Výpočet hmotnosti | D24: =ListAVS!$B$80&" TS [mm] " -> Síla čela TS [mm] | Y24: =CenAVS!A20 -> Středový závěs CLIP top | Z24: =CenAVS!B20 -> 78Z5500T | AA24: =CenAVS!C20 -> NI | AB24: 0 | AC24: =CenAVS!F20 -> 92.71 | AD24: 0 | AF24: 0 | AH24: 0
D25: =ListAVS!$B$83&" [kg] " -> Hmotnost úchytky [kg] | I25: =IF(H28=0, " ", IF(AND(H23=0, S20=1, H25=0), " ● "&ListAVS!$B$129," ")) ->  | S25: limit v/š | T25: =IF(AND(220<=H21, H21<=1800, 480<=P27, P27<=1200),"ano","ne") -> ne | Y25: =CenAVS!A21 -> Středový závěs CLIP top EXPANDO | Z25: =CenAVS!B21 -> 78Z553ET | AA25: =CenAVS!C21 -> NI | AB25: 0 | AC25: =CenAVS!F21 -> 95.69 | AD25: 0 | AF25: 0 | AH25: 0
D26: =ListAVS!$B$79&" [kg] " -> Vypočtená hmotnost čela [kg] | H26: =$T$90 -> 0 | I26: =IF($H28>0,IF($H26>0,IF($H23=0,$N$41," ")," ")," ")&IF(AND(H28>0, H23=0, Z87=3, $J$4=0), $N$39, " ") ->  | S26: limit LF | T26: =IF(AND(H27>=$AB$50, H27<=$AC$51), "ano", "ne") -> ne | Y26: =CenAVS!A22 -> Závěs CLIP top pro alurámečky | Z26: =CenAVS!B22 -> 72T550A.TL | AA26: =CenAVS!C22 -> NI | AB26: 0 | AC26: =CenAVS!F22 -> 77.18 | AD26: 0 | AE26: =U12*M17 -> 0 | AF26: 0 | AG26: =U23*M28 -> 0 | AH26: 0
B27: =ListAVS!$B$86&" LF " -> Ukazatel výkonnosti LF | H27: =IF(H22<1041,IF(H22>479,IF(H23>0,H22*H23,H22*H26),0),0) -> 0 | I27: =IF(AND(H27>0, H27<$AB$50), $T$44, IF($H27>$AC$51, $N$44, " ")) ->  | O27: výška korpusu | P27: =IF(F22>0,IF(F22>=H22,F22,0),H22) -> 0 | Y27: =CenAVS!A23 -> Střed. závěs CLIP top pro alurámečky | Z27: =CenAVS!B23 -> 78Z550AT | AA27: =CenAVS!C23 -> NI | AB27: 0 | AC27: =CenAVS!F23 -> 101.63 | AD27: 0 | AE27: =W12*M17 -> 0 | AF27: 0 | AG27: =W23*M28 -> 0 | AH27: 0
B28: =ListAVS!$B$71&" " -> Počet skříněk | M28: =IF($H21*$P27=0,0,IF(SUM($H23,$H26)=0,0,IF($P27>$AC$57,0,IF(P27<$AB$54,0,IF(OR(T25="ne", T26="ne"),0,$H28))))) -> 0 | N28: ← Hlavní údaj | S28: hmot = | T28: =IF(H23>0,H23,H26) -> 0 | U28: =IF(SUM(H23,H26)=0,0,IF(H23>0,1,2)) -> 0 | V28: zadaná / vypočtená | Y28: =CenAVS!A24 -> Adaptér CLIP k teleskopům P | Z28: =CenAVS!B24 -> 175H5B00 R | AA28: =CenAVS!C24 -> NI | AB28: 0 | AC28: =CenAVS!F24 -> 90.34 | AD28: 0 | AE28: =SUM($Q$10:$Q$12)*$M$17 -> 0 | AF28: 0 | AG28: =SUM($Q$21:$Q$23)*$M$28 -> 0 | AH28: 0
B29: =IF(H28>0,IF(U28=0," ",IF(U28=1,$N$53,$N$54))," ")&IF(H28>0,IF(U28=0," ",IF(U28=1,$N$55,$N$56))," ") ->  | Y29: =CenAVS!A25 -> Adaptér CLIP k teleskopům L | Z29: =CenAVS!B25 -> 175H5B00 L | AA29: =CenAVS!C25 -> NI | AB29: 0 | AC29: =CenAVS!F25 -> 90.34 | AD29: 0 | AE29: =SUM($Q$10:$Q$12)*$M$17 -> 0 | AF29: 0 | AG29: =SUM($Q$21:$Q$23)*$M$28 -> 0 | AH29: 0
B30: =IF(F22=0," ",IF(F22>1200,"TKH = max. 1200!",IF(F22<480,"TKH = min. 480!",IF(F22<H22,$N$59,IF(H28>0,IF(F22=0," ",IF(AND(F22>0,M28=1), $N$58," "))," "))))) ->  | Y30: =CenAVS!A26 -> Adaptér CLIP ke středovým závěsům | Z30: =CenAVS!B26 -> 175H5A00 | AA30: =CenAVS!C26 -> NI | AB30: 0 | AC30: =CenAVS!F26 -> 90.34 | AD30: 0 | AE30: =AE27 -> 0 | AF30: 0 | AG30: =AG27 -> 0 | AH30: 0
B31: =IF(OR(AND($S$9=2, $M$17>0), AND($S$20=2, $M$28>0)), ListAVS!$B$175, " ") ->  | S31: =IF($T$31=FALSE,2,1) -> 1 | T31: TRUE | V31: - Zdroj
Y33: =CenAVS!A27 -> 0 | Z33: =CenAVS!B27 -> 0 | AA33: =CenAVS!C27 -> 0 | AC33: =CenAVS!F27 -> 0 | AD33: 0 | AF33: 0 | AH33: 0
AD34: 0 | AF34: 0 | AH34: 0
N35: =ListAVS!B176 -> Cena bez napájecího zdroje! | AD35: 0 | AF35: 0 | AH35: 0
Y36: =CenAVS!A162 -> CLIP top montážní podložka, excentr, 0 mm | Z36: =CenAVS!B162 -> 173H7100 | AA36: =CenAVS!C162 -> NI | AC36: =CenAVS!F162 -> 17.84 | AD36: 0 | AF36: 0 | AH36: 0
C37: ="* "&ListAVS!$B$183 -> * Pouze pro asymetrická čela: zadejte teoretickou výšku TKH. | N37: =" "&ListAVS!$B$115 -> Zadejte hmotnost nebo vyplňte všechny buňky | Y37: =CenAVS!A163 -> CLIP top mont. podložka, excentr, EXPANDO, 0 mm | Z37: =CenAVS!B163 -> 174H7100E | AA37: =CenAVS!C163 -> NI | AC37: =CenAVS!F163 -> 19.39 | AD37: 0 | AF37: 0 | AH37: 0
C38: =" ( "&ListAVS!$B$184&")" -> ( TKH = dvojnásobná výška horního čela včetně mezer) | N38: =" "&ListAVS!$B$116 -> Zadejte hmotnost nebo vyplňte nahoře sílu skla | AF38: 0 | AH38: 0
C39: =" "&ListAVS!$B$327&" '"&ListAVS!$B$194&"' " -> Pro výpočet TKH použijte 'Výpočet asymetrických čel' | N39: =" "&ListAVS!$B$117 -> Vyplňte nahoře objemovou hmotnost
N40: =" "&ListAVS!$B$118 -> Vyplňte nahoře sílu skla
C41: ="** "&ListAVS!$B$186 -> ** Pokud znáte hmotnost a nechcete využít výpočtu hmotnosti | N41: ="◄ "&ListAVS!$B$111 -> ◄ hodnota bude použita pro výpočet LF
C42: ="*** "&ListAVS!$B$403 -> *** Vyberte typ alurámečku! | N42: =" * "&ListAVS!$B$127 -> * Doplňte hodnoty | Y42: =CenAVS!A166 -> CLIP top přímá mont. podložka, ocel, 0 mm | Z42: =CenAVS!B166 -> 175H3100 | AA42: =CenAVS!C166 -> NI | AB42: 0 | AC42: =CenAVS!F166 -> 16.98 | AD42: 0 | AE42: =IF($R$48=2, $U$12*$M$17, 0) -> 0 | AF42: =$AC42*AE42 -> 0 | AG42: =IF($R$48=2, $U$23*$M$28, 0) -> 0 | AH42: =$AC42*AG42 -> 0
C43: =" "&ListAVS!$B$404 -> Více informací k výběru alurámečků v Nápovědě | Y43: =CenAVS!A167 -> CLIP top přímá mont. podložka, ocel, EXP, 0 mm | Z43: =CenAVS!B167 -> 177H3100E | AA43: =CenAVS!C167 -> NI | AB43: 0 | AC43: =CenAVS!F167 -> 17.07 | AD43: 0 | AE43: =IF($R$48=1, $U$12*$M$17, 0) -> 0 | AF43: =$AC43*AE45 -> 0 | AG43: =IF($R$48=1, $U$23*$M$28, 0) -> 0 | AH43: =$AC43*AG43 -> 0
N44: =" max. 19.300! "&ListAVS!$B$121 -> max. 19.300! Upravte hmotnost nebo výšku | T44: =" min. "&$AB$50&"! "&ListAVS!$B$121 -> min. 2700! Upravte hmotnost nebo výšku | Y44: =CenAVS!A169 -> 0 | Z44: =CenAVS!B169 -> 0 | AA44: =CenAVS!C169 -> 0 | AC44: =CenAVS!F169 -> 0 | AD44: 0 | AF44: =$AC44*AE44 -> 0 | AH44: =$AC44*AG44 -> 0
N45: =" "&ListAVS!$B$119 -> Přídavný třetí zdvihač | U45: =" "&ListAVS!B126 -> Použijte pouze jeden zdvihač | Y45: =CenAVS!A171 -> SERVO-DRIVE jednotka (sada) | Z45: =CenAVS!B171 -> 23.A000 | AA45: =CenAVS!C171 -> R7037 | AB45: 0 | AC45: =CenAVS!F171 -> 8297.32 | AD45: 0 | AE45: =IF($S$9=1, 0, $M$17)+IF(AND($S$9=2, $H$16>$AB$52), $M$17, 0) -> 0 | AF45: =$AC45*AE45 -> 0 | AG45: =IF($S$20=1, 0, $M$28)+IF(AND($S$20=2, $H$27>$AB$52), $M$28, 0) -> 0 | AH45: =$AC45*AG45 -> 0
N46: =ListAVS!$B$181 -> Přídavný třetí zdvihač může být použit pouze s plným spodním čelem!
AC47: =ListAVS!$B$61&" " -> Cena celkem bez DPH | AD47: =SUM(AD9:AD45) -> 0 | AF47: =SUM(AF9:AF46) -> 0 | AH47: =SUM(AH9:AH46) -> 0
N48: 2 | O48: 2 | P48: 2 | Q48: 2 | R48: =HF!$P$33 -> 1 | T48: =MenuAVS!$P$28 -> 1 | Y48: =HF!$R$33 -> 1 | Z48: =Param!M10 -> Parametry HF
N49: záv. | O49: alu | P49: střed. | Q49: alu | R49: podl. | T49: kryt. | W49: Provedení: | Y49: montáž: | Z49: =Param!M11 -> Zdvihač | AA49: =Param!N11 -> ks | AB49: =Param!O11 -> min | AC49: =Param!P11 -> max | AD49: =Param!Q11 -> alu max.
N50: =ListAVS!$B$133 -> Expando | P50: =ListAVS!$B$133 -> Expando | R50: =ListAVS!$B$133 -> Expando | T50: =ListAVS!$B$145 -> Světle šedá (HGR) | W50: Standard | Y50: vruty | Z50: =Param!M12 -> 22F2500 | AA50: =Param!N12 -> 1 | AB50: =Param!O12 -> 2700 | AC50: =Param!P12 -> 11500
N51: =ListAVS!$B$134 -> na vruty | P51: =ListAVS!$B$134 -> na vruty | R51: =ListAVS!$B$134 -> na vruty | T51: =ListAVS!$B$146 -> Tmavě šedá (TGR) | W51: SERVO-DRIVE | Y51: eurošrouby | Z51: =Param!M13 -> 22F2800 | AA51: =Param!N13 -> 1 | AB51: =Param!O13 -> 11500 | AC51: =Param!P13 -> 19300 | AD51: =Param!Q13 -> 19300
T52: =ListAVS!$B$147 -> Hedvábně bílá (SW) | Z52: =Param!M14 -> 22F2800 | AA52: =Param!N14 -> 1.5 | AB52: =Param!O14 -> 19300 | AC52: =Param!P14 -> 28950 | AD52: =Param!Q14 -> 0
N53: =ListAVS!B187 -> Pro určení typu zdvihače bude použita zadaná hmotnost | Z53: =Param!M17 -> Teleskop | AB53: =Param!O17 -> min | AC53: =Param!P17 -> max | AD53: =Param!Q17 -> 0
N54: =ListAVS!B188 -> Pro určení typu zdvihače bude použita vypočtená hmotnost | Z54: =Param!M18 -> 20F3200 | AA54: =Param!N18 -> 0 | AB54: =Param!O18 -> 480 | AC54: =Param!P18 -> 605 | AD54: =Param!Q18 -> 0
N55: =". "&ListAVS!$B$189 -> . Chcete-li použít vypočtenou hmotnost, smažte zadanou hodnotu | Z55: =Param!M19 -> 20F3500 | AA55: =Param!N19 -> 0 | AB55: =Param!O19 -> 605 | AC55: =Param!P19 -> 890 | AD55: =Param!Q19 -> 0
N56: =". "&ListAVS!$B$190 -> . Chcete-li použít zadanou hmotnost, zadejte ji do políčka | Z56: =Param!M20 -> 20F3900 | AA56: =Param!N20 -> 0 | AB56: =Param!O20 -> 890 | AC56: =Param!P20 -> 1200 | AD56: =Param!Q20 -> 0
N57: =ListAVS!B191 -> 0 | AB57: =Param!O21 -> max. | AC57: =Param!P21 -> 1200 | AD57: =Param!Q21 -> 0
N58: =ListAVS!B192 -> Pro výběr teleskopů bude použita teoretická výška TKH
N59: =ListAVS!B193 -> Teoretická výška TKH nesmí být menší než KH
N70: =ListAVS!$B$73 -> Výpočet hmotnosti čel
O71: =ListAVS!$B$179&" " -> Provedení čel | T71: =J4 -> 0 | U71: =IF(AF77=3,IF(T71=0,Y74," "),IF(T71>0,Y75," ")) ->  | Y71: =IF($AF$77=1,$AF$94,IF($AF$77=2,$AF$95,$AF$96&" - "&$T$71&"mm")) -> Alurámečky s 4mm sklem | AD71: =MenuAVS!$Q$81 -> 2500
Y72: =" "&ListAVS!$B$243 -> Změnit objemovou hmotnost
Y73: =" "&ListAVS!$B$244&" [kg/m3]" -> Zadejte objemovou hmotnost [kg/m3]
Y74: =" "&ListAVS!$B$245&" [mm]" -> Zadejte sílu skla [mm]
Y75: =" "&ListAVS!$B$240&" '"&ListAVS!$B$95&"'" -> Hodnota platí jen pro volbu 'Alurámečky s jiným sklem'
R76: =D9 ->  | Y76: =" "&ListAVS!$B$410 -> Změnit hodnoty můžete v Úvodu plánování | AE76: váha spoj. | AF76: tl. skla | AG76: typ alu
N77: =ListAVS!$B$74&" KB [mm] " -> Šířka korpusu KB [mm] | T77: =H10 -> 0 | Y77: =T77*T78*T79 -> 0 | AD77: =IF($AG$77=1,$X$94,$X$95) -> 0.31 | AE77: =$X$96*2 -> 0.92 | AF77: 1 | AG77: =$O$4 -> 1
N78: =ListAVS!$B$75&" KH [mm] " -> Výška korpusu KH [mm] | T78: =H11 -> 0 | Y78: =Y77/1000000000 -> 0 | Z78: =AF77 -> 1 | AD78: váha alu | AE78: =SUM(T77*4,(T78-80)*2)*AD77/1000 -> -0.0496 | AF78: A plocha B
N79: =ListAVS!$B$80&" TS [mm] " -> Síla čela TS [mm] | Y79: =MenuAVS!$C$31 -> 760 | Z79: =ListAVS!$B$90&" ("&Y79&" kg/m3)" -> MDF (760 kg/m3) | AD79: =$AD$71*4/1000 -> 10 | AE79: =IF($AG$77=1,AF79*AD79,AG79*AD79) -> 0.018 | AF79: =SUM(($T$77-30)*($T$78-60)/1000000) -> 0.0018 | AG79: =SUM(($T$77-6)*($T$78-15)/1000000) -> 9e-05 | AH79: 4mm
N80: =ListAVS!$B$83&" [kg] " -> Hmotnost úchytky [kg] | T80: =H14 -> 0 | U80: =IF(SUM(T77,T78)=0," ",IF(T80=0," ● "&ListAVS!$B$129," ")) ->  | Y80: =MenuAVS!$C$32 -> 680 | Z80: =ListAVS!$B$91&" ("&Y80&" kg/m3)" -> Dřevotříska (680 kg/m3) | AD80: =$AD$71*5/1000 -> 12.5 | AE80: =IF($AG$77=1,AF80*AD80,AG80*AD80) -> 0.0225 | AF80: =SUM(($T$77-30)*($T$78-60)/1000000) -> 0.0018 | AG80: =SUM(($T$77-6)*($T$78-15)/1000000) -> 9e-05 | AH80: 5mm
N81: =ListAVS!$B$79&" [kg] " -> Vypočtená hmotnost čela [kg] | T81: =IF(AD82=0,0,AD82+T80) -> 0 | X81: =IF(T77*T78*T79=0,0,IF(Z78=1,Y78*Y79+T80,IF(Z78=2,Y78*Y80+T80,Y78*Y81+T80))) -> 0 | Y81: =$T$71 -> 0 | Z81: =ListAVS!$B$92 -> Jiné - volitelná hustota | AD81: =$AD$71*$T$71/1000 -> 0 | AE81: =IF($AG$77=1,AF81*AD81,AG81*AD81) -> 0 | AF81: =SUM(($T$77-30)*($T$78-60)/1000000) -> 0.0018 | AG81: =SUM(($T$77-6)*($T$78-15)/1000000) -> 9e-05 | AH81: jiné
O82: =IF(T81>0,IF(T80=0,$Z$94," ")," ") ->  | AD82: =IF(OR(AND(AF77=3, $T$71=0), T77*T78=0), 0, SUM(IF(AF77=1,AE79,IF(AF77=2,AE80,AE81)),AE78,AE77)) -> 0
R85: =D20 ->  | AE85: váha spoj. | AF85: tl. skla | AG85: typ alu
N86: =ListAVS!$B$74&" KB [mm] " -> Šířka korpusu KB [mm] | T86: =H21 -> 0 | Y86: =T86*T87*T88 -> 0 | AD86: =IF($AG$77=1,$X$94,$X$95) -> 0.31 | AE86: =$X$96*2 -> 0.92 | AF86: =$AF$77 -> 1 | AG86: =$AG$77 -> 1
N87: =ListAVS!$B$75&" KH [mm] " -> Výška korpusu KH [mm] | T87: =H22 -> 0 | Y87: =Y86/1000000000 -> 0 | Z87: =Z78 -> 1 | AD87: váha alu | AE87: =SUM(T86*4,(T87-80)*2)*AD86/1000 -> -0.0496 | AF87: A plocha B
N88: =ListAVS!$B$80&" TS [mm] " -> Síla čela TS [mm] | Y88: =$Y$79 -> 760 | Z88: =$Z$79 -> MDF (760 kg/m3) | AD88: =AD79 -> 10 | AE88: =IF($AG$77=1,AF88*AD88,AG88*AD88) -> 0.018 | AF88: =SUM(($T$86-30)*($T$87-60)/1000000) -> 0.0018 | AG88: =SUM(($T$86-6)*($T$87-15)/1000000) -> 9e-05 | AH88: 4mm
N89: =ListAVS!$B$83&" [kg] " -> Hmotnost úchytky [kg] | T89: =H25 -> 0 | U89: =IF(SUM(T86,T87)=0," ",IF(T89=0," ● "&ListAVS!$B$129," ")) ->  | Y89: =$Y$80 -> 680 | Z89: =$Z$80 -> Dřevotříska (680 kg/m3) | AD89: =AD80 -> 12.5 | AE89: =IF($AG$77=1,AF89*AD89,AG89*AD89) -> 0.0225 | AF89: =SUM(($T$86-30)*($T$87-60)/1000000) -> 0.0018 | AG89: =SUM(($T$86-6)*($T$87-15)/1000000) -> 9e-05 | AH89: 5mm
N90: =ListAVS!$B$79&" [kg] " -> Vypočtená hmotnost čela [kg] | T90: =IF(AD91=0,0,AD91+T89) -> 0 | X90: =IF(T86*T87*T88=0,0,IF(Z87=1,Y87*Y88+T89,IF(Z87=2,Y87*Y89+T89,Y87*Y90+T89))) -> 0 | Y90: =$Y$81 -> 0 | Z90: =$Z$81 -> Jiné - volitelná hustota | AD90: =AD81 -> 0 | AE90: =IF($AG$77=1,AF90*AD90,AG90*AD90) -> 0 | AF90: =SUM(($T$86-30)*($T$87-60)/1000000) -> 0.0018 | AG90: =SUM(($T$86-6)*($T$87-15)/1000000) -> 9e-05 | AH90: jiné
O91: =IF(T90>0,IF(T89=0,$Z$94," ")," ") ->  | AD91: =IF(OR(AND(AF86=3, $T$71=0), T86*T87=0), 0, SUM(IF(AF86=1,AE88,IF(AF86=2,AE89,AE90)),AE87,AE86)) -> 0
W94: =ListAVS!$B$424&" " -> s vloženým sklem | X94: =MenuAVS!$I$91 -> 0.31 | Z94: =ListAVS!$B$102&"!" -> Není započtena hmotnost úchytky! | AF94: =ListAVS!$B$93 -> Alurámečky s 4mm sklem
W95: =ListAVS!$B$425&" " -> s naloženým nebo nalepeným sklem | X95: =MenuAVS!$I$92 -> 0.32 | AF95: =ListAVS!$B$94 -> Alurámečky s 5mm sklem
W96: =ListAVS!$B$405&" [kg/set] * " -> Hmotnost spojovacího materiálu [kg/set] * | X96: =MenuAVS!$I$93 -> 0.46 | AF96: =ListAVS!$B$95 -> Alurámečky s jiným sklem
B100: =ListAVS!$B$194 -> Výpočet asymetrických čel
B102: =" "&ListAVS!$B$197 -> Parametry korpusu
B103: =ListAVS!$B$75&" KH [mm] " -> Výška korpusu KH [mm] | K103: =IF(I103<480, " min. 480", IF(I103>1200, " max. 1200", " ")) -> min. 480 | N103: <=519 | O103: >=520
B104: =ListAVS!$B$200&" F1 [mm] " -> Mezera nahoře F1 [mm]
B105: =ListAVS!$B$201&" F2 [mm] " -> Mezera mezi čely F2 [mm] | K105: =IF($I$103=0," ",IF($I$105<1.5," min. 1,5 mm!"," ")) -> 
B106: =ListAVS!$B$202&" F3 [mm] " -> Mezera dole F3 [mm] | M106: Z | N106: 170 | O106: 189
B107: =ListAVS!$B$203&" [mm] " -> Síla dna korpusu [mm] | M107: H | N107: 93 | O107: 116
B109: =" "&ListAVS!$B$205 -> Výsledky plánování | N109: FHo | O109: FHo
G110: =ListAVS!$B$206&" [mm] " -> Možné výšky čel [mm] | N110: min ↓↓ | O110: min ↓↓
B111: =ListAVS!$B$207 -> Čelo nahoře (FHo) v rozmezí | G111: min. | H111: =IF(AND($I$103>=480, $I$103<=519), $N$111, IF(AND($I$103>=520, $I$103<=1200), $O$111, $S$115)) -> nelze | I111: max. | J111: =IF(AND($I$103>=480, $I$103<=519), $N$115, IF(AND($I$103>=520, $I$103<=1200), $O$115, $S$115)) -> nelze | N111: =SUM(I103, -I104, -I105, -I106, -N120) -> 0 | O111: =SUM(I103, -I104, -I105, -I106, -O120) -> 0
B112: =ListAVS!$B$208 -> Čelo dole (FHu) v rozmezí | G112: min. | H112: =IF(AND($I$103>=480, $I$103<=519), $N$118, IF(AND($I$103>=520, $I$103<=1200), $O$118, $S$115)) -> nelze | I112: max. | J112: =IF(AND($I$103>=480, $I$103<=519), $N$120, IF(AND($I$103>=520, $I$103<=1200), $O$120, $S$115)) -> nelze | N112: max ↓↓ | O112: max ↓↓
N113: =ROUNDUP(SUM(519, -$I$104, -$I$105, -$I$106)/2, 0) -> 260 | O113: =ROUNDUP(SUM(1200, -$I$104, -$I$105, -$I$106)/2, 0) -> 600 | P113: absolutně
B114: =ListAVS!$B$214&" FHo [mm] " -> Výška čela nahoře FHo [mm] | K114: =IF($I$103=0," ",IF($I$114>$J$111,V114,IF($I$114<$H$111,$S$114," "))) ->  | N114: =SUM(I103, -I104, -I105, -I106, -N118) -> -219 | O114: =SUM(I103, -I104, -I105, -I106, -O118) -> -238 | P114: vypočtená | S114: =" min. "&TEXT($H$111,"#")&" mm!" -> min. nelze mm! | V114: =" max. "&TEXT($J$111,"#")&" mm!" -> max. nelze mm!
B115: =ListAVS!$B$215&" FHu [mm] " -> Výška čela dole FHu [mm] | I115: =IF($I$114<$H$111,$S$115,IF($I$114>$J$111,$S$115,+$I$103-$I$104-$I$105-$I$106-$I$114)) -> nelze | N115: =IF($N$114>$N$113, $N$113, $N$114) -> -219 | O115: =IF($O$114>$O$113, $O$113, $O$114) -> -238 | P115: výsledná | S115: =ListAVS!B211 -> nelze
B116: =ListAVS!$B$216&" H [mm] " -> Pozice zdvihače H [mm] | I116: =IF(AND($I$103>=480, $I$103<520), $N$107, IF(AND($I$103>=520, $I$103<=1200), $O$107, $S$115)) -> nelze | N116: FHu | O116: FHu
B117: =ListAVS!$B$217&" Z [mm] " -> Pozice mont. podložky pro teleskopy Z [mm] | I117: =IF(AND($I$103>=480, $I$103<520), $N$106, IF(AND($I$103>=520, $I$103<=1200), $O$106, $S$115)) -> nelze | N117: min ↓↓ | O117: min ↓↓
B118: =ListAVS!$B$218&" TKH [mm] * " -> Teoretická výška korpusu TKH [mm] * | I118: =IF($I$115=$S$115, $S$115, IF($Q$118>=480, IF($Q$118<=1202, $Q$118, $S$115)," ")) -> nelze | N118: =SUM(N106, 32, 17, $I$107, -$I$106) -> 219 | O118: =SUM(O106, 32, 17, $I$107, -$I$106) -> 238 | P118: TKH | Q118: =ROUND(SUM($I$114*2+$I$104+$I$105+$I$106), -1) -> 0
N119: max ↓↓ | O119: max ↓↓
B120: * | C120: =ListAVS!$B$220 -> Tuto výšku zadejte do tabulky pro plánování výklopů | N120: =ROUNDDOWN(SUM(I103, -I104, -I105, -I106)/2, 0) -> 0 | O120: =ROUNDDOWN(SUM(I103, -I104, -I105, -I106)/2, 0) -> 0
I125: =ListAVS!$B$167 -> Zpět
B139: AVENTOS HF
B141: =ListAVS!$B$302 -> Potřebný zdvihač se určí pomocí ukazatele výkonnosti.
B142: =ListAVS!$B$303 -> Ukazatel výkonnosti závisí na hmotnosti dolního i horního čílka, a rovněž na výšce korpusu.
D145: =ListAVS!$B$86&" = " -> Ukazatel výkonnosti = | E145: =ListAVS!$B$319&" [kg]" -> výška korpusu KH [mm] x hmotnost obou čel včetně úchytky [kg]
B151: =ListAVS!$B$311 -> Pokud znáte hmotnost čela, můžete ji zadat, jinak použijte "Výpočet hmotnosti".
B152: =ListAVS!$B$312 -> V tabulce má přednost zadaná hodnota. Chcete-li použít vypočtenou hmotnost, smažte zadanou hodnotu.
B154: =ListAVS!$B$322&". "&ListAVS!$B$323&"." -> Délka teleskopů závisí na výšce korpusu KH. U asymetrických čel se použije teoretická výška TKH.
B156: =" "&ListAVS!$B$162&":" -> Asymetrická čela:
B157: =" "&ListAVS!$B$320 -> Teoretická výška korpusu (TKH) = výška horního čela (FHo) x 2 (včetně mezer)
B159: =ListAVS!$B$315 -> U asymetrických čel musí být větší čelo nahoře!
B161: =ListAVS!$B$325 -> Pokud zadáte hodnotu TKH, použije se pro určení délky teleskopů
B162: =ListAVS!$B$326 -> Nemáte-li asymetrická čela, nechte políčko prázdné.
B163: =ListAVS!$B$327&" ' "&ListAVS!$B$194&"' " -> Pro výpočet TKH použijte ' Výpočet asymetrických čel'
B166: =ListAVS!$B$305 -> Chcete-li změnit barvu krytek, přejděte na "Úvod plánování"
B168: =ListAVS!$B$411 -> Věnujte pozornost výběru alurámečků.
B169: =ListAVS!$B$412 -> Vyberte, který typ lépe odpovídá tvaru použitého alurámečku.
B170: =ListAVS!$B$413 -> Způsob osazení skla do rámečku výrazně ovlivňuje plochu skla a tím i hmotnost!
C172: =" "&ListAVS!$B$424&" " -> s vloženým sklem
C174: =" "&ListAVS!$B$425&" " -> s naloženým nebo nalepeným sklem
L176: =ListAVS!$B$167 -> Zpět

Sheet HFw_na
B2: AVENTOS HF top | O2: rámeček | S2: 3 | AL2: =ListAVS!$B$152 -> Jdi na
B4: =ListAVS!$B$17 -> Dřevěné čelo | F4: =ListAVS!$B$35&" " -> horní čelo | K4: =U71 ->  | O4: 1 | S4: =" "&ListAVS!$B$41&" A " -> Cena za korpus A | X4: výpočet | AL4: =" "&ListAVS!$B$153 -> Úvod plánování
B5: =ListAVS!$B$22&" ***" -> Úzký alurámeček *** | F5: =ListAVS!$B$36&" " -> dolní čelo | K5: =U73 ->  | O5: A = 1 | S5: =" "&ListAVS!$B$41&" B " -> Cena za korpus B | AL5: =" "&ListAVS!$B$154 -> Nápověda
J6: =IF($Z$78<>3,$Y$73," ")&" " -> Změnit hodnoty můžete v Úvodu plánování | O6: B = 2 | S6: =" "&ListAVS!$B$61 -> Cena celkem bez DPH
B7: =ListAVS!$B$51&": " -> Cena kování: | G7: =IF(S2=1,$AF$47,IF($S$2=2,$AH$47,IF($S$2=3,$AD$47,0))) -> 0 | Y7: =$B$2 -> AVENTOS HF top | AL7: =" "&ListAVS!$B$159 -> Doplňky
H8: =IF(AND(OR($S$9=2, $S$20=2), $AD$47>0), $N$35, " ") ->  | Y8: =ListAVS!B52 -> Název | Z8: =ListAVS!$B$53 -> Číslo artiklu | AA8: =ListAVS!B54 -> Barva | AB8: =ListAVS!B56 -> Ks | AC8: =ListAVS!B58 -> Jednotková cena | AD8: =ListAVS!B59 -> Celkem | AE8: A | AF8: Cena | AG8: B | AH8: Cena | AN8: =" "&ListAVS!$B$86&" LF " -> Ukazatel výkonnosti LF | AP8: Zdvihací mechanizmus vruty | AQ8: Zdvihací mechanizmus šrouby
B9: ="▼ "&ListAVS!$B$317 -> ▼ Způsob otvírání | D9: =IF($M$17>0, ListAVS!$B$37&": ", " ") ->  | E9: =IF(SUM($AE$9:$AE$10)>0,25,IF(SUM($AE$11:$AE$12)>0,28," ")) ->  | F9: =ListAVS!$B$64&" A" -> Korpus A | N9: zdvih A | P9: teleskop | S9: 1 | T9: FALSE | V9: - SRVDRV | Y9: =CenAVS!A11 -> Sada zdvihačů HF top, na vruty | Z9: =CenAVS!B11 -> 22F2500 | AA9: =CenAVS!C11 -> ZN | AB9: =SUM(AE9,AG9) -> 0 | AC9: =CenAVS!F11 -> 1651.93 | AD9: =AB9*AC9 -> 0 | AE9: =IF($Y$48=1,ROUNDUP($M$17*$O$11,0),0) -> 0 | AF9: =$AC9*AE9 -> 0 | AG9: =IF($Y$48=1,ROUNDUP($M$28*$O$22,0),0) -> 0 | AH9: =$AC9*AG9 -> 0 | AL9: =" "&ListAVS!$B$156 -> Přehled korpusů | AN9: 2700 - 13500 | AP9: 22F2500 | AQ9: 22F2510
B10: =ListAVS!$B$74&" KB [mm] " -> Šířka korpusu KB [mm] | I10: =IF(H10=0," ",IF($H10<220," min. 220mm"," "))&IF(H17>0,IF(H10=0,"● "&ListAVS!$B$128," ")," ") ->  | P10: F32 | Q10: =IF(AND($P$16>=$AB$54,$P$16<=$AC$54),SUM($O$11:$O$12),0) -> 0 | T10: Závěs A | V10: Závěs As | Y10: =CenAVS!A12 -> Sada zdvihačů HF top, předmont. eurošrouby | Z10: =CenAVS!B12 -> 22F2510 | AA10: =CenAVS!C12 -> ZN | AB10: 0 | AC10: =CenAVS!F12 -> 1651.93 | AD10: =AB10*AC10 -> 0 | AE10: =IF($Y$48=2,ROUNDUP($M$17*$O$11,0),0) -> 0 | AF10: 0 | AG10: =IF($Y$48=2,ROUNDUP($M$28*$O$22,0),0) -> 0 | AH10: 0 | AL10: =" "&ListAVS!$B$157 -> Objednávka | AN10: 10000 - 19300 | AP10: 22F2800 | AQ10: 22F2810
B11: =ListAVS!$B$75&" [mm]" -> Výška korpusu [mm] | E11: TKH * | G11: KH | I11: =IF(H11=0," ",IF($H11<480," min. 480mm",IF($H11>1200," max. 1 200mm"," ")))&IF(H17>0,IF(H11=0,"● "&ListAVS!$B$128," ")," ") ->  | N11: F25 | O11: =IF($H16<$AB$50,0,IF($H16<=$AC$50,1,0)) -> 0 | P11: F35 | Q11: =IF(AND($P$16>=$AB$55,$P$16<=$AC$55),SUM($O$11:$O$12),0) -> 0 | T11: T558E | U11: =IF($N$48=1, IF(OR($H$10>=1200, $T$17>=12), 3, 2))+IF($N$48=1,IF(OR($H$10=1800, $T$17>=20), 1, 0)) -> 2 | V11: Z553E | W11: =IF($P$48=1, IF(OR($H$10>=1200, $T$17>=12), 3, 2))+IF($P$48=1,IF(OR($H$10=1800, $T$17>=20), 1, 0)) -> 0 | Y11: =CenAVS!A13 -> Sada zdvihačů HF top, na vruty | Z11: =CenAVS!B13 -> 22F2800 | AA11: =CenAVS!C13 -> ZN | AB11: 0 | AC11: =CenAVS!F13 -> 1805.55 | AD11: 0 | AE11: =IF($Y$48=1,ROUNDUP($M$17*$O$12,0),0) -> 0 | AF11: 0 | AG11: =IF($Y$48=1,ROUNDUP($M$28*$O$23,0),0) -> 0 | AH11: 0
B12: =ListAVS!$B$77&" [kg] ** " -> Hmotnost čela včetně úchytky [kg] ** | I12: =IF($T14="ne", " ", IF(AND($H12=0,$H15=0, $H17>0),$N$37," "))&IF(AND($H17>0, $H12>0, $M17>0),$N$41," ") ->  | N12: F28 | O12: =IF($H16<$AB$51,0,IF($H16<=$AC$51,1,0)) -> 0 | P12: F39 | Q12: =IF(AND($P$16>=$AB$56,$P$16<=$AC$56),SUM($O$11:$O$12),0) -> 0 | T12: T5550 | U12: =IF($N$48=2, IF(OR($H$10>=1200, $T$17>=12), 3, 2))+IF($N$48=2,IF(OR($H$10=1800, $T$17>=20), 1, 0)) -> 0 | V12: Z550AT | W12: =IF($P$48=2, IF(OR($H$10>=1200, $T$17>=12), 3, 2))+IF($P$48=2,IF(OR($H$10=1800, $T$17>=20), 1, 0)) -> 2 | Y12: =CenAVS!A14 -> Sada zdvihačů HF top, předmont. eurošrouby | Z12: =CenAVS!B14 -> 22F2810 | AA12: =CenAVS!C14 -> ZN | AB12: 0 | AC12: =CenAVS!F14 -> 1805.55 | AD12: 0 | AE12: =IF($Y$48=2,ROUNDUP($M$17*$O$12,0),0) -> 0 | AF12: 0 | AG12: =IF($Y$48=2,ROUNDUP($M$28*$O$23,0),0) -> 0 | AH12: 0 | AN12: =ListAVS!$B$86&" LF = "&ListAVS!$B$319&" [kg]" -> Ukazatel výkonnosti LF = výška korpusu KH [mm] x hmotnost obou čel včetně úchytky [kg]
B13: =ListAVS!$B$292 -> Výpočet hmotnosti | D13: =ListAVS!$B$81&" TS [mm] " -> Síla horního čela TS [mm] | I13: =IF(OR(H17=0, $T14="ne")," ",IF(AND(H12=0, H13=0)," ● "&ListAVS!$B$128," ")) ->  | Y13: =CenAVS!A15 -> Sada teleskopů HF top (480–610 mm) | Z13: =CenAVS!B15 -> 22F3200 | AA13: =CenAVS!C15 -> NI | AB13: 0 | AC13: =CenAVS!F15 -> 785.14 | AD13: 0 | AE13: =ROUNDUP($M$17*Q10,0) -> 0 | AF13: 0 | AG13: =ROUNDUP($M$28*Q21,0) -> 0 | AH13: 0
D14: =ListAVS!$B$83&" [kg] " -> Hmotnost úchytky [kg] | I14: =IF(H17=0, " ", IF(AND(H12=0, S9=1, H14=0), " ● "&ListAVS!$B$129," ")) ->  | S14: limit v/š | T14: =IF(AND(220<=H10, H10<=1800, 480<=P16, P16<=1200),"ano","ne") -> ne | Y14: =CenAVS!A16 -> Sada teleskopů HF top (600–910 mm) | Z14: =CenAVS!B16 -> 22F3500 | AA14: =CenAVS!C16 -> NI | AB14: 0 | AC14: =CenAVS!F16 -> 964.4 | AD14: 0 | AE14: =ROUNDUP($M$17*Q11,0) -> 0 | AF14: 0 | AG14: =ROUNDUP($M$28*Q22,0) -> 0 | AH14: 0
D15: =ListAVS!$B$79&" [kg] " -> Vypočtená hmotnost čela [kg] | H15: =$T$81 -> 0 | I15: =IF($H17>0,IF($H15>0,IF($H12=0,$N$41," ")," ")," ")&IF(AND(H17>0, H12=0, Z78=3, $J$4=0), $N$39, " ") ->  | S15: limit LF | T15: =IF(AND(H16>=$AB$50, H16<=$AC$51), "ano", "ne") -> ne | Y15: =CenAVS!A17 -> Sada teleskopů HF top (840–1200 mm) | Z15: =CenAVS!B17 -> 22F3900 | AA15: =CenAVS!C17 -> NI | AB15: 0 | AC15: =CenAVS!F17 -> 1143.64 | AD15: 0 | AE15: =ROUNDUP($M$17*Q12,0) -> 0 | AF15: 0 | AG15: =ROUNDUP($M$28*Q23,0) -> 0 | AH15: 0
B16: =ListAVS!$B$86&" LF " -> Ukazatel výkonnosti LF | H16: =IF(H11<1041,IF(H11>479,IF(H12>0,H11*H12,H11*H15),0),0) -> 0 | I16: =IF(AND(H16>0, H16<$AB$50), $T$44, IF($H16>$AC$51, $N$44, " ")) ->  | O16: výška korpusu | P16: =IF(F11>0,IF(F11>=H11,F11,0),H11) -> 0 | Y16: =CenAVS!A47 -> Sada krytek HF, HS, HL top, světle šedá | Z16: =CenAVS!B47 -> 22.8000 | AA16: =CenAVS!C47 -> HGR | AB16: =SUM(AE16,AG16) -> 0 | AC16: =CenAVS!F47 -> 252.85 | AD16: 0 | AE16: =IF(AND($S$9=1, $T$48=1), SUM($AE$9:$AE$12), 0) -> 0 | AF16: 0 | AG16: =IF(AND($S$20=1, $T$48=1), SUM($AG$9:$AG$12), 0) -> 0 | AH16: 0
B17: =ListAVS!$B$71&" " -> Počet skříněk | M17: =IF($H10*$P16=0,0,IF(SUM($H12,$H15)=0,0,IF($P16>$AC$57,0,IF(P16<$AB$54,0,IF(OR(T14="ne", T15="ne"),0,$H17))))) -> 0 | N17: ← Hlavní údaj | S17: hmot = | T17: =IF(H12>0,H12,H15) -> 0 | U17: =IF(SUM(H12,H15)=0,0,IF(H12>0,1,2)) -> 0 | V17: zadaná / vypočtená | Y17: =CenAVS!A48 -> Sada krytek HF, HS, HL top, tmavě šedá | Z17: =CenAVS!B48 -> 22.8000 | AA17: =CenAVS!C48 -> TGR | AB17: =SUM(AE17,AG17) -> 0 | AC17: =CenAVS!F48 -> 275.94 | AD17: 0 | AE17: =IF(AND($S$9=1, $T$48=2), SUM($AE$9:$AE$12), 0) -> 0 | AF17: 0 | AG17: =IF(AND($S$20=1, $T$48=2), SUM($AG$9:$AG$12), 0) -> 0 | AH17: 0 | AN17: vruty = zdvihače s integrovanou šablonou (bez nutnosti rozměřování)
B18: =IF(H17>0,IF(U17=0," ",IF(U17=1,$N$53,$N$54))," ")&IF(H17>0,IF(U17=0," ",IF(U17=1,$N$55,$N$56))," ") ->  | Y18: =CenAVS!A49 -> Sada krytek HF, HS, HL top, hedvábně bílá | Z18: =CenAVS!B49 -> 22.8000 | AA18: =CenAVS!C49 -> SW | AB18: 0 | AC18: =CenAVS!F49 -> 275.94 | AD18: 0 | AE18: =IF(AND($S$9=1, $T$48=3), SUM($AE$9:$AE$12), 0) -> 0 | AF18: 0 | AG18: =IF(AND($S$20=1, $T$48=3), SUM($AG$9:$AG$12), 0) -> 0 | AH18: 0 | AN18: šrouby = zdvihače s přednotovanými šrouby (nutné předvrtání)
B19: =IF(F11=0," ",IF(F11>1200,"TKH = max. 1200!",IF(F11<480,"TKH = min. 480!",IF(F11<H11,$N$59,IF(H17>0,IF(F11=0," ",IF(AND(F11>0,M17=1), $N$58," "))," "))))) ->  | Y19: =CenAVS!A50 -> Sada krytek pro SERVO-DRIVE, světle šedá | Z19: =CenAVS!B50 -> 23.8000 | AA19: =CenAVS!C50 -> HGR | AB19: 0 | AC19: =CenAVS!F50 -> 2606.76 | AD19: 0 | AE19: =IF(AND($S$9=2, $T$48=1), $AE$45, 0) -> 0 | AF19: 0 | AG19: =IF(AND($S$20=2, $T$48=1), $AG$45, 0) -> 0 | AH19: 0 | AL19: =" "&ListAVS!$B$194 -> Výpočet asymetrických čel
B20: ="▼ "&ListAVS!$B$317 -> ▼ Způsob otvírání | D20: =IF($M$28>0, ListAVS!$B$37&": ", " ") ->  | E20: =IF(SUM($AG$9:$AG$10)>0,25,IF(SUM($AG$11:$AG$12)>0,28," ")) ->  | F20: =ListAVS!$B$64&" B" -> Korpus B | N20: zdvih B | P20: teleskop | S20: 1 | T20: FALSE | V20: - SRVDRV | Y20: =CenAVS!A51 -> Sada krytek pro SERVO-DRIVE, tmavě šedá | Z20: =CenAVS!B51 -> 23.8000 | AA20: =CenAVS!C51 -> TGR | AB20: 0 | AC20: =CenAVS!F51 -> 2709.29 | AD20: 0 | AE20: =IF(AND($S$9=2, $T$48=2), $AE$45, 0) -> 0 | AF20: 0 | AG20: =IF(AND($S$20=2, $T$48=2), $AG$45, 0) -> 0 | AH20: 0
B21: =ListAVS!$B$74&" KB [mm] " -> Šířka korpusu KB [mm] | I21: =IF(H21=0," ",IF($H21<220," min. 220mm",IF($H21>1800," max. 1 800mm"," ")))&IF(H28>0,IF(H21=0,"● "&ListAVS!$B$128," ")," ") ->  | P21: F32 | Q21: =IF(AND($P$27>=$AB$54,$P$27<=$AC$54),SUM($O$22:$O$23),0) -> 0 | T21: Závěs B | V21: Závěs Bs | Y21: =CenAVS!A52 -> Sada krytek pro SERVO-DRIVE,hedvábně bílá | Z21: =CenAVS!B52 -> 23.8000 | AA21: =CenAVS!C52 -> SW | AB21: 0 | AC21: =CenAVS!F52 -> 2709.29 | AD21: 0 | AE21: =IF(AND($S$9=2, $T$48=3), $AE$45, 0) -> 0 | AF21: 0 | AG21: =IF(AND($S$20=2, $T$48=3), $AG$45, 0) -> 0 | AH21: 0
B22: =ListAVS!$B$75&" [mm]" -> Výška korpusu [mm] | E22: TKH * | G22: KH | I22: =IF(H22=0," ",IF($H22<480," min. 480mm",IF($H22>1200," max. 1 200mm"," ")))&IF(H28>0,IF(H22=0,"● "&ListAVS!$B$128," ")," ") ->  | N22: F25 | O22: =IF($H27<$AB$50,0,IF($H27<=$AC$50,1,0)) -> 0 | P22: F35 | Q22: =IF(AND($P$27>=$AB$55,$P$27<=$AC$55),SUM($O$22:$O$23),0) -> 0 | T22: T558E | U22: =IF($N$48=1, IF(OR($H$21>=1200, $T$28>=12), 3, 2))+IF($N$48=1,IF(OR($H$21=1800, $T$28>=20), 1, 0)) -> 2 | V22: Z553E | W22: =IF($P$48=1, IF(OR($H$21>=1200, $T$28>=12), 3, 2))+IF($P$48=1,IF(OR($H$21=1800, $T$28>=20), 1, 0)) -> 0 | Y22: =CenAVS!A18 -> Závěs CLIP top 120° | Z22: =CenAVS!B18 -> 70T5550.TL | AA22: =CenAVS!C18 -> NI | AB22: 0 | AC22: =CenAVS!F18 -> 56.56 | AD22: 0 | AE22: =$U$12*$M$17 -> 0 | AF22: 0 | AG22: =$U$23*$M$28 -> 0 | AH22: 0
B23: =ListAVS!$B$77&" [kg] ** " -> Hmotnost čela včetně úchytky [kg] ** | I23: =IF($H28=0," ",IF(SUM($H23,$H26)=0,$N$37," "))&IF($H28>0,IF($H23>0,$N$41," ")," ") ->  | N23: F28 | O23: =IF($H27<$AB$51,0,IF($H27<=$AC$51,1,IF($H27>$AB$52,1.5,0))) -> 0 | P23: F39 | Q23: =IF(AND($P$27>=$AB$56,$P$27<=$AC$56),SUM($O$22:$O$23),0) -> 0 | T23: T5550 | U23: =IF($N$48=2, IF(OR($H$21>=1200, $T$28>=12), 3, 2))+IF($N$48=2,IF(OR($H$21=1800, $T$28>=20), 1, 0)) -> 0 | V23: Z550AT | W23: =IF($P$48=2, IF(OR($H$21>=1200, $T$28>=12), 3, 2))+IF($P$48=2,IF(OR($H$21=1800, $T$28>=20), 1, 0)) -> 2 | Y23: =CenAVS!A19 -> Závěs CLIP top 120° EXPANDO | Z23: =CenAVS!B19 -> 70T558E | AA23: =CenAVS!C19 -> NI | AB23: 0 | AC23: =CenAVS!F19 -> 53.42 | AD23: 0 | AE23: =$U$11*$M$17 -> 0 | AF23: 0 | AG23: =$U$22*$M$28 -> 0 | AH23: 0
B24: =ListAVS!$B$292 -> Výpočet hmotnosti | D24: =ListAVS!$B$81&" TS [mm] " -> Síla horního čela TS [mm] | I24: =IF(H28=0," ",IF(AND(H23=0, H24=0)," ● "&ListAVS!$B$128," ")) ->  | Y24: =CenAVS!A20 -> Středový závěs CLIP top | Z24: =CenAVS!B20 -> 78Z5500T | AA24: =CenAVS!C20 -> NI | AB24: 0 | AC24: =CenAVS!F20 -> 92.71 | AD24: 0 | AF24: 0 | AH24: 0
D25: =ListAVS!$B$83&" [kg] " -> Hmotnost úchytky [kg] | I25: =IF(H28=0, " ", IF(AND(H23=0, S20=1, H25=0), " ● "&ListAVS!$B$129," ")) ->  | S25: limit v/š | T25: =IF(AND(220<=H21, H21<=1800, 480<=P27, P27<=1200),"ano","ne") -> ne | Y25: =CenAVS!A21 -> Středový závěs CLIP top EXPANDO | Z25: =CenAVS!B21 -> 78Z553ET | AA25: =CenAVS!C21 -> NI | AB25: 0 | AC25: =CenAVS!F21 -> 95.69 | AD25: 0 | AF25: 0 | AH25: 0
D26: =ListAVS!$B$79&" [kg] " -> Vypočtená hmotnost čela [kg] | H26: =$T$90 -> 0 | I26: =IF($H28>0,IF($H26>0,IF($H23=0,$N$41," ")," ")," ")&IF(AND(H28>0, H23=0, Z87=3, $J$4=0), $N$39, " ") ->  | S26: limit LF | T26: =IF(AND(H27>=$AB$50, H27<=$AC$51), "ano", "ne") -> ne | Y26: =CenAVS!A22 -> Závěs CLIP top pro alurámečky | Z26: =CenAVS!B22 -> 72T550A.TL | AA26: =CenAVS!C22 -> NI | AB26: 0 | AC26: =CenAVS!F22 -> 77.18 | AD26: 0 | AF26: 0 | AH26: 0
B27: =ListAVS!$B$86&" LF " -> Ukazatel výkonnosti LF | H27: =IF(H22<1041,IF(H22>479,IF(H23>0,H22*H23,H22*H26),0),0) -> 0 | I27: =IF(AND(H27>0, H27<$AB$50), $T$44, IF($H27>$AC$51, $N$44, " ")) ->  | O27: výška korpusu | P27: =IF(F22>0,IF(F22>=H22,F22,0),H22) -> 0 | Y27: =CenAVS!A23 -> Střed. závěs CLIP top pro alurámečky | Z27: =CenAVS!B23 -> 78Z550AT | AA27: =CenAVS!C23 -> NI | AB27: 0 | AC27: =CenAVS!F23 -> 101.63 | AD27: 0 | AE27: =$W$12*$M$17 -> 0 | AF27: 0 | AG27: =$W$23*$M$28 -> 0 | AH27: 0
B28: =ListAVS!$B$71&" " -> Počet skříněk | M28: =IF($H21*$P27=0,0,IF(SUM($H23,$H26)=0,0,IF($P27>$AC$57,0,IF(P27<$AB$54,0,IF(OR(T25="ne", T26="ne"),0,$H28))))) -> 0 | N28: ← Hlavní údaj | S28: hmot = | T28: =IF(H23>0,H23,H26) -> 0 | U28: =IF(SUM(H23,H26)=0,0,IF(H23>0,1,2)) -> 0 | V28: zadaná / vypočtená | Y28: =CenAVS!A24 -> Adaptér CLIP k teleskopům P | Z28: =CenAVS!B24 -> 175H5B00 R | AA28: =CenAVS!C24 -> NI | AB28: 0 | AC28: =CenAVS!F24 -> 90.34 | AD28: 0 | AE28: =SUM($Q$10:$Q$12)*$M$17 -> 0 | AF28: 0 | AG28: =SUM($Q$21:$Q$23)*$M$28 -> 0 | AH28: 0
B29: =IF(H28>0,IF(U28=0," ",IF(U28=1,$N$53,$N$54))," ")&IF(H28>0,IF(U28=0," ",IF(U28=1,$N$55,$N$56))," ") ->  | Y29: =CenAVS!A25 -> Adaptér CLIP k teleskopům L | Z29: =CenAVS!B25 -> 175H5B00 L | AA29: =CenAVS!C25 -> NI | AB29: 0 | AC29: =CenAVS!F25 -> 90.34 | AD29: 0 | AE29: =SUM($Q$10:$Q$12)*$M$17 -> 0 | AF29: 0 | AG29: =SUM($Q$21:$Q$23)*$M$28 -> 0 | AH29: 0
B30: =IF(F22=0," ",IF(F22>1200,"TKH = max. 1200!",IF(F22<480,"TKH = min. 480!",IF(F22<H22,$N$59,IF(H28>0,IF(F22=0," ",IF(AND(F22>0,M28=1), $N$58," "))," "))))) ->  | Y30: =CenAVS!A26 -> Adaptér CLIP ke středovým závěsům | Z30: =CenAVS!B26 -> 175H5A00 | AA30: =CenAVS!C26 -> NI | AB30: 0 | AC30: =CenAVS!F26 -> 90.34 | AD30: 0 | AF30: 0 | AH30: 0
B31: =IF(OR(AND($S$9=2, $M$17>0), AND($S$20=2, $M$28>0)), ListAVS!$B$175, " ") ->  | S31: =IF($T$31=FALSE,2,1) -> 1 | T31: TRUE | V31: - Zdroj
Y33: =CenAVS!A27 -> 0 | Z33: =CenAVS!B27 -> 0 | AA33: =CenAVS!C27 -> 0 | AC33: =CenAVS!F27 -> 0 | AD33: 0 | AF33: 0 | AH33: 0
AD34: 0 | AF34: 0 | AH34: 0
N35: =ListAVS!B176 -> Cena bez napájecího zdroje! | AD35: 0 | AF35: 0 | AH35: 0
Y36: =CenAVS!A162 -> CLIP top montážní podložka, excentr, 0 mm | Z36: =CenAVS!B162 -> 173H7100 | AA36: =CenAVS!C162 -> NI | AB36: 0 | AC36: =CenAVS!F162 -> 17.84 | AD36: 0 | AF36: 0 | AH36: 0
C37: ="* "&ListAVS!$B$183 -> * Pouze pro asymetrická čela: zadejte teoretickou výšku TKH. | N37: =" "&ListAVS!$B$115 -> Zadejte hmotnost nebo vyplňte všechny buňky | Y37: =CenAVS!A163 -> CLIP top mont. podložka, excentr, EXPANDO, 0 mm | Z37: =CenAVS!B163 -> 174H7100E | AA37: =CenAVS!C163 -> NI | AB37: 0 | AC37: =CenAVS!F163 -> 19.39 | AD37: 0 | AF37: 0 | AH37: 0
C38: =" ( "&ListAVS!$B$184&")" -> ( TKH = dvojnásobná výška horního čela včetně mezer) | AF38: 0 | AH38: 0
C39: =" "&ListAVS!$B$327&" '"&ListAVS!$B$194&"' " -> Pro výpočet TKH použijte 'Výpočet asymetrických čel' | N39: =" "&ListAVS!$B$117 -> Vyplňte nahoře objemovou hmotnost
C41: ="** "&ListAVS!$B$186 -> ** Pokud znáte hmotnost a nechcete využít výpočtu hmotnosti | N41: ="◄ "&ListAVS!$B$111 -> ◄ hodnota bude použita pro výpočet LF
C42: ="*** "&ListAVS!$B$403 -> *** Vyberte typ alurámečku! | N42: =" * "&ListAVS!$B$127 -> * Doplňte hodnoty | Y42: =CenAVS!A166 -> CLIP top přímá mont. podložka, ocel, 0 mm | Z42: =CenAVS!B166 -> 175H3100 | AA42: =CenAVS!C166 -> NI | AB42: =SUM(AE42,AG42) -> 0 | AC42: =CenAVS!F166 -> 16.98 | AD42: 0 | AE42: =IF($R$48=2, SUM($U$11:$U$12, $W$12)*$M$17, 0) -> 0 | AF42: =$AC42*AE42 -> 0 | AG42: =IF($R$48=2, SUM($U$22:$U$23, $W$23)*$M$17, 0) -> 0 | AH42: =$AC42*AG42 -> 0
C43: =" "&ListAVS!$B$404 -> Více informací k výběru alurámečků v Nápovědě | Y43: =CenAVS!A167 -> CLIP top přímá mont. podložka, ocel, EXP, 0 mm | Z43: =CenAVS!B167 -> 177H3100E | AA43: =CenAVS!C167 -> NI | AB43: =SUM(AE43,AG43) -> 0 | AC43: =CenAVS!F167 -> 17.07 | AD43: 0 | AE43: =IF($R$48=1, SUM($U$11:$U$12, $W$12)*$M$17, 0) -> 0 | AF43: =$AC43*AE45 -> 0 | AG43: =IF($R$48=1, SUM($U$22:$U$23, $W$23)*$M$17, 0) -> 0 | AH43: =$AC43*AG43 -> 0
N44: =" max. 19.300! "&ListAVS!$B$121 -> max. 19.300! Upravte hmotnost nebo výšku | T44: =" min. "&$AB$50&"! "&ListAVS!$B$121 -> min. 2700! Upravte hmotnost nebo výšku | Y44: =CenAVS!A169 -> 0 | Z44: =CenAVS!B169 -> 0 | AA44: =CenAVS!C169 -> 0 | AC44: =CenAVS!F169 -> 0 | AD44: 0 | AF44: =$AC44*AE44 -> 0 | AH44: =$AC44*AG44 -> 0
N45: =" "&ListAVS!$B$119 -> Přídavný třetí zdvihač | U45: =" "&ListAVS!B126 -> Použijte pouze jeden zdvihač | Y45: =CenAVS!A171 -> SERVO-DRIVE jednotka (sada) | Z45: =CenAVS!B171 -> 23.A000 | AA45: =CenAVS!C171 -> R7037 | AB45: =SUM(AE45,AG45) -> 0 | AC45: =CenAVS!F171 -> 8297.32 | AD45: 0 | AE45: =IF($S$9=1, 0, $M$17)+IF(AND($S$9=2, $H$16>$AB$52), $M$17, 0) -> 0 | AF45: =$AC45*AE45 -> 0 | AG45: =IF($S$20=1, 0, $M$28)+IF(AND($S$20=2, $H$27>$AB$52), $M$28, 0) -> 0 | AH45: =$AC45*AG45 -> 0
N46: =ListAVS!$B$181 -> Přídavný třetí zdvihač může být použit pouze s plným spodním čelem!
AC47: =ListAVS!$B$61&" " -> Cena celkem bez DPH | AD47: =SUM(AD9:AD45) -> 0 | AF47: =SUM(AF9:AF46) -> 0 | AH47: =SUM(AH9:AH46) -> 0
N48: =HF!$L$33 -> 1 | O48: 2 | P48: 2 | Q48: 2 | R48: =HF!$P$33 -> 1 | T48: =MenuAVS!$P$28 -> 1 | Y48: =HF!$R$33 -> 1 | Z48: =Param!M10 -> Parametry HF
N49: záv. | O49: alu | P49: střed. | Q49: alu | R49: podl. | T49: kryt. | W49: Provedení: | Y49: montáž: | Z49: =Param!M11 -> Zdvihač | AA49: =Param!N11 -> ks | AB49: =Param!O11 -> min | AC49: =Param!P11 -> max | AD49: =Param!Q11 -> alu max.
N50: =ListAVS!$B$133 -> Expando | P50: =ListAVS!$B$133 -> Expando | R50: =ListAVS!$B$133 -> Expando | T50: =ListAVS!$B$145 -> Světle šedá (HGR) | W50: Standard | Y50: vruty | Z50: =Param!M12 -> 22F2500 | AA50: =Param!N12 -> 1 | AB50: =Param!O12 -> 2700 | AC50: =Param!P12 -> 11500
N51: =ListAVS!$B$134 -> na vruty | P51: =ListAVS!$B$134 -> na vruty | R51: =ListAVS!$B$134 -> na vruty | T51: =ListAVS!$B$146 -> Tmavě šedá (TGR) | W51: SERVO-DRIVE | Y51: eurošrouby | Z51: =Param!M13 -> 22F2800 | AA51: =Param!N13 -> 1 | AB51: =Param!O13 -> 11500 | AC51: =Param!P13 -> 19300 | AD51: =Param!Q13 -> 19300
T52: =ListAVS!$B$147 -> Hedvábně bílá (SW) | Z52: =Param!M14 -> 22F2800 | AA52: =Param!N14 -> 1.5 | AB52: =Param!O14 -> 19300 | AC52: =Param!P14 -> 28950 | AD52: =Param!Q14 -> 0
N53: =ListAVS!B187 -> Pro určení typu zdvihače bude použita zadaná hmotnost | Z53: =Param!M17 -> Teleskop | AB53: =Param!O17 -> min | AC53: =Param!P17 -> max | AD53: =Param!Q17 -> 0
N54: =ListAVS!B188 -> Pro určení typu zdvihače bude použita vypočtená hmotnost | Z54: =Param!M18 -> 20F3200 | AA54: =Param!N18 -> 0 | AB54: =Param!O18 -> 480 | AC54: =Param!P18 -> 605 | AD54: =Param!Q18 -> 0
N55: =". "&ListAVS!$B$189 -> . Chcete-li použít vypočtenou hmotnost, smažte zadanou hodnotu | Z55: =Param!M19 -> 20F3500 | AA55: =Param!N19 -> 0 | AB55: =Param!O19 -> 605 | AC55: =Param!P19 -> 890 | AD55: =Param!Q19 -> 0
N56: =". "&ListAVS!$B$190 -> . Chcete-li použít zadanou hmotnost, zadejte ji do políčka | Z56: =Param!M20 -> 20F3900 | AA56: =Param!N20 -> 0 | AB56: =Param!O20 -> 890 | AC56: =Param!P20 -> 1200 | AD56: =Param!Q20 -> 0
N57: =ListAVS!B191 -> 0 | AB57: =Param!O21 -> max. | AC57: =Param!P21 -> 1200 | AD57: =Param!Q21 -> 0
N58: =ListAVS!B192 -> Pro výběr teleskopů bude použita teoretická výška TKH
N59: =ListAVS!B193 -> Teoretická výška TKH nesmí být menší než KH
N70: =ListAVS!$B$73 -> Výpočet hmotnosti čel
O71: =ListAVS!$B$35&" " -> horní čelo | T71: =J4 -> 0 | U71: =IF(Z78=3,IF(T71=0,Y74," "),IF(T71>0,Y75," ")) ->  | Y71: =IF($Z$78=1,$Z$79,IF($Z$78=2,$Z$80,$Z$81&" "&$Y$81&"kg/m3"))&" A~"&$T$79&"/ B~"&$T$88&"mm" -> MDF (760 kg/m3) A~0/ B~0mm | AD71: =MenuAVS!$Q$81 -> 2500
P72: =IF($Z$78<>3,$Y$73," ")&" " -> Změnit hodnoty můžete v Úvodu plánování | Y72: =IF($AF$77=1,$AF$94,IF($AF$77=2,$AF$95,$AF$96&" - "&$T$73&"mm")) -> Alurámečky s 4mm sklem
O73: =ListAVS!$B$36&" " -> dolní čelo | T73: =J5 -> 0 | U73: =IF(AF77=3,IF(T73=0,AE74," "),IF(T73>0,AE75," ")) ->  | Y73: =" "&ListAVS!$B$410 -> Změnit hodnoty můžete v Úvodu plánování
Y74: =" "&ListAVS!$B$244&" [kg/m3]" -> Zadejte objemovou hmotnost [kg/m3] | AE74: =" "&ListAVS!$B$245&" [mm]" -> Zadejte sílu skla [mm]
Y75: =" "&ListAVS!$B$240&" '"&ListAVS!$B$92&"'" -> Hodnota platí jen pro volbu 'Jiné - volitelná hustota' | AE75: =" "&ListAVS!$B$240&" '"&ListAVS!$B$95&"'" -> Hodnota platí jen pro volbu 'Alurámečky s jiným sklem'
R76: =D9 ->  | AE76: váha spoj. | AF76: tl. skla | AG76: typ alu
N77: =ListAVS!$B$74&" KB [mm] " -> Šířka korpusu KB [mm] | T77: =H10 -> 0 | Y77: =T77*T78*T79/2 -> 0 | AD77: =IF($AG$77=1,$X$94,$X$95) -> 0.31 | AE77: =$X$96 -> 0.46 | AF77: 1 | AG77: =$O$4 -> 1
N78: =ListAVS!$B$75&" KH [mm] " -> Výška korpusu KH [mm] | T78: =H11 -> 0 | Y78: =Y77/1000000000 -> 0 | Z78: =AF77 -> 1 | AD78: váha alu | AE78: =SUM(T77*2,(T78/2-40)*2)*AD77/1000 -> -0.0248 | AF78: A plocha B
N79: =ListAVS!$B$80&" TS [mm] " -> Síla čela TS [mm] | T79: =H13 -> 0 | U79: =IF(SUM(T77,T78)=0," ",IF(T79=0," ● "&ListAVS!$B$128," ")) ->  | Y79: =MenuAVS!$C$31 -> 760 | Z79: =ListAVS!$B$90&" ("&Y79&" kg/m3)" -> MDF (760 kg/m3) | AD79: =$AD$71*4/1000 -> 10 | AE79: =IF($AG$77=1,AF79*AD79,AG79*AD79) -> 0.009 | AF79: =SUM(($T$77-30)*($T$78/2-30)/1000000) -> 0.0009 | AG79: =SUM(($T$77-6)*($T$78/2-6)/1000000) -> 3.6e-05 | AH79: 4mm
N80: =ListAVS!$B$83&" [kg] " -> Hmotnost úchytky [kg] | T80: =H14 -> 0 | U80: =IF(SUM(T77,T78)=0," ",IF(T80=0," ● "&ListAVS!$B$129," ")) ->  | Y80: =MenuAVS!$C$32 -> 680 | Z80: =ListAVS!$B$91&" ("&Y80&" kg/m3)" -> Dřevotříska (680 kg/m3) | AD80: =$AD$71*5/1000 -> 12.5 | AE80: =IF($AG$77=1,AF80*AD80,AG80*AD80) -> 0.01125 | AF80: =SUM(($T$77-30)*($T$78/2-30)/1000000) -> 0.0009 | AG80: =SUM(($T$77-6)*($T$78/2-6)/1000000) -> 3.6e-05 | AH80: 5mm
N81: =ListAVS!$B$79&" [kg] " -> Vypočtená hmotnost čela [kg] | T81: =IF(X81*AD82<>0,SUM(X81,AD82,T80),0) -> 0 | X81: =IF(T77*T78*T79=0,0,IF(Z78=1,Y78*Y79,IF(Z78=2,Y78*Y80,Y78*Y81))) -> 0 | Y81: =$T$71 -> 0 | Z81: =ListAVS!$B$92 -> Jiné - volitelná hustota | AD81: =$AD$71*$T$73/1000 -> 0 | AE81: =IF($AG$77=1,AF81*AD81,AG81*AD81) -> 0 | AF81: =SUM(($T$77-30)*($T$78/2-30)/1000000) -> 0.0009 | AG81: =SUM(($T$77-6)*($T$78/2-6)/1000000) -> 3.6e-05 | AH81: jiné
O82: =IF(T81>0,IF(T80=0,$Z$94," ")," ") ->  | AD82: =IF(OR(AND(AF77=3, $T$73=0), T77*T78=0), 0, SUM(IF(AF77=1,AE79,IF(AF77=2,AE80,AE81)),AE78,AE77)) -> 0
R85: =D20 ->  | AE85: váha spoj. | AF85: tl. skla | AG85: typ alu
N86: =ListAVS!$B$74&" KB [mm] " -> Šířka korpusu KB [mm] | T86: =H21 -> 0 | Y86: =T86*T87*T88 -> 0 | AD86: =IF($AG$77=1,$X$94,$X$95) -> 0.31 | AE86: =$X$96 -> 0.46 | AF86: =$AF$77 -> 1 | AG86: =$AG$77 -> 1
N87: =ListAVS!$B$75&" KH [mm] " -> Výška korpusu KH [mm] | T87: =H22 -> 0 | Y87: =Y86/1000000000/2 -> 0 | Z87: =Z78 -> 1 | AD87: váha alu | AE87: =SUM(T86*2,(T87/2-40)*2)*AD86/1000 -> -0.0248 | AF87: A plocha B
N88: =ListAVS!$B$80&" TS [mm] " -> Síla čela TS [mm] | T88: =H24 -> 0 | U88: =IF(SUM(T86,T87)=0," ",IF(T88=0," ● "&ListAVS!$B$128," ")) ->  | Y88: =$Y$79 -> 760 | Z88: =$Z$79 -> MDF (760 kg/m3) | AD88: =AD79 -> 10 | AE88: =IF($AG$77=1,AF88*AD88,AG88*AD88) -> 0.009 | AF88: =SUM(($T$86-30)*($T$87/2-30)/1000000) -> 0.0009 | AG88: =SUM(($T$86-6)*($T$87/2-6)/1000000) -> 3.6e-05 | AH88: 4mm
N89: =ListAVS!$B$83&" [kg] " -> Hmotnost úchytky [kg] | T89: =H25 -> 0 | U89: =IF(SUM(T86,T87)=0," ",IF(T89=0," ● "&ListAVS!$B$129," ")) ->  | Y89: =$Y$80 -> 680 | Z89: =$Z$80 -> Dřevotříska (680 kg/m3) | AD89: =AD80 -> 12.5 | AE89: =IF($AG$77=1,AF89*AD89,AG89*AD89) -> 0.01125 | AF89: =SUM(($T$86-30)*($T$87/2-30)/1000000) -> 0.0009 | AG89: =SUM(($T$86-6)*($T$87/2-6)/1000000) -> 3.6e-05 | AH89: 5mm
N90: =ListAVS!$B$79&" [kg] " -> Vypočtená hmotnost čela [kg] | T90: =IF(X90*AD91<>0,SUM(X90,AD91,T89),0) -> 0 | X90: =IF(T86*T87*T88=0,0,IF(Z87=1,Y87*Y88,IF(Z87=2,Y87*Y89,Y87*Y90))) -> 0 | Y90: =$Y$81 -> 0 | Z90: =$Z$81 -> Jiné - volitelná hustota | AD90: =AD81 -> 0 | AE90: =IF($AG$77=1,AF90*AD90,AG90*AD90) -> 0 | AF90: =SUM(($T$86-30)*($T$87/2-30)/1000000) -> 0.0009 | AG90: =SUM(($T$86-6)*($T$87/2-6)/1000000) -> 3.6e-05 | AH90: jiné
O91: =IF(T90>0,IF(T89=0,$Z$94," ")," ") ->  | AD91: =IF(T86*T87=0,0,SUM(IF(AF86=1,AE88,IF(AF86=2,AE89,AE90)),AE87,AE86)) -> 0
W94: =ListAVS!$B$424&" " -> s vloženým sklem | X94: =MenuAVS!$I$91 -> 0.31 | Z94: =ListAVS!$B$102&"!" -> Není započtena hmotnost úchytky! | AF94: =ListAVS!$B$93 -> Alurámečky s 4mm sklem
W95: =ListAVS!$B$425&" " -> s naloženým nebo nalepeným sklem | X95: =MenuAVS!$I$92 -> 0.32 | AF95: =ListAVS!$B$94 -> Alurámečky s 5mm sklem
W96: =ListAVS!$B$405&" [kg/set] * " -> Hmotnost spojovacího materiálu [kg/set] * | X96: =MenuAVS!$I$93 -> 0.46 | AF96: =ListAVS!$B$95 -> Alurámečky s jiným sklem
B100: =ListAVS!$B$194 -> Výpočet asymetrických čel
B102: =" "&ListAVS!$B$197 -> Parametry korpusu
B103: =ListAVS!$B$75&" KH [mm] " -> Výška korpusu KH [mm] | K103: =IF(I103<480, " min. 480", IF(I103>1200, " max. 1200", " ")) -> min. 480 | N103: <=519 | O103: >=520
B104: =ListAVS!$B$200&" F1 [mm] " -> Mezera nahoře F1 [mm]
B105: =ListAVS!$B$201&" F2 [mm] " -> Mezera mezi čely F2 [mm] | K105: =IF($I$103=0," ",IF($I$105<1.5," min. 1,5 mm!"," ")) -> 
B106: =ListAVS!$B$202&" F3 [mm] " -> Mezera dole F3 [mm] | M106: Z | N106: 170 | O106: 189
B107: =ListAVS!$B$203&" [mm] " -> Síla dna korpusu [mm] | M107: H | N107: 93 | O107: 116
B109: =" "&ListAVS!$B$205 -> Výsledky plánování | N109: FHo | O109: FHo
G110: =ListAVS!$B$206&" [mm] " -> Možné výšky čel [mm] | N110: min ↓↓ | O110: min ↓↓
B111: =ListAVS!$B$207 -> Čelo nahoře (FHo) v rozmezí | G111: min. | H111: =IF(AND($I$103>=480, $I$103<=519), $N$111, IF(AND($I$103>=520, $I$103<=1200), $O$111, $S$115)) -> nelze | I111: max. | J111: =IF(AND($I$103>=480, $I$103<=519), $N$115, IF(AND($I$103>=520, $I$103<=1200), $O$115, $S$115)) -> nelze | N111: =SUM(I103, -I104, -I105, -I106, -N120) -> 0 | O111: =SUM(I103, -I104, -I105, -I106, -O120) -> 0
B112: =ListAVS!$B$208 -> Čelo dole (FHu) v rozmezí | G112: min. | H112: =IF(AND($I$103>=480, $I$103<=519), $N$118, IF(AND($I$103>=520, $I$103<=1200), $O$118, $S$115)) -> nelze | I112: max. | J112: =IF(AND($I$103>=480, $I$103<=519), $N$120, IF(AND($I$103>=520, $I$103<=1200), $O$120, $S$115)) -> nelze | N112: max ↓↓ | O112: max ↓↓
N113: =ROUNDUP(SUM(519, -$I$104, -$I$105, -$I$106)/2, 0) -> 260 | O113: =ROUNDUP(SUM(1200, -$I$104, -$I$105, -$I$106)/2, 0) -> 600 | P113: absolutně
B114: =ListAVS!$B$214&" FHo [mm] " -> Výška čela nahoře FHo [mm] | K114: =IF($I$103=0," ",IF($I$114>$J$111,V114,IF($I$114<$H$111,$S$114," "))) ->  | N114: =SUM(I103, -I104, -I105, -I106, -N118) -> -219 | O114: =SUM(I103, -I104, -I105, -I106, -O118) -> -238 | P114: vypočtená | S114: =" min. "&TEXT($H$111,"#")&" mm!" -> min. nelze mm! | V114: =" max. "&TEXT($J$111,"#")&" mm!" -> max. nelze mm!
B115: =ListAVS!$B$215&" FHu [mm] " -> Výška čela dole FHu [mm] | I115: =IF($I$114<$H$111,$S$115,IF($I$114>$J$111,$S$115,+$I$103-$I$104-$I$105-$I$106-$I$114)) -> nelze | N115: =IF($N$114>$N$113, $N$113, $N$114) -> -219 | O115: =IF($O$114>$O$113, $O$113, $O$114) -> -238 | P115: výsledná | S115: =ListAVS!B211 -> nelze
B116: =ListAVS!$B$216&" H [mm] " -> Pozice zdvihače H [mm] | I116: =IF(AND($I$103>=480, $I$103<520), $N$107, IF(AND($I$103>=520, $I$103<=1200), $O$107, $S$115)) -> nelze | N116: FHu | O116: FHu
B117: =ListAVS!$B$217&" Z [mm] " -> Pozice mont. podložky pro teleskopy Z [mm] | I117: =IF(AND($I$103>=480, $I$103<520), $N$106, IF(AND($I$103>=520, $I$103<=1200), $O$106, $S$115)) -> nelze | N117: min ↓↓ | O117: min ↓↓
B118: =ListAVS!$B$218&" TKH [mm] * " -> Teoretická výška korpusu TKH [mm] * | I118: =IF($I$115=$S$115, $S$115, IF($Q$118>=480, IF($Q$118<=1202, $Q$118, $S$115)," ")) -> nelze | N118: =SUM(N106, 32, 17, $I$107, -$I$106) -> 219 | O118: =SUM(O106, 32, 17, $I$107, -$I$106) -> 238 | P118: TKH | Q118: =ROUND(SUM($I$114*2+$I$104+$I$105+$I$106), -1) -> 0
N119: max ↓↓ | O119: max ↓↓
B120: * | C120: =ListAVS!$B$220 -> Tuto výšku zadejte do tabulky pro plánování výklopů | N120: =ROUNDDOWN(SUM(I103, -I104, -I105, -I106)/2, 0) -> 0 | O120: =ROUNDDOWN(SUM(I103, -I104, -I105, -I106)/2, 0) -> 0
I125: =ListAVS!$B$167 -> Zpět
B139: AVENTOS HF
B141: =ListAVS!$B$302 -> Potřebný zdvihač se určí pomocí ukazatele výkonnosti.
B142: =ListAVS!$B$303 -> Ukazatel výkonnosti závisí na hmotnosti dolního i horního čílka, a rovněž na výšce korpusu.
D145: =ListAVS!$B$86&" = " -> Ukazatel výkonnosti = | E145: =ListAVS!$B$319&" [kg]" -> výška korpusu KH [mm] x hmotnost obou čel včetně úchytky [kg]
B151: =ListAVS!$B$311 -> Pokud znáte hmotnost čela, můžete ji zadat, jinak použijte "Výpočet hmotnosti".
B152: =ListAVS!$B$312 -> V tabulce má přednost zadaná hodnota. Chcete-li použít vypočtenou hmotnost, smažte zadanou hodnotu.
B154: =ListAVS!$B$322&". "&ListAVS!$B$323&"." -> Délka teleskopů závisí na výšce korpusu KH. U asymetrických čel se použije teoretická výška TKH.
B156: =" "&ListAVS!$B$162&":" -> Asymetrická čela:
B157: =" "&ListAVS!$B$320 -> Teoretická výška korpusu (TKH) = výška horního čela (FHo) x 2 (včetně mezer)
B159: =ListAVS!$B$315 -> U asymetrických čel musí být větší čelo nahoře!
B161: =ListAVS!$B$325 -> Pokud zadáte hodnotu TKH, použije se pro určení délky teleskopů
B162: =ListAVS!$B$326 -> Nemáte-li asymetrická čela, nechte políčko prázdné.
B163: =ListAVS!$B$327&" ' "&ListAVS!$B$194&"' " -> Pro výpočet TKH použijte ' Výpočet asymetrických čel'
B166: =ListAVS!$B$305 -> Chcete-li změnit barvu krytek, přejděte na "Úvod plánování"
B168: =ListAVS!$B$411 -> Věnujte pozornost výběru alurámečků.
B169: =ListAVS!$B$412 -> Vyberte, který typ lépe odpovídá tvaru použitého alurámečku.
B170: =ListAVS!$B$413 -> Způsob osazení skla do rámečku výrazně ovlivňuje plochu skla a tím i hmotnost!
C172: =" "&ListAVS!$B$424&" " -> s vloženým sklem
C174: =" "&ListAVS!$B$425&" " -> s naloženým nebo nalepeným sklem
L176: =ListAVS!$B$167 -> Zpět

Sheet HFna_w
B2: AVENTOS HF top | O2: rámeček | S2: 3 | AL2: =ListAVS!$B$152 -> Jdi na
B4: =ListAVS!$B$21&" ***" -> Úzké alurámečky *** | F4: =ListAVS!$B$35&" " -> horní čelo | K4: =U71 ->  | O4: 1 | S4: =" "&ListAVS!$B$41&" A " -> Cena za korpus A | X4: výpočet | AL4: =" "&ListAVS!$B$153 -> Úvod plánování
B5: =ListAVS!$B$17 -> Dřevěné čelo | F5: =ListAVS!$B$36&" " -> dolní čelo | K5: =U72 ->  | O5: A = 1 | S5: =" "&ListAVS!$B$41&" B " -> Cena za korpus B | AL5: =" "&ListAVS!$B$154 -> Nápověda
J6: =IF($Z$78<>3,$Y$73," ")&" " -> Změnit hodnoty můžete v Úvodu plánování | O6: B = 2 | S6: =" "&ListAVS!$B$61 -> Cena celkem bez DPH
B7: =ListAVS!$B$51&": " -> Cena kování: | G7: =IF(S2=1,$AF$47,IF($S$2=2,$AH$47,IF($S$2=3,$AD$47,0))) -> 0 | Y7: =$B$2 -> AVENTOS HF top | AL7: =" "&ListAVS!$B$159 -> Doplňky
H8: =IF(AND(OR($S$9=2, $S$20=2), $AD$47>0), $N$35, " ") ->  | Y8: =ListAVS!B52 -> Název | Z8: =ListAVS!$B$53 -> Číslo artiklu | AA8: =ListAVS!B54 -> Barva | AB8: =ListAVS!B56 -> Ks | AC8: =ListAVS!B58 -> Jednotková cena | AD8: =ListAVS!B59 -> Celkem | AE8: A | AF8: Cena | AG8: B | AH8: Cena | AN8: =" "&ListAVS!$B$86&" LF " -> Ukazatel výkonnosti LF | AP8: Zdvihací mechanizmus vruty | AQ8: Zdvihací mechanizmus šrouby
B9: ="▼ "&ListAVS!$B$317 -> ▼ Způsob otvírání | D9: =IF($M$17>0, ListAVS!$B$37&": ", " ") ->  | E9: =IF(SUM($AE$9:$AE$10)>0,25,IF(SUM($AE$11:$AE$12)>0,28," ")) ->  | F9: =ListAVS!$B$64&" A" -> Korpus A | N9: zdvih A | P9: teleskop | S9: 1 | T9: FALSE | V9: - SRVDRV | Y9: =CenAVS!A11 -> Sada zdvihačů HF top, na vruty | Z9: =CenAVS!B11 -> 22F2500 | AA9: =CenAVS!C11 -> ZN | AB9: =SUM(AE9,AG9) -> 0 | AC9: =CenAVS!F11 -> 1651.93 | AD9: =AB9*AC9 -> 0 | AE9: =IF($Y$48=1,ROUNDUP($M$17*$O$11,0),0) -> 0 | AF9: =$AC9*AE9 -> 0 | AG9: =IF($Y$48=1,ROUNDUP($M$28*$O$22,0),0) -> 0 | AH9: =$AC9*AG9 -> 0 | AL9: =" "&ListAVS!$B$156 -> Přehled korpusů | AN9: 2700 - 13500 | AP9: 22F2500 | AQ9: 22F2510
B10: =ListAVS!$B$74&" KB [mm] " -> Šířka korpusu KB [mm] | I10: =IF(H10=0," ",IF($H10<220," min. 220mm"," "))&IF(H17>0,IF(H10=0,"● "&ListAVS!$B$128," ")," ") ->  | P10: F32 | Q10: =IF(AND($P$16>=$AB$54,$P$16<=$AC$54),SUM($O$11:$O$12),0) -> 0 | T10: Závěs A | V10: Závěs As | Y10: =CenAVS!A12 -> Sada zdvihačů HF top, předmont. eurošrouby | Z10: =CenAVS!B12 -> 22F2510 | AA10: =CenAVS!C12 -> ZN | AB10: 0 | AC10: =CenAVS!F12 -> 1651.93 | AD10: =AB10*AC10 -> 0 | AE10: =IF($Y$48=2,ROUNDUP($M$17*$O$11,0),0) -> 0 | AF10: 0 | AG10: =IF($Y$48=2,ROUNDUP($M$28*$O$22,0),0) -> 0 | AH10: 0 | AL10: =" "&ListAVS!$B$157 -> Objednávka | AN10: 10000 - 19300 | AP10: 22F2800 | AQ10: 22F2810
B11: =ListAVS!$B$75&" [mm]" -> Výška korpusu [mm] | E11: TKH * | G11: KH | I11: =IF(H11=0," ",IF($H11<480," min. 480mm",IF($H11>1200," max. 1 200mm"," ")))&IF(H17>0,IF(H11=0,"● "&ListAVS!$B$128," ")," ") ->  | N11: F25 | O11: =IF($H16<$AB$50,0,IF($H16<=$AC$50,1,0)) -> 0 | P11: F35 | Q11: =IF(AND($P$16>=$AB$55,$P$16<=$AC$55),SUM($O$11:$O$12),0) -> 0 | T11: T558E | U11: =IF($N$48=1, IF(OR($H$10>=1200, $T$17>=12), 3, 2))+IF($N$48=1,IF(OR($H$10=1800, $T$17>=20), 1, 0)) -> 0 | V11: Z553E | W11: =IF($P$48=1, IF(OR($H$10>=1200, $T$17>=12), 3, 2))+IF($P$48=1,IF(OR($H$10=1800, $T$17>=20), 1, 0)) -> 2 | Y11: =CenAVS!A13 -> Sada zdvihačů HF top, na vruty | Z11: =CenAVS!B13 -> 22F2800 | AA11: =CenAVS!C13 -> ZN | AB11: 0 | AC11: =CenAVS!F13 -> 1805.55 | AD11: 0 | AE11: =IF($Y$48=1,ROUNDUP($M$17*$O$12,0),0) -> 0 | AF11: 0 | AG11: =IF($Y$48=1,ROUNDUP($M$28*$O$23,0),0) -> 0 | AH11: 0
B12: =ListAVS!$B$77&" [kg] ** " -> Hmotnost čela včetně úchytky [kg] ** | I12: =IF($T14="ne", " ", IF(AND($H12=0,$H15=0, $H17>0),$N$37," "))&IF(AND($H17>0, $H12>0, $M17>0),$N$41," ") ->  | N12: F28 | O12: =IF($H16<$AB$51,0,IF($H16<=$AC$51,1,0)) -> 0 | P12: F39 | Q12: =IF(AND($P$16>=$AB$56,$P$16<=$AC$56),SUM($O$11:$O$12),0) -> 0 | T12: Z550AT | U12: =IF($N$48=2, IF(OR($H$10>=1200, $T$17>=12), 3, 2))+IF($N$48=2,IF(OR($H$10=1800, $T$17>=20), 1, 0)) -> 2 | V12: Z5500 | W12: =IF($P$48=2, IF(OR($H$10>=1200, $T$17>=12), 3, 2))+IF($P$48=2,IF(OR($H$10=1800, $T$17>=20), 1, 0)) -> 0 | Y12: =CenAVS!A14 -> Sada zdvihačů HF top, předmont. eurošrouby | Z12: =CenAVS!B14 -> 22F2810 | AA12: =CenAVS!C14 -> ZN | AB12: 0 | AC12: =CenAVS!F14 -> 1805.55 | AD12: 0 | AE12: =IF($Y$48=2,ROUNDUP($M$17*$O$12,0),0) -> 0 | AF12: 0 | AG12: =IF($Y$48=2,ROUNDUP($M$28*$O$23,0),0) -> 0 | AH12: 0 | AN12: =ListAVS!$B$86&" LF = "&ListAVS!$B$319&" [kg]" -> Ukazatel výkonnosti LF = výška korpusu KH [mm] x hmotnost obou čel včetně úchytky [kg]
B13: =ListAVS!$B$292 -> Výpočet hmotnosti | D13: =ListAVS!$B$82&" TS [mm] " -> Síla dolního čela TS [mm] | I13: =IF(OR(H17=0, $T14="ne")," ",IF(AND(H12=0, H13=0)," ● "&ListAVS!$B$128," ")) ->  | Y13: =CenAVS!A15 -> Sada teleskopů HF top (480–610 mm) | Z13: =CenAVS!B15 -> 22F3200 | AA13: =CenAVS!C15 -> NI | AB13: 0 | AC13: =CenAVS!F15 -> 785.14 | AD13: 0 | AE13: =ROUNDUP($M$17*Q10,0) -> 0 | AF13: 0 | AG13: =ROUNDUP($M$28*Q21,0) -> 0 | AH13: 0
D14: =ListAVS!$B$83&" [kg] " -> Hmotnost úchytky [kg] | I14: =IF(H17=0, " ", IF(AND(H12=0, S9=1, H14=0), " ● "&ListAVS!$B$129," ")) ->  | S14: limit v/š | T14: =IF(AND(220<=H10, H10<=1800, 480<=P16, P16<=1200),"ano","ne") -> ne | Y14: =CenAVS!A16 -> Sada teleskopů HF top (600–910 mm) | Z14: =CenAVS!B16 -> 22F3500 | AA14: =CenAVS!C16 -> NI | AB14: 0 | AC14: =CenAVS!F16 -> 964.4 | AD14: 0 | AE14: =ROUNDUP($M$17*Q11,0) -> 0 | AF14: 0 | AG14: =ROUNDUP($M$28*Q22,0) -> 0 | AH14: 0
D15: =ListAVS!$B$79&" [kg] " -> Vypočtená hmotnost čela [kg] | H15: =$T$81 -> 0 | I15: =IF($H17>0,IF($H15>0,IF($H12=0,$N$41," ")," ")," ")&IF(AND(H17>0, H12=0, Z78=3, $J$4=0), $N$39, " ") ->  | S15: limit LF | T15: =IF(AND(H16>=$AB$50, H16<=$AC$51), "ano", "ne") -> ne | Y15: =CenAVS!A17 -> Sada teleskopů HF top (840–1200 mm) | Z15: =CenAVS!B17 -> 22F3900 | AA15: =CenAVS!C17 -> NI | AB15: 0 | AC15: =CenAVS!F17 -> 1143.64 | AD15: 0 | AE15: =ROUNDUP($M$17*Q12,0) -> 0 | AF15: 0 | AG15: =ROUNDUP($M$28*Q23,0) -> 0 | AH15: 0
B16: =ListAVS!$B$86&" LF " -> Ukazatel výkonnosti LF | H16: =IF(H11<1041,IF(H11>479,IF(H12>0,H11*H12,H11*H15),0),0) -> 0 | I16: =IF(AND(H16>0, H16<$AB$50), $T$44, IF($H16>$AC$51, $N$44, " ")) ->  | O16: výška korpusu | P16: =IF(F11>0,IF(F11>=H11,F11,0),H11) -> 0 | Y16: =CenAVS!A47 -> Sada krytek HF, HS, HL top, světle šedá | Z16: =CenAVS!B47 -> 22.8000 | AA16: =CenAVS!C47 -> HGR | AB16: =SUM(AE16,AG16) -> 0 | AC16: =CenAVS!F47 -> 252.85 | AD16: 0 | AE16: =IF(AND($S$9=1, $T$48=1), SUM($AE$9:$AE$12), 0) -> 0 | AF16: 0 | AG16: =IF(AND($S$20=1, $T$48=1), SUM($AG$9:$AG$12), 0) -> 0 | AH16: 0
B17: =ListAVS!$B$71&" " -> Počet skříněk | M17: =IF($H10*$P16=0,0,IF(SUM($H12,$H15)=0,0,IF($P16>$AC$57,0,IF(P16<$AB$54,0,IF(OR(T14="ne", T15="ne"),0,$H17))))) -> 0 | N17: ← Hlavní údaj | S17: hmot = | T17: =IF(H12>0,H12,H15) -> 0 | U17: =IF(SUM(H12,H15)=0,0,IF(H12>0,1,2)) -> 0 | V17: zadaná / vypočtená | Y17: =CenAVS!A48 -> Sada krytek HF, HS, HL top, tmavě šedá | Z17: =CenAVS!B48 -> 22.8000 | AA17: =CenAVS!C48 -> TGR | AB17: =SUM(AE17,AG17) -> 0 | AC17: =CenAVS!F48 -> 275.94 | AD17: 0 | AE17: =IF(AND($S$9=1, $T$48=2), SUM($AE$9:$AE$12), 0) -> 0 | AF17: 0 | AG17: =IF(AND($S$20=1, $T$48=2), SUM($AG$9:$AG$12), 0) -> 0 | AH17: 0 | AN17: vruty = zdvihače s integrovanou šablonou (bez nutnosti rozměřování)
B18: =IF(H17>0,IF(U17=0," ",IF(U17=1,$N$53,$N$54))," ")&IF(H17>0,IF(U17=0," ",IF(U17=1,$N$55,$N$56))," ") ->  | Y18: =CenAVS!A49 -> Sada krytek HF, HS, HL top, hedvábně bílá | Z18: =CenAVS!B49 -> 22.8000 | AA18: =CenAVS!C49 -> SW | AB18: 0 | AC18: =CenAVS!F49 -> 275.94 | AD18: 0 | AE18: =IF(AND($S$9=1, $T$48=3), SUM($AE$9:$AE$12), 0) -> 0 | AF18: 0 | AG18: =IF(AND($S$20=1, $T$48=3), SUM($AG$9:$AG$12), 0) -> 0 | AH18: 0 | AN18: šrouby = zdvihače s přednotovanými šrouby (nutné předvrtání)
B19: =IF(F11=0," ",IF(F11>1200,"TKH = max. 1200!",IF(F11<480,"TKH = min. 480!",IF(F11<H11,$N$59,IF(H17>0,IF(F11=0," ",IF(AND(F11>0,M17=1), $N$58," "))," "))))) ->  | Y19: =CenAVS!A50 -> Sada krytek pro SERVO-DRIVE, světle šedá | Z19: =CenAVS!B50 -> 23.8000 | AA19: =CenAVS!C50 -> HGR | AB19: 0 | AC19: =CenAVS!F50 -> 2606.76 | AD19: 0 | AE19: =IF(AND($S$9=2, $T$48=1), $AE$45, 0) -> 0 | AF19: 0 | AG19: =IF(AND($S$20=2, $T$48=1), $AG$45, 0) -> 0 | AH19: 0 | AL19: =" "&ListAVS!$B$194 -> Výpočet asymetrických čel
B20: ="▼ "&ListAVS!$B$317 -> ▼ Způsob otvírání | D20: =IF($M$28>0, ListAVS!$B$37&": ", " ") ->  | E20: =IF(SUM($AG$9:$AG$10)>0,25,IF(SUM($AG$11:$AG$12)>0,28," ")) ->  | F20: =ListAVS!$B$64&" B" -> Korpus B | N20: zdvih B | P20: teleskop | S20: 1 | T20: FALSE | V20: - SRVDRV | Y20: =CenAVS!A51 -> Sada krytek pro SERVO-DRIVE, tmavě šedá | Z20: =CenAVS!B51 -> 23.8000 | AA20: =CenAVS!C51 -> TGR | AB20: 0 | AC20: =CenAVS!F51 -> 2709.29 | AD20: 0 | AE20: =IF(AND($S$9=2, $T$48=2), $AE$45, 0) -> 0 | AF20: 0 | AG20: =IF(AND($S$20=2, $T$48=2), $AG$45, 0) -> 0 | AH20: 0
B21: =ListAVS!$B$74&" KB [mm] " -> Šířka korpusu KB [mm] | I21: =IF(H21=0," ",IF($H21<220," min. 220mm",IF($H21>1800," max. 1 800mm"," ")))&IF(H28>0,IF(H21=0,"● "&ListAVS!$B$128," ")," ") ->  | P21: F32 | Q21: =IF(AND($P$27>=$AB$54,$P$27<=$AC$54),SUM($O$22:$O$23),0) -> 0 | T21: Závěs B | V21: Závěs Bs | Y21: =CenAVS!A52 -> Sada krytek pro SERVO-DRIVE,hedvábně bílá | Z21: =CenAVS!B52 -> 23.8000 | AA21: =CenAVS!C52 -> SW | AB21: 0 | AC21: =CenAVS!F52 -> 2709.29 | AD21: 0 | AE21: =IF(AND($S$9=2, $T$48=3), $AE$45, 0) -> 0 | AF21: 0 | AG21: =IF(AND($S$20=2, $T$48=3), $AG$45, 0) -> 0 | AH21: 0
B22: =ListAVS!$B$75&" [mm]" -> Výška korpusu [mm] | E22: TKH * | G22: KH | I22: =IF(H22=0," ",IF($H22<480," min. 480mm",IF($H22>1200," max. 1 200mm"," ")))&IF(H28>0,IF(H22=0,"● "&ListAVS!$B$128," ")," ") ->  | N22: F25 | O22: =IF($H27<$AB$50,0,IF($H27<=$AC$50,1,0)) -> 0 | P22: F35 | Q22: =IF(AND($P$27>=$AB$55,$P$27<=$AC$55),SUM($O$22:$O$23),0) -> 0 | T22: T558E | U22: =IF($N$48=1, IF(OR($H$21>=1200, $T$28>=12), 3, 2))+IF($N$48=1,IF(OR($H$21=1800, $T$28>=20), 1, 0)) -> 0 | V22: Z553E | W22: =IF($P$48=1, IF(OR($H$21>=1200, $T$28>=12), 3, 2))+IF($P$48=1,IF(OR($H$21=1800, $T$28>=20), 1, 0)) -> 2 | Y22: =CenAVS!A18 -> Závěs CLIP top 120° | Z22: =CenAVS!B18 -> 70T5550.TL | AA22: =CenAVS!C18 -> NI | AB22: 0 | AC22: =CenAVS!F18 -> 56.56 | AD22: 0 | AF22: 0 | AH22: 0
B23: =ListAVS!$B$77&" [kg] ** " -> Hmotnost čela včetně úchytky [kg] ** | I23: =IF($H28=0," ",IF(SUM($H23,$H26)=0,$N$37," "))&IF($H28>0,IF($H23>0,$N$41," ")," ") ->  | N23: F28 | O23: =IF($H27<$AB$51,0,IF($H27<=$AC$51,1,IF($H27>$AB$52,1.5,0))) -> 0 | P23: F39 | Q23: =IF(AND($P$27>=$AB$56,$P$27<=$AC$56),SUM($O$22:$O$23),0) -> 0 | T23: Z550AT | U23: =IF($N$48=2, IF(OR($H$21>=1200, $T$28>=12), 3, 2))+IF($N$48=2,IF(OR($H$21=1800, $T$28>=20), 1, 0)) -> 2 | V23: Z5500 | W23: =IF($P$48=2, IF(OR($H$21>=1200, $T$28>=12), 3, 2))+IF($P$48=2,IF(OR($H$21=1800, $T$28>=20), 1, 0)) -> 0 | Y23: =CenAVS!A19 -> Závěs CLIP top 120° EXPANDO | Z23: =CenAVS!B19 -> 70T558E | AA23: =CenAVS!C19 -> NI | AB23: 0 | AC23: =CenAVS!F19 -> 53.42 | AD23: 0 | AF23: 0 | AH23: 0
B24: =ListAVS!$B$292 -> Výpočet hmotnosti | D24: =ListAVS!$B$82&" TS [mm] " -> Síla dolního čela TS [mm] | I24: =IF(H28=0," ",IF(AND(H23=0, H24=0)," ● "&ListAVS!$B$128," ")) ->  | Y24: =CenAVS!A20 -> Středový závěs CLIP top | Z24: =CenAVS!B20 -> 78Z5500T | AA24: =CenAVS!C20 -> NI | AB24: 0 | AC24: =CenAVS!F20 -> 92.71 | AD24: 0 | AE24: =$W$12*$M$17 -> 0 | AF24: 0 | AG24: =$W$23*$M$17 -> 0 | AH24: 0
D25: =ListAVS!$B$83&" [kg] " -> Hmotnost úchytky [kg] | I25: =IF(H28=0, " ", IF(AND(H23=0, S20=1, H25=0), " ● "&ListAVS!$B$129," ")) ->  | S25: limit v/š | T25: =IF(AND(220<=H21, H21<=1800, 480<=P27, P27<=1200),"ano","ne") -> ne | Y25: =CenAVS!A21 -> Středový závěs CLIP top EXPANDO | Z25: =CenAVS!B21 -> 78Z553ET | AA25: =CenAVS!C21 -> NI | AB25: 0 | AC25: =CenAVS!F21 -> 95.69 | AD25: 0 | AE25: =$W$11*$M$17 -> 0 | AF25: 0 | AG25: =$W$22*$M$17 -> 0 | AH25: 0
D26: =ListAVS!$B$79&" [kg] " -> Vypočtená hmotnost čela [kg] | H26: =$T$90 -> 0 | I26: =IF($H28>0,IF($H26>0,IF($H23=0,$N$41," ")," ")," ")&IF(AND(H28>0, H23=0, Z87=3, $J$4=0), $N$39, " ") ->  | S26: limit LF | T26: =IF(AND(H27>=$AB$50, H27<=$AC$51), "ano", "ne") -> ne | Y26: =CenAVS!A22 -> Závěs CLIP top pro alurámečky | Z26: =CenAVS!B22 -> 72T550A.TL | AA26: =CenAVS!C22 -> NI | AB26: 0 | AC26: =CenAVS!F22 -> 77.18 | AD26: 0 | AE26: =$U$12*$M$17 -> 0 | AF26: 0 | AG26: =$U$23*$M$17 -> 0 | AH26: 0
B27: =ListAVS!$B$86&" LF " -> Ukazatel výkonnosti LF | H27: =IF(H22<1041,IF(H22>479,IF(H23>0,H22*H23,H22*H26),0),0) -> 0 | I27: =IF(AND(H27>0, H27<$AB$50), $T$44, IF($H27>$AC$51, $N$44, " ")) ->  | O27: výška korpusu | P27: =IF(F22>0,IF(F22>=H22,F22,0),H22) -> 0 | Y27: =CenAVS!A23 -> Střed. závěs CLIP top pro alurámečky | Z27: =CenAVS!B23 -> 78Z550AT | AA27: =CenAVS!C23 -> NI | AB27: 0 | AC27: =CenAVS!F23 -> 101.63 | AD27: 0 | AF27: 0 | AH27: 0
B28: =ListAVS!$B$71&" " -> Počet skříněk | M28: =IF($H21*$P27=0,0,IF(SUM($H23,$H26)=0,0,IF($P27>$AC$57,0,IF(P27<$AB$54,0,IF(OR(T25="ne", T26="ne"),0,$H28))))) -> 0 | N28: ← Hlavní údaj | S28: hmot = | T28: =IF(H23>0,H23,H26) -> 0 | U28: =IF(SUM(H23,H26)=0,0,IF(H23>0,1,2)) -> 0 | V28: zadaná / vypočtená | Y28: =CenAVS!A24 -> Adaptér CLIP k teleskopům P | Z28: =CenAVS!B24 -> 175H5B00 R | AA28: =CenAVS!C24 -> NI | AB28: 0 | AC28: =CenAVS!F24 -> 90.34 | AD28: 0 | AF28: 0 | AH28: 0
B29: =IF(H28>0,IF(U28=0," ",IF(U28=1,$N$53,$N$54))," ")&IF(H28>0,IF(U28=0," ",IF(U28=1,$N$55,$N$56))," ") ->  | Y29: =CenAVS!A25 -> Adaptér CLIP k teleskopům L | Z29: =CenAVS!B25 -> 175H5B00 L | AA29: =CenAVS!C25 -> NI | AB29: 0 | AC29: =CenAVS!F25 -> 90.34 | AD29: 0 | AF29: 0 | AH29: 0
B30: =IF(F22=0," ",IF(F22>1200,"TKH = max. 1200!",IF(F22<480,"TKH = min. 480!",IF(F22<H22,$N$59,IF(H28>0,IF(F22=0," ",IF(AND(F22>0,M28=1), $N$58," "))," "))))) ->  | Y30: =CenAVS!A26 -> Adaptér CLIP ke středovým závěsům | Z30: =CenAVS!B26 -> 175H5A00 | AA30: =CenAVS!C26 -> NI | AB30: 0 | AC30: =CenAVS!F26 -> 90.34 | AD30: 0 | AE30: =AE26 -> 0 | AF30: 0 | AG30: =AG26 -> 0 | AH30: 0
B31: =IF(OR(AND($S$9=2, $M$17>0), AND($S$20=2, $M$28>0)), ListAVS!$B$175, " ") ->  | S31: =IF($T$31=FALSE,2,1) -> 1 | T31: TRUE | V31: - Zdroj
Y33: =CenAVS!A27 -> 0 | Z33: =CenAVS!B27 -> 0 | AA33: =CenAVS!C27 -> 0 | AC33: =CenAVS!F27 -> 0 | AD33: 0 | AF33: 0 | AH33: 0
AD34: 0 | AF34: 0 | AH34: 0
C35: =IF($H16>25900," ",IF($H16>17250,$N$46,IF($H27>25900," ",IF($H27>17250,$N$46," ")))) ->  | N35: =ListAVS!B176 -> Cena bez napájecího zdroje! | AD35: 0 | AF35: 0 | AH35: 0
Y36: =CenAVS!A162 -> CLIP top montážní podložka, excentr, 0 mm | Z36: =CenAVS!B162 -> 173H7100 | AA36: =CenAVS!C162 -> NI | AB36: 0 | AC36: =CenAVS!F162 -> 17.84 | AD36: 0 | AF36: 0 | AH36: 0
C37: ="* "&ListAVS!$B$183 -> * Pouze pro asymetrická čela: zadejte teoretickou výšku TKH. | N37: =" "&ListAVS!$B$115 -> Zadejte hmotnost nebo vyplňte všechny buňky | Y37: =CenAVS!A163 -> CLIP top mont. podložka, excentr, EXPANDO, 0 mm | Z37: =CenAVS!B163 -> 174H7100E | AA37: =CenAVS!C163 -> NI | AB37: 0 | AC37: =CenAVS!F163 -> 19.39 | AD37: 0 | AF37: 0 | AH37: 0
C38: =" ("&ListAVS!$B$184&")" -> (TKH = dvojnásobná výška horního čela včetně mezer) | AF38: 0 | AH38: 0
C39: =" "&ListAVS!$B$327&" '"&ListAVS!$B$194&"' " -> Pro výpočet TKH použijte 'Výpočet asymetrických čel' | N39: =" "&ListAVS!$B$117 -> Vyplňte nahoře objemovou hmotnost
C41: ="** "&ListAVS!$B$186 -> ** Pokud znáte hmotnost a nechcete využít výpočtu hmotnosti | N41: ="◄ "&ListAVS!$B$111 -> ◄ hodnota bude použita pro výpočet LF
C42: ="*** "&ListAVS!$B$403 -> *** Vyberte typ alurámečku! | N42: =" * "&ListAVS!$B$127 -> * Doplňte hodnoty | Y42: =CenAVS!A166 -> CLIP top přímá mont. podložka, ocel, 0 mm | Z42: =CenAVS!B166 -> 175H3100 | AA42: =CenAVS!C166 -> NI | AB42: =SUM(AE42,AG42) -> 0 | AC42: =CenAVS!F166 -> 16.98 | AD42: 0 | AE42: =IF($R$48=2, SUM($U$11, $U$12, $W$12, $Q$10*2, $Q$11*2, $Q$12*2)*$M$17, 0) -> 0 | AF42: =$AC42*AE42 -> 0 | AG42: =IF($R$48=2, SUM($U$22, $U$23, $W$23, $Q$21*2, $Q$22*2, $Q$23*2)*$M$28, 0) -> 0 | AH42: =$AC42*AG42 -> 0
C43: =" "&ListAVS!$B$404 -> Více informací k výběru alurámečků v Nápovědě | Y43: =CenAVS!A167 -> CLIP top přímá mont. podložka, ocel, EXP, 0 mm | Z43: =CenAVS!B167 -> 177H3100E | AA43: =CenAVS!C167 -> NI | AB43: =SUM(AE43,AG43) -> 0 | AC43: =CenAVS!F167 -> 17.07 | AD43: 0 | AE43: =IF($R$48=1, SUM($U$11, $U$12, $W$12, $Q$10*2, $Q$11*2, $Q$12*2)*$M$17, 0) -> 0 | AF43: =$AC43*AE45 -> 0 | AG43: =IF($R$48=1, SUM($U$22, $U$23, $W$23, $Q$21*2, $Q$22*2, $Q$23*2)*$M$28, 0) -> 0 | AH43: =$AC43*AG43 -> 0
N44: =" max. 19.300! "&ListAVS!$B$121 -> max. 19.300! Upravte hmotnost nebo výšku | T44: =" min. "&$AB$50&"! "&ListAVS!$B$121 -> min. 2700! Upravte hmotnost nebo výšku | Y44: =CenAVS!A169 -> 0 | Z44: =CenAVS!B169 -> 0 | AA44: =CenAVS!C169 -> 0 | AC44: =CenAVS!F169 -> 0 | AD44: 0 | AF44: =$AC44*AE44 -> 0 | AH44: =$AC44*AG44 -> 0
N45: =" "&ListAVS!$B$119&"!" -> Přídavný třetí zdvihač! | Q45: =" "&ListAVS!$B$125&"!" -> Druhá pohonná jednotka! | U45: =" "&ListAVS!B126 -> Použijte pouze jeden zdvihač | Y45: =CenAVS!A171 -> SERVO-DRIVE jednotka (sada) | Z45: =CenAVS!B171 -> 23.A000 | AA45: =CenAVS!C171 -> R7037 | AB45: =SUM(AE45,AG45) -> 0 | AC45: =CenAVS!F171 -> 8297.32 | AD45: 0 | AE45: =IF($S$9=1, 0, $M$17)+IF(AND($S$9=2, $H$16>$AB$52), $M$17, 0) -> 0 | AF45: =$AC45*AE45 -> 0 | AG45: =IF($S$20=1, 0, $M$28)+IF(AND($S$20=2, $H$27>$AB$52), $M$28, 0) -> 0 | AH45: =$AC45*AG45 -> 0
N46: =ListAVS!$B$181 -> Přídavný třetí zdvihač může být použit pouze s plným spodním čelem!
AC47: =ListAVS!$B$61&" " -> Cena celkem bez DPH | AD47: =SUM(AD9:AD45) -> 0 | AF47: =SUM(AF9:AF46) -> 0 | AH47: =SUM(AH9:AH46) -> 0
N48: 2 | O48: 2 | P48: =HF!$N$33 -> 1 | Q48: 2 | R48: =HF!$P$33 -> 1 | T48: =MenuAVS!$P$28 -> 1 | Y48: =HF!$R$33 -> 1 | Z48: =Param!M10 -> Parametry HF
N49: záv. | O49: alu | P49: střed. | Q49: alu | R49: podl. | T49: kryt. | W49: Provedení: | Y49: montáž: | Z49: =Param!M11 -> Zdvihač | AA49: =Param!N11 -> ks | AB49: =Param!O11 -> min | AC49: =Param!P11 -> max | AD49: =Param!Q11 -> alu max.
N50: =ListAVS!$B$133 -> Expando | P50: =ListAVS!$B$133 -> Expando | R50: =ListAVS!$B$133 -> Expando | T50: =ListAVS!$B$145 -> Světle šedá (HGR) | W50: Standard | Y50: vruty | Z50: =Param!M12 -> 22F2500 | AA50: =Param!N12 -> 1 | AB50: =Param!O12 -> 2700 | AC50: =Param!P12 -> 11500
N51: =ListAVS!$B$134 -> na vruty | P51: =ListAVS!$B$134 -> na vruty | R51: =ListAVS!$B$134 -> na vruty | T51: =ListAVS!$B$146 -> Tmavě šedá (TGR) | W51: SERVO-DRIVE | Y51: eurošrouby | Z51: =Param!M13 -> 22F2800 | AA51: =Param!N13 -> 1 | AB51: =Param!O13 -> 11500 | AC51: =Param!P13 -> 19300 | AD51: =Param!Q13 -> 19300
T52: =ListAVS!$B$147 -> Hedvábně bílá (SW) | Z52: =Param!M14 -> 22F2800 | AA52: =Param!N14 -> 1.5 | AB52: =Param!O14 -> 19300 | AC52: =Param!P14 -> 28950 | AD52: =Param!Q14 -> 0
N53: =ListAVS!B187 -> Pro určení typu zdvihače bude použita zadaná hmotnost | Z53: =Param!M17 -> Teleskop | AB53: =Param!O17 -> min | AC53: =Param!P17 -> max | AD53: =Param!Q17 -> 0
N54: =ListAVS!B188 -> Pro určení typu zdvihače bude použita vypočtená hmotnost | Z54: =Param!M18 -> 20F3200 | AA54: =Param!N18 -> 0 | AB54: =Param!O18 -> 480 | AC54: =Param!P18 -> 605 | AD54: =Param!Q18 -> 0
N55: =". "&ListAVS!$B$189 -> . Chcete-li použít vypočtenou hmotnost, smažte zadanou hodnotu | Z55: =Param!M19 -> 20F3500 | AA55: =Param!N19 -> 0 | AB55: =Param!O19 -> 605 | AC55: =Param!P19 -> 890 | AD55: =Param!Q19 -> 0
N56: =". "&ListAVS!$B$190 -> . Chcete-li použít zadanou hmotnost, zadejte ji do políčka | Z56: =Param!M20 -> 20F3900 | AA56: =Param!N20 -> 0 | AB56: =Param!O20 -> 890 | AC56: =Param!P20 -> 1200 | AD56: =Param!Q20 -> 0
N57: =ListAVS!B191 -> 0 | AB57: =Param!O21 -> max. | AC57: =Param!P21 -> 1200 | AD57: =Param!Q21 -> 0
N58: =ListAVS!B192 -> Pro výběr teleskopů bude použita teoretická výška TKH
N59: =ListAVS!B193 -> Teoretická výška TKH nesmí být menší než KH
N70: =ListAVS!$B$73 -> Výpočet hmotnosti čel
O71: =ListAVS!$B$35&" " -> horní čelo | T71: =J4 -> 0 | U71: =IF(AF77=3,IF(T71=0,AE74," "),IF(T71>0,AE75," ")) ->  | Y71: =IF($AF$77=1,$AF$94,IF($AF$77=2,$AF$95,$AF$96&" - "&$T$71&"mm")) -> Alurámečky s 4mm sklem | AD71: =MenuAVS!$Q$81 -> 2500
O72: =ListAVS!$B$36&" " -> dolní čelo | T72: =J5 -> 0 | U72: =IF(Z78=3,IF(T72=0,Y74," "),IF(T72>0,Y75," ")) ->  | Y72: =IF($Z$78=1,$Z$79,IF($Z$78=2,$Z$80,$Z$81&" "&$Y$81&"kg/m3"))&" A~"&$T$79&"/ B~"&$T$88&"mm" -> MDF (760 kg/m3) A~0/ B~0mm
P73: =IF($Z$78<>3,$Y$73," ")&" " -> Změnit hodnoty můžete v Úvodu plánování | Y73: =" "&ListAVS!$B$410 -> Změnit hodnoty můžete v Úvodu plánování
Y74: =" "&ListAVS!$B$244&" [kg/m3]" -> Zadejte objemovou hmotnost [kg/m3] | AE74: =" "&ListAVS!$B$245&" [mm]" -> Zadejte sílu skla [mm]
Y75: =" "&ListAVS!$B$240&" '"&ListAVS!$B$92&"'" -> Hodnota platí jen pro volbu 'Jiné - volitelná hustota' | AE75: =" "&ListAVS!$B$240&" '"&ListAVS!$B$95&"'" -> Hodnota platí jen pro volbu 'Alurámečky s jiným sklem'
R76: =D9 ->  | AE76: váha spoj. | AF76: tl. skla | AG76: typ alu
N77: =ListAVS!$B$74&" KB [mm] " -> Šířka korpusu KB [mm] | T77: =H10 -> 0 | Y77: =T77*T78*T79/2 -> 0 | AD77: =IF($AG$77=1,$X$94,$X$95) -> 0.31 | AE77: =$X$96 -> 0.46 | AF77: 1 | AG77: =$O$4 -> 1
N78: =ListAVS!$B$75&" KH [mm] " -> Výška korpusu KH [mm] | T78: =H11 -> 0 | Y78: =Y77/1000000000 -> 0 | Z78: =AF77 -> 1 | AD78: váha alu | AE78: =SUM(T77*2,(T78/2-40)*2)*AD77/1000 -> -0.0248 | AF78: A plocha B
N79: =ListAVS!$B$80&" TS [mm] " -> Síla čela TS [mm] | T79: =H13 -> 0 | U79: =IF(SUM(T77,T78)=0," ",IF(T79=0," ● "&ListAVS!$B$128," ")) ->  | Y79: =MenuAVS!$C$31 -> 760 | Z79: =ListAVS!$B$90&" ("&Y79&" kg/m3)" -> MDF (760 kg/m3) | AD79: =$AD$71*4/1000 -> 10 | AE79: =IF($AG$77=1,AF79*AD79,AG79*AD79) -> 0.009 | AF79: =SUM(($T$77-30)*($T$78/2-30)/1000000) -> 0.0009 | AG79: =SUM(($T$77-6)*($T$78/2-6)/1000000) -> 3.6e-05 | AH79: 4mm
N80: =ListAVS!$B$83&" [kg] " -> Hmotnost úchytky [kg] | T80: =H14 -> 0 | U80: =IF(SUM(T77,T78)=0," ",IF(T80=0," ● "&ListAVS!$B$129," ")) ->  | Y80: =MenuAVS!$C$32 -> 680 | Z80: =ListAVS!$B$91&" ("&Y80&" kg/m3)" -> Dřevotříska (680 kg/m3) | AD80: =$AD$71*5/1000 -> 12.5 | AE80: =IF($AG$77=1,AF80*AD80,AG80*AD80) -> 0.01125 | AF80: =SUM(($T$77-30)*($T$78/2-30)/1000000) -> 0.0009 | AG80: =SUM(($T$77-6)*($T$78/2-6)/1000000) -> 3.6e-05 | AH80: 5mm
N81: =ListAVS!$B$79&" [kg] " -> Vypočtená hmotnost čela [kg] | T81: =IF(X81*AD82<>0,SUM(X81,AD82,T80),0) -> 0 | X81: =IF(T77*T78*T79=0,0,IF(Z78=1,Y78*Y79,IF(Z78=2,Y78*Y80,Y78*Y81))) -> 0 | Y81: =$T$72 -> 0 | Z81: =ListAVS!$B$92 -> Jiné - volitelná hustota | AD81: =$AD$71*$T$71/1000 -> 0 | AE81: =IF($AG$77=1,AF81*AD81,AG81*AD81) -> 0 | AF81: =SUM(($T$77-30)*($T$78/2-30)/1000000) -> 0.0009 | AG81: =SUM(($T$77-6)*($T$78/2-6)/1000000) -> 3.6e-05 | AH81: jiné
O82: =IF(T81>0,IF(T80=0,$Z$94," ")," ") ->  | AD82: =IF(OR(AND(AF77=3, $T$71=0), T77*T78=0), 0, SUM(IF(AF77=1,AE79,IF(AF77=2,AE80,AE81)),AE78,AE77)) -> 0
R85: =D20 ->  | AE85: váha spoj. | AF85: tl. skla | AG85: typ alu
N86: =ListAVS!$B$74&" KB [mm] " -> Šířka korpusu KB [mm] | T86: =H21 -> 0 | Y86: =T86*T87*T88 -> 0 | AD86: =IF($AG$77=1,$X$94,$X$95) -> 0.31 | AE86: =$X$96 -> 0.46 | AF86: =$AF$77 -> 1 | AG86: =$AG$77 -> 1
N87: =ListAVS!$B$75&" KH [mm] " -> Výška korpusu KH [mm] | T87: =H22 -> 0 | Y87: =Y86/1000000000/2 -> 0 | Z87: =Z78 -> 1 | AD87: váha alu | AE87: =SUM(T86*2,(T87/2-40)*2)*AD86/1000 -> -0.0248 | AF87: A plocha B
N88: =ListAVS!$B$80&" TS [mm] " -> Síla čela TS [mm] | T88: =H24 -> 0 | U88: =IF(SUM(T86,T87)=0," ",IF(T88=0," ● "&ListAVS!$B$128," ")) ->  | Y88: =$Y$79 -> 760 | Z88: =$Z$79 -> MDF (760 kg/m3) | AD88: =AD79 -> 10 | AE88: =IF($AG$77=1,AF88*AD88,AG88*AD88) -> 0.009 | AF88: =SUM(($T$86-30)*($T$87/2-30)/1000000) -> 0.0009 | AG88: =SUM(($T$86-6)*($T$87/2-6)/1000000) -> 3.6e-05 | AH88: 4mm
N89: =ListAVS!$B$83&" [kg] " -> Hmotnost úchytky [kg] | T89: =H25 -> 0 | U89: =IF(SUM(T86,T87)=0," ",IF(T89=0," ● "&ListAVS!$B$129," ")) ->  | Y89: =$Y$80 -> 680 | Z89: =$Z$80 -> Dřevotříska (680 kg/m3) | AD89: =AD80 -> 12.5 | AE89: =IF($AG$77=1,AF89*AD89,AG89*AD89) -> 0.01125 | AF89: =SUM(($T$86-30)*($T$87/2-30)/1000000) -> 0.0009 | AG89: =SUM(($T$86-6)*($T$87/2-6)/1000000) -> 3.6e-05 | AH89: 5mm
N90: =ListAVS!$B$79&" [kg] " -> Vypočtená hmotnost čela [kg] | T90: =IF(X90*AD91<>0,SUM(X90,AD91,T89),0) -> 0 | X90: =IF(T86*T87*T88=0,0,IF(Z87=1,Y87*Y88,IF(Z87=2,Y87*Y89,Y87*Y90))) -> 0 | Y90: =$Y$81 -> 0 | Z90: =$Z$81 -> Jiné - volitelná hustota | AD90: =AD81 -> 0 | AE90: =IF($AG$77=1,AF90*AD90,AG90*AD90) -> 0 | AF90: =SUM(($T$86-30)*($T$87/2-30)/1000000) -> 0.0009 | AG90: =SUM(($T$86-6)*($T$87/2-6)/1000000) -> 3.6e-05 | AH90: jiné
O91: =IF(T90>0,IF(T89=0,$Z$94," ")," ") ->  | AD91: =IF(OR(AND(AF86=3, $T$71=0), T86*T87=0), 0, SUM(IF(AF86=1,AE88,IF(AF86=2,AE89,AE90)),AE87,AE86)) -> 0
W94: =ListAVS!$B$424&" " -> s vloženým sklem | X94: =MenuAVS!$I$91 -> 0.31 | Z94: =ListAVS!$B$102&"!" -> Není započtena hmotnost úchytky! | AF94: =ListAVS!$B$93 -> Alurámečky s 4mm sklem
W95: =ListAVS!$B$425&" " -> s naloženým nebo nalepeným sklem | X95: =MenuAVS!$I$92 -> 0.32 | AF95: =ListAVS!$B$94 -> Alurámečky s 5mm sklem
W96: =ListAVS!$B$405&" [kg/set] * " -> Hmotnost spojovacího materiálu [kg/set] * | X96: =MenuAVS!$I$93 -> 0.46 | AF96: =ListAVS!$B$95 -> Alurámečky s jiným sklem
B100: =ListAVS!$B$194 -> Výpočet asymetrických čel
B102: =" "&ListAVS!$B$197 -> Parametry korpusu
B103: =ListAVS!$B$75&" KH [mm] " -> Výška korpusu KH [mm] | K103: =IF(I103<480, " min. 480", IF(I103>1200, " max. 1200", " ")) -> min. 480 | N103: <=519 | O103: >=520
B104: =ListAVS!$B$200&" F1 [mm] " -> Mezera nahoře F1 [mm]
B105: =ListAVS!$B$201&" F2 [mm] " -> Mezera mezi čely F2 [mm] | K105: =IF($I$103=0," ",IF($I$105<1.5," min. 1,5 mm!"," ")) -> 
B106: =ListAVS!$B$202&" F3 [mm] " -> Mezera dole F3 [mm] | M106: Z | N106: 170 | O106: 189
B107: =ListAVS!$B$203&" [mm] " -> Síla dna korpusu [mm] | M107: H | N107: 93 | O107: 116
B109: =" "&ListAVS!$B$205 -> Výsledky plánování | N109: FHo | O109: FHo
G110: =ListAVS!$B$206&" [mm] " -> Možné výšky čel [mm] | N110: min ↓↓ | O110: min ↓↓
B111: =ListAVS!$B$207 -> Čelo nahoře (FHo) v rozmezí | G111: min. | H111: =IF(AND($I$103>=480, $I$103<=519), $N$111, IF(AND($I$103>=520, $I$103<=1200), $O$111, $S$115)) -> nelze | I111: max. | J111: =IF(AND($I$103>=480, $I$103<=519), $N$115, IF(AND($I$103>=520, $I$103<=1200), $O$115, $S$115)) -> nelze | N111: =SUM(I103, -I104, -I105, -I106, -N120) -> 0 | O111: =SUM(I103, -I104, -I105, -I106, -O120) -> 0
B112: =ListAVS!$B$208 -> Čelo dole (FHu) v rozmezí | G112: min. | H112: =IF(AND($I$103>=480, $I$103<=519), $N$118, IF(AND($I$103>=520, $I$103<=1200), $O$118, $S$115)) -> nelze | I112: max. | J112: =IF(AND($I$103>=480, $I$103<=519), $N$120, IF(AND($I$103>=520, $I$103<=1200), $O$120, $S$115)) -> nelze | N112: max ↓↓ | O112: max ↓↓
N113: =ROUNDUP(SUM(519, -$I$104, -$I$105, -$I$106)/2, 0) -> 260 | O113: =ROUNDUP(SUM(1200, -$I$104, -$I$105, -$I$106)/2, 0) -> 600 | P113: absolutně
B114: =ListAVS!$B$214&" FHo [mm] " -> Výška čela nahoře FHo [mm] | K114: =IF($I$103=0," ",IF($I$114>$J$111,V114,IF($I$114<$H$111,$S$114," "))) ->  | N114: =SUM(I103, -I104, -I105, -I106, -N118) -> -219 | O114: =SUM(I103, -I104, -I105, -I106, -O118) -> -238 | P114: vypočtená | S114: =" min. "&TEXT($H$111,"#")&" mm!" -> min. nelze mm! | V114: =" max. "&TEXT($J$111,"#")&" mm!" -> max. nelze mm!
B115: =ListAVS!$B$215&" FHu [mm] " -> Výška čela dole FHu [mm] | I115: =IF($I$114<$H$111,$S$115,IF($I$114>$J$111,$S$115,+$I$103-$I$104-$I$105-$I$106-$I$114)) -> nelze | N115: =IF($N$114>$N$113, $N$113, $N$114) -> -219 | O115: =IF($O$114>$O$113, $O$113, $O$114) -> -238 | P115: výsledná | S115: =ListAVS!B211 -> nelze
B116: =ListAVS!$B$216&" H [mm] " -> Pozice zdvihače H [mm] | I116: =IF(AND($I$103>=480, $I$103<520), $N$107, IF(AND($I$103>=520, $I$103<=1200), $O$107, $S$115)) -> nelze | N116: FHu | O116: FHu
B117: =ListAVS!$B$217&" Z [mm] " -> Pozice mont. podložky pro teleskopy Z [mm] | I117: =IF(AND($I$103>=480, $I$103<520), $N$106, IF(AND($I$103>=520, $I$103<=1200), $O$106, $S$115)) -> nelze | N117: min ↓↓ | O117: min ↓↓
B118: =ListAVS!$B$218&" TKH [mm] * " -> Teoretická výška korpusu TKH [mm] * | I118: =IF($I$115=$S$115, $S$115, IF($Q$118>=480, IF($Q$118<=1202, $Q$118, $S$115)," ")) -> nelze | N118: =SUM(N106, 32, 17, $I$107, -$I$106) -> 219 | O118: =SUM(O106, 32, 17, $I$107, -$I$106) -> 238 | P118: TKH | Q118: =ROUND(SUM($I$114*2+$I$104+$I$105+$I$106), -1) -> 0
N119: max ↓↓ | O119: max ↓↓
B120: * | C120: =ListAVS!$B$220 -> Tuto výšku zadejte do tabulky pro plánování výklopů | N120: =ROUNDDOWN(SUM(I103, -I104, -I105, -I106)/2, 0) -> 0 | O120: =ROUNDDOWN(SUM(I103, -I104, -I105, -I106)/2, 0) -> 0
I125: =ListAVS!$B$167 -> Zpět
B139: AVENTOS HF
B141: =ListAVS!$B$302 -> Potřebný zdvihač se určí pomocí ukazatele výkonnosti.
B142: =ListAVS!$B$303 -> Ukazatel výkonnosti závisí na hmotnosti dolního i horního čílka, a rovněž na výšce korpusu.
D145: =ListAVS!$B$86&" = " -> Ukazatel výkonnosti = | E145: =ListAVS!$B$319&" [kg]" -> výška korpusu KH [mm] x hmotnost obou čel včetně úchytky [kg]
B147: =ListAVS!$B$307 -> Je-li ukazatel výkonnosti větší než 19300, přidá se třetí zdvihač.
B148: =ListAVS!$B$309 -> Pokud je zvolen SERVO-DRIVE, přidá se rovněž druhá pohonná jednotka.
B149: =ListAVS!$B$181 -> Přídavný třetí zdvihač může být použit pouze s plným spodním čelem!
B151: =ListAVS!$B$311 -> Pokud znáte hmotnost čela, můžete ji zadat, jinak použijte "Výpočet hmotnosti".
B152: =ListAVS!$B$312 -> V tabulce má přednost zadaná hodnota. Chcete-li použít vypočtenou hmotnost, smažte zadanou hodnotu.
B154: =ListAVS!$B$322&". "&ListAVS!$B$323&"." -> Délka teleskopů závisí na výšce korpusu KH. U asymetrických čel se použije teoretická výška TKH.
B156: =" "&ListAVS!$B$162&":" -> Asymetrická čela:
B157: =" "&ListAVS!$B$320 -> Teoretická výška korpusu (TKH) = výška horního čela (FHo) x 2 (včetně mezer)
B159: =ListAVS!$B$315 -> U asymetrických čel musí být větší čelo nahoře!
B161: =ListAVS!$B$325 -> Pokud zadáte hodnotu TKH, použije se pro určení délky teleskopů
B162: =ListAVS!$B$326 -> Nemáte-li asymetrická čela, nechte políčko prázdné.
B163: =ListAVS!$B$327&" ' "&ListAVS!$B$194&"' " -> Pro výpočet TKH použijte ' Výpočet asymetrických čel'
B166: =ListAVS!$B$305 -> Chcete-li změnit barvu krytek, přejděte na "Úvod plánování"
B168: =ListAVS!$B$411 -> Věnujte pozornost výběru alurámečků.
B169: =ListAVS!$B$412 -> Vyberte, který typ lépe odpovídá tvaru použitého alurámečku.
B170: =ListAVS!$B$413 -> Způsob osazení skla do rámečku výrazně ovlivňuje plochu skla a tím i hmotnost!
C172: =" "&ListAVS!$B$424&" " -> s vloženým sklem
C174: =" "&ListAVS!$B$425&" " -> s naloženým nebo nalepeným sklem
L176: =ListAVS!$B$167 -> Zpět

Sheet HSw
B2: AVENTOS HS top | N2: zdvih A | P2: ↓rozhodnutí | Q2: zdvih B | S2: ↓rozhodnutí | AK2: 3 | AN2: =ListAVS!$B$152 -> Jdi na
B4: =ListAVS!$B$17 -> Dřevěné čelo | F4: =ListAVS!$B$179&" " -> Provedení čel | K4: =IF($Z$87=3,IF(J4=0,$Y$82," "),IF(J4>0,$Y$83," ")) ->  | N4: S22 | O4: =IF(AND($H$11>=$AC$51, $H$11<$AD$51, $P$17>=$AE$51, $P$17<=$AF$51), 1, 0) -> 0 | P4: =O4 -> 0 | Q4: S22 | R4: =IF(AND($H$22>=$AC$51, $H$22<$AD$51, $P$28>=$AE$51, $P$28<=$AF$51), 1, 0) -> 0 | S4: =R4 -> 0 | T4: ← (350–450) | AK4: =" "&ListAVS!$B$41&" A " -> Cena za korpus A | AN4: Úvod plánování
F5: =IF($Z$87<>3,$Y$81," ")&" " -> Změnit hodnoty můžete v Úvodu plánování | N5: S22 v | O5: =IF(AND($H$11>=$AC$52, $H$11<$AD$52, $P$17>=$AE$52, $P$17<=$AF$52), 1, 0) -> 0 | P5: =IF(AND($O$5=1, $O$6=1, $P$17<=5), O5, 0)+IF(AND($O$5=1, $O$6=0), 1, IF(AND(O5=1, O6=0), O5, 0)) -> 0 | Q5: S22 v | R5: =IF(AND($H$22>=$AC$52, $H$22<$AD$52, $P$28>=$AE$52, $P$28<=$AF$52), 1, 0) -> 0 | S5: =IF(AND($R$5=1, $R$6=1, $P$28<=5), R5, 0)+IF(AND($R$5=1, $R$6=0), 1, IF(AND(R5=1, R6=0), R5, 0)) -> 0 | T5: ← (450–540) | AK5: =" "&ListAVS!$B$41&" B " -> Cena za korpus B | AN5: =" "&ListAVS!$B$154 -> Nápověda
N6: S25 | O6: =IF(AND($H$11>=$AC$53, $H$11<$AD$53, $P$17>=$AE$53, $P$17<=$AF$53), 1, 0) -> 0 | P6: =IF(AND($O$5=1, $O$6=1, $P$17>5), O6, 0)+IF(AND($O$6=1, $O$7=1, $P$17<7), O6, IF(AND(O5=0, O6=1, O7=0), O6, 0)) -> 0 | Q6: S25 | R6: =IF(AND($H$22>=$AC$53, $H$22<$AD$53, $P$28>=$AE$53, $P$28<=$AF$53), 1, 0) -> 0 | S6: =IF(AND($R$5=1, $R$6=1, $P$28>5), R6, 0)+IF(AND($R$6=1, $R$7=1, $P$28<7), R6, IF(AND(R5=0, R6=1, R7=0), R6, 0)) -> 0 | AK6: =" "&ListAVS!$B$61 -> Cena celkem bez DPH
B7: =ListAVS!$B$51&": " -> Cena kování: | G7: =IF($AK$2=1,$AF$45,IF($AK$2=2,$AH$45,IF($AK$2=3,$AD$45,0))) -> 0 | N7: S28 | O7: =IF(AND($H$11>=$AC$54, $H$11<=$AD$54, $P$17>=$AE$54, $P$17<=$AF$54), 1, 0) -> 0 | P7: =IF(AND($O$6=1, $O$7=1, $P$17>=7), O7, IF(AND(O6=0, O7=1), O7, 0)) -> 0 | Q7: S28 | R7: =IF(AND($H$22>=$AC$54, $H$22<=$AD$54, $P$28>=$AE$54, $P$28<=$AF$54), 1, 0) -> 0 | S7: =IF(AND($R$6=1, $R$7=1, $P$28>=7), R7, IF(AND(R6=0, R7=1), R7, 0)) -> 0 | Y7: =$B$2 -> AVENTOS HS top | Z7: =B5 -> 0 | AN7: =" "&ListAVS!$B$159 -> Doplňky
H8: =IF(AND(OR($Q$16=2, $Q$27=2), $AD$45>0), $N$35, " ") ->  | Y8: =ListAVS!B52 -> Název | Z8: =ListAVS!$B$53 -> Číslo artiklu | AA8: =ListAVS!B54 -> Barva | AB8: =ListAVS!B56 -> Ks | AC8: =ListAVS!B58 -> Jednotková cena | AD8: =ListAVS!B59 -> Celkem | AE8: A | AF8: Cena | AG8: B | AH8: Cena | AQ8: =ListAVS!B75&" KH (mm)" -> Výška korpusu KH (mm) | AR8: =ListAVS!B76&" FG (kg)" -> Hmotnost čela FG (kg) | AS8: =ListAVS!$B$84&" "&ListAVS!$B$349 -> Zdvihací mechanizmus vruty | AT8: =ListAVS!$B$84&" "&ListAVS!$B$350 -> Zdvihací mechanizmus předmont. eurošrouby
B9: ="▼ "&ListAVS!$B$317 -> ▼ Způsob otvírání | D9: =IF($M$17>0, ListAVS!$B$37&": ", " ") ->  | E9: =IF(SUM($AE$9:$AE$10)>0,"22",IF(SUM($AE$11:$AE$12)>0,"25",IF(SUM($AE$13:$AE$14)>0,"28"," "))) ->  | F9: =ListAVS!$B$64&" A" -> Korpus A | Y9: =CenAVS!A28 -> Sada zdvihačů HS top, na vruty | Z9: =CenAVS!B28 -> 22S2200 | AA9: =CenAVS!C28 -> ZN | AB9: =SUM(AE9,AG9) -> 0 | AC9: =CenAVS!F28 -> 1754.34 | AD9: =AB9*AC9 -> 0 | AE9: =IF(AND($W$46=1, SUM($P$4:$P$5)=1), $M$17, 0) -> 0 | AF9: =$AC9*AE9 -> 0 | AG9: =IF(AND($W$46=1, SUM($S$4:$S$5)=1), $M$28, 0) -> 0 | AH9: =$AC9*AG9 -> 0 | AN9: =" "&ListAVS!$B$156 -> Přehled korpusů | AQ9: 350 - 450 | AR9: 2.00 - 11.50 | AS9: 22S2200 | AT9: 22S2210
B10: =ListAVS!$B$74&" KB [mm] " -> Šířka korpusu KB [mm] | I10: =IF($H10=0," ",IF($H10<220," min. 220mm",IF($H10>1800," max. 1 800mm"," ")))&IF(H17>0,IF(H10=0,"● "&ListAVS!$B$128," ")," ") -> ● Povinná hodnota | Y10: =CenAVS!A29 -> Sada zdvihačů HS top, předmont. eurošrouby | Z10: =CenAVS!B29 -> 22S2210 | AA10: =CenAVS!C29 -> ZN | AB10: 0 | AC10: =CenAVS!F29 -> 1754.34 | AD10: =AB10*AC10 -> 0 | AE10: =IF(AND($W$46=2, SUM($P$4:$P$5)=1), $M$17, 0) -> 0 | AF10: 0 | AG10: =IF(AND($W$46=2, SUM($S$4:$S$5)=1), $M$28, 0) -> 0 | AH10: 0 | AN10: =" "&ListAVS!$B$157 -> Objednávka | AQ10: 450 - 540 | AR10: 2.50 - 12.50
B11: =ListAVS!$B$75&" KH [mm] " -> Výška korpusu KH [mm] | I11: =IF($H11=0," ",IF($H11<350," min. 350mm",IF($H11>800," max. 800 mm"," ")))&IF(H17>0,IF(H11=0,"● "&ListAVS!$B$128," ")," ") -> ● Povinná hodnota | Y11: =CenAVS!A30 -> Sada zdvihačů HS top, na vruty | Z11: =CenAVS!B30 -> 22S2500 | AA11: =CenAVS!C30 -> ZN | AB11: 0 | AC11: =CenAVS!F30 -> 1856.76 | AD11: 0 | AE11: =IF(AND($W$46=1, $P$6=1), $M$17, 0) -> 0 | AF11: 0 | AG11: =IF(AND($W$46=1, $S$6=1), $M$28, 0) -> 0 | AH11: 0 | AQ11: 480 - 660 | AR11: 2.75 - 15.25 | AS11: 22S2500 | AT11: 22S2510
B12: =ListAVS!$B$77&" [kg] ** " -> Hmotnost čela včetně úchytky [kg] ** | I12: =IF($H17=0, " ", IF(SUM($H12,$H15)=0,$N$54," "))&IF(AND(SUM($O$4:$O$7)=0, T12="ano", $T13="ne", H12>0),$N$58,IF(AND($H17>0,$H12>0, $M17>0, $T13="ano"),$N$55," ")) -> Zadejte hmotnost nebo vyplňte všechny buňky | S12: limit v/š | T12: =IF(AND(219<H10,H10<1801,349<H11,H11<801),"ano","ne") -> ne | Y12: =CenAVS!A31 -> Sada zdvihačů HS top, předmont. eurošrouby | Z12: =CenAVS!B31 -> 22S2510 | AA12: =CenAVS!C31 -> ZN | AB12: 0 | AC12: =CenAVS!F31 -> 1856.76 | AD12: 0 | AE12: =IF(AND($W$46=2, $P$6=1), $M$17, 0) -> 0 | AF12: 0 | AG12: =IF(AND($W$46=2, $S$6=1), $M$28, 0) -> 0 | AH12: 0 | AQ12: 650 - 800 | AR12: 3.50 - 18.50 | AS12: 22S2800 | AT12: 22S2810
B13: =ListAVS!$B$292 -> Výpočet hmotnosti | D13: =ListAVS!$B$80&" TS [mm] " -> Síla čela TS [mm] | I13: =IF(H17=0," ",IF(AND(H12=0, H13=0)," ● "&ListAVS!$B$128," "))&IF(H17=0," ",IF(AND(H12=0, H13<14), " min. 14 mm", " ")) -> ● Povinná hodnota min. 14 mm | S13: limit hmot | T13: =IF(AND($H$11>=$AC$51, $H$11<=$AD$51, $P$17>=$AE$51, $P$17<=$AF$51), "ano", IF(AND($H$11>=$AC$52, $H$11<=$AD$52, $P$17>=$AE$52, $P$17<=$AF$52), "ano", IF(AND($H$11>=$AC$53, $H$11<=$AD$53, $P$17>=$AE$53, $P$17<=$AF$53), "ano", IF(AND($H$11>=$AC$54, $H$11<=$AD$54, $P$17>=$AE$54, $P$17<=$AF$54), "ano", "ne")))) -> ne | Y13: =CenAVS!A32 -> Sada zdvihačů HS top, na vruty | Z13: =CenAVS!B32 -> 22S2800 | AA13: =CenAVS!C32 -> ZN | AB13: 0 | AC13: =CenAVS!F32 -> 1972 | AD13: 0 | AE13: =IF(AND($W$46=1, $P$7=1), $M$17, 0) -> 0 | AF13: 0 | AG13: =IF(AND($W$46=1, $S$7=1), $M$28, 0) -> 0 | AH13: 0
D14: =ListAVS!$B$83&" [kg] " -> Hmotnost úchytky [kg] | I14: =IF(H17=0, " ", IF(AND(H12=0, Q16=1, H14=0), " ● "&ListAVS!$B$129," ")) -> ● Doporučená hodnota | Y14: =CenAVS!A33 -> Sada zdvihačů HS top, předmont. eurošrouby | Z14: =CenAVS!B33 -> 22S2810 | AA14: =CenAVS!C33 -> ZN | AB14: 0 | AC14: =CenAVS!F33 -> 1972 | AD14: 0 | AE14: =IF(AND($W$46=2, $P$7=1), $M$17, 0) -> 0 | AF14: 0 | AG14: =IF(AND($W$46=2, $S$7=1), $M$28, 0) -> 0 | AH14: 0 | AQ14: =ListAVS!B349&" = "&ListAVS!B351 -> vruty = zdvihače s integrovanou šablonou (bez nutnosti rozměřování)
D15: =ListAVS!$B$79&" [kg] " -> Vypočtená hmotnost čela [kg] | H15: =$T$90 -> 0 | I15: =IF(AND($H17>0,$H15>0,$H12=0,$M17>0), $N$41," ")&IF(AND(H17>0, H12=0, Z87=3, $J$4=0), $N$39, " ") ->  | P15: Servo-Drive | AQ15: =ListAVS!B350&" = "&ListAVS!B352 -> předmont. eurošrouby = zdvihače s předmotovanými šrouby (nutné předvrtání)
B16: =ListAVS!$B$29&" * " -> Počet mezistěn * | I16: =IF(AND(H16>0, Q16=2), $N$53, " ") ->  | O16: FALSE | Q16: 1 | Y16: =CenAVS!A34 -> Sada ramen HS top | Z16: =CenAVS!B34 -> 22S3500 | AA16: =CenAVS!C34 -> ZN | AB16: =SUM(AE16,AG16) -> 0 | AC16: =CenAVS!F34 -> 1169.26 | AD16: =AB16*AC16 -> 0 | AE16: =SUM($AE$9:$AE$14) -> 0 | AF16: =$AC16*AE16 -> 0 | AG16: =SUM($AG$9:$AG$14) -> 0 | AH16: =$AC16*AG16 -> 0
B17: =ListAVS!$B$71&" " -> Počet skříněk | H17: 1 | M17: =IF($H10*$H11*$P17=0,0,IF(SUM(O4:O7)=0,0,IF($H10>1800,0, IF($H10<220, 0, IF(AND(H12=0, H13<14), 0, $H17))))) -> 0 | O17: hmot = | P17: =IF(H12>0,H12,H15) -> 0 | Q17: =IF(SUM(H12,H15)=0,0,IF(H12>0,1,2)) -> 0 | R17: zadaná / vypočtená
B18: =IF(H17>0,IF(OR(Q17=0,M17=0), " ",IF(Q17=1,$N$67,$N$68))," ")&IF(H17>0,IF(OR(Q17=0, M17=0), " ",IF(Q17=1,$N$69,$N$70))," ") -> 
N19: tyč | O19: =IF($H$10>1360,1.5,IF($H$10<610,0.5,1)) -> 0.5 | Q19: tyč | R19: =IF($H$21>1360,1.5,IF($H$21<610,0.5,1)) -> 0.5
B20: ="▼ "&ListAVS!$B$317 -> ▼ Způsob otvírání | D20: =IF($M$28>0, ListAVS!$B$37&": ", " ") ->  | E20: =IF(SUM($AG$9:$AG$10)>0,"22",IF(SUM($AG$11:$AG$12)>0,"25",IF(SUM($AG$13:$AG$14)>0,"28"," "))) ->  | F20: =ListAVS!$B$64&" B" -> Korpus B | N20: mezistěny | O20: =IF($H$16>0,$H$16,IF($H$10>1219,1,0)) -> 0 | Q20: mezistěny | R20: =IF($H$27>0,$H$27,IF($H$21>1219,1,0)) -> 0 | Y20: =CenAVS!A47 -> Sada krytek HF, HS, HL top, světle šedá | Z20: =CenAVS!B47 -> 22.8000 | AA20: =CenAVS!C47 -> HGR | AB20: 0 | AC20: =CenAVS!F47 -> 252.85 | AD20: 0 | AE20: =IF(AND($Q$16=1,$T$46=1),SUM($AE$9:$AE$14),0) -> 0 | AF20: 0 | AG20: =IF(AND($Q$27=1,$T$46=1),SUM($AG$9:$AG$14),0) -> 0 | AH20: 0
B21: =ListAVS!$B$74&" KB [mm] " -> Šířka korpusu KB [mm] | I21: =IF($H21=0," ",IF($H21<220," min. 220mm",IF($H21>1800," max. 1 800mm"," ")))&IF(H28>0,IF(H21=0,"● "&ListAVS!$B$128," ")," ") ->  | Y21: =CenAVS!A48 -> Sada krytek HF, HS, HL top, tmavě šedá | Z21: =CenAVS!B48 -> 22.8000 | AA21: =CenAVS!C48 -> TGR | AB21: 0 | AC21: =CenAVS!F48 -> 275.94 | AD21: 0 | AE21: =IF(AND($Q$16=1,$T$46=2),SUM($AE$9:$AE$14),0) -> 0 | AF21: 0 | AG21: =IF(AND($Q$27=1,$T$46=2),SUM($AG$9:$AG$14),0) -> 0 | AH21: 0
B22: =ListAVS!$B$75&" KH [mm] " -> Výška korpusu KH [mm] | I22: =IF($H22=0," ",IF($H22<350," min. 350mm",IF($H22>800," max. 800 mm"," ")))&IF(H28>0,IF(H22=0,"● "&ListAVS!$B$128," ")," ") ->  | Y22: =CenAVS!A49 -> Sada krytek HF, HS, HL top, hedvábně bílá | Z22: =CenAVS!B49 -> 22.8000 | AA22: =CenAVS!C49 -> SW | AB22: 0 | AC22: =CenAVS!F49 -> 275.94 | AD22: 0 | AE22: =IF(AND($Q$16=1,$T$46=3),SUM($AE$9:$AE$14),0) -> 0 | AF22: 0 | AG22: =IF(AND($Q$27=1,$T$46=3),SUM($AG$9:$AG$14),0) -> 0 | AH22: 0
B23: =ListAVS!$B$77&" [kg] ** " -> Hmotnost čela včetně úchytky [kg] ** | I23: =IF($H28=0," ",IF(SUM($H23,$H26)=0,$N$54," "))&IF(AND(SUM($R$4:$R$7)=0, T23="ano", $T24="ne",H23>0),$N$58,IF(AND($H28>0,$H23>0, $M28>0, $T24="ano"),$N$55," ")) ->  | S23: limit v/š | T23: =IF(AND(219<H21,H21<1801,349<H22,H22<801),"ano","ne") -> ne | Y23: =CenAVS!A50 -> Sada krytek pro SERVO-DRIVE, světle šedá | Z23: =CenAVS!B50 -> 23.8000 | AA23: =CenAVS!C50 -> HGR | AB23: 0 | AC23: =CenAVS!F50 -> 2606.76 | AD23: 0 | AE23: =IF(AND($Q$16=2,$T$46=1),SUM($AE$9:$AE$14),0) -> 0 | AF23: 0 | AG23: =IF(AND($Q$27=2,$T$46=1),SUM($AG$9:$AG$14),0) -> 0 | AH23: 0
B24: =ListAVS!$B$292 -> Výpočet hmotnosti | D24: =ListAVS!$B$80&" TS [mm] " -> Síla čela TS [mm] | I24: =IF(H28=0," ",IF(AND(H23=0, H24=0)," ● "&ListAVS!$B$128," "))&IF(H28=0," ",IF(AND(H23=0, H24<14), " min. 14 mm", " ")) ->  | S24: limit hmot | T24: =IF(AND($H$22>=$AC$51, $H$22<=$AD$51, $P$28>=$AE$51, $P$28<=$AF$51), "ano", IF(AND($H$22>=$AC$52, $H$22<=$AD$52, $P$28>=$AE$52, $P$28<=$AF$52), "ano", IF(AND($H$22>=$AC$53, $H$22<=$AD$53, $P$28>=$AE$53, $P$28<=$AF$53), "ano", IF(AND($H$22>=$AC$54, $H$22<=$AD$54, $P$28>=$AE$54, $P$28<=$AF$54), "ano", "ne")))) -> ne | Y24: =CenAVS!A51 -> Sada krytek pro SERVO-DRIVE, tmavě šedá | Z24: =CenAVS!B51 -> 23.8000 | AA24: =CenAVS!C51 -> TGR | AB24: 0 | AC24: =CenAVS!F51 -> 2709.29 | AD24: 0 | AE24: =IF(AND($Q$16=2,$T$46=2),SUM($AE$9:$AE$14),0) -> 0 | AF24: 0 | AG24: =IF(AND($Q$27=2,$T$46=2),SUM($AG$9:$AG$14),0) -> 0 | AH24: 0
D25: =ListAVS!$B$83&" [kg] " -> Hmotnost úchytky [kg] | I25: =IF(H28=0, " ", IF(AND(H23=0, Q27=1, H25=0), " ● "&ListAVS!$B$129," ")) ->  | Y25: =CenAVS!A52 -> Sada krytek pro SERVO-DRIVE,hedvábně bílá | Z25: =CenAVS!B52 -> 23.8000 | AA25: =CenAVS!C52 -> SW | AB25: 0 | AC25: =CenAVS!F52 -> 2709.29 | AD25: 0 | AE25: =IF(AND($Q$16=2,$T$46=3),SUM($AE$9:$AE$14),0) -> 0 | AF25: 0 | AG25: =IF(AND($Q$27=2,$T$46=3),SUM($AG$9:$AG$14),0) -> 0 | AH25: 0
D26: =ListAVS!$B$79&" [kg] " -> Vypočtená hmotnost čela [kg] | H26: =$T$101 -> 0 | I26: =IF(AND($H28>0,$H26>0,$H23=0,$M28>0), $N$41," ")&IF(AND(H28>0, H23=0, Z98=3, $J$4=0), $N$39, " ") ->  | P26: Servo-Drive
B27: =ListAVS!$B$29&" * " -> Počet mezistěn * | I27: =IF(AND(H27>0, Q27=2), $N$53, " ") ->  | O27: FALSE | Q27: 1
B28: =ListAVS!$B$71&" " -> Počet skříněk | M28: =IF($H21*$H22*$P28=0,0,IF(SUM(R4:R7)=0,0,IF($H21>1800,0, IF($H21<220, 0, IF(AND(H23=0, H24<14), 0, $H28))))) -> 0 | O28: hmot = | P28: =IF(H23>0,H23,H26) -> 0 | Q28: =IF(SUM(H23,H26)=0,0,IF(H23>0,1,2)) -> 0 | R28: zadaná / vypočtená
B29: =IF(H28>0,IF(OR(Q28=0,M28=0), " ",IF(Q28=1,$N$67,$N$68))," ")&IF(H28>0,IF(OR(Q28=0, M28=0), " ",IF(Q28=1,$N$69,$N$70))," ") ->  | Y29: =CenAVS!A78 -> Sada čel.kování pro dřev. čela | Z29: =CenAVS!B78 -> 20S4200 | AA29: =CenAVS!C78 -> NI | AB29: 0 | AC29: =CenAVS!F78 -> 90.38 | AD29: 0 | AE29: =IF($O$46=2,SUM(AE$16:AE$17),0) -> 0 | AF29: =$AC29*AE29 -> 0 | AG29: =IF($O$46=2,SUM(AG$16:AG$17),0) -> 0 | AH29: 0
Y30: =CenAVS!A79 -> Čelní.kování pro dřev. čela EXPANDO | Z30: =CenAVS!B79 -> 20S42E1 | AA30: =CenAVS!C79 -> NI | AB30: 0 | AC30: =CenAVS!F79 -> 51.36 | AD30: 0 | AE30: =IF($O$46=1,SUM(AE$16:AE$17)*2,0) -> 0 | AF30: 0 | AG30: =IF($O$46=1,SUM(AG$16:AG$17)*2,0) -> 0 | AH30: 0
B31: =IF(OR(AND($Q$16=2, $M$17>0), AND($Q$27=2, $M$28>0)), ListAVS!$B$175, " ") ->  | O31: =IF($P$31=FALSE,2,1) -> 2 | P31: FALSE | R31: - Zdroj | Y31: =CenAVS!A80 -> Sada čel.kování pro tenké materiály | Z31: =CenAVS!B80 -> 20S42T1 | AA31: =CenAVS!C80 -> NI | AB31: 0 | AC31: =CenAVS!F80 -> 291.6 | AD31: 0 | AF31: 0 | AH31: 0
Y32: =CenAVS!A81 -> Sada čel.kování pro úzké alurámečky | Z32: =CenAVS!B81 -> 20S4200A | AA32: =CenAVS!C81 -> NI | AB32: 0 | AC32: =CenAVS!F81 -> 395.5 | AD32: 0 | AF32: 0 | AH32: 0
Y33: =CenAVS!A82 -> 0 | Z33: =CenAVS!B82 -> 0 | AA33: =CenAVS!C82 -> 0 | AB33: 0 | AC33: =CenAVS!F82 -> 0 | AD33: 0 | AF33: 0 | AH33: 0
AF34: 0 | AH34: 0
N35: =ListAVS!B176 -> Cena bez napájecího zdroje! | AF35: 0 | AH35: 0
AF36: 0 | AH36: 0
B37: * | C37: =ListAVS!$B$233 -> Zadejte počet mezistěn v korpusu | N37: =" "&ListAVS!$B$115 -> Zadejte hmotnost nebo vyplňte všechny buňky | AF37: 0 | AH37: 0
B38: ** | C38: =ListAVS!$B$186 -> Pokud znáte hmotnost a nechcete využít výpočtu hmotnosti | AF38: 0 | AH38: 0
N39: =" "&ListAVS!$B$117 -> Vyplňte nahoře objemovou hmotnost
AF40: =$AC40*AE40 -> 0 | AH40: =$AC40*AG40 -> 0
N41: ="◄ "&ListAVS!$B$111 -> ◄ hodnota bude použita pro výpočet LF | AF41: =$AC41*AE43 -> 0 | AH41: =$AC41*AG41 -> 0
N42: =" * "&ListAVS!$B$127 -> * Doplňte hodnoty | Y42: =CenAVS!A169 -> 0 | Z42: =CenAVS!B169 -> 0 | AA42: =CenAVS!C169 -> 0 | AC42: =CenAVS!F169 -> 0 | AD42: 0 | AF42: =$AC42*AE42 -> 0 | AH42: =$AC42*AG42 -> 0
Y43: =CenAVS!A171 -> SERVO-DRIVE jednotka (sada) | Z43: =CenAVS!B171 -> 23.A000 | AA43: =CenAVS!C171 -> R7037 | AB43: =SUM(AE43,AG43) -> 0 | AC43: =CenAVS!F171 -> 8297.32 | AD43: 0 | AE43: =IF($Q$16=1, 0, $M$17) -> 0 | AF43: =$AC43*AE43 -> 0 | AG43: =IF($Q$27=1, 0, $M$28) -> 0 | AH43: =$AC43*AG43 -> 0
AC45: =ListAVS!$B$61&" " -> Cena celkem bez DPH | AD45: =SUM(AD9:AD43) -> 0 | AF45: =SUM(AF9:AF44) -> 0 | AH45: =SUM(AH9:AH44) -> 0
O46: =HS!$N$26 -> 2 | T46: =MenuAVS!$P$28 -> 1 | W46: =HS!$P$26 -> 1
O47: čelní kov. | Q47: Provedení: | T47: kryt. | W47: =HS!P27 -> mont.
O48: =ListAVS!$B$142 -> Expando | Q48: Standard | T48: =ListAVS!$B$145 -> Světle šedá (HGR) | W48: =HS!P28 -> vruty
O49: =ListAVS!$B$143 -> na vruty | Q49: SERVO-DRIVE | T49: =ListAVS!$B$146 -> Tmavě šedá (TGR) | W49: =HS!P29 -> předmont. eurošrouby | AA49: =Param!M22 -> Parametry HS
T50: =ListAVS!$B$147 -> Hedvábně bílá (SW) | AA50: =Param!M23 -> Zdvihač | AB50: =Param!N23 -> ks | AC50: =Param!O23 -> min | AD50: =Param!P23 -> max | AE50: =Param!Q23 -> hmot. min. | AF50: =Param!R23 -> hmot. max.
AA51: =Param!M24 -> 22S2200 | AC51: =Param!O24 -> 350 | AD51: =Param!P24 -> 450 | AE51: =Param!Q24 -> 2 | AF51: =Param!R24 -> 11.5
N52: =" "&ListAVS!$B$108 -> v kombinaci se SERVO-DRIVE | AA52: =Param!M25 -> 22S2200 v | AC52: =Param!O25 -> 450 | AD52: =Param!P25 -> 540 | AE52: =Param!Q25 -> 2.5 | AF52: =Param!R25 -> 12.5
N53: =" "&ListAVS!$B$109 -> nelze v kombinaci se SERVO-DRIVE | AA53: =Param!M26 -> 22S2500 | AC53: =Param!O26 -> 480 | AD53: =Param!P26 -> 660 | AE53: =Param!Q26 -> 2.75 | AF53: =Param!R26 -> 15.25
N54: =" "&ListAVS!$B$115 -> Zadejte hmotnost nebo vyplňte všechny buňky | AA54: =Param!M27 -> 22S2800 | AC54: =Param!O27 -> 650 | AD54: =Param!P27 -> 800 | AE54: =Param!Q27 -> 3.5 | AF54: =Param!R27 -> 18.5
N55: ="◄ "&ListAVS!$B$112 -> ◄ hodnota bude použita pro výběr zdvihače
N56: =" * "&ListAVS!$B$127 -> * Doplňte hodnoty
N58: =" "&ListAVS!$B$124&"!" -> Hmotnost mimo povolený rozsah!
N59: =" max. 9 000! "&ListAVS!$B$121 -> max. 9 000! Upravte hmotnost nebo výšku
N60: =" "&ListAVS!$B$234 -> Nutná mezistěna
N67: =ListAVS!B187&". " -> Pro určení typu zdvihače bude použita zadaná hmotnost.
N68: =ListAVS!B188&". " -> Pro určení typu zdvihače bude použita vypočtená hmotnost.
N69: =ListAVS!B189 -> Chcete-li použít vypočtenou hmotnost, smažte zadanou hodnotu
N70: =ListAVS!B190 -> Chcete-li použít zadanou hmotnost, zadejte ji do políčka
N79: =ListAVS!$B$73 -> Výpočet hmotnosti čel
T80: =J4 -> 0 | U80: =IF($Z$87=3,IF(T80=0,$Y$82," "),IF(T80>0,$Y$83," ")) ->  | Y80: =IF($Z$87=1,$Z$88,IF($Z$87=2,$Z$89,$Z$90&" "&$Y$90&"kg/m3"))&" A~"&$T$88&"/ B~"&$T$99&"mm" -> Dřevotříska (680 kg/m3) A~0/ B~0mm
P81: =IF($Z$87<>3,$Y$81," ")&" " -> Změnit hodnoty můžete v Úvodu plánování | Y81: =" "&ListAVS!$B$410 -> Změnit hodnoty můžete v Úvodu plánování
Y82: =" "&ListAVS!$B$244&" [kg/m3]" -> Zadejte objemovou hmotnost [kg/m3]
Y83: =" "&ListAVS!$B$240&" '"&ListAVS!$B$92&"'" -> Hodnota platí jen pro volbu 'Jiné - volitelná hustota'
R85: =D9 -> 
N86: =ListAVS!$B$74&" KB [mm] " -> Šířka korpusu KB [mm] | T86: =H10 -> 0 | Y86: =T86*T87*T88 -> 0 | AD86: 3.51 | AE86: alu
N87: =ListAVS!$B$75&" KH [mm] " -> Výška korpusu KH [mm] | T87: =H11 -> 0 | Y87: =Y86/1000000000 -> 0 | Z87: 2 | AD87: váha alu | AE87: =SUM(T86*2,T87*2)*AD86/10000 -> 0
N88: =ListAVS!$B$80&" TS [mm] " -> Síla čela TS [mm] | T88: =H13 -> 0 | U88: =IF(SUM(T86,T87)=0," ",IF(T88=0," ● "&ListAVS!$B$128," ")) ->  | Y88: =MenuAVS!$C$31 -> 760 | Z88: =ListAVS!$B$90&" ("&Y88&" kg/m3)" -> MDF (760 kg/m3) | AD88: 10 | AE88: =SUM($T$86*$T$87*$AD88)/1000000 -> 0 | AF88: 3
N89: =ListAVS!$B$83&" [kg] " -> Hmotnost úchytky [kg] | T89: =H14 -> 0 | U89: =IF(SUM(T86,T87)=0," ",IF(T89=0," ● "&ListAVS!$B$129," ")) ->  | Y89: =MenuAVS!$C$32 -> 680 | Z89: =ListAVS!$B$91&" ("&Y89&" kg/m3)" -> Dřevotříska (680 kg/m3) | AD89: 15 | AE89: =SUM($T$86*$T$87*$AD89)/1000000 -> 0 | AF89: =ListAVS!$B$93 -> Alurámečky s 4mm sklem
N90: =ListAVS!$B$79&" [kg] " -> Vypočtená hmotnost čela [kg] | T90: =IF(X90=0,0,X90+T89) -> 0 | X90: =IF(T86*T87*T88=0,0,IF(Z87=1,Y87*Y88,IF(Z87=2,Y87*Y89,Y87*Y90))) -> 0 | Y90: =$T$80 -> 0 | Z90: =ListAVS!$B$92 -> Jiné - volitelná hustota | AD90: =2.5*$T$80 -> 0 | AE90: =SUM($T$86*$T$87*$AD90)/1000000 -> 0 | AF90: =ListAVS!$B$94 -> Alurámečky s 5mm sklem
O91: =IF(T90>0,IF(T89=0,$Y$107," ")," ") ->  | AD91: =SUM(IF(AF88=1,AE88,IF(AF88=2,AE89,AE90)),AE87) -> 0 | AF91: =ListAVS!$B$95 -> Alurámečky s jiným sklem
R96: =D20 -> 
N97: =ListAVS!$B$74&" KB [mm] " -> Šířka korpusu KB [mm] | T97: =H21 -> 0 | Y97: =T97*T98*T99 -> 0 | AD97: 3.51 | AE97: alu
N98: =ListAVS!$B$75&" KH [mm] " -> Výška korpusu KH [mm] | T98: =H22 -> 0 | Y98: =Y97/1000000000 -> 0 | Z98: =Z87 -> 2 | AD98: váha alu | AE98: =SUM(T97*2,T98*2)*AD97/10000 -> 0
N99: =ListAVS!$B$80&" TS [mm] " -> Síla čela TS [mm] | T99: =H24 -> 0 | U99: =IF(SUM(T97,T98)=0," ",IF(T99=0," ● "&ListAVS!$B$128," ")) ->  | Y99: =$Y$88 -> 760 | Z99: =$Z$88 -> MDF (760 kg/m3) | AD99: 8.8 | AE99: =SUM($T$97*$T$98*$AD99)/1000000 -> 0 | AF99: =AF88 -> 3
N100: =ListAVS!$B$83&" [kg] " -> Hmotnost úchytky [kg] | T100: =H25 -> 0 | U100: =IF(SUM(T97,T98)=0," ",IF(T100=0," ● "&ListAVS!$B$129," ")) ->  | Y100: =$Y$89 -> 680 | Z100: =$Z$89 -> Dřevotříska (680 kg/m3) | AD100: 13.2 | AE100: =SUM($T$97*$T$98*$AD100)/1000000 -> 0 | AF100: =ListAVS!$B$93 -> Alurámečky s 4mm sklem
N101: =ListAVS!$B$79&" [kg] " -> Vypočtená hmotnost čela [kg] | T101: =IF(X101=0,0,X101+T100) -> 0 | X101: =IF(T97*T98*T99=0,0,IF(Z98=1,Y98*Y99,IF(Z98=2,Y98*Y100,Y98*Y101))) -> 0 | Y101: =$Y$90 -> 0 | Z101: =$Z$90 -> Jiné - volitelná hustota | AD101: =2.2*$T$80 -> 0 | AE101: =SUM($T$97*$T$98*$AD101)/1000000 -> 0 | AF101: =ListAVS!$B$94 -> Alurámečky s 5mm sklem
O102: =IF(T101>0,IF(T100=0,$Y$107," ")," ") ->  | AD102: =SUM(IF(AF99=1,AE99,IF(AF99=2,AE100,AE101)),AE98) -> 0 | AF102: =ListAVS!$B$95 -> Alurámečky s jiným sklem
Y107: =ListAVS!$B$102&"!" -> Není započtena hmotnost úchytky!
B110: AVENTOS HS
B112: =ListAVS!$B$332 -> Pro výběr správného zdvihače potřebujete znát výšku korpusu a hmotnost čela.
B114: =ListAVS!$B$334 -> Výška korpusu KH = 602 mm zaokrouhlit na KH = 600 mm
B115: =ListAVS!$B$335 -> Výška korpusu KH = 603 mm zaokrouhlit na KH = 605 mm
B117: =ListAVS!$B$311 -> Pokud znáte hmotnost čela, můžete ji zadat, jinak použijte "Výpočet hmotnosti".
B118: =ListAVS!$B$312 -> V tabulce má přednost zadaná hodnota. Chcete-li použít vypočtenou hmotnost, smažte zadanou hodnotu.
B121: =ListAVS!$B$305 -> Chcete-li změnit barvu krytek, přejděte na "Úvod plánování"
L124: =ListAVS!$B$167 -> Zpět

Sheet HSwa
A1: 1
B2: AVENTOS HS top | N2: zdvih A | P2: ↓rozhodnutí | Q2: zdvih B | S2: ↓rozhodnutí | V2: rámeček | AK2: 3 | AN2: =ListAVS!$B$152 -> Jdi na
B4: =ListAVS!$B$20&" ***" -> Široký alurámeček *** | F4: =ListAVS!$B$179&" " -> Provedení čel | K4: =U80 ->  | N4: S22 | O4: =IF(AND($H$11>=$AC$51, $H$11<$AD$51, $P$17>=$AE$51, $P$17<=$AF$51), 1, 0) -> 0 | P4: =O4 -> 0 | Q4: S22 | R4: =IF(AND($H$22>=$AC$51, $H$22<$AD$51, $P$28>=$AE$51, $P$28<=$AF$51), 1, 0) -> 0 | S4: =R4 -> 0 | T4: ← (350–450) | V4: 1 | AK4: =" "&ListAVS!$B$41&" A " -> Cena za korpus A | AN4: Úvod plánování
F5: =IF($AF$87<>3,$Y$81," ")&" " -> Změnit hodnoty můžete v Úvodu plánování | N5: S22 v | O5: =IF(AND($H$11>=$AC$52, $H$11<$AD$52, $P$17>=$AE$52, $P$17<=$AF$52), 1, 0) -> 0 | P5: =IF(AND($O$5=1, $O$6=1, $P$17<=5), O5, 0)+IF(AND($O$5=1, $O$6=0), 1, IF(AND(O5=1, O6=0), O5, 0)) -> 0 | Q5: S22 v | R5: =IF(AND($H$22>=$AC$52, $H$22<$AD$52, $P$28>=$AE$52, $P$28<=$AF$52), 1, 0) -> 0 | S5: =IF(AND($R$5=1, $R$6=1, $P$28<=5), R5, 0)+IF(AND($R$5=1, $R$6=0), 1, IF(AND(R5=1, R6=0), R5, 0)) -> 0 | T5: ← (450–540) | AK5: =" "&ListAVS!$B$41&" B " -> Cena za korpus B | AN5: =" "&ListAVS!$B$154 -> Nápověda
N6: S25 | O6: =IF(AND($H$11>=$AC$53, $H$11<$AD$53, $P$17>=$AE$53, $P$17<=$AF$53), 1, 0) -> 0 | P6: =IF(AND($O$5=1, $O$6=1, $P$17>5), O6, 0)+IF(AND($O$6=1, $O$7=1, $P$17<7), O6, IF(AND(O5=0, O6=1, O7=0), O6, 0)) -> 0 | Q6: S25 | R6: =IF(AND($H$22>=$AC$53, $H$22<$AD$53, $P$28>=$AE$53, $P$28<=$AF$53), 1, 0) -> 0 | S6: =IF(AND($R$5=1, $R$6=1, $P$28>5), R6, 0)+IF(AND($R$6=1, $R$7=1, $P$28<7), R6, IF(AND(R5=0, R6=1, R7=0), R6, 0)) -> 0 | AK6: =" "&ListAVS!$B$61 -> Cena celkem bez DPH
B7: =ListAVS!$B$51&": " -> Cena kování: | G7: =IF($AK$2=1,$AF$45,IF($AK$2=2,$AH$45,IF($AK$2=3,$AD$45,0))) -> 0 | N7: S28 | O7: =IF(AND($H$11>=$AC$54, $H$11<=$AD$54, $P$17>=$AE$54, $P$17<=$AF$54), 1, 0) -> 0 | P7: =IF(AND($O$6=1, $O$7=1, $P$17>=7), O7, IF(AND(O6=0, O7=1), O7, 0)) -> 0 | Q7: S28 | R7: =IF(AND($H$22>=$AC$54, $H$22<=$AD$54, $P$28>=$AE$54, $P$28<=$AF$54), 1, 0) -> 0 | S7: =IF(AND($R$6=1, $R$7=1, $P$28>=7), R7, IF(AND(R6=0, R7=1), R7, 0)) -> 0 | Y7: =$B$2 -> AVENTOS HS top | Z7: =B5 -> 0 | AN7: =" "&ListAVS!$B$159 -> Doplňky
H8: =IF(AND(OR($Q$16=2, $Q$27=2), $AD$45>0), $N$35, " ") ->  | Y8: =ListAVS!B52 -> Název | Z8: =ListAVS!$B$53 -> Číslo artiklu | AA8: =ListAVS!B54 -> Barva | AB8: =ListAVS!B56 -> Ks | AC8: =ListAVS!B58 -> Jednotková cena | AD8: =ListAVS!B59 -> Celkem | AE8: A | AF8: Cena | AG8: B | AH8: Cena | AQ8: =ListAVS!B75&" KH (mm)" -> Výška korpusu KH (mm) | AR8: =ListAVS!B76&" FG (kg)" -> Hmotnost čela FG (kg) | AS8: =ListAVS!$B$84&" "&ListAVS!$B$349 -> Zdvihací mechanizmus vruty | AT8: =ListAVS!$B$84&" "&ListAVS!$B$350 -> Zdvihací mechanizmus předmont. eurošrouby
B9: ="▼ "&ListAVS!$B$317 -> ▼ Způsob otvírání | D9: =IF($M$17>0, ListAVS!$B$37&": ", " ") ->  | E9: =IF(SUM($AE$9:$AE$10)>0,"22",IF(SUM($AE$11:$AE$12)>0,"25",IF(SUM($AE$13:$AE$14)>0,"28"," "))) ->  | F9: =ListAVS!$B$64&" A" -> Korpus A | Y9: =CenAVS!A28 -> Sada zdvihačů HS top, na vruty | Z9: =CenAVS!B28 -> 22S2200 | AA9: =CenAVS!C28 -> ZN | AB9: =SUM(AE9,AG9) -> 0 | AC9: =CenAVS!F28 -> 1754.34 | AD9: =AB9*AC9 -> 0 | AE9: =IF(AND($W$46=1, SUM($P$4:$P$5)=1), $M$17, 0) -> 0 | AF9: =$AC9*AE9 -> 0 | AG9: =IF(AND($W$46=1, SUM($S$4:$S$5)=1), $M$28, 0) -> 0 | AH9: =$AC9*AG9 -> 0 | AN9: =" "&ListAVS!$B$156 -> Přehled korpusů | AQ9: 350 - 450 | AR9: 2.00 - 11.50 | AS9: 22S2200 | AT9: 22S2210
B10: =ListAVS!$B$74&" KB [mm] " -> Šířka korpusu KB [mm] | I10: =IF($H10=0," ",IF($H10<220," min. 220mm",IF($H10>1800," max. 1 800mm"," ")))&IF(H17>0,IF(H10=0,"● "&ListAVS!$B$128," ")," ") ->  | Y10: =CenAVS!A29 -> Sada zdvihačů HS top, předmont. eurošrouby | Z10: =CenAVS!B29 -> 22S2210 | AA10: =CenAVS!C29 -> ZN | AB10: 0 | AC10: =CenAVS!F29 -> 1754.34 | AD10: =AB10*AC10 -> 0 | AE10: =IF(AND($W$46=2, SUM($P$4:$P$5)=1), $M$17, 0) -> 0 | AF10: 0 | AG10: =IF(AND($W$46=2, SUM($S$4:$S$5)=1), $M$28, 0) -> 0 | AH10: 0 | AN10: =" "&ListAVS!$B$157 -> Objednávka | AQ10: 450 - 540 | AR10: 2.50 - 12.50
B11: =ListAVS!$B$75&" KH [mm] " -> Výška korpusu KH [mm] | I11: =IF($H11=0," ",IF($H11<350," min. 350mm",IF($H11>800," max. 800 mm"," ")))&IF(H17>0,IF(H11=0,"● "&ListAVS!$B$128," ")," ") ->  | Y11: =CenAVS!A30 -> Sada zdvihačů HS top, na vruty | Z11: =CenAVS!B30 -> 22S2500 | AA11: =CenAVS!C30 -> ZN | AB11: 0 | AC11: =CenAVS!F30 -> 1856.76 | AD11: 0 | AE11: =IF(AND($W$46=1, $P$6=1), $M$17, 0) -> 0 | AF11: 0 | AG11: =IF(AND($W$46=1, $S$6=1), $M$28, 0) -> 0 | AH11: 0 | AQ11: 480 - 660 | AR11: 2.75 - 15.25 | AS11: 22S2500 | AT11: 22S2510
B12: =ListAVS!$B$77&" [kg] ** " -> Hmotnost čela včetně úchytky [kg] ** | I12: =IF($H17=0, " ", IF(SUM($H12,$H15)=0,$N$54," "))&IF(AND(SUM($O$4:$O$7)=0, T12="ano", $T13="ne", H12>0),$N$58,IF(AND($H17>0,$H12>0, $M17>0, $T13="ano"),$N$55," ")) ->  | S12: limit v/š | T12: =IF(AND(219<H10,H10<1801,349<H11,H11<801),"ano","ne") -> ne | Y12: =CenAVS!A31 -> Sada zdvihačů HS top, předmont. eurošrouby | Z12: =CenAVS!B31 -> 22S2510 | AA12: =CenAVS!C31 -> ZN | AB12: 0 | AC12: =CenAVS!F31 -> 1856.76 | AD12: 0 | AE12: =IF(AND($W$46=2, $P$6=1), $M$17, 0) -> 0 | AF12: 0 | AG12: =IF(AND($W$46=2, $S$6=1), $M$28, 0) -> 0 | AH12: 0 | AQ12: 650 - 800 | AR12: 3.50 - 18.50 | AS12: 22S2800 | AT12: 22S2810
B13: =ListAVS!$B$292 -> Výpočet hmotnosti | D13: =ListAVS!$B$80&" TS [mm] " -> Síla čela TS [mm] | S13: limit hmot | T13: =IF(AND($H$11>=$AC$51, $H$11<=$AD$51, $P$17>=$AE$51, $P$17<=$AF$51), "ano", IF(AND($H$11>=$AC$52, $H$11<=$AD$52, $P$17>=$AE$52, $P$17<=$AF$52), "ano", IF(AND($H$11>=$AC$53, $H$11<=$AD$53, $P$17>=$AE$53, $P$17<=$AF$53), "ano", IF(AND($H$11>=$AC$54, $H$11<=$AD$54, $P$17>=$AE$54, $P$17<=$AF$54), "ano", "ne")))) -> ne | Y13: =CenAVS!A32 -> Sada zdvihačů HS top, na vruty | Z13: =CenAVS!B32 -> 22S2800 | AA13: =CenAVS!C32 -> ZN | AB13: 0 | AC13: =CenAVS!F32 -> 1972 | AD13: 0 | AE13: =IF(AND($W$46=1, $P$7=1), $M$17, 0) -> 0 | AF13: 0 | AG13: =IF(AND($W$46=1, $S$7=1), $M$28, 0) -> 0 | AH13: 0
D14: =ListAVS!$B$83&" [kg] " -> Hmotnost úchytky [kg] | I14: =IF(H17=0, " ", IF(AND(H12=0, Q16=1, H14=0), " ● "&ListAVS!$B$129," ")) ->  | Y14: =CenAVS!A33 -> Sada zdvihačů HS top, předmont. eurošrouby | Z14: =CenAVS!B33 -> 22S2810 | AA14: =CenAVS!C33 -> ZN | AB14: 0 | AC14: =CenAVS!F33 -> 1972 | AD14: 0 | AE14: =IF(AND($W$46=2, $P$7=1), $M$17, 0) -> 0 | AF14: 0 | AG14: =IF(AND($W$46=2, $S$7=1), $M$28, 0) -> 0 | AH14: 0 | AQ14: =ListAVS!B349&" = "&ListAVS!B351 -> vruty = zdvihače s integrovanou šablonou (bez nutnosti rozměřování)
D15: =ListAVS!$B$79&" [kg] " -> Vypočtená hmotnost čela [kg] | H15: =$T$90 -> 0 | I15: =IF(AND($H17>0,$H15>0,$H12=0,$M17>0), $N$41," ")&IF(AND(H17>0, H12=0, Z87=3, $J$4=0), $N$39, " ") ->  | P15: Servo-Drive | AQ15: =ListAVS!B350&" = "&ListAVS!B352 -> předmont. eurošrouby = zdvihače s předmotovanými šrouby (nutné předvrtání)
I16: =IF(AND(H16>0, Q16=2), $N$53, " ") ->  | O16: FALSE | Q16: 1 | Y16: =CenAVS!A34 -> Sada ramen HS top | Z16: =CenAVS!B34 -> 22S3500 | AA16: =CenAVS!C34 -> ZN | AB16: =SUM(AE16,AG16) -> 0 | AC16: =CenAVS!F34 -> 1169.26 | AD16: =AB16*AC16 -> 0 | AE16: =SUM($AE$9:$AE$14) -> 0 | AF16: =$AC16*AE16 -> 0 | AG16: =SUM($AG$9:$AG$14) -> 0 | AH16: =$AC16*AG16 -> 0
B17: =ListAVS!$B$71 -> Počet skříněk | M17: =IF($H10*$H11*$P17=0,0,IF(SUM(O4:O7)=0,0,IF($H10>1800,0, IF($H10<220, 0, $H17)))) -> 0 | O17: hmot = | P17: =IF(H12>0,H12,H15) -> 0 | Q17: =IF(SUM(H12,H15)=0,0,IF(H12>0,1,2)) -> 0 | R17: zadaná / vypočtená
B18: =IF(H17>0,IF(OR(Q17=0,M17=0), " ",IF(Q17=1,$N$67,$N$68))," ")&IF(H17>0,IF(OR(Q17=0, M17=0), " ",IF(Q17=1,$N$69,$N$70))," ") -> 
N19: tyč | O19: =IF($H$10>1360,1.5,IF($H$10<610,0.5,1)) -> 0.5 | Q19: tyč | R19: =IF($H$21>1360,1.5,IF($H$21<610,0.5,1)) -> 0.5
B20: ="▼ "&ListAVS!$B$317 -> ▼ Způsob otvírání | D20: =IF($M$28>0, ListAVS!$B$37&": ", " ") ->  | E20: =IF(SUM($AG$9:$AG$10)>0,"22",IF(SUM($AG$11:$AG$12)>0,"25",IF(SUM($AG$13:$AG$14)>0,"28"," "))) ->  | F20: =ListAVS!$B$64&" B" -> Korpus B | N20: mezistěny | O20: =IF($H$16>0,$H$16,IF($H$10>1219,1,0)) -> 0 | Q20: mezistěny | R20: =IF($H$27>0,$H$27,IF($H$21>1219,1,0)) -> 0 | Y20: =CenAVS!A47 -> Sada krytek HF, HS, HL top, světle šedá | Z20: =CenAVS!B47 -> 22.8000 | AA20: =CenAVS!C47 -> HGR | AB20: 0 | AC20: =CenAVS!F47 -> 252.85 | AD20: 0 | AE20: =IF(AND($Q$16=1,$T$46=1),SUM($AE$9:$AE$14),0) -> 0 | AF20: 0 | AG20: =IF(AND($Q$27=1,$T$46=1),SUM($AG$9:$AG$14),0) -> 0 | AH20: 0
B21: =ListAVS!$B$74&" KB [mm] " -> Šířka korpusu KB [mm] | I21: =IF($H21=0," ",IF($H21<220," min. 220mm",IF($H21>1800," max. 1 800mm"," ")))&IF(H28>0,IF(H21=0,"● "&ListAVS!$B$128," ")," ") ->  | Y21: =CenAVS!A48 -> Sada krytek HF, HS, HL top, tmavě šedá | Z21: =CenAVS!B48 -> 22.8000 | AA21: =CenAVS!C48 -> TGR | AB21: 0 | AC21: =CenAVS!F48 -> 275.94 | AD21: 0 | AE21: =IF(AND($Q$16=1,$T$46=2),SUM($AE$9:$AE$14),0) -> 0 | AF21: 0 | AG21: =IF(AND($Q$27=1,$T$46=2),SUM($AG$9:$AG$14),0) -> 0 | AH21: 0
B22: =ListAVS!$B$75&" KH [mm] " -> Výška korpusu KH [mm] | I22: =IF($H22=0," ",IF($H22<350," min. 350mm",IF($H22>800," max. 800 mm"," ")))&IF(H28>0,IF(H22=0,"● "&ListAVS!$B$128," ")," ") ->  | Y22: =CenAVS!A49 -> Sada krytek HF, HS, HL top, hedvábně bílá | Z22: =CenAVS!B49 -> 22.8000 | AA22: =CenAVS!C49 -> SW | AB22: 0 | AC22: =CenAVS!F49 -> 275.94 | AD22: 0 | AE22: =IF(AND($Q$16=1,$T$46=3),SUM($AE$9:$AE$14),0) -> 0 | AF22: 0 | AG22: =IF(AND($Q$27=1,$T$46=3),SUM($AG$9:$AG$14),0) -> 0 | AH22: 0
B23: =ListAVS!$B$77&" [kg] ** " -> Hmotnost čela včetně úchytky [kg] ** | I23: =IF($H28=0," ",IF(SUM($H23,$H26)=0,$N$54," "))&IF(AND(SUM($R$4:$R$7)=0, T23="ano", $T24="ne",H23>0),$N$58,IF(AND($H28>0,$H23>0, $M28>0, $T24="ano"),$N$55," ")) ->  | S23: limit v/š | T23: =IF(AND(219<H21,H21<1801,349<H22,H22<801),"ano","ne") -> ne | Y23: =CenAVS!A50 -> Sada krytek pro SERVO-DRIVE, světle šedá | Z23: =CenAVS!B50 -> 23.8000 | AA23: =CenAVS!C50 -> HGR | AB23: 0 | AC23: =CenAVS!F50 -> 2606.76 | AD23: 0 | AE23: =IF(AND($Q$16=2,$T$46=1),SUM($AE$9:$AE$14),0) -> 0 | AF23: 0 | AG23: =IF(AND($Q$27=2,$T$46=1),SUM($AG$9:$AG$14),0) -> 0 | AH23: 0
B24: =ListAVS!$B$292 -> Výpočet hmotnosti | D24: =ListAVS!$B$80&" TS [mm] " -> Síla čela TS [mm] | S24: limit hmot | T24: =IF(AND($H$22>=$AC$51, $H$22<=$AD$51, $P$28>=$AE$51, $P$28<=$AF$51), "ano", IF(AND($H$22>=$AC$52, $H$22<=$AD$52, $P$28>=$AE$52, $P$28<=$AF$52), "ano", IF(AND($H$22>=$AC$53, $H$22<=$AD$53, $P$28>=$AE$53, $P$28<=$AF$53), "ano", IF(AND($H$22>=$AC$54, $H$22<=$AD$54, $P$28>=$AE$54, $P$28<=$AF$54), "ano", "ne")))) -> ne | Y24: =CenAVS!A51 -> Sada krytek pro SERVO-DRIVE, tmavě šedá | Z24: =CenAVS!B51 -> 23.8000 | AA24: =CenAVS!C51 -> TGR | AB24: 0 | AC24: =CenAVS!F51 -> 2709.29 | AD24: 0 | AE24: =IF(AND($Q$16=2,$T$46=2),SUM($AE$9:$AE$14),0) -> 0 | AF24: 0 | AG24: =IF(AND($Q$27=2,$T$46=2),SUM($AG$9:$AG$14),0) -> 0 | AH24: 0
D25: =ListAVS!$B$83&" [kg] " -> Hmotnost úchytky [kg] | I25: =IF(H28=0, " ", IF(AND(H23=0, Q27=1, H25=0), " ● "&ListAVS!$B$129," ")) ->  | Y25: =CenAVS!A52 -> Sada krytek pro SERVO-DRIVE,hedvábně bílá | Z25: =CenAVS!B52 -> 23.8000 | AA25: =CenAVS!C52 -> SW | AB25: 0 | AC25: =CenAVS!F52 -> 2709.29 | AD25: 0 | AE25: =IF(AND($Q$16=2,$T$46=3),SUM($AE$9:$AE$14),0) -> 0 | AF25: 0 | AG25: =IF(AND($Q$27=2,$T$46=3),SUM($AG$9:$AG$14),0) -> 0 | AH25: 0
D26: =ListAVS!$B$79&" [kg] " -> Vypočtená hmotnost čela [kg] | H26: =$T$101 -> 0 | I26: =IF(AND($H28>0,$H26>0,$H23=0,$M28>0), $N$41," ")&IF(AND(H28>0, H23=0, Z98=3, $J$4=0), $N$39, " ") ->  | P26: Servo-Drive
I27: =IF(AND(H27>0, Q27=2), $N$53, " ") ->  | O27: FALSE | Q27: 1
B28: =ListAVS!$B$71 -> Počet skříněk | M28: =IF($H21*$H22*$P28=0,0,IF(SUM(R4:R7)=0,0,IF($H21>1800,0, IF($H21<220, 0, $H28)))) -> 0 | O28: hmot = | P28: =IF(H23>0,H23,H26) -> 0 | Q28: =IF(SUM(H23,H26)=0,0,IF(H23>0,1,2)) -> 0 | R28: zadaná / vypočtená
B29: =IF(H28>0,IF(OR(Q28=0,M28=0), " ",IF(Q28=1,$N$67,$N$68))," ")&IF(H28>0,IF(OR(Q28=0, M28=0), " ",IF(Q28=1,$N$69,$N$70))," ") ->  | Y29: =CenAVS!A78 -> Sada čel.kování pro dřev. čela | Z29: =CenAVS!B78 -> 20S4200 | AA29: =CenAVS!C78 -> NI | AB29: 0 | AC29: =CenAVS!F78 -> 90.38 | AD29: 0 | AE29: =SUM(AE$16:AE$17) -> 0 | AF29: =$AC29*AE29 -> 0 | AG29: =SUM(AG$16:AG$17) -> 0 | AH29: 0
Y30: =CenAVS!A79 -> Čelní.kování pro dřev. čela EXPANDO | Z30: =CenAVS!B79 -> 20S42E1 | AA30: =CenAVS!C79 -> NI | AB30: 0 | AC30: =CenAVS!F79 -> 51.36 | AD30: 0 | AF30: 0 | AH30: 0
B31: =IF(OR(AND($Q$16=2, $M$17>0), AND($Q$27=2, $M$28>0)), ListAVS!$B$175, " ") ->  | O31: =IF($P$31=FALSE,2,1) -> 2 | P31: FALSE | R31: - Zdroj | Y31: =CenAVS!A80 -> Sada čel.kování pro tenké materiály | Z31: =CenAVS!B80 -> 20S42T1 | AA31: =CenAVS!C80 -> NI | AB31: 0 | AC31: =CenAVS!F80 -> 291.6 | AD31: 0 | AF31: 0 | AH31: 0
Y32: =CenAVS!A81 -> Sada čel.kování pro úzké alurámečky | Z32: =CenAVS!B81 -> 20S4200A | AA32: =CenAVS!C81 -> NI | AB32: 0 | AC32: =CenAVS!F81 -> 395.5 | AD32: 0 | AF32: 0 | AH32: 0
Y33: =CenAVS!A82 -> 0 | Z33: =CenAVS!B82 -> 0 | AA33: =CenAVS!C82 -> 0 | AB33: 0 | AC33: =CenAVS!F82 -> 0 | AD33: 0 | AF33: 0 | AH33: 0
AF34: 0 | AH34: 0
N35: =ListAVS!B176 -> Cena bez napájecího zdroje! | AF35: 0 | AH35: 0
AF36: 0 | AH36: 0
C37: ="* "&ListAVS!$B$233 -> * Zadejte počet mezistěn v korpusu | N37: =" "&ListAVS!$B$115 -> Zadejte hmotnost nebo vyplňte všechny buňky | AF37: 0 | AH37: 0
C38: ="** "&ListAVS!$B$186 -> ** Pokud znáte hmotnost a nechcete využít výpočtu hmotnosti | N38: =" "&ListAVS!$B$116 -> Zadejte hmotnost nebo vyplňte nahoře sílu skla | AF38: 0 | AH38: 0
C39: ="*** "&ListAVS!$B$403 -> *** Vyberte typ alurámečku! | N39: =" "&ListAVS!$B$117 -> Vyplňte nahoře objemovou hmotnost
C40: =" "&ListAVS!$B$404 -> Více informací k výběru alurámečků v Nápovědě | AF40: =$AC40*AE40 -> 0 | AH40: =$AC40*AG40 -> 0
N41: ="◄ "&ListAVS!$B$111 -> ◄ hodnota bude použita pro výpočet LF | AF41: =$AC41*AE43 -> 0 | AH41: =$AC41*AG41 -> 0
N42: =" * "&ListAVS!$B$127 -> * Doplňte hodnoty | Y42: =CenAVS!A169 -> 0 | Z42: =CenAVS!B169 -> 0 | AA42: =CenAVS!C169 -> 0 | AC42: =CenAVS!F169 -> 0 | AD42: 0 | AF42: =$AC42*AE42 -> 0 | AH42: =$AC42*AG42 -> 0
Y43: =CenAVS!A171 -> SERVO-DRIVE jednotka (sada) | Z43: =CenAVS!B171 -> 23.A000 | AA43: =CenAVS!C171 -> R7037 | AB43: =SUM(AE43,AG43) -> 0 | AC43: =CenAVS!F171 -> 8297.32 | AD43: 0 | AE43: =IF($Q$16=1, 0, $M$17) -> 0 | AF43: =$AC43*AE43 -> 0 | AG43: =IF($Q$27=1, 0, $M$28) -> 0 | AH43: =$AC43*AG43 -> 0
AC45: =ListAVS!$B$61&" " -> Cena celkem bez DPH | AD45: =SUM(AD9:AD43) -> 0 | AF45: =SUM(AF9:AF44) -> 0 | AH45: =SUM(AH9:AH44) -> 0
O46: =HS!$N$26 -> 2 | S46: 2 | T46: =MenuAVS!$P$28 -> 1 | W46: =HS!$P$26 -> 1
O47: čelní kov. | Q47: Provedení: | S47: alu | T47: kryt. | W47: =HS!P27 -> mont.
O48: =ListAVS!$B$142 -> Expando | Q48: Standard | T48: =ListAVS!$B$145 -> Světle šedá (HGR) | W48: =HS!P28 -> vruty
O49: =ListAVS!$B$143 -> na vruty | Q49: SERVO-DRIVE | T49: =ListAVS!$B$146 -> Tmavě šedá (TGR) | W49: =HS!P29 -> předmont. eurošrouby | AA49: =Param!M22 -> Parametry HS
T50: =ListAVS!$B$147 -> Hedvábně bílá (SW) | AA50: =Param!M23 -> Zdvihač | AB50: =Param!N23 -> ks | AC50: =Param!O23 -> min | AD50: =Param!P23 -> max | AE50: =Param!Q23 -> hmot. min. | AF50: =Param!R23 -> hmot. max.
AA51: =Param!M24 -> 22S2200 | AC51: =Param!O24 -> 350 | AD51: =Param!P24 -> 450 | AE51: =Param!Q24 -> 2 | AF51: =Param!R24 -> 11.5
N52: =" "&ListAVS!$B$108 -> v kombinaci se SERVO-DRIVE | AA52: =Param!M25 -> 22S2200 v | AC52: =Param!O25 -> 450 | AD52: =Param!P25 -> 540 | AE52: =Param!Q25 -> 2.5 | AF52: =Param!R25 -> 12.5
N53: =" "&ListAVS!$B$109 -> nelze v kombinaci se SERVO-DRIVE | AA53: =Param!M26 -> 22S2500 | AC53: =Param!O26 -> 480 | AD53: =Param!P26 -> 660 | AE53: =Param!Q26 -> 2.75 | AF53: =Param!R26 -> 15.25
N54: =" "&ListAVS!$B$115 -> Zadejte hmotnost nebo vyplňte všechny buňky | AA54: =Param!M27 -> 22S2800 | AC54: =Param!O27 -> 650 | AD54: =Param!P27 -> 800 | AE54: =Param!Q27 -> 3.5 | AF54: =Param!R27 -> 18.5
N55: ="◄ "&ListAVS!$B$112 -> ◄ hodnota bude použita pro výběr zdvihače
N56: =" * "&ListAVS!$B$127 -> * Doplňte hodnoty
N58: =" "&ListAVS!$B$124&"!" -> Hmotnost mimo povolený rozsah!
N59: =" max. 9 000! "&ListAVS!$B$121 -> max. 9 000! Upravte hmotnost nebo výšku
N60: =" "&ListAVS!$B$234 -> Nutná mezistěna
N67: =ListAVS!B187&". " -> Pro určení typu zdvihače bude použita zadaná hmotnost.
N68: =ListAVS!B188&". " -> Pro určení typu zdvihače bude použita vypočtená hmotnost.
N69: =ListAVS!B189 -> Chcete-li použít vypočtenou hmotnost, smažte zadanou hodnotu
N70: =ListAVS!B190 -> Chcete-li použít zadanou hmotnost, zadejte ji do políčka
N79: =ListAVS!$B$73 -> Výpočet hmotnosti čel
O80: =ListAVS!$B$179&" " -> Provedení čel | T80: =J4 -> 0 | U80: =IF(AF87=3,IF(T80=0,Y82," "),IF(T80>0,Y83," ")) ->  | Y80: =IF($AF$87=1,$AF$105,IF($AF$87=2,$AF$106,$AF$107&" - "&$Y$90&"mm")) -> Alurámečky s 4mm sklem | AD80: =MenuAVS!$Q$81 -> 2500
Y81: =" "&ListAVS!$B$410 -> Změnit hodnoty můžete v Úvodu plánování
Y82: =" "&ListAVS!$B$245&" [mm]" -> Zadejte sílu skla [mm]
Y83: =" "&ListAVS!$B$240&" '"&ListAVS!$B$95&"'" -> Hodnota platí jen pro volbu 'Alurámečky s jiným sklem'
R85: =D9 ->  | AE85: váha spoj.
N86: =ListAVS!$B$74&" KB [mm] " -> Šířka korpusu KB [mm] | T86: =H10 -> 0 | Y86: =T86*T87*T88 -> 0 | AD86: =IF($AG$87=1,$X$105,$X$106) -> 0.62 | AE86: =$X$107 -> 0.61 | AF86: tl. skla | AG86: typ alu
N87: =ListAVS!$B$75&" KH [mm] " -> Výška korpusu KH [mm] | T87: =H11 -> 0 | Y87: =Y86/1000000000 -> 0 | Z87: 2 | AD87: váha alu | AE87: =SUM(T86*2,(T87-90)*2)*AD86/1000 -> -0.1116 | AF87: 1 | AG87: =$V$4 -> 1
N88: =ListAVS!$B$80&" TS [mm] " -> Síla čela TS [mm] | Y88: =MenuAVS!$C$31 -> 760 | Z88: =ListAVS!$B$90&" ("&Y88&" kg/m3)" -> MDF (760 kg/m3) | AD88: =$AD$80*4/1000 -> 10 | AE88: =IF($AG$87=1,AF89*AD88,AG89*AD88) -> 0.064 | AF88: A plocha B
N89: =ListAVS!$B$83&" [kg] " -> Hmotnost úchytky [kg] | T89: =H14 -> 0 | U89: =IF(SUM(T86,T87)=0," ",IF(T89=0," ● "&ListAVS!$B$129," ")) ->  | Y89: =MenuAVS!$C$32 -> 680 | Z89: =ListAVS!$B$91&" ("&Y89&" kg/m3)" -> Dřevotříska (680 kg/m3) | AD89: =$AD$80*5/1000 -> 12.5 | AE89: =IF($AG$87=1,AF90*AD89,AG90*AD89) -> 0.08 | AF89: =SUM(($T$86-80)*($T$87-80)/1000000) -> 0.0064 | AG89: =SUM(($T$86-6)*($T$87-6)/1000000) -> 3.6e-05 | AH89: 4mm
N90: =ListAVS!$B$79&" [kg] " -> Vypočtená hmotnost čela [kg] | T90: =IF(AD91=0,0,AD91+T89) -> 0 | X90: =IF(T86*T87*T88=0,0,IF(Z87=1,Y87*Y88,IF(Z87=2,Y87*Y89,Y87*Y90))) -> 0 | Y90: =$T$80 -> 0 | Z90: =ListAVS!$B$92 -> Jiné - volitelná hustota | AD90: =$AD$80*$T$80/1000 -> 0 | AE90: =IF($AG$87=1,AF91*AD90,AG91*AD90) -> 0 | AF90: =SUM(($T$86-80)*($T$87-80)/1000000) -> 0.0064 | AG90: =SUM(($T$86-6)*($T$87-6)/1000000) -> 3.6e-05 | AH90: 5mm
O91: =IF(T90>0,IF(T89=0,$Z$105," ")," ") ->  | AD91: =IF(OR(AND(AF87=3, $T$80=0), T86*T87=0), 0, SUM(IF(AF87=1,AE88,IF(AF87=2,AE89,AE90)),AE87,AE86)) -> 0 | AF91: =SUM(($T$86-80)*($T$87-80)/1000000) -> 0.0064 | AG91: =SUM(($T$86-6)*($T$87-6)/1000000) -> 3.6e-05 | AH91: jiné
R96: =D20 ->  | AE96: váha spoj.
N97: =ListAVS!$B$74&" KB [mm] " -> Šířka korpusu KB [mm] | T97: =H21 -> 0 | Y97: =T97*T98*T99 -> 0 | AD97: =IF($AG$87=1,$X$105,$X$106) -> 0.62 | AE97: =$X$107 -> 0.61 | AF97: tl. skla | AG97: typ alu
N98: =ListAVS!$B$75&" KH [mm] " -> Výška korpusu KH [mm] | T98: =H22 -> 0 | Y98: =Y97/1000000000 -> 0 | Z98: =Z87 -> 2 | AD98: váha alu | AE98: =SUM(T97*2,(T98-90)*2)*AD97/1000 -> -0.1116 | AF98: =$AF$87 -> 1 | AG98: =$AG$87 -> 1
N99: =ListAVS!$B$80&" TS [mm] " -> Síla čela TS [mm] | Y99: =$Y$88 -> 760 | Z99: =$Z$88 -> MDF (760 kg/m3) | AD99: =AD88 -> 10 | AE99: =IF($AG$87=1,AF100*AD99,AG100*AD99) -> 0.064 | AF99: A plocha B
N100: =ListAVS!$B$83&" [kg] " -> Hmotnost úchytky [kg] | T100: =H25 -> 0 | U100: =IF(SUM(T97,T98)=0," ",IF(T100=0," ● "&ListAVS!$B$129," ")) ->  | Y100: =$Y$89 -> 680 | Z100: =$Z$89 -> Dřevotříska (680 kg/m3) | AD100: =AD89 -> 12.5 | AE100: =IF($AG$87=1,AF101*AD100,AG101*AD100) -> 0.08 | AF100: =SUM(($T$97-80)*($T$98-80)/1000000) -> 0.0064 | AG100: =SUM(($T$97-6)*($T$98-6)/1000000) -> 3.6e-05 | AH100: 4mm
N101: =ListAVS!$B$79&" [kg] " -> Vypočtená hmotnost čela [kg] | T101: =IF(AD102=0,0,AD102+T100) -> 0 | X101: =IF(T97*T98*T99=0,0,IF(Z98=1,Y98*Y99,IF(Z98=2,Y98*Y100,Y98*Y101))) -> 0 | Y101: =$Y$90 -> 0 | Z101: =$Z$90 -> Jiné - volitelná hustota | AD101: =AD90 -> 0 | AE101: =IF($AG$87=1,AF102*AD101,AG102*AD101) -> 0 | AF101: =SUM(($T$97-80)*($T$98-80)/1000000) -> 0.0064 | AG101: =SUM(($T$97-6)*($T$98-6)/1000000) -> 3.6e-05 | AH101: 5mm
O102: =IF(T101>0,IF(T100=0,$Z$105," ")," ") ->  | AD102: =IF(OR(AND(AF98=3, $T$80=0), T97*T98=0), 0, SUM(IF(AF98=1,AE99,IF(AF98=2,AE100,AE101)),AE98,AE97)) -> 0 | AF102: =SUM(($T$97-80)*($T$98-80)/1000000) -> 0.0064 | AG102: =SUM(($T$97-6)*($T$98-6)/1000000) -> 3.6e-05 | AH102: jiné
W105: =ListAVS!$B$422&" " -> s vloženým sklem | X105: =MenuAVS!$I$86 -> 0.62 | Z105: =ListAVS!$B$102&"!" -> Není započtena hmotnost úchytky! | AF105: =ListAVS!$B$93 -> Alurámečky s 4mm sklem
W106: =ListAVS!$B$423&" " -> s naloženým nebo nalepeným sklem | X106: =MenuAVS!$I$87 -> 0.63 | AF106: =ListAVS!$B$94 -> Alurámečky s 5mm sklem
W107: =ListAVS!$B$405&" [kg/set] * " -> Hmotnost spojovacího materiálu [kg/set] * | X107: =MenuAVS!$I$88 -> 0.61 | AF107: =ListAVS!$B$95 -> Alurámečky s jiným sklem
B110: AVENTOS HS
B112: =ListAVS!$B$332 -> Pro výběr správného zdvihače potřebujete znát výšku korpusu a hmotnost čela.
B114: =ListAVS!$B$334 -> Výška korpusu KH = 602 mm zaokrouhlit na KH = 600 mm
B115: =ListAVS!$B$335 -> Výška korpusu KH = 603 mm zaokrouhlit na KH = 605 mm
B117: =ListAVS!$B$311 -> Pokud znáte hmotnost čela, můžete ji zadat, jinak použijte "Výpočet hmotnosti".
B118: =ListAVS!$B$312 -> V tabulce má přednost zadaná hodnota. Chcete-li použít vypočtenou hmotnost, smažte zadanou hodnotu.
B121: =ListAVS!$B$305 -> Chcete-li změnit barvu krytek, přejděte na "Úvod plánování"
B123: =ListAVS!$B$411 -> Věnujte pozornost výběru alurámečků.
B124: =ListAVS!$B$412 -> Vyberte, který typ lépe odpovídá tvaru použitého alurámečku.
B125: =ListAVS!$B$413 -> Způsob osazení skla do rámečku výrazně ovlivňuje plochu skla a tím i hmotnost!
C127: =" "&ListAVS!$B$422&" " -> s vloženým sklem
C129: =" "&ListAVS!$B$423&" " -> s naloženým nebo nalepeným sklem
L131: =ListAVS!$B$167 -> Zpět

Sheet HSna
B2: AVENTOS HS top | N2: zdvih A | P2: ↓rozhodnutí | Q2: zdvih B | S2: ↓rozhodnutí | V2: rámeček | AK2: 3 | AN2: =ListAVS!$B$152 -> Jdi na
B4: =ListAVS!$B$22&" ***" -> Úzký alurámeček *** | F4: =ListAVS!$B$179&" " -> Provedení čel | K4: =U80 ->  | N4: S22 | O4: =IF(AND($H$11>=$AC$51, $H$11<$AD$51, $P$17>=$AE$51, $P$17<=$AF$51), 1, 0) -> 0 | P4: =O4 -> 0 | Q4: S22 | R4: =IF(AND($H$22>=$AC$51, $H$22<$AD$51, $P$28>=$AE$51, $P$28<=$AF$51), 1, 0) -> 0 | S4: =R4 -> 0 | T4: ← (350–450) | V4: 1 | AK4: =" "&ListAVS!$B$41&" A " -> Cena za korpus A | AN4: Úvod plánování
F5: =IF($AF$87<>3,$Y$81," ")&" " -> Změnit hodnoty můžete v Úvodu plánování | N5: S22 v | O5: =IF(AND($H$11>=$AC$52, $H$11<$AD$52, $P$17>=$AE$52, $P$17<=$AF$52), 1, 0) -> 0 | P5: =IF(AND($O$5=1, $O$6=1, $P$17<=5), O5, 0)+IF(AND($O$5=1, $O$6=0), 1, IF(AND(O5=1, O6=0), O5, 0)) -> 0 | Q5: S22 v | R5: =IF(AND($H$22>=$AC$52, $H$22<$AD$52, $P$28>=$AE$52, $P$28<=$AF$52), 1, 0) -> 0 | S5: =IF(AND($R$5=1, $R$6=1, $P$28<=5), R5, 0)+IF(AND($R$5=1, $R$6=0), 1, IF(AND(R5=1, R6=0), R5, 0)) -> 0 | T5: ← (450–540) | AK5: =" "&ListAVS!$B$41&" B " -> Cena za korpus B | AN5: =" "&ListAVS!$B$154 -> Nápověda
N6: S25 | O6: =IF(AND($H$11>=$AC$53, $H$11<$AD$53, $P$17>=$AE$53, $P$17<=$AF$53), 1, 0) -> 0 | P6: =IF(AND($O$5=1, $O$6=1, $P$17>5), O6, 0)+IF(AND($O$6=1, $O$7=1, $P$17<7), O6, IF(AND(O5=0, O6=1, O7=0), O6, 0)) -> 0 | Q6: S25 | R6: =IF(AND($H$22>=$AC$53, $H$22<$AD$53, $P$28>=$AE$53, $P$28<=$AF$53), 1, 0) -> 0 | S6: =IF(AND($R$5=1, $R$6=1, $P$28>5), R6, 0)+IF(AND($R$6=1, $R$7=1, $P$28<7), R6, IF(AND(R5=0, R6=1, R7=0), R6, 0)) -> 0 | AK6: =" "&ListAVS!$B$61 -> Cena celkem bez DPH
B7: =ListAVS!$B$51&": " -> Cena kování: | G7: =IF($AK$2=1,$AF$45,IF($AK$2=2,$AH$45,IF($AK$2=3,$AD$45,0))) -> 0 | N7: S28 | O7: =IF(AND($H$11>=$AC$54, $H$11<=$AD$54, $P$17>=$AE$54, $P$17<=$AF$54), 1, 0) -> 0 | P7: =IF(AND($O$6=1, $O$7=1, $P$17>=7), O7, IF(AND(O6=0, O7=1), O7, 0)) -> 0 | Q7: S28 | R7: =IF(AND($H$22>=$AC$54, $H$22<=$AD$54, $P$28>=$AE$54, $P$28<=$AF$54), 1, 0) -> 0 | S7: =IF(AND($R$6=1, $R$7=1, $P$28>=7), R7, IF(AND(R6=0, R7=1), R7, 0)) -> 0 | Y7: =$B$2 -> AVENTOS HS top | Z7: =B5 -> 0 | AN7: =" "&ListAVS!$B$159 -> Doplňky
H8: =IF(AND(OR($Q$16=2, $Q$27=2), $AD$45>0), $N$35, " ") ->  | Y8: =ListAVS!B52 -> Název | Z8: =ListAVS!$B$53 -> Číslo artiklu | AA8: =ListAVS!B54 -> Barva | AB8: =ListAVS!B56 -> Ks | AC8: =ListAVS!B58 -> Jednotková cena | AD8: =ListAVS!B59 -> Celkem | AE8: A | AF8: Cena | AG8: B | AH8: Cena | AQ8: =ListAVS!B75&" KH (mm)" -> Výška korpusu KH (mm) | AR8: =ListAVS!B76&" FG (kg)" -> Hmotnost čela FG (kg) | AS8: =ListAVS!$B$84&" "&ListAVS!$B$349 -> Zdvihací mechanizmus vruty | AT8: =ListAVS!$B$84&" "&ListAVS!$B$350 -> Zdvihací mechanizmus předmont. eurošrouby
B9: ="▼ "&ListAVS!$B$317 -> ▼ Způsob otvírání | D9: =IF($M$17>0, ListAVS!$B$37&": ", " ") ->  | E9: =IF(SUM($AE$9:$AE$10)>0,"22",IF(SUM($AE$11:$AE$12)>0,"25",IF(SUM($AE$13:$AE$14)>0,"28"," "))) ->  | F9: =ListAVS!$B$64&" A" -> Korpus A | Y9: =CenAVS!A28 -> Sada zdvihačů HS top, na vruty | Z9: =CenAVS!B28 -> 22S2200 | AA9: =CenAVS!C28 -> ZN | AB9: =SUM(AE9,AG9) -> 0 | AC9: =CenAVS!F28 -> 1754.34 | AD9: =AB9*AC9 -> 0 | AE9: =IF(AND($W$46=1, SUM($P$4:$P$5)=1), $M$17, 0) -> 0 | AF9: =$AC9*AE9 -> 0 | AG9: =IF(AND($W$46=1, SUM($S$4:$S$5)=1), $M$28, 0) -> 0 | AH9: =$AC9*AG9 -> 0 | AN9: =" "&ListAVS!$B$156 -> Přehled korpusů | AQ9: 350 - 450 | AR9: 2.00 - 11.50 | AS9: 22S2200 | AT9: 22S2210
B10: =ListAVS!$B$74&" KB [mm] " -> Šířka korpusu KB [mm] | I10: =IF($H10=0," ",IF($H10<220," min. 220mm",IF($H10>1800," max. 1 800mm"," ")))&IF(H17>0,IF(H10=0,"● "&ListAVS!$B$128," ")," ") ->  | Y10: =CenAVS!A29 -> Sada zdvihačů HS top, předmont. eurošrouby | Z10: =CenAVS!B29 -> 22S2210 | AA10: =CenAVS!C29 -> ZN | AB10: 0 | AC10: =CenAVS!F29 -> 1754.34 | AD10: =AB10*AC10 -> 0 | AE10: =IF(AND($W$46=2, SUM($P$4:$P$5)=1), $M$17, 0) -> 0 | AF10: 0 | AG10: =IF(AND($W$46=2, SUM($S$4:$S$5)=1), $M$28, 0) -> 0 | AH10: 0 | AN10: =" "&ListAVS!$B$157 -> Objednávka | AQ10: 450 - 540 | AR10: 2.50 - 12.50
B11: =ListAVS!$B$75&" KH [mm] " -> Výška korpusu KH [mm] | I11: =IF($H11=0," ",IF($H11<350," min. 350mm",IF($H11>800," max. 800 mm"," ")))&IF(H17>0,IF(H11=0,"● "&ListAVS!$B$128," ")," ") ->  | Y11: =CenAVS!A30 -> Sada zdvihačů HS top, na vruty | Z11: =CenAVS!B30 -> 22S2500 | AA11: =CenAVS!C30 -> ZN | AB11: 0 | AC11: =CenAVS!F30 -> 1856.76 | AD11: 0 | AE11: =IF(AND($W$46=1, $P$6=1), $M$17, 0) -> 0 | AF11: 0 | AG11: =IF(AND($W$46=1, $S$6=1), $M$28, 0) -> 0 | AH11: 0 | AQ11: 480 - 660 | AR11: 2.75 - 15.25 | AS11: 22S2500 | AT11: 22S2510
B12: =ListAVS!$B$77&" [kg] ** " -> Hmotnost čela včetně úchytky [kg] ** | I12: =IF($H17=0, " ", IF(SUM($H12,$H15)=0,$N$54," "))&IF(AND(SUM($O$4:$O$7)=0, T12="ano", $T13="ne", H12>0),$N$58,IF(AND($H17>0,$H12>0, $M17>0, $T13="ano"),$N$55," ")) ->  | S12: limit v/š | T12: =IF(AND(219<H10,H10<1801,349<H11,H11<801),"ano","ne") -> ne | Y12: =CenAVS!A31 -> Sada zdvihačů HS top, předmont. eurošrouby | Z12: =CenAVS!B31 -> 22S2510 | AA12: =CenAVS!C31 -> ZN | AB12: 0 | AC12: =CenAVS!F31 -> 1856.76 | AD12: 0 | AE12: =IF(AND($W$46=2, $P$6=1), $M$17, 0) -> 0 | AF12: 0 | AG12: =IF(AND($W$46=2, $S$6=1), $M$28, 0) -> 0 | AH12: 0 | AQ12: 650 - 800 | AR12: 3.50 - 18.50 | AS12: 22S2800 | AT12: 22S2810
B13: =ListAVS!$B$292 -> Výpočet hmotnosti | D13: =ListAVS!$B$80&" TS [mm] " -> Síla čela TS [mm] | S13: limit hmot | T13: =IF(AND($H$11>=$AC$51, $H$11<=$AD$51, $P$17>=$AE$51, $P$17<=$AF$51), "ano", IF(AND($H$11>=$AC$52, $H$11<=$AD$52, $P$17>=$AE$52, $P$17<=$AF$52), "ano", IF(AND($H$11>=$AC$53, $H$11<=$AD$53, $P$17>=$AE$53, $P$17<=$AF$53), "ano", IF(AND($H$11>=$AC$54, $H$11<=$AD$54, $P$17>=$AE$54, $P$17<=$AF$54), "ano", "ne")))) -> ne | Y13: =CenAVS!A32 -> Sada zdvihačů HS top, na vruty | Z13: =CenAVS!B32 -> 22S2800 | AA13: =CenAVS!C32 -> ZN | AB13: 0 | AC13: =CenAVS!F32 -> 1972 | AD13: 0 | AE13: =IF(AND($W$46=1, $P$7=1), $M$17, 0) -> 0 | AF13: 0 | AG13: =IF(AND($W$46=1, $S$7=1), $M$28, 0) -> 0 | AH13: 0
D14: =ListAVS!$B$83&" [kg] " -> Hmotnost úchytky [kg] | I14: =IF(H17=0, " ", IF(AND(H12=0, Q16=1, H14=0), " ● "&ListAVS!$B$129," ")) ->  | Y14: =CenAVS!A33 -> Sada zdvihačů HS top, předmont. eurošrouby | Z14: =CenAVS!B33 -> 22S2810 | AA14: =CenAVS!C33 -> ZN | AB14: 0 | AC14: =CenAVS!F33 -> 1972 | AD14: 0 | AE14: =IF(AND($W$46=2, $P$7=1), $M$17, 0) -> 0 | AF14: 0 | AG14: =IF(AND($W$46=2, $S$7=1), $M$28, 0) -> 0 | AH14: 0 | AQ14: =ListAVS!B349&" = "&ListAVS!B351 -> vruty = zdvihače s integrovanou šablonou (bez nutnosti rozměřování)
D15: =ListAVS!$B$79&" [kg] " -> Vypočtená hmotnost čela [kg] | H15: =$T$90 -> 0 | I15: =IF(AND($H17>0,$H15>0,$H12=0,$M17>0), $N$41," ")&IF(AND(H17>0, H12=0, Z87=3, $J$4=0), $N$39, " ") ->  | P15: Servo-Drive | AQ15: =ListAVS!B350&" = "&ListAVS!B352 -> předmont. eurošrouby = zdvihače s předmotovanými šrouby (nutné předvrtání)
I16: =IF(AND(H16>0, Q16=2), $N$53, " ") ->  | O16: FALSE | Q16: 1 | Y16: =CenAVS!A34 -> Sada ramen HS top | Z16: =CenAVS!B34 -> 22S3500 | AA16: =CenAVS!C34 -> ZN | AB16: =SUM(AE16,AG16) -> 0 | AC16: =CenAVS!F34 -> 1169.26 | AD16: =AB16*AC16 -> 0 | AE16: =SUM($AE$9:$AE$14) -> 0 | AF16: =$AC16*AE16 -> 0 | AG16: =SUM($AG$9:$AG$14) -> 0 | AH16: =$AC16*AG16 -> 0
B17: =ListAVS!$B$71 -> Počet skříněk | M17: =IF($H10*$H11*$P17=0,0,IF(SUM(O4:O7)=0,0,IF($H10>1800,0, IF($H10<220, 0, $H17)))) -> 0 | O17: hmot = | P17: =IF(H12>0,H12,H15) -> 0 | Q17: =IF(SUM(H12,H15)=0,0,IF(H12>0,1,2)) -> 0 | R17: zadaná / vypočtená
B18: =IF(H17>0,IF(OR(Q17=0,M17=0), " ",IF(Q17=1,$N$67,$N$68))," ")&IF(H17>0,IF(OR(Q17=0, M17=0), " ",IF(Q17=1,$N$69,$N$70))," ") -> 
N19: tyč | O19: =IF($H$10>1360,1.5,IF($H$10<610,0.5,1)) -> 0.5 | Q19: tyč | R19: =IF($H$21>1360,1.5,IF($H$21<610,0.5,1)) -> 0.5
B20: ="▼ "&ListAVS!$B$317 -> ▼ Způsob otvírání | D20: =IF($M$28>0, ListAVS!$B$37&": ", " ") ->  | E20: =IF(SUM($AG$9:$AG$10)>0,"22",IF(SUM($AG$11:$AG$12)>0,"25",IF(SUM($AG$13:$AG$14)>0,"28"," "))) ->  | F20: =ListAVS!$B$64&" B" -> Korpus B | N20: mezistěny | O20: =IF($H$16>0,$H$16,IF($H$10>1219,1,0)) -> 0 | Q20: mezistěny | R20: =IF($H$27>0,$H$27,IF($H$21>1219,1,0)) -> 0 | Y20: =CenAVS!A47 -> Sada krytek HF, HS, HL top, světle šedá | Z20: =CenAVS!B47 -> 22.8000 | AA20: =CenAVS!C47 -> HGR | AB20: 0 | AC20: =CenAVS!F47 -> 252.85 | AD20: 0 | AE20: =IF(AND($Q$16=1,$T$46=1),SUM($AE$9:$AE$14),0) -> 0 | AF20: 0 | AG20: =IF(AND($Q$27=1,$T$46=1),SUM($AG$9:$AG$14),0) -> 0 | AH20: 0
B21: =ListAVS!$B$74&" KB [mm] " -> Šířka korpusu KB [mm] | I21: =IF($H21=0," ",IF($H21<220," min. 220mm",IF($H21>1800," max. 1 800mm"," ")))&IF(H28>0,IF(H21=0,"● "&ListAVS!$B$128," ")," ") ->  | Y21: =CenAVS!A48 -> Sada krytek HF, HS, HL top, tmavě šedá | Z21: =CenAVS!B48 -> 22.8000 | AA21: =CenAVS!C48 -> TGR | AB21: 0 | AC21: =CenAVS!F48 -> 275.94 | AD21: 0 | AE21: =IF(AND($Q$16=1,$T$46=2),SUM($AE$9:$AE$14),0) -> 0 | AF21: 0 | AG21: =IF(AND($Q$27=1,$T$46=2),SUM($AG$9:$AG$14),0) -> 0 | AH21: 0
B22: =ListAVS!$B$75&" KH [mm] " -> Výška korpusu KH [mm] | I22: =IF($H22=0," ",IF($H22<350," min. 350mm",IF($H22>800," max. 800 mm"," ")))&IF(H28>0,IF(H22=0,"● "&ListAVS!$B$128," ")," ") ->  | Y22: =CenAVS!A49 -> Sada krytek HF, HS, HL top, hedvábně bílá | Z22: =CenAVS!B49 -> 22.8000 | AA22: =CenAVS!C49 -> SW | AB22: 0 | AC22: =CenAVS!F49 -> 275.94 | AD22: 0 | AE22: =IF(AND($Q$16=1,$T$46=3),SUM($AE$9:$AE$14),0) -> 0 | AF22: 0 | AG22: =IF(AND($Q$27=1,$T$46=3),SUM($AG$9:$AG$14),0) -> 0 | AH22: 0
B23: =ListAVS!$B$77&" [kg] ** " -> Hmotnost čela včetně úchytky [kg] ** | I23: =IF($H28=0," ",IF(SUM($H23,$H26)=0,$N$54," "))&IF(AND(SUM($R$4:$R$7)=0, T23="ano", $T24="ne",H23>0),$N$58,IF(AND($H28>0,$H23>0, $M28>0, $T24="ano"),$N$55," ")) ->  | S23: limit v/š | T23: =IF(AND(219<H21,H21<1801,349<H22,H22<801),"ano","ne") -> ne | Y23: =CenAVS!A50 -> Sada krytek pro SERVO-DRIVE, světle šedá | Z23: =CenAVS!B50 -> 23.8000 | AA23: =CenAVS!C50 -> HGR | AB23: 0 | AC23: =CenAVS!F50 -> 2606.76 | AD23: 0 | AE23: =IF(AND($Q$16=2,$T$46=1),SUM($AE$9:$AE$14),0) -> 0 | AF23: 0 | AG23: =IF(AND($Q$27=2,$T$46=1),SUM($AG$9:$AG$14),0) -> 0 | AH23: 0
B24: =ListAVS!$B$292 -> Výpočet hmotnosti | D24: =ListAVS!$B$80&" TS [mm] " -> Síla čela TS [mm] | S24: limit hmot | T24: =IF(AND($H$22>=$AC$51, $H$22<=$AD$51, $P$28>=$AE$51, $P$28<=$AF$51), "ano", IF(AND($H$22>=$AC$52, $H$22<=$AD$52, $P$28>=$AE$52, $P$28<=$AF$52), "ano", IF(AND($H$22>=$AC$53, $H$22<=$AD$53, $P$28>=$AE$53, $P$28<=$AF$53), "ano", IF(AND($H$22>=$AC$54, $H$22<=$AD$54, $P$28>=$AE$54, $P$28<=$AF$54), "ano", "ne")))) -> ne | Y24: =CenAVS!A51 -> Sada krytek pro SERVO-DRIVE, tmavě šedá | Z24: =CenAVS!B51 -> 23.8000 | AA24: =CenAVS!C51 -> TGR | AB24: 0 | AC24: =CenAVS!F51 -> 2709.29 | AD24: 0 | AE24: =IF(AND($Q$16=2,$T$46=2),SUM($AE$9:$AE$14),0) -> 0 | AF24: 0 | AG24: =IF(AND($Q$27=2,$T$46=2),SUM($AG$9:$AG$14),0) -> 0 | AH24: 0
D25: =ListAVS!$B$83&" [kg] " -> Hmotnost úchytky [kg] | I25: =IF(H28=0, " ", IF(AND(H23=0, Q27=1, H25=0), " ● "&ListAVS!$B$129," ")) ->  | Y25: =CenAVS!A52 -> Sada krytek pro SERVO-DRIVE,hedvábně bílá | Z25: =CenAVS!B52 -> 23.8000 | AA25: =CenAVS!C52 -> SW | AB25: 0 | AC25: =CenAVS!F52 -> 2709.29 | AD25: 0 | AE25: =IF(AND($Q$16=2,$T$46=3),SUM($AE$9:$AE$14),0) -> 0 | AF25: 0 | AG25: =IF(AND($Q$27=2,$T$46=3),SUM($AG$9:$AG$14),0) -> 0 | AH25: 0
D26: =ListAVS!$B$79&" [kg] " -> Vypočtená hmotnost čela [kg] | H26: =$T$101 -> 0 | I26: =IF(AND($H28>0,$H26>0,$H23=0,$M28>0), $N$41," ")&IF(AND(H28>0, H23=0, Z98=3, $J$4=0), $N$39, " ") ->  | P26: Servo-Drive
I27: =IF(AND(H27>0, Q27=2), $N$53, " ") ->  | O27: FALSE | Q27: 1
B28: =ListAVS!$B$71 -> Počet skříněk | M28: =IF($H21*$H22*$P28=0,0,IF(SUM(R4:R7)=0,0,IF($H21>1800,0, IF($H21<220, 0, $H28)))) -> 0 | O28: hmot = | P28: =IF(H23>0,H23,H26) -> 0 | Q28: =IF(SUM(H23,H26)=0,0,IF(H23>0,1,2)) -> 0 | R28: zadaná / vypočtená
B29: =IF(H28>0,IF(OR(Q28=0,M28=0), " ",IF(Q28=1,$N$67,$N$68))," ")&IF(H28>0,IF(OR(Q28=0, M28=0), " ",IF(Q28=1,$N$69,$N$70))," ") ->  | Y29: =CenAVS!A78 -> Sada čel.kování pro dřev. čela | Z29: =CenAVS!B78 -> 20S4200 | AA29: =CenAVS!C78 -> NI | AB29: 0 | AC29: =CenAVS!F78 -> 90.38 | AD29: 0 | AF29: =$AC29*AE29 -> 0 | AH29: 0
Y30: =CenAVS!A79 -> Čelní.kování pro dřev. čela EXPANDO | Z30: =CenAVS!B79 -> 20S42E1 | AA30: =CenAVS!C79 -> NI | AB30: 0 | AC30: =CenAVS!F79 -> 51.36 | AD30: 0 | AF30: 0 | AH30: 0
B31: =IF(OR(AND($Q$16=2, $M$17>0), AND($Q$27=2, $M$28>0)), ListAVS!$B$175, " ") ->  | O31: =IF($P$31=FALSE,2,1) -> 2 | P31: FALSE | R31: - Zdroj | Y31: =CenAVS!A80 -> Sada čel.kování pro tenké materiály | Z31: =CenAVS!B80 -> 20S42T1 | AA31: =CenAVS!C80 -> NI | AB31: 0 | AC31: =CenAVS!F80 -> 291.6 | AD31: 0 | AF31: 0 | AH31: 0
Y32: =CenAVS!A81 -> Sada čel.kování pro úzké alurámečky | Z32: =CenAVS!B81 -> 20S4200A | AA32: =CenAVS!C81 -> NI | AB32: 0 | AC32: =CenAVS!F81 -> 395.5 | AD32: 0 | AE32: =AE16 -> 0 | AF32: 0 | AG32: =AG16 -> 0 | AH32: 0
Y33: =CenAVS!A82 -> 0 | Z33: =CenAVS!B82 -> 0 | AA33: =CenAVS!C82 -> 0 | AB33: 0 | AC33: =CenAVS!F82 -> 0 | AD33: 0 | AF33: 0 | AH33: 0
AF34: 0 | AH34: 0
N35: =ListAVS!B176 -> Cena bez napájecího zdroje! | AF35: 0 | AH35: 0
AF36: 0 | AH36: 0
C37: ="* "&ListAVS!$B$233 -> * Zadejte počet mezistěn v korpusu | N37: =" "&ListAVS!$B$115 -> Zadejte hmotnost nebo vyplňte všechny buňky | AF37: 0 | AH37: 0
C38: ="** "&ListAVS!$B$186 -> ** Pokud znáte hmotnost a nechcete využít výpočtu hmotnosti | N38: =" "&ListAVS!$B$116 -> Zadejte hmotnost nebo vyplňte nahoře sílu skla | AF38: 0 | AH38: 0
C39: ="*** "&ListAVS!$B$403 -> *** Vyberte typ alurámečku! | N39: =" "&ListAVS!$B$117 -> Vyplňte nahoře objemovou hmotnost
C40: =" "&ListAVS!$B$404 -> Více informací k výběru alurámečků v Nápovědě | AF40: =$AC40*AE40 -> 0 | AH40: =$AC40*AG40 -> 0
N41: ="◄ "&ListAVS!$B$111 -> ◄ hodnota bude použita pro výpočet LF | AF41: =$AC41*AE43 -> 0 | AH41: =$AC41*AG41 -> 0
N42: =" * "&ListAVS!$B$127 -> * Doplňte hodnoty | Y42: =CenAVS!A169 -> 0 | Z42: =CenAVS!B169 -> 0 | AA42: =CenAVS!C169 -> 0 | AC42: =CenAVS!F169 -> 0 | AD42: 0 | AF42: =$AC42*AE42 -> 0 | AH42: =$AC42*AG42 -> 0
Y43: =CenAVS!A171 -> SERVO-DRIVE jednotka (sada) | Z43: =CenAVS!B171 -> 23.A000 | AA43: =CenAVS!C171 -> R7037 | AB43: =SUM(AE43,AG43) -> 0 | AC43: =CenAVS!F171 -> 8297.32 | AD43: 0 | AE43: =IF($Q$16=1, 0, $M$17) -> 0 | AF43: =$AC43*AE43 -> 0 | AG43: =IF($Q$27=1, 0, $M$28) -> 0 | AH43: =$AC43*AG43 -> 0
AC45: =ListAVS!$B$61&" " -> Cena celkem bez DPH | AD45: =SUM(AD9:AD43) -> 0 | AF45: =SUM(AF9:AF44) -> 0 | AH45: =SUM(AH9:AH44) -> 0
O46: =HS!$N$26 -> 2 | S46: 2 | T46: =MenuAVS!$P$28 -> 1 | W46: =HS!$P$26 -> 1
O47: čelní kov. | Q47: Provedení: | S47: alu | T47: kryt. | W47: =HS!P27 -> mont.
O48: =ListAVS!$B$142 -> Expando | Q48: Standard | T48: =ListAVS!$B$145 -> Světle šedá (HGR) | W48: =HS!P28 -> vruty
O49: =ListAVS!$B$143 -> na vruty | Q49: SERVO-DRIVE | T49: =ListAVS!$B$146 -> Tmavě šedá (TGR) | W49: =HS!P29 -> předmont. eurošrouby | AA49: =Param!M22 -> Parametry HS
T50: =ListAVS!$B$147 -> Hedvábně bílá (SW) | AA50: =Param!M23 -> Zdvihač | AB50: =Param!N23 -> ks | AC50: =Param!O23 -> min | AD50: =Param!P23 -> max | AE50: =Param!Q23 -> hmot. min. | AF50: =Param!R23 -> hmot. max.
AA51: =Param!M24 -> 22S2200 | AC51: =Param!O24 -> 350 | AD51: =Param!P24 -> 450 | AE51: =Param!Q24 -> 2 | AF51: =Param!R24 -> 11.5
N52: =" "&ListAVS!$B$108 -> v kombinaci se SERVO-DRIVE | AA52: =Param!M25 -> 22S2200 v | AC52: =Param!O25 -> 450 | AD52: =Param!P25 -> 540 | AE52: =Param!Q25 -> 2.5 | AF52: =Param!R25 -> 12.5
N53: =" "&ListAVS!$B$109 -> nelze v kombinaci se SERVO-DRIVE | AA53: =Param!M26 -> 22S2500 | AC53: =Param!O26 -> 480 | AD53: =Param!P26 -> 660 | AE53: =Param!Q26 -> 2.75 | AF53: =Param!R26 -> 15.25
N54: =" "&ListAVS!$B$115 -> Zadejte hmotnost nebo vyplňte všechny buňky | AA54: =Param!M27 -> 22S2800 | AC54: =Param!O27 -> 650 | AD54: =Param!P27 -> 800 | AE54: =Param!Q27 -> 3.5 | AF54: =Param!R27 -> 18.5
N55: ="◄ "&ListAVS!$B$112 -> ◄ hodnota bude použita pro výběr zdvihače
N56: =" * "&ListAVS!$B$127 -> * Doplňte hodnoty
N58: =" "&ListAVS!$B$124&"!" -> Hmotnost mimo povolený rozsah!
N59: =" max. 9 000! "&ListAVS!$B$121 -> max. 9 000! Upravte hmotnost nebo výšku
N60: =" "&ListAVS!$B$234 -> Nutná mezistěna
N67: =ListAVS!B187&". " -> Pro určení typu zdvihače bude použita zadaná hmotnost.
N68: =ListAVS!B188&". " -> Pro určení typu zdvihače bude použita vypočtená hmotnost.
N69: =ListAVS!B189 -> Chcete-li použít vypočtenou hmotnost, smažte zadanou hodnotu
N70: =ListAVS!B190 -> Chcete-li použít zadanou hmotnost, zadejte ji do políčka
N79: =ListAVS!$B$73 -> Výpočet hmotnosti čel
P80: =ListAVS!$B$179&" " -> Provedení čel | T80: =J4 -> 0 | U80: =IF(AF87=3,IF(T80=0,Y82," "),IF(T80>0,Y83," ")) ->  | Y80: =IF($AF$87=1,$AF$105,IF($AF$87=2,$AF$106,$AF$107&" - "&$Y$90&"mm")) -> Alurámečky s 4mm sklem | AD80: =MenuAVS!$Q$81 -> 2500
Y81: =" "&ListAVS!$B$410 -> Změnit hodnoty můžete v Úvodu plánování
Y82: =" "&ListAVS!$B$245&" [mm]" -> Zadejte sílu skla [mm]
Y83: =" "&ListAVS!$B$240&" '"&ListAVS!$B$95&"'" -> Hodnota platí jen pro volbu 'Alurámečky s jiným sklem'
R85: =D9 ->  | AE85: váha spoj.
N86: =ListAVS!$B$74&" KB [mm] " -> Šířka korpusu KB [mm] | T86: =H10 -> 0 | Y86: =T86*T87*T88 -> 0 | AD86: =IF($AG$87=1,$X$105,$X$106) -> 0.31 | AE86: =$X$107 -> 0.46 | AF86: tl. skla | AG86: typ alu
N87: =ListAVS!$B$75&" KH [mm] " -> Výška korpusu KH [mm] | T87: =H11 -> 0 | Y87: =Y86/1000000000 -> 0 | Z87: 2 | AD87: váha alu | AE87: =SUM(T86*2,(T87-40)*2)*AD86/1000 -> -0.0248 | AF87: 1 | AG87: =$V$4 -> 1
N88: =ListAVS!$B$80&" TS [mm] " -> Síla čela TS [mm] | Y88: =MenuAVS!$C$31 -> 760 | Z88: =ListAVS!$B$90&" ("&Y88&" kg/m3)" -> MDF (760 kg/m3) | AD88: =$AD$80*4/1000 -> 10 | AE88: =IF($AG$87=1,AF89*AD88,AG89*AD88) -> 0.009 | AF88: A plocha B
N89: =ListAVS!$B$83&" [kg] " -> Hmotnost úchytky [kg] | T89: =H14 -> 0 | U89: =IF(SUM(T86,T87)=0," ",IF(T89=0," ● "&ListAVS!$B$129," ")) ->  | Y89: =MenuAVS!$C$32 -> 680 | Z89: =ListAVS!$B$91&" ("&Y89&" kg/m3)" -> Dřevotříska (680 kg/m3) | AD89: =$AD$80*5/1000 -> 12.5 | AE89: =IF($AG$87=1,AF90*AD89,AG90*AD89) -> 0.01125 | AF89: =SUM(($T$86-30)*($T$87-30)/1000000) -> 0.0009 | AG89: =SUM(($T$86-6)*($T$87-6)/1000000) -> 3.6e-05 | AH89: 4mm
N90: =ListAVS!$B$79&" [kg] " -> Vypočtená hmotnost čela [kg] | T90: =IF(AD91=0,0,AD91+T89) -> 0 | X90: =IF(T86*T87*T88=0,0,IF(Z87=1,Y87*Y88,IF(Z87=2,Y87*Y89,Y87*Y90))) -> 0 | Y90: =$T$80 -> 0 | Z90: =ListAVS!$B$92 -> Jiné - volitelná hustota | AD90: =$AD$80*$T$80/1000 -> 0 | AE90: =IF($AG$87=1,AF91*AD90,AG91*AD90) -> 0 | AF90: =SUM(($T$86-30)*($T$87-30)/1000000) -> 0.0009 | AG90: =SUM(($T$86-6)*($T$87-6)/1000000) -> 3.6e-05 | AH90: 5mm
O91: =IF(T90>0,IF(T89=0,$Z$105," ")," ") ->  | AD91: =IF(OR(AND(AF87=3, $T$80=0), T86*T87=0), 0, SUM(IF(AF87=1,AE88,IF(AF87=2,AE89,AE90)),AE87,AE86)) -> 0 | AF91: =SUM(($T$86-30)*($T$87-30)/1000000) -> 0.0009 | AG91: =SUM(($T$86-6)*($T$87-6)/1000000) -> 3.6e-05 | AH91: jiné
R96: =D20 ->  | AE96: váha spoj.
N97: =ListAVS!$B$74&" KB [mm] " -> Šířka korpusu KB [mm] | T97: =H21 -> 0 | Y97: =T97*T98*T99 -> 0 | AD97: =IF($AG$87=1,$X$105,$X$106) -> 0.31 | AE97: =$X$107 -> 0.46 | AF97: tl. skla | AG97: typ alu
N98: =ListAVS!$B$75&" KH [mm] " -> Výška korpusu KH [mm] | T98: =H22 -> 0 | Y98: =Y97/1000000000 -> 0 | Z98: =Z87 -> 2 | AD98: váha alu | AE98: =SUM(T97*2,(T98-40)*2)*AD97/1000 -> -0.0248 | AF98: =$AF$87 -> 1 | AG98: =$AG$87 -> 1
N99: =ListAVS!$B$80&" TS [mm] " -> Síla čela TS [mm] | Y99: =$Y$88 -> 760 | Z99: =$Z$88 -> MDF (760 kg/m3) | AD99: =AD88 -> 10 | AE99: =IF($AG$87=1,AF100*AD99,AG100*AD99) -> 0.009 | AF99: A plocha B
N100: =ListAVS!$B$83&" [kg] " -> Hmotnost úchytky [kg] | T100: =H25 -> 0 | U100: =IF(SUM(T97,T98)=0," ",IF(T100=0," ● "&ListAVS!$B$129," ")) ->  | Y100: =$Y$89 -> 680 | Z100: =$Z$89 -> Dřevotříska (680 kg/m3) | AD100: =AD89 -> 12.5 | AE100: =IF($AG$87=1,AF101*AD100,AG101*AD100) -> 0.01125 | AF100: =SUM(($T$97-30)*($T$98-30)/1000000) -> 0.0009 | AG100: =SUM(($T$97-6)*($T$98-6)/1000000) -> 3.6e-05 | AH100: 4mm
N101: =ListAVS!$B$79&" [kg] " -> Vypočtená hmotnost čela [kg] | T101: =IF(AD102=0,0,AD102+T100) -> 0 | X101: =IF(T97*T98*T99=0,0,IF(Z98=1,Y98*Y99,IF(Z98=2,Y98*Y100,Y98*Y101))) -> 0 | Y101: =$Y$90 -> 0 | Z101: =$Z$90 -> Jiné - volitelná hustota | AD101: =AD90 -> 0 | AE101: =IF($AG$87=1,AF102*AD101,AG102*AD101) -> 0 | AF101: =SUM(($T$97-30)*($T$98-30)/1000000) -> 0.0009 | AG101: =SUM(($T$97-6)*($T$98-6)/1000000) -> 3.6e-05 | AH101: 5mm
O102: =IF(T101>0,IF(T100=0,$Z$105," ")," ") ->  | AD102: =IF(OR(AND(AF98=3, $T$80=0), T97*T98=0), 0, SUM(IF(AF98=1,AE99,IF(AF98=2,AE100,AE101)),AE98,AE97)) -> 0 | AF102: =SUM(($T$97-30)*($T$98-30)/1000000) -> 0.0009 | AG102: =SUM(($T$97-6)*($T$98-6)/1000000) -> 3.6e-05 | AH102: jiné
W105: =ListAVS!$B$422&" " -> s vloženým sklem | X105: =MenuAVS!$I$91 -> 0.31 | Z105: =ListAVS!$B$102&"!" -> Není započtena hmotnost úchytky! | AF105: =ListAVS!$B$93 -> Alurámečky s 4mm sklem
W106: =ListAVS!$B$423&" " -> s naloženým nebo nalepeným sklem | X106: =MenuAVS!$I$92 -> 0.32 | AF106: =ListAVS!$B$94 -> Alurámečky s 5mm sklem
W107: =ListAVS!$B$405&" [kg/set] * " -> Hmotnost spojovacího materiálu [kg/set] * | X107: =MenuAVS!$I$93 -> 0.46 | AF107: =ListAVS!$B$95 -> Alurámečky s jiným sklem
B110: AVENTOS HS
B112: =ListAVS!$B$332 -> Pro výběr správného zdvihače potřebujete znát výšku korpusu a hmotnost čela.
B114: =ListAVS!$B$334 -> Výška korpusu KH = 602 mm zaokrouhlit na KH = 600 mm
B115: =ListAVS!$B$335 -> Výška korpusu KH = 603 mm zaokrouhlit na KH = 605 mm
B117: =ListAVS!$B$311 -> Pokud znáte hmotnost čela, můžete ji zadat, jinak použijte "Výpočet hmotnosti".
B118: =ListAVS!$B$312 -> V tabulce má přednost zadaná hodnota. Chcete-li použít vypočtenou hmotnost, smažte zadanou hodnotu.
B121: =ListAVS!$B$305 -> Chcete-li změnit barvu krytek, přejděte na "Úvod plánování"
B123: =ListAVS!$B$411 -> Věnujte pozornost výběru alurámečků.
B124: =ListAVS!$B$412 -> Vyberte, který typ lépe odpovídá tvaru použitého alurámečku.
B125: =ListAVS!$B$413 -> Způsob osazení skla do rámečku výrazně ovlivňuje plochu skla a tím i hmotnost!
C127: =" "&ListAVS!$B$424&" " -> s vloženým sklem
C129: =" "&ListAVS!$B$425&" " -> s naloženým nebo nalepeným sklem
L131: =ListAVS!$B$167 -> Zpět

Sheet HSt
B2: AVENTOS HS top | N2: zdvih A | P2: ↓rozhodnutí | Q2: zdvih B | S2: ↓rozhodnutí | AK2: 3 | AN2: =ListAVS!$B$152 -> Jdi na
B4: =ListAVS!$B$23&" ***" -> Tenké materiály *** | F4: =ListAVS!$B$26&": " -> Materiál : | K4: =IF($Z$82=8,IF(J4=0,$Y$78," "),IF(J4>0,$Y$79," ")) ->  | N4: S22 | O4: =IF(AND($H$11>=$AC$51, $H$11<$AD$51, $P$17>=$AE$51, $P$17<=$AF$51), 1, 0) -> 0 | P4: =O4 -> 0 | Q4: S22 | R4: =IF(AND($H$22>=$AC$51, $H$22<$AD$51, $P$28>=$AE$51, $P$28<=$AF$51), 1, 0) -> 0 | S4: =R4 -> 0 | T4: ← (350–450) | AK4: =" "&ListAVS!$B$41&" A " -> Cena za korpus A | AN4: Úvod plánování
F5: =IF($Z$82<>8,$Y$77," ")&" " -> Změnit hodnoty můžete v Úvodu plánování | N5: S22 v | O5: =IF(AND($H$11>=$AC$52, $H$11<$AD$52, $P$17>=$AE$52, $P$17<=$AF$52), 1, 0) -> 0 | P5: =IF(AND($O$5=1, $O$6=1, $P$17<=5), O5, 0)+IF(AND($O$5=1, $O$6=0), 1, IF(AND(O5=1, O6=0), O5, 0)) -> 0 | Q5: S22 v | R5: =IF(AND($H$22>=$AC$52, $H$22<$AD$52, $P$28>=$AE$52, $P$28<=$AF$52), 1, 0) -> 0 | S5: =IF(AND($R$5=1, $R$6=1, $P$28<=5), R5, 0)+IF(AND($R$5=1, $R$6=0), 1, IF(AND(R5=1, R6=0), R5, 0)) -> 0 | T5: ← (450–540) | AK5: =" "&ListAVS!$B$41&" B " -> Cena za korpus B | AN5: =" "&ListAVS!$B$154 -> Nápověda
N6: S25 | O6: =IF(AND($H$11>=$AC$53, $H$11<$AD$53, $P$17>=$AE$53, $P$17<=$AF$53), 1, 0) -> 0 | P6: =IF(AND($O$5=1, $O$6=1, $P$17>5), O6, 0)+IF(AND($O$6=1, $O$7=1, $P$17<7), O6, IF(AND(O5=0, O6=1, O7=0), O6, 0)) -> 0 | Q6: S25 | R6: =IF(AND($H$22>=$AC$53, $H$22<$AD$53, $P$28>=$AE$53, $P$28<=$AF$53), 1, 0) -> 0 | S6: =IF(AND($R$5=1, $R$6=1, $P$28>5), R6, 0)+IF(AND($R$6=1, $R$7=1, $P$28<7), R6, IF(AND(R5=0, R6=1, R7=0), R6, 0)) -> 0 | AK6: =" "&ListAVS!$B$61 -> Cena celkem bez DPH
B7: =ListAVS!$B$51&": " -> Cena kování: | G7: =IF($AK$2=1,$AF$45,IF($AK$2=2,$AH$45,IF($AK$2=3,$AD$45,0))) -> 0 | N7: S28 | O7: =IF(AND($H$11>=$AC$54, $H$11<=$AD$54, $P$17>=$AE$54, $P$17<=$AF$54), 1, 0) -> 0 | P7: =IF(AND($O$6=1, $O$7=1, $P$17>=7), O7, IF(AND(O6=0, O7=1), O7, 0)) -> 0 | Q7: S28 | R7: =IF(AND($H$22>=$AC$54, $H$22<=$AD$54, $P$28>=$AE$54, $P$28<=$AF$54), 1, 0) -> 0 | S7: =IF(AND($R$6=1, $R$7=1, $P$28>=7), R7, IF(AND(R6=0, R7=1), R7, 0)) -> 0 | Y7: =$B$2 -> AVENTOS HS top | Z7: =B5 -> 0 | AN7: =" "&ListAVS!$B$159 -> Doplňky
H8: =IF(AND(OR($Q$16=2, $Q$27=2), $AD$45>0), $N$35, " ") ->  | Y8: =ListAVS!B52 -> Název | Z8: =ListAVS!$B$53 -> Číslo artiklu | AA8: =ListAVS!B54 -> Barva | AB8: =ListAVS!B56 -> Ks | AC8: =ListAVS!B58 -> Jednotková cena | AD8: =ListAVS!B59 -> Celkem | AE8: A | AF8: Cena | AG8: B | AH8: Cena | AQ8: =ListAVS!B75&" KH (mm)" -> Výška korpusu KH (mm) | AR8: =ListAVS!B76&" FG (kg)" -> Hmotnost čela FG (kg) | AS8: =ListAVS!$B$84&" "&ListAVS!$B$349 -> Zdvihací mechanizmus vruty | AT8: =ListAVS!$B$84&" "&ListAVS!$B$350 -> Zdvihací mechanizmus předmont. eurošrouby
B9: ="▼ "&ListAVS!$B$317 -> ▼ Způsob otvírání | D9: =IF($M$17>0, ListAVS!$B$37&": ", " ") ->  | E9: =IF(SUM($AE$9:$AE$10)>0,"22",IF(SUM($AE$11:$AE$12)>0,"25",IF(SUM($AE$13:$AE$14)>0,"28"," "))) ->  | F9: =ListAVS!$B$64&" A" -> Korpus A | Y9: =CenAVS!A28 -> Sada zdvihačů HS top, na vruty | Z9: =CenAVS!B28 -> 22S2200 | AA9: =CenAVS!C28 -> ZN | AB9: =SUM(AE9,AG9) -> 0 | AC9: =CenAVS!F28 -> 1754.34 | AD9: =AB9*AC9 -> 0 | AE9: =IF(AND($W$46=1, SUM($P$4:$P$5)=1), $M$17, 0) -> 0 | AF9: =$AC9*AE9 -> 0 | AG9: =IF(AND($W$46=1, SUM($S$4:$S$5)=1), $M$28, 0) -> 0 | AH9: =$AC9*AG9 -> 0 | AN9: =" "&ListAVS!$B$156 -> Přehled korpusů | AQ9: 350 - 450 | AR9: 2.00 - 11.50 | AS9: 22S2200 | AT9: 22S2210
B10: =ListAVS!$B$74&" KB [mm] " -> Šířka korpusu KB [mm] | I10: =IF($H10=0," ",IF($H10<220," min. 220mm",IF($H10>1800," max. 1 800mm"," ")))&IF(H17>0,IF(H10=0,"● "&ListAVS!$B$128," ")," ") ->  | Y10: =CenAVS!A29 -> Sada zdvihačů HS top, předmont. eurošrouby | Z10: =CenAVS!B29 -> 22S2210 | AA10: =CenAVS!C29 -> ZN | AB10: 0 | AC10: =CenAVS!F29 -> 1754.34 | AD10: =AB10*AC10 -> 0 | AE10: =IF(AND($W$46=2, SUM($P$4:$P$5)=1), $M$17, 0) -> 0 | AF10: 0 | AG10: =IF(AND($W$46=2, SUM($S$4:$S$5)=1), $M$28, 0) -> 0 | AH10: 0 | AN10: =" "&ListAVS!$B$157 -> Objednávka | AQ10: 450 - 540 | AR10: 2.50 - 12.50
B11: =ListAVS!$B$75&" KH [mm] " -> Výška korpusu KH [mm] | I11: =IF($H11=0," ",IF($H11<350," min. 350mm",IF($H11>800," max. 800 mm"," ")))&IF(H17>0,IF(H11=0,"● "&ListAVS!$B$128," ")," ") ->  | Y11: =CenAVS!A30 -> Sada zdvihačů HS top, na vruty | Z11: =CenAVS!B30 -> 22S2500 | AA11: =CenAVS!C30 -> ZN | AB11: 0 | AC11: =CenAVS!F30 -> 1856.76 | AD11: 0 | AE11: =IF(AND($W$46=1, $P$6=1), $M$17, 0) -> 0 | AF11: 0 | AG11: =IF(AND($W$46=1, $S$6=1), $M$28, 0) -> 0 | AH11: 0 | AQ11: 480 - 660 | AR11: 2.75 - 15.25 | AS11: 22S2500 | AT11: 22S2510
B12: =ListAVS!$B$77&" [kg] ** " -> Hmotnost čela včetně úchytky [kg] ** | I12: =IF($H17=0, " ", IF(SUM($H12,$H15)=0,$N$54," "))&IF(AND(SUM($O$4:$O$7)=0, T12="ano", $T13="ne", H12>0),$N$58,IF(AND($H17>0,$H12>0, $M17>0, $T13="ano"),$N$55," ")) ->  | S12: limit v/š | T12: =IF(AND(219<H10,H10<1801,349<H11,H11<801),"ano","ne") -> ne | Y12: =CenAVS!A31 -> Sada zdvihačů HS top, předmont. eurošrouby | Z12: =CenAVS!B31 -> 22S2510 | AA12: =CenAVS!C31 -> ZN | AB12: 0 | AC12: =CenAVS!F31 -> 1856.76 | AD12: 0 | AE12: =IF(AND($W$46=2, $P$6=1), $M$17, 0) -> 0 | AF12: 0 | AG12: =IF(AND($W$46=2, $S$6=1), $M$28, 0) -> 0 | AH12: 0 | AQ12: 650 - 800 | AR12: 3.50 - 18.50 | AS12: 22S2800 | AT12: 22S2810
B13: =ListAVS!$B$292 -> Výpočet hmotnosti | D13: =ListAVS!$B$80&" TS [mm] " -> Síla čela TS [mm] | I13: =IF(H17=0," ",IF(AND(H12=0, H13=0)," ● "&ListAVS!$B$128," "))&IF(H17=0," ",IF(AND(H12=0, H13<8), " min. 8 mm", IF(AND(H12=0, H13>14), " max. 14 mm", " "))) ->  | S13: limit hmot | T13: =IF(AND($H$11>=$AC$51, $H$11<=$AD$51, $P$17>=$AE$51, $P$17<=$AF$51), "ano", IF(AND($H$11>=$AC$52, $H$11<=$AD$52, $P$17>=$AE$52, $P$17<=$AF$52), "ano", IF(AND($H$11>=$AC$53, $H$11<=$AD$53, $P$17>=$AE$53, $P$17<=$AF$53), "ano", IF(AND($H$11>=$AC$54, $H$11<=$AD$54, $P$17>=$AE$54, $P$17<=$AF$54), "ano", "ne")))) -> ne | Y13: =CenAVS!A32 -> Sada zdvihačů HS top, na vruty | Z13: =CenAVS!B32 -> 22S2800 | AA13: =CenAVS!C32 -> ZN | AB13: 0 | AC13: =CenAVS!F32 -> 1972 | AD13: 0 | AE13: =IF(AND($W$46=1, $P$7=1), $M$17, 0) -> 0 | AF13: 0 | AG13: =IF(AND($W$46=1, $S$7=1), $M$28, 0) -> 0 | AH13: 0
D14: =ListAVS!$B$83&" [kg] " -> Hmotnost úchytky [kg] | I14: =IF(H17=0, " ", IF(AND(H12=0, Q16=1, H14=0), " ● "&ListAVS!$B$129," ")) ->  | Y14: =CenAVS!A33 -> Sada zdvihačů HS top, předmont. eurošrouby | Z14: =CenAVS!B33 -> 22S2810 | AA14: =CenAVS!C33 -> ZN | AB14: 0 | AC14: =CenAVS!F33 -> 1972 | AD14: 0 | AE14: =IF(AND($W$46=2, $P$7=1), $M$17, 0) -> 0 | AF14: 0 | AG14: =IF(AND($W$46=2, $S$7=1), $M$28, 0) -> 0 | AH14: 0 | AQ14: =ListAVS!B349&" = "&ListAVS!B351 -> vruty = zdvihače s integrovanou šablonou (bez nutnosti rozměřování)
D15: =ListAVS!$B$79&" [kg] " -> Vypočtená hmotnost čela [kg] | H15: =$T$90 -> 0 | I15: =IF(AND($H17>0,$H15>0,$H12=0,$M17>0), $N$41," ")&IF(AND(H17>0, H12=0, Z87=3, $J$4=0), $N$39, " ") ->  | P15: Servo-Drive | AQ15: =ListAVS!B350&" = "&ListAVS!B352 -> předmont. eurošrouby = zdvihače s předmotovanými šrouby (nutné předvrtání)
I16: =IF(AND(H16>0, Q16=2), $N$53, " ") ->  | O16: FALSE | Q16: 1 | Y16: =CenAVS!A34 -> Sada ramen HS top | Z16: =CenAVS!B34 -> 22S3500 | AA16: =CenAVS!C34 -> ZN | AB16: =SUM(AE16,AG16) -> 0 | AC16: =CenAVS!F34 -> 1169.26 | AD16: =AB16*AC16 -> 0 | AE16: =SUM($AE$9:$AE$14) -> 0 | AF16: =$AC16*AE16 -> 0 | AG16: =SUM($AG$9:$AG$14) -> 0 | AH16: =$AC16*AG16 -> 0
B17: =ListAVS!$B$71&" " -> Počet skříněk | M17: =IF($H10*$H11*$P17=0,0,IF(SUM(O4:O7)=0,0,IF($H10>1800,0, IF($H10<220, 0, IF(AND(H12=0, H13<14), 0, $H17))))) -> 0 | O17: hmot = | P17: =IF(H12>0,H12,H15) -> 0 | Q17: =IF(SUM(H12,H15)=0,0,IF(H12>0,1,2)) -> 0 | R17: zadaná / vypočtená
B18: =IF(H17>0,IF(OR(Q17=0,M17=0), " ",IF(Q17=1,$N$67,$N$68))," ")&IF(H17>0,IF(OR(Q17=0, M17=0), " ",IF(Q17=1,$N$69,$N$70))," ") -> 
N19: tyč | O19: =IF($H$10>1360,1.5,IF($H$10<610,0.5,1)) -> 0.5 | Q19: tyč | R19: =IF($H$21>1360,1.5,IF($H$21<610,0.5,1)) -> 0.5
B20: ="▼ "&ListAVS!$B$317 -> ▼ Způsob otvírání | D20: =IF($M$28>0, ListAVS!$B$37&": ", " ") ->  | E20: =IF(SUM($AG$9:$AG$10)>0,"22",IF(SUM($AG$11:$AG$12)>0,"25",IF(SUM($AG$13:$AG$14)>0,"28"," "))) ->  | F20: =ListAVS!$B$64&" B" -> Korpus B | N20: mezistěny | O20: =IF($H$16>0,$H$16,IF($H$10>1219,1,0)) -> 0 | Q20: mezistěny | R20: =IF($H$27>0,$H$27,IF($H$21>1219,1,0)) -> 0 | Y20: =CenAVS!A47 -> Sada krytek HF, HS, HL top, světle šedá | Z20: =CenAVS!B47 -> 22.8000 | AA20: =CenAVS!C47 -> HGR | AB20: 0 | AC20: =CenAVS!F47 -> 252.85 | AD20: 0 | AE20: =IF(AND($Q$16=1,$T$46=1),SUM($AE$9:$AE$14),0) -> 0 | AF20: 0 | AG20: =IF(AND($Q$27=1,$T$46=1),SUM($AG$9:$AG$14),0) -> 0 | AH20: 0
B21: =ListAVS!$B$74&" KB [mm] " -> Šířka korpusu KB [mm] | I21: =IF($H21=0," ",IF($H21<220," min. 220mm",IF($H21>1800," max. 1 800mm"," ")))&IF(H28>0,IF(H21=0,"● "&ListAVS!$B$128," ")," ") ->  | Y21: =CenAVS!A48 -> Sada krytek HF, HS, HL top, tmavě šedá | Z21: =CenAVS!B48 -> 22.8000 | AA21: =CenAVS!C48 -> TGR | AB21: 0 | AC21: =CenAVS!F48 -> 275.94 | AD21: 0 | AE21: =IF(AND($Q$16=1,$T$46=2),SUM($AE$9:$AE$14),0) -> 0 | AF21: 0 | AG21: =IF(AND($Q$27=1,$T$46=2),SUM($AG$9:$AG$14),0) -> 0 | AH21: 0
B22: =ListAVS!$B$75&" KH [mm] " -> Výška korpusu KH [mm] | I22: =IF($H22=0," ",IF($H22<350," min. 350mm",IF($H22>800," max. 800 mm"," ")))&IF(H28>0,IF(H22=0,"● "&ListAVS!$B$128," ")," ") ->  | Y22: =CenAVS!A49 -> Sada krytek HF, HS, HL top, hedvábně bílá | Z22: =CenAVS!B49 -> 22.8000 | AA22: =CenAVS!C49 -> SW | AB22: 0 | AC22: =CenAVS!F49 -> 275.94 | AD22: 0 | AE22: =IF(AND($Q$16=1,$T$46=3),SUM($AE$9:$AE$14),0) -> 0 | AF22: 0 | AG22: =IF(AND($Q$27=1,$T$46=3),SUM($AG$9:$AG$14),0) -> 0 | AH22: 0
